Workbook

Sheet INICIO
B1: EXCEL NO CONVENCIONAL
B2: www.excelnoconvencional.pe
B3: informes@excelnoconvencional.pe
B4: Whatsapp 998401784
F6: PROGRAMAS DE EXCEL | J6: IMPORTANTE
H7: Indique numero de RUC | J7: Al principio solo se mostrará sólo la hoja INICIO, pero debe dirigirse a la CONFIGURACION DEL CENTRO DE CONFIANZA ubicado en la pestaña ARCHIVO, luego Opciones (al final de la lista), allí, en la parte inferior debe entrar al CENTRO DE CONFIANZA y debe entrar a configuración del centro de confianza. Dirigase a configuración de MACROS y active la opción DESHABILITAR TODAS LAS MACROS CON NOTIFICACION o, si no funciona con este, HABILITAR TODAS LAS MACROS. Si uso la primera debe mostrarse en la pantalla de Excel una opción para HABILITAR EL CONTENIDO y listo. * Este aplicativo tiene dos procesos libres. Uselos correctemente. Una vez habilitada la macro, se mostrarán varias hojas disponibles. * Cambie el número de RUC de la hoja INICIO, en la celda H8 a un RUC propio. * Ingrese su información contable en la hoja Balance Empresa, debe indicar los saldos iniciales y movimientos del año sin netearlos. Las columnas de color melón de la hoja Balance Empresa son EDITABLES. * Una vez que puso su balance de comprobación debe llenar la información de las casillas, en la pestaña CASILLAS Y VALIDACIONES esta el botón para generar los archivos de carga al PDT.
F8: Programa Integral de Excel (Básico, intermedio y avanzado) 42 horas | H8: 20552977891
F9: http://excelnoconvencional.pe/programa-integral-de-excel/
F10: Tablas Dinamicas Empresariales (2 módulos) 28 horas | H10: Año
F11: http://excelnoconvencional.pe/tablas-dinamicas-empresariales/ | H11: 2017
F12: Programa Avanzado: Buscando datos en Excel (1 módulo) 16 horas
F13: http://excelnoconvencional.pe/buscando-datos-en-excel/ | H13: Formulario
F14: Programa Avanzado: Matemática financiera y analisis de EEFF (2 módulos) 27 horas | H14: 0706
F15: http://excelnoconvencional.pe/matematica-financiera-y-analisis-de-eeff/
F17: MEJORA DE SISTEMAS DE TRABAJO BASADOS EN EXCEL
F19: Mejoras de sistemas de trabajo productivos
F20: Mejoras de sistemas de trabajo administrativos
F21: Mejoras de sistemas de trabajo operativos
F22: Mejoras de sistemas de trabajo contables
F24: CURSOS PERSONALES Y ASESORIAS A DOMICILIO
F25: https://www.linkedin.com/in/martin-cruz-9a905349/

Sheet BC_PCGEmpresarial (hidden)
B6: BALANCE DE COMPROBACIÓN HISTÓRICO - PLAN CONTABLE GENERAL EMPRESARIAL - 2017 | C6: SALDOS INICIALES | E6: MOVIMIENTO DEL EJERCICIO | G6: SUMAS DEL MAYOR | I6: SALDOS AL 31.12.2017 | K6: TRANSFERENCIAS Y CANCELACIONES | M6: AJUSTES POR ADECUACIÓN o IMPLICANCIA NIIF | O6: CUENTAS DE BALANCE | Q6: RESULTADOS POR NATURALEZA
B7: CUENTAS CONTABLES | C7: DEBE | D7: HABER | E7: DEBE | F7: HABER | G7: DEBE | H7: HABER | I7: DEUDOR | J7: ACREEDOR | K7: DEBE | L7: HABER | M7: DEBE | N7: HABER | O7: ACTIVO | P7: PASIVO | Q7: PÉRDIDAS | R7: GANANCIAS
A8: 0111 | B8: 0111. Bienes en préstamo, custodia y no capitalizables - Bienes en préstamo | C8: =SUMIF('Balance Empresa'!$K:$K,BC_PCGEmpresarial!$B8,'Balance Empresa'!N:N) -> 0 | D8: =SUMIF('Balance Empresa'!$K:$K,BC_PCGEmpresarial!$B8,'Balance Empresa'!O:O) -> 0 | E8: =SUMIF('Balance Empresa'!$K:$K,BC_PCGEmpresarial!$B8,'Balance Empresa'!P:P) -> 0 | F8: =SUMIF('Balance Empresa'!$K:$K,BC_PCGEmpresarial!$B8,'Balance Empresa'!Q:Q) -> 0 | G8: =+C8+E8 -> 0 | H8: 0 | I8: =IF($G8-$H8>=0,$G8-$H8,0) -> 0 | J8: =IF($G8-$H8<0,-$G8+$H8,0) -> 0 | O8: =IF($I8-$J8+$K8-$L8+$M8-$N8>=0,$I8-$J8+$K8-$L8+$M8-$N8,0) -> 0 | P8: =IF($I8-$J8+$K8-$L8+$M8-$N8<0,-($I8-$J8+$K8-$L8+$M8-$N8),0) -> 0
A9: 0112 | B9: 0112. Bienes en préstamo, custodia y no capitalizables - Bienes en custodia | C9: =SUMIF('Balance Empresa'!$K:$K,BC_PCGEmpresarial!$B9,'Balance Empresa'!N:N) -> 0 | D9: =SUMIF('Balance Empresa'!$K:$K,BC_PCGEmpresarial!$B9,'Balance Empresa'!O:O) -> 0 | E9: =SUMIF('Balance Empresa'!$K:$K,BC_PCGEmpresarial!$B9,'Balance Empresa'!P:P) -> 0 | F9: =SUMIF('Balance Empresa'!$K:$K,BC_PCGEmpresarial!$B9,'Balance Empresa'!Q:Q) -> 0 | G9: 0 | H9: 0 | I9: 0 | J9: 0 | O9: =IF($I9-$J9+$K9-$L9+$M9-$N9>=0,$I9-$J9+$K9-$L9+$M9-$N9,0) -> 0 | P9: =IF($I9-$J9+$K9-$L9+$M9-$N9<0,-($I9-$J9+$K9-$L9+$M9-$N9),0) -> 0
A10: 0121 | B10: 0121. Valores y bienes entregados en garantía - Cartas fianza | C10: =SUMIF('Balance Empresa'!$K:$K,BC_PCGEmpresarial!$B10,'Balance Empresa'!N:N) -> 0 | D10: =SUMIF('Balance Empresa'!$K:$K,BC_PCGEmpresarial!$B10,'Balance Empresa'!O:O) -> 0 | E10: =SUMIF('Balance Empresa'!$K:$K,BC_PCGEmpresarial!$B10,'Balance Empresa'!P:P) -> 0 | F10: =SUMIF('Balance Empresa'!$K:$K,BC_PCGEmpresarial!$B10,'Balance Empresa'!Q:Q) -> 0 | G10: 0 | H10: 0 | I10: 0 | J10: 0 | O10: 0 | P10: 0
A11: 0122 | B11: 0122. Valores y bienes entregados en garantía - Cuentas por cobrar | C11: =SUMIF('Balance Empresa'!$K:$K,BC_PCGEmpresarial!$B11,'Balance Empresa'!N:N) -> 0 | D11: =SUMIF('Balance Empresa'!$K:$K,BC_PCGEmpresarial!$B11,'Balance Empresa'!O:O) -> 0 | E11: =SUMIF('Balance Empresa'!$K:$K,BC_PCGEmpresarial!$B11,'Balance Empresa'!P:P) -> 0 | F11: =SUMIF('Balance Empresa'!$K:$K,BC_PCGEmpresarial!$B11,'Balance Empresa'!Q:Q) -> 0 | G11: 0 | H11: 0 | I11: 0 | J11: 0 | O11: 0 | P11: 0
A12: 0123 | B12: 0123. Valores y bienes entregados en garantía - Existencias | C12: =SUMIF('Balance Empresa'!$K:$K,BC_PCGEmpresarial!$B12,'Balance Empresa'!N:N) -> 0 | D12: =SUMIF('Balance Empresa'!$K:$K,BC_PCGEmpresarial!$B12,'Balance Empresa'!O:O) -> 0 | E12: =SUMIF('Balance Empresa'!$K:$K,BC_PCGEmpresarial!$B12,'Balance Empresa'!P:P) -> 0 | F12: =SUMIF('Balance Empresa'!$K:$K,BC_PCGEmpresarial!$B12,'Balance Empresa'!Q:Q) -> 0 | G12: 0 | H12: 0 | I12: 0 | J12: 0 | O12: 0 | P12: 0
A13: 0124 | B13: 0124. Valores y bienes entregados en garantía - Inversión mobiliaria | C13: =SUMIF('Balance Empresa'!$K:$K,BC_PCGEmpresarial!$B13,'Balance Empresa'!N:N) -> 0 | D13: =SUMIF('Balance Empresa'!$K:$K,BC_PCGEmpresarial!$B13,'Balance Empresa'!O:O) -> 0 | E13: =SUMIF('Balance Empresa'!$K:$K,BC_PCGEmpresarial!$B13,'Balance Empresa'!P:P) -> 0 | F13: =SUMIF('Balance Empresa'!$K:$K,BC_PCGEmpresarial!$B13,'Balance Empresa'!Q:Q) -> 0 | G13: 0 | H13: 0 | I13: 0 | J13: 0 | O13: 0 | P13: 0
A14: 0125 | B14: 0125. Valores y bienes entregados en garantía - Inversión inmobiliaria | C14: =SUMIF('Balance Empresa'!$K:$K,BC_PCGEmpresarial!$B14,'Balance Empresa'!N:N) -> 0 | D14: =SUMIF('Balance Empresa'!$K:$K,BC_PCGEmpresarial!$B14,'Balance Empresa'!O:O) -> 0 | E14: =SUMIF('Balance Empresa'!$K:$K,BC_PCGEmpresarial!$B14,'Balance Empresa'!P:P) -> 0 | F14: =SUMIF('Balance Empresa'!$K:$K,BC_PCGEmpresarial!$B14,'Balance Empresa'!Q:Q) -> 0 | G14: 0 | H14: 0 | I14: 0 | J14: 0 | O14: 0 | P14: 0
A15: 0126 | B15: 0126. Valores y bienes entregados en garantía - Inmuebles, maquinaria y equipo | C15: =SUMIF('Balance Empresa'!$K:$K,BC_PCGEmpresarial!$B15,'Balance Empresa'!N:N) -> 0 | D15: =SUMIF('Balance Empresa'!$K:$K,BC_PCGEmpresarial!$B15,'Balance Empresa'!O:O) -> 0 | E15: =SUMIF('Balance Empresa'!$K:$K,BC_PCGEmpresarial!$B15,'Balance Empresa'!P:P) -> 0 | F15: =SUMIF('Balance Empresa'!$K:$K,BC_PCGEmpresarial!$B15,'Balance Empresa'!Q:Q) -> 0 | G15: 0 | H15: 0 | I15: 0 | J15: 0 | O15: 0 | P15: 0
A16: 0127 | B16: 0127. Valores y bienes entregados en garantía - Intangibles | C16: =SUMIF('Balance Empresa'!$K:$K,BC_PCGEmpresarial!$B16,'Balance Empresa'!N:N) -> 0 | D16: =SUMIF('Balance Empresa'!$K:$K,BC_PCGEmpresarial!$B16,'Balance Empresa'!O:O) -> 0 | E16: =SUMIF('Balance Empresa'!$K:$K,BC_PCGEmpresarial!$B16,'Balance Empresa'!P:P) -> 0 | F16: =SUMIF('Balance Empresa'!$K:$K,BC_PCGEmpresarial!$B16,'Balance Empresa'!Q:Q) -> 0 | G16: 0 | H16: 0 | I16: 0 | J16: 0 | O16: 0 | P16: 0
A17: 0128 | B17: 0128. Valores y bienes entregados en garantía - Activos biológicos | C17: =SUMIF('Balance Empresa'!$K:$K,BC_PCGEmpresarial!$B17,'Balance Empresa'!N:N) -> 0 | D17: =SUMIF('Balance Empresa'!$K:$K,BC_PCGEmpresarial!$B17,'Balance Empresa'!O:O) -> 0 | E17: =SUMIF('Balance Empresa'!$K:$K,BC_PCGEmpresarial!$B17,'Balance Empresa'!P:P) -> 0 | F17: =SUMIF('Balance Empresa'!$K:$K,BC_PCGEmpresarial!$B17,'Balance Empresa'!Q:Q) -> 0 | G17: 0 | H17: 0 | I17: 0 | J17: 0 | O17: 0 | P17: 0
A18: 013 | B18: 013. Activos realizables entregados en consignación | C18: =SUMIF('Balance Empresa'!$K:$K,BC_PCGEmpresarial!$B18,'Balance Empresa'!N:N) -> 0 | D18: =SUMIF('Balance Empresa'!$K:$K,BC_PCGEmpresarial!$B18,'Balance Empresa'!O:O) -> 0 | E18: =SUMIF('Balance Empresa'!$K:$K,BC_PCGEmpresarial!$B18,'Balance Empresa'!P:P) -> 0 | F18: =SUMIF('Balance Empresa'!$K:$K,BC_PCGEmpresarial!$B18,'Balance Empresa'!Q:Q) -> 0 | G18: 0 | H18: 0 | I18: 0 | J18: 0 | O18: 0 | P18: 0
A19: 0211 | B19: 0211. Primarios - Inversiones mantenidas para negociación | C19: =SUMIF('Balance Empresa'!$K:$K,BC_PCGEmpresarial!$B19,'Balance Empresa'!N:N) -> 0 | D19: =SUMIF('Balance Empresa'!$K:$K,BC_PCGEmpresarial!$B19,'Balance Empresa'!O:O) -> 0 | E19: =SUMIF('Balance Empresa'!$K:$K,BC_PCGEmpresarial!$B19,'Balance Empresa'!P:P) -> 0 | F19: =SUMIF('Balance Empresa'!$K:$K,BC_PCGEmpresarial!$B19,'Balance Empresa'!Q:Q) -> 0 | G19: 0 | H19: 0 | I19: 0 | J19: 0 | O19: 0 | P19: 0
A20: 0212 | B20: 0212. Primarios - Inversiones disponibles para la venta | C20: =SUMIF('Balance Empresa'!$K:$K,BC_PCGEmpresarial!$B20,'Balance Empresa'!N:N) -> 0 | D20: =SUMIF('Balance Empresa'!$K:$K,BC_PCGEmpresarial!$B20,'Balance Empresa'!O:O) -> 0 | E20: =SUMIF('Balance Empresa'!$K:$K,BC_PCGEmpresarial!$B20,'Balance Empresa'!P:P) -> 0 | F20: =SUMIF('Balance Empresa'!$K:$K,BC_PCGEmpresarial!$B20,'Balance Empresa'!Q:Q) -> 0 | G20: 0 | H20: 0 | I20: 0 | J20: 0 | O20: 0 | P20: 0
A21: 0213 | B21: 0213. Primarios - Inversiones a ser mantenidas hasta el vencimiento | C21: =SUMIF('Balance Empresa'!$K:$K,BC_PCGEmpresarial!$B21,'Balance Empresa'!N:N) -> 0 | D21: =SUMIF('Balance Empresa'!$K:$K,BC_PCGEmpresarial!$B21,'Balance Empresa'!O:O) -> 0 | E21: =SUMIF('Balance Empresa'!$K:$K,BC_PCGEmpresarial!$B21,'Balance Empresa'!P:P) -> 0 | F21: =SUMIF('Balance Empresa'!$K:$K,BC_PCGEmpresarial!$B21,'Balance Empresa'!Q:Q) -> 0 | G21: 0 | H21: 0 | I21: 0 | J21: 0 | O21: 0 | P21: 0
A22: 0221 | B22: 0221. Derivados - Contratos a futuro | C22: =SUMIF('Balance Empresa'!$K:$K,BC_PCGEmpresarial!$B22,'Balance Empresa'!N:N) -> 0 | D22: =SUMIF('Balance Empresa'!$K:$K,BC_PCGEmpresarial!$B22,'Balance Empresa'!O:O) -> 0 | E22: =SUMIF('Balance Empresa'!$K:$K,BC_PCGEmpresarial!$B22,'Balance Empresa'!P:P) -> 0 | F22: =SUMIF('Balance Empresa'!$K:$K,BC_PCGEmpresarial!$B22,'Balance Empresa'!Q:Q) -> 0 | G22: 0 | H22: 0 | I22: 0 | J22: 0 | O22: 0 | P22: 0
A23: 0222 | B23: 0222. Derivados - Contratos a término (forward) | C23: =SUMIF('Balance Empresa'!$K:$K,BC_PCGEmpresarial!$B23,'Balance Empresa'!N:N) -> 0 | D23: =SUMIF('Balance Empresa'!$K:$K,BC_PCGEmpresarial!$B23,'Balance Empresa'!O:O) -> 0 | E23: =SUMIF('Balance Empresa'!$K:$K,BC_PCGEmpresarial!$B23,'Balance Empresa'!P:P) -> 0 | F23: =SUMIF('Balance Empresa'!$K:$K,BC_PCGEmpresarial!$B23,'Balance Empresa'!Q:Q) -> 0 | G23: 0 | H23: 0 | I23: 0 | J23: 0 | O23: 0 | P23: 0
A24: 0223 | B24: 0223. Derivados - Permutas financieras (swap) | C24: =SUMIF('Balance Empresa'!$K:$K,BC_PCGEmpresarial!$B24,'Balance Empresa'!N:N) -> 0 | D24: =SUMIF('Balance Empresa'!$K:$K,BC_PCGEmpresarial!$B24,'Balance Empresa'!O:O) -> 0 | E24: =SUMIF('Balance Empresa'!$K:$K,BC_PCGEmpresarial!$B24,'Balance Empresa'!P:P) -> 0 | F24: =SUMIF('Balance Empresa'!$K:$K,BC_PCGEmpresarial!$B24,'Balance Empresa'!Q:Q) -> 0 | G24: 0 | H24: 0 | I24: 0 | J24: 0 | O24: 0 | P24: 0
A25: 0224 | B25: 0224. Derivados - Contratos de opción | C25: =SUMIF('Balance Empresa'!$K:$K,BC_PCGEmpresarial!$B25,'Balance Empresa'!N:N) -> 0 | D25: =SUMIF('Balance Empresa'!$K:$K,BC_PCGEmpresarial!$B25,'Balance Empresa'!O:O) -> 0 | E25: =SUMIF('Balance Empresa'!$K:$K,BC_PCGEmpresarial!$B25,'Balance Empresa'!P:P) -> 0 | F25: =SUMIF('Balance Empresa'!$K:$K,BC_PCGEmpresarial!$B25,'Balance Empresa'!Q:Q) -> 0 | G25: 0 | H25: 0 | I25: 0 | J25: 0 | O25: 0 | P25: 0
A26: 0311 | B26: 0311. Contratos aprobados - Contratos en ejecución | C26: =SUMIF('Balance Empresa'!$K:$K,BC_PCGEmpresarial!$B26,'Balance Empresa'!N:N) -> 0 | D26: =SUMIF('Balance Empresa'!$K:$K,BC_PCGEmpresarial!$B26,'Balance Empresa'!O:O) -> 0 | E26: =SUMIF('Balance Empresa'!$K:$K,BC_PCGEmpresarial!$B26,'Balance Empresa'!P:P) -> 0 | F26: =SUMIF('Balance Empresa'!$K:$K,BC_PCGEmpresarial!$B26,'Balance Empresa'!Q:Q) -> 0 | G26: 0 | H26: 0 | I26: 0 | J26: 0 | O26: 0 | P26: 0
A27: 0312 | B27: 0312. Contratos aprobados - Contratos en trámite | C27: =SUMIF('Balance Empresa'!$K:$K,BC_PCGEmpresarial!$B27,'Balance Empresa'!N:N) -> 0 | D27: =SUMIF('Balance Empresa'!$K:$K,BC_PCGEmpresarial!$B27,'Balance Empresa'!O:O) -> 0 | E27: =SUMIF('Balance Empresa'!$K:$K,BC_PCGEmpresarial!$B27,'Balance Empresa'!P:P) -> 0 | F27: =SUMIF('Balance Empresa'!$K:$K,BC_PCGEmpresarial!$B27,'Balance Empresa'!Q:Q) -> 0 | G27: 0 | H27: 0 | I27: 0 | J27: 0 | O27: 0 | P27: 0
A28: 0321 | B28: 0321. Bienes dados de baja - Suministros | C28: =SUMIF('Balance Empresa'!$K:$K,BC_PCGEmpresarial!$B28,'Balance Empresa'!N:N) -> 0 | D28: =SUMIF('Balance Empresa'!$K:$K,BC_PCGEmpresarial!$B28,'Balance Empresa'!O:O) -> 0 | E28: =SUMIF('Balance Empresa'!$K:$K,BC_PCGEmpresarial!$B28,'Balance Empresa'!P:P) -> 0 | F28: =SUMIF('Balance Empresa'!$K:$K,BC_PCGEmpresarial!$B28,'Balance Empresa'!Q:Q) -> 0 | G28: 0 | H28: 0 | I28: 0 | J28: 0 | O28: 0 | P28: 0
A29: 0322 | B29: 0322. Bienes dados de baja - Inmuebles, maquinaria y equipo | C29: =SUMIF('Balance Empresa'!$K:$K,BC_PCGEmpresarial!$B29,'Balance Empresa'!N:N) -> 0 | D29: =SUMIF('Balance Empresa'!$K:$K,BC_PCGEmpresarial!$B29,'Balance Empresa'!O:O) -> 0 | E29: =SUMIF('Balance Empresa'!$K:$K,BC_PCGEmpresarial!$B29,'Balance Empresa'!P:P) -> 0 | F29: =SUMIF('Balance Empresa'!$K:$K,BC_PCGEmpresarial!$B29,'Balance Empresa'!Q:Q) -> 0 | G29: 0 | H29: 0 | I29: 0 | J29: 0 | O29: 0 | P29: 0
A30: 039 | B30: 039. Diversas | C30: =SUMIF('Balance Empresa'!$K:$K,BC_PCGEmpresarial!$B30,'Balance Empresa'!N:N) -> 0 | D30: =SUMIF('Balance Empresa'!$K:$K,BC_PCGEmpresarial!$B30,'Balance Empresa'!O:O) -> 0 | E30: =SUMIF('Balance Empresa'!$K:$K,BC_PCGEmpresarial!$B30,'Balance Empresa'!P:P) -> 0 | F30: =SUMIF('Balance Empresa'!$K:$K,BC_PCGEmpresarial!$B30,'Balance Empresa'!Q:Q) -> 0 | G30: 0 | H30: 0 | I30: 0 | J30: 0 | O30: 0 | P30: 0
A31: 04 | B31: 04. Deudoras por contra | C31: =SUMIF('Balance Empresa'!$K:$K,BC_PCGEmpresarial!$B31,'Balance Empresa'!N:N) -> 0 | D31: =SUMIF('Balance Empresa'!$K:$K,BC_PCGEmpresarial!$B31,'Balance Empresa'!O:O) -> 0 | E31: =SUMIF('Balance Empresa'!$K:$K,BC_PCGEmpresarial!$B31,'Balance Empresa'!P:P) -> 0 | F31: =SUMIF('Balance Empresa'!$K:$K,BC_PCGEmpresarial!$B31,'Balance Empresa'!Q:Q) -> 0 | G31: 0 | H31: 0 | I31: 0 | J31: 0 | O31: 0 | P31: 0
A32: 0611 | B32: 0611. Bienes recibidos en préstamo y custodia - Bienes recibidos en préstamo | C32: =SUMIF('Balance Empresa'!$K:$K,BC_PCGEmpresarial!$B32,'Balance Empresa'!N:N) -> 0 | D32: =SUMIF('Balance Empresa'!$K:$K,BC_PCGEmpresarial!$B32,'Balance Empresa'!O:O) -> 0 | E32: =SUMIF('Balance Empresa'!$K:$K,BC_PCGEmpresarial!$B32,'Balance Empresa'!P:P) -> 0 | F32: =SUMIF('Balance Empresa'!$K:$K,BC_PCGEmpresarial!$B32,'Balance Empresa'!Q:Q) -> 0 | G32: 0 | H32: 0 | I32: 0 | J32: 0 | O32: 0 | P32: 0
A33: 0612 | B33: 0612. Bienes recibidos en préstamo y custodia - Bienes recibidos en custodia | C33: =SUMIF('Balance Empresa'!$K:$K,BC_PCGEmpresarial!$B33,'Balance Empresa'!N:N) -> 0 | D33: =SUMIF('Balance Empresa'!$K:$K,BC_PCGEmpresarial!$B33,'Balance Empresa'!O:O) -> 0 | E33: =SUMIF('Balance Empresa'!$K:$K,BC_PCGEmpresarial!$B33,'Balance Empresa'!P:P) -> 0 | F33: =SUMIF('Balance Empresa'!$K:$K,BC_PCGEmpresarial!$B33,'Balance Empresa'!Q:Q) -> 0 | G33: 0 | H33: 0 | I33: 0 | J33: 0 | O33: 0 | P33: 0
A34: 0621 | B34: 0621. Valores y bienes recibidos en garantía - Cartas fianza | C34: =SUMIF('Balance Empresa'!$K:$K,BC_PCGEmpresarial!$B34,'Balance Empresa'!N:N) -> 0 | D34: =SUMIF('Balance Empresa'!$K:$K,BC_PCGEmpresarial!$B34,'Balance Empresa'!O:O) -> 0 | E34: =SUMIF('Balance Empresa'!$K:$K,BC_PCGEmpresarial!$B34,'Balance Empresa'!P:P) -> 0 | F34: =SUMIF('Balance Empresa'!$K:$K,BC_PCGEmpresarial!$B34,'Balance Empresa'!Q:Q) -> 0 | G34: 0 | H34: 0 | I34: 0 | J34: 0 | O34: 0 | P34: 0
A35: 0622 | B35: 0622. Valores y bienes recibidos en garantía - Cuentas por cobrar | C35: =SUMIF('Balance Empresa'!$K:$K,BC_PCGEmpresarial!$B35,'Balance Empresa'!N:N) -> 0 | D35: =SUMIF('Balance Empresa'!$K:$K,BC_PCGEmpresarial!$B35,'Balance Empresa'!O:O) -> 0 | E35: =SUMIF('Balance Empresa'!$K:$K,BC_PCGEmpresarial!$B35,'Balance Empresa'!P:P) -> 0 | F35: =SUMIF('Balance Empresa'!$K:$K,BC_PCGEmpresarial!$B35,'Balance Empresa'!Q:Q) -> 0 | G35: 0 | H35: 0 | I35: 0 | J35: 0 | O35: 0 | P35: 0
A36: 0623 | B36: 0623. Valores y bienes recibidos en garantía - Existencias | C36: =SUMIF('Balance Empresa'!$K:$K,BC_PCGEmpresarial!$B36,'Balance Empresa'!N:N) -> 0 | D36: =SUMIF('Balance Empresa'!$K:$K,BC_PCGEmpresarial!$B36,'Balance Empresa'!O:O) -> 0 | E36: =SUMIF('Balance Empresa'!$K:$K,BC_PCGEmpresarial!$B36,'Balance Empresa'!P:P) -> 0 | F36: =SUMIF('Balance Empresa'!$K:$K,BC_PCGEmpresarial!$B36,'Balance Empresa'!Q:Q) -> 0 | G36: 0 | H36: 0 | I36: 0 | J36: 0 | O36: 0 | P36: 0
A37: 0624 | B37: 0624. Valores y bienes recibidos en garantía - Inversión mobiliaria | C37: =SUMIF('Balance Empresa'!$K:$K,BC_PCGEmpresarial!$B37,'Balance Empresa'!N:N) -> 0 | D37: =SUMIF('Balance Empresa'!$K:$K,BC_PCGEmpresarial!$B37,'Balance Empresa'!O:O) -> 0 | E37: =SUMIF('Balance Empresa'!$K:$K,BC_PCGEmpresarial!$B37,'Balance Empresa'!P:P) -> 0 | F37: =SUMIF('Balance Empresa'!$K:$K,BC_PCGEmpresarial!$B37,'Balance Empresa'!Q:Q) -> 0 | G37: 0 | H37: 0 | I37: 0 | J37: 0 | O37: 0 | P37: 0
A38: 0625 | B38: 0625. Valores y bienes recibidos en garantía - Inversión inmobiliaria | C38: =SUMIF('Balance Empresa'!$K:$K,BC_PCGEmpresarial!$B38,'Balance Empresa'!N:N) -> 0 | D38: =SUMIF('Balance Empresa'!$K:$K,BC_PCGEmpresarial!$B38,'Balance Empresa'!O:O) -> 0 | E38: =SUMIF('Balance Empresa'!$K:$K,BC_PCGEmpresarial!$B38,'Balance Empresa'!P:P) -> 0 | F38: =SUMIF('Balance Empresa'!$K:$K,BC_PCGEmpresarial!$B38,'Balance Empresa'!Q:Q) -> 0 | G38: 0 | H38: 0 | I38: 0 | J38: 0 | O38: 0 | P38: 0
A39: 0626 | B39: 0626. Valores y bienes recibidos en garantía - Inmuebles, maquinaria y equipo | C39: =SUMIF('Balance Empresa'!$K:$K,BC_PCGEmpresarial!$B39,'Balance Empresa'!N:N) -> 0 | D39: =SUMIF('Balance Empresa'!$K:$K,BC_PCGEmpresarial!$B39,'Balance Empresa'!O:O) -> 0 | E39: =SUMIF('Balance Empresa'!$K:$K,BC_PCGEmpresarial!$B39,'Balance Empresa'!P:P) -> 0 | F39: =SUMIF('Balance Empresa'!$K:$K,BC_PCGEmpresarial!$B39,'Balance Empresa'!Q:Q) -> 0 | G39: 0 | H39: 0 | I39: 0 | J39: 0 | O39: 0 | P39: 0
A40: 0627 | B40: 0627. Valores y bienes recibidos en garantía - Intangibles | C40: =SUMIF('Balance Empresa'!$K:$K,BC_PCGEmpresarial!$B40,'Balance Empresa'!N:N) -> 0 | D40: =SUMIF('Balance Empresa'!$K:$K,BC_PCGEmpresarial!$B40,'Balance Empresa'!O:O) -> 0 | E40: =SUMIF('Balance Empresa'!$K:$K,BC_PCGEmpresarial!$B40,'Balance Empresa'!P:P) -> 0 | F40: =SUMIF('Balance Empresa'!$K:$K,BC_PCGEmpresarial!$B40,'Balance Empresa'!Q:Q) -> 0 | G40: 0 | H40: 0 | I40: 0 | J40: 0 | O40: 0 | P40: 0
A41: 0628 | B41: 0628. Valores y bienes recibidos en garantía - Activos biológicos | C41: =SUMIF('Balance Empresa'!$K:$K,BC_PCGEmpresarial!$B41,'Balance Empresa'!N:N) -> 0 | D41: =SUMIF('Balance Empresa'!$K:$K,BC_PCGEmpresarial!$B41,'Balance Empresa'!O:O) -> 0 | E41: =SUMIF('Balance Empresa'!$K:$K,BC_PCGEmpresarial!$B41,'Balance Empresa'!P:P) -> 0 | F41: =SUMIF('Balance Empresa'!$K:$K,BC_PCGEmpresarial!$B41,'Balance Empresa'!Q:Q) -> 0 | G41: 0 | H41: 0 | I41: 0 | J41: 0 | O41: 0 | P41: 0
A42: 063 | B42: 063. Activos realizables recibidos en consignación | C42: =SUMIF('Balance Empresa'!$K:$K,BC_PCGEmpresarial!$B42,'Balance Empresa'!N:N) -> 0 | D42: =SUMIF('Balance Empresa'!$K:$K,BC_PCGEmpresarial!$B42,'Balance Empresa'!O:O) -> 0 | E42: =SUMIF('Balance Empresa'!$K:$K,BC_PCGEmpresarial!$B42,'Balance Empresa'!P:P) -> 0 | F42: =SUMIF('Balance Empresa'!$K:$K,BC_PCGEmpresarial!$B42,'Balance Empresa'!Q:Q) -> 0 | G42: 0 | H42: 0 | I42: 0 | J42: 0 | O42: 0 | P42: 0
A43: 0711 | B43: 0711. Primarios - Inversiones mantenidas para negociación | C43: =SUMIF('Balance Empresa'!$K:$K,BC_PCGEmpresarial!$B43,'Balance Empresa'!N:N) -> 0 | D43: =SUMIF('Balance Empresa'!$K:$K,BC_PCGEmpresarial!$B43,'Balance Empresa'!O:O) -> 0 | E43: =SUMIF('Balance Empresa'!$K:$K,BC_PCGEmpresarial!$B43,'Balance Empresa'!P:P) -> 0 | F43: =SUMIF('Balance Empresa'!$K:$K,BC_PCGEmpresarial!$B43,'Balance Empresa'!Q:Q) -> 0 | G43: 0 | H43: 0 | I43: 0 | J43: 0 | O43: 0 | P43: 0
A44: 0712 | B44: 0712. Primarios - Inversiones disponibles para la venta | C44: =SUMIF('Balance Empresa'!$K:$K,BC_PCGEmpresarial!$B44,'Balance Empresa'!N:N) -> 0 | D44: =SUMIF('Balance Empresa'!$K:$K,BC_PCGEmpresarial!$B44,'Balance Empresa'!O:O) -> 0 | E44: =SUMIF('Balance Empresa'!$K:$K,BC_PCGEmpresarial!$B44,'Balance Empresa'!P:P) -> 0 | F44: =SUMIF('Balance Empresa'!$K:$K,BC_PCGEmpresarial!$B44,'Balance Empresa'!Q:Q) -> 0 | G44: =+C44+E44 -> 0 | H44: =+D44+F44 -> 0 | I44: 0 | J44: 0 | O44: 0 | P44: 0
A45: 0713 | B45: 0713. Primarios - Inversiones a ser mantenidas hasta el vencimiento | C45: =SUMIF('Balance Empresa'!$K:$K,BC_PCGEmpresarial!$B45,'Balance Empresa'!N:N) -> 0 | D45: =SUMIF('Balance Empresa'!$K:$K,BC_PCGEmpresarial!$B45,'Balance Empresa'!O:O) -> 0 | E45: =SUMIF('Balance Empresa'!$K:$K,BC_PCGEmpresarial!$B45,'Balance Empresa'!P:P) -> 0 | F45: =SUMIF('Balance Empresa'!$K:$K,BC_PCGEmpresarial!$B45,'Balance Empresa'!Q:Q) -> 0 | G45: 0 | H45: 0 | I45: 0 | J45: 0 | O45: 0 | P45: 0
A46: 0721 | B46: 0721. Derivados - Contratos a futuro | C46: =SUMIF('Balance Empresa'!$K:$K,BC_PCGEmpresarial!$B46,'Balance Empresa'!N:N) -> 0 | D46: =SUMIF('Balance Empresa'!$K:$K,BC_PCGEmpresarial!$B46,'Balance Empresa'!O:O) -> 0 | E46: =SUMIF('Balance Empresa'!$K:$K,BC_PCGEmpresarial!$B46,'Balance Empresa'!P:P) -> 0 | F46: =SUMIF('Balance Empresa'!$K:$K,BC_PCGEmpresarial!$B46,'Balance Empresa'!Q:Q) -> 0 | G46: 0 | H46: 0 | I46: 0 | J46: 0 | O46: 0 | P46: 0
A47: 0722 | B47: 0722. Derivados - Contratos a término (forward) | C47: =SUMIF('Balance Empresa'!$K:$K,BC_PCGEmpresarial!$B47,'Balance Empresa'!N:N) -> 0 | D47: =SUMIF('Balance Empresa'!$K:$K,BC_PCGEmpresarial!$B47,'Balance Empresa'!O:O) -> 0 | E47: =SUMIF('Balance Empresa'!$K:$K,BC_PCGEmpresarial!$B47,'Balance Empresa'!P:P) -> 0 | F47: =SUMIF('Balance Empresa'!$K:$K,BC_PCGEmpresarial!$B47,'Balance Empresa'!Q:Q) -> 0 | G47: 0 | H47: 0 | I47: 0 | J47: 0 | O47: 0 | P47: 0
A48: 0723 | B48: 0723. Derivados - Permutas financieras (swap) | C48: =SUMIF('Balance Empresa'!$K:$K,BC_PCGEmpresarial!$B48,'Balance Empresa'!N:N) -> 0 | D48: =SUMIF('Balance Empresa'!$K:$K,BC_PCGEmpresarial!$B48,'Balance Empresa'!O:O) -> 0 | E48: =SUMIF('Balance Empresa'!$K:$K,BC_PCGEmpresarial!$B48,'Balance Empresa'!P:P) -> 0 | F48: =SUMIF('Balance Empresa'!$K:$K,BC_PCGEmpresarial!$B48,'Balance Empresa'!Q:Q) -> 0 | G48: 0 | H48: 0 | I48: 0 | J48: 0 | O48: 0 | P48: 0
A49: 0724 | B49: 0724. Derivados - Contratos de opción | C49: =SUMIF('Balance Empresa'!$K:$K,BC_PCGEmpresarial!$B49,'Balance Empresa'!N:N) -> 0 | D49: =SUMIF('Balance Empresa'!$K:$K,BC_PCGEmpresarial!$B49,'Balance Empresa'!O:O) -> 0 | E49: =SUMIF('Balance Empresa'!$K:$K,BC_PCGEmpresarial!$B49,'Balance Empresa'!P:P) -> 0 | F49: =SUMIF('Balance Empresa'!$K:$K,BC_PCGEmpresarial!$B49,'Balance Empresa'!Q:Q) -> 0 | G49: 0 | H49: 0 | I49: 0 | J49: 0 | O49: 0 | P49: 0
A50: 089 | B50: 089. Diversas | C50: =SUMIF('Balance Empresa'!$K:$K,BC_PCGEmpresarial!$B50,'Balance Empresa'!N:N) -> 0 | D50: =SUMIF('Balance Empresa'!$K:$K,BC_PCGEmpresarial!$B50,'Balance Empresa'!O:O) -> 0 | E50: =SUMIF('Balance Empresa'!$K:$K,BC_PCGEmpresarial!$B50,'Balance Empresa'!P:P) -> 0 | F50: =SUMIF('Balance Empresa'!$K:$K,BC_PCGEmpresarial!$B50,'Balance Empresa'!Q:Q) -> 0 | G50: 0 | H50: 0 | I50: 0 | J50: 0 | O50: 0 | P50: 0
A51: 09 | B51: 09. Acreedoras por contra | C51: =SUMIF('Balance Empresa'!$K:$K,BC_PCGEmpresarial!$B51,'Balance Empresa'!N:N) -> 0 | D51: =SUMIF('Balance Empresa'!$K:$K,BC_PCGEmpresarial!$B51,'Balance Empresa'!O:O) -> 0 | E51: =SUMIF('Balance Empresa'!$K:$K,BC_PCGEmpresarial!$B51,'Balance Empresa'!P:P) -> 0 | F51: =SUMIF('Balance Empresa'!$K:$K,BC_PCGEmpresarial!$B51,'Balance Empresa'!Q:Q) -> 0 | G51: 0 | H51: 0 | I51: 0 | J51: 0 | O51: 0 | P51: 0
A52: 101 | B52: 101. Caja | C52: =SUMIF('Balance Empresa'!$K:$K,BC_PCGEmpresarial!$B52,'Balance Empresa'!N:N) -> 0 | D52: =SUMIF('Balance Empresa'!$K:$K,BC_PCGEmpresarial!$B52,'Balance Empresa'!O:O) -> 0 | E52: =SUMIF('Balance Empresa'!$K:$K,BC_PCGEmpresarial!$B52,'Balance Empresa'!P:P) -> 352 | F52: =SUMIF('Balance Empresa'!$K:$K,BC_PCGEmpresarial!$B52,'Balance Empresa'!Q:Q) -> 370 | G52: =+C52+E52 -> 352 | H52: 370 | I52: 0 | J52: 18 | O52: 0 | P52: 18
A53: 102 | B53: 102. Fondos fijos | C53: =SUMIF('Balance Empresa'!$K:$K,BC_PCGEmpresarial!$B53,'Balance Empresa'!N:N) -> 1708 | D53: =SUMIF('Balance Empresa'!$K:$K,BC_PCGEmpresarial!$B53,'Balance Empresa'!O:O) -> 0 | E53: =SUMIF('Balance Empresa'!$K:$K,BC_PCGEmpresarial!$B53,'Balance Empresa'!P:P) -> 0 | F53: =SUMIF('Balance Empresa'!$K:$K,BC_PCGEmpresarial!$B53,'Balance Empresa'!Q:Q) -> 0 | G53: 1708 | H53: 0 | I53: 1708 | J53: 0 | O53: 1708 | P53: 0
A54: 103 | B54: 103. Efectivo en tránsito | C54: =SUMIF('Balance Empresa'!$K:$K,BC_PCGEmpresarial!$B54,'Balance Empresa'!N:N) -> 0 | D54: =SUMIF('Balance Empresa'!$K:$K,BC_PCGEmpresarial!$B54,'Balance Empresa'!O:O) -> 0 | E54: =SUMIF('Balance Empresa'!$K:$K,BC_PCGEmpresarial!$B54,'Balance Empresa'!P:P) -> 0 | F54: =SUMIF('Balance Empresa'!$K:$K,BC_PCGEmpresarial!$B54,'Balance Empresa'!Q:Q) -> 0 | G54: 0 | H54: 0 | I54: 0 | J54: 0 | O54: 0 | P54: 0
A55: 1041 | B55: 1041. Cuentas corrientes en instituciones financieras - Cuentas corrientes operativas | C55: =SUMIF('Balance Empresa'!$K:$K,BC_PCGEmpresarial!$B55,'Balance Empresa'!N:N) -> 112212 | D55: =SUMIF('Balance Empresa'!$K:$K,BC_PCGEmpresarial!$B55,'Balance Empresa'!O:O) -> 0 | E55: =SUMIF('Balance Empresa'!$K:$K,BC_PCGEmpresarial!$B55,'Balance Empresa'!P:P) -> 5354490 | F55: =SUMIF('Balance Empresa'!$K:$K,BC_PCGEmpresarial!$B55,'Balance Empresa'!Q:Q) -> 5303215 | G55: 5466702 | H55: 5303215 | I55: 163487 | J55: 0 | O55: 163487 | P55: 0
A56: 1042 | B56: 1042. Cuentas corrientes en instituciones financieras - Cuentas corrientes para fines específicos | C56: =SUMIF('Balance Empresa'!$K:$K,BC_PCGEmpresarial!$B56,'Balance Empresa'!N:N) -> 0 | D56: =SUMIF('Balance Empresa'!$K:$K,BC_PCGEmpresarial!$B56,'Balance Empresa'!O:O) -> 0 | E56: =SUMIF('Balance Empresa'!$K:$K,BC_PCGEmpresarial!$B56,'Balance Empresa'!P:P) -> 0 | F56: =SUMIF('Balance Empresa'!$K:$K,BC_PCGEmpresarial!$B56,'Balance Empresa'!Q:Q) -> 0 | G56: 0 | H56: 0 | I56: 0 | J56: 0 | O56: 0 | P56: 0
A57: 1051 | B57: 1051. Otros equivalentes de efectivo - Otros equivalentes de efectivo | C57: =SUMIF('Balance Empresa'!$K:$K,BC_PCGEmpresarial!$B57,'Balance Empresa'!N:N) -> 198843 | D57: =SUMIF('Balance Empresa'!$K:$K,BC_PCGEmpresarial!$B57,'Balance Empresa'!O:O) -> 0 | E57: =SUMIF('Balance Empresa'!$K:$K,BC_PCGEmpresarial!$B57,'Balance Empresa'!P:P) -> 3800 | F57: =SUMIF('Balance Empresa'!$K:$K,BC_PCGEmpresarial!$B57,'Balance Empresa'!Q:Q) -> 120357 | G57: 202643 | H57: 120357 | I57: 82286 | J57: 0 | O57: 82286 | P57: 0
A58: 1061 | B58: 1061. Depósitos en instituciones financieras - Depósitos de ahorro | C58: =SUMIF('Balance Empresa'!$K:$K,BC_PCGEmpresarial!$B58,'Balance Empresa'!N:N) -> 0 | D58: =SUMIF('Balance Empresa'!$K:$K,BC_PCGEmpresarial!$B58,'Balance Empresa'!O:O) -> 0 | E58: =SUMIF('Balance Empresa'!$K:$K,BC_PCGEmpresarial!$B58,'Balance Empresa'!P:P) -> 0 | F58: =SUMIF('Balance Empresa'!$K:$K,BC_PCGEmpresarial!$B58,'Balance Empresa'!Q:Q) -> 0 | G58: 0 | H58: 0 | I58: 0 | J58: 0 | O58: 0 | P58: 0
A59: 1062 | B59: 1062. Depósitos en instituciones financieras - Depósitos a plazo | C59: =SUMIF('Balance Empresa'!$K:$K,BC_PCGEmpresarial!$B59,'Balance Empresa'!N:N) -> 0 | D59: =SUMIF('Balance Empresa'!$K:$K,BC_PCGEmpresarial!$B59,'Balance Empresa'!O:O) -> 0 | E59: =SUMIF('Balance Empresa'!$K:$K,BC_PCGEmpresarial!$B59,'Balance Empresa'!P:P) -> 0 | F59: =SUMIF('Balance Empresa'!$K:$K,BC_PCGEmpresarial!$B59,'Balance Empresa'!Q:Q) -> 0 | G59: 0 | H59: 0 | I59: 0 | J59: 0 | O59: 0 | P59: 0
A60: 1071 | B60: 1071. Fondos sujetos a restricción - Fondos Sujetos a Restricción | C60: =SUMIF('Balance Empresa'!$K:$K,BC_PCGEmpresarial!$B60,'Balance Empresa'!N:N) -> 147950 | D60: =SUMIF('Balance Empresa'!$K:$K,BC_PCGEmpresarial!$B60,'Balance Empresa'!O:O) -> 0 | E60: =SUMIF('Balance Empresa'!$K:$K,BC_PCGEmpresarial!$B60,'Balance Empresa'!P:P) -> 14189 | F60: =SUMIF('Balance Empresa'!$K:$K,BC_PCGEmpresarial!$B60,'Balance Empresa'!Q:Q) -> 24851 | G60: 162139 | H60: 24851 | I60: 137288 | J60: 0 | O60: 137288 | P60: 0
A61: 11111 | B61: 11111. Inversiones mantenidas para negociación - Valores emitidos o garantizados por el Estado - Costo | C61: =SUMIF('Balance Empresa'!$K:$K,BC_PCGEmpresarial!$B61,'Balance Empresa'!N:N) -> 0 | D61: =SUMIF('Balance Empresa'!$K:$K,BC_PCGEmpresarial!$B61,'Balance Empresa'!O:O) -> 0 | E61: =SUMIF('Balance Empresa'!$K:$K,BC_PCGEmpresarial!$B61,'Balance Empresa'!P:P) -> 0 | F61: =SUMIF('Balance Empresa'!$K:$K,BC_PCGEmpresarial!$B61,'Balance Empresa'!Q:Q) -> 0 | G61: 0 | H61: 0 | I61: 0 | J61: 0 | O61: 0 | P61: 0
A62: 11112 | B62: 11112. Inversiones mantenidas para negociación - Valores emitidos o garantizados por el Estado - Valor Razonable | C62: =SUMIF('Balance Empresa'!$K:$K,BC_PCGEmpresarial!$B62,'Balance Empresa'!N:N) -> 0 | D62: =SUMIF('Balance Empresa'!$K:$K,BC_PCGEmpresarial!$B62,'Balance Empresa'!O:O) -> 0 | E62: =SUMIF('Balance Empresa'!$K:$K,BC_PCGEmpresarial!$B62,'Balance Empresa'!P:P) -> 0 | F62: =SUMIF('Balance Empresa'!$K:$K,BC_PCGEmpresarial!$B62,'Balance Empresa'!Q:Q) -> 0 | G62: 0 | H62: 0 | I62: 0 | J62: 0 | O62: 0 | P62: 0
A63: 11121 | B63: 11121. Inversiones mantenidas para negociación - Valores emitidos por el sistema financiero - Costo | C63: =SUMIF('Balance Empresa'!$K:$K,BC_PCGEmpresarial!$B63,'Balance Empresa'!N:N) -> 0 | D63: =SUMIF('Balance Empresa'!$K:$K,BC_PCGEmpresarial!$B63,'Balance Empresa'!O:O) -> 0 | E63: =SUMIF('Balance Empresa'!$K:$K,BC_PCGEmpresarial!$B63,'Balance Empresa'!P:P) -> 0 | F63: =SUMIF('Balance Empresa'!$K:$K,BC_PCGEmpresarial!$B63,'Balance Empresa'!Q:Q) -> 0 | G63: 0 | H63: 0 | I63: 0 | J63: 0 | O63: 0 | P63: 0
A64: 11122 | B64: 11122. Inversiones mantenidas para negociación - Valores emitidos por el sistema financiero - Valor Razonable | C64: =SUMIF('Balance Empresa'!$K:$K,BC_PCGEmpresarial!$B64,'Balance Empresa'!N:N) -> 0 | D64: =SUMIF('Balance Empresa'!$K:$K,BC_PCGEmpresarial!$B64,'Balance Empresa'!O:O) -> 0 | E64: =SUMIF('Balance Empresa'!$K:$K,BC_PCGEmpresarial!$B64,'Balance Empresa'!P:P) -> 0 | F64: =SUMIF('Balance Empresa'!$K:$K,BC_PCGEmpresarial!$B64,'Balance Empresa'!Q:Q) -> 0 | G64: 0 | H64: 0 | I64: 0 | J64: 0 | O64: 0 | P64: 0
A65: 11131 | B65: 11131. Inversiones mantenidas para negociación - Valores emitidos por empresa - Costo | C65: =SUMIF('Balance Empresa'!$K:$K,BC_PCGEmpresarial!$B65,'Balance Empresa'!N:N) -> 0 | D65: =SUMIF('Balance Empresa'!$K:$K,BC_PCGEmpresarial!$B65,'Balance Empresa'!O:O) -> 0 | E65: =SUMIF('Balance Empresa'!$K:$K,BC_PCGEmpresarial!$B65,'Balance Empresa'!P:P) -> 0 | F65: =SUMIF('Balance Empresa'!$K:$K,BC_PCGEmpresarial!$B65,'Balance Empresa'!Q:Q) -> 0 | G65: 0 | H65: 0 | I65: 0 | J65: 0 | O65: 0 | P65: 0
A66: 11132 | B66: 11132. Inversiones mantenidas para negociación - Valores emitidos por empresa - Valor Razonable | C66: =SUMIF('Balance Empresa'!$K:$K,BC_PCGEmpresarial!$B66,'Balance Empresa'!N:N) -> 0 | D66: =SUMIF('Balance Empresa'!$K:$K,BC_PCGEmpresarial!$B66,'Balance Empresa'!O:O) -> 0 | E66: =SUMIF('Balance Empresa'!$K:$K,BC_PCGEmpresarial!$B66,'Balance Empresa'!P:P) -> 0 | F66: =SUMIF('Balance Empresa'!$K:$K,BC_PCGEmpresarial!$B66,'Balance Empresa'!Q:Q) -> 0 | G66: 0 | H66: 0 | I66: 0 | J66: 0 | O66: 0 | P66: 0
A67: 11141 | B67: 11141. Inversiones mantenidas para negociación - Otros títulos representativos de deuda - Costo | C67: =SUMIF('Balance Empresa'!$K:$K,BC_PCGEmpresarial!$B67,'Balance Empresa'!N:N) -> 0 | D67: =SUMIF('Balance Empresa'!$K:$K,BC_PCGEmpresarial!$B67,'Balance Empresa'!O:O) -> 0 | E67: =SUMIF('Balance Empresa'!$K:$K,BC_PCGEmpresarial!$B67,'Balance Empresa'!P:P) -> 0 | F67: =SUMIF('Balance Empresa'!$K:$K,BC_PCGEmpresarial!$B67,'Balance Empresa'!Q:Q) -> 0 | G67: 0 | H67: 0 | I67: 0 | J67: 0 | O67: 0 | P67: 0
A68: 11142 | B68: 11142. Inversiones mantenidas para negociación - Otros títulos representativos de deuda - Valor Razonable | C68: =SUMIF('Balance Empresa'!$K:$K,BC_PCGEmpresarial!$B68,'Balance Empresa'!N:N) -> 0 | D68: =SUMIF('Balance Empresa'!$K:$K,BC_PCGEmpresarial!$B68,'Balance Empresa'!O:O) -> 0 | E68: =SUMIF('Balance Empresa'!$K:$K,BC_PCGEmpresarial!$B68,'Balance Empresa'!P:P) -> 0 | F68: =SUMIF('Balance Empresa'!$K:$K,BC_PCGEmpresarial!$B68,'Balance Empresa'!Q:Q) -> 0 | G68: 0 | H68: 0 | I68: 0 | J68: 0 | O68: 0 | P68: 0
A69: 11151 | B69: 11151. Inversiones mantenidas para negociación - Participaciones en entidades - Costo | C69: =SUMIF('Balance Empresa'!$K:$K,BC_PCGEmpresarial!$B69,'Balance Empresa'!N:N) -> 0 | D69: =SUMIF('Balance Empresa'!$K:$K,BC_PCGEmpresarial!$B69,'Balance Empresa'!O:O) -> 0 | E69: =SUMIF('Balance Empresa'!$K:$K,BC_PCGEmpresarial!$B69,'Balance Empresa'!P:P) -> 0 | F69: =SUMIF('Balance Empresa'!$K:$K,BC_PCGEmpresarial!$B69,'Balance Empresa'!Q:Q) -> 0 | G69: 0 | H69: 0 | I69: 0 | J69: 0 | O69: 0 | P69: 0
A70: 11152 | B70: 11152. Inversiones mantenidas para negociación - Participaciones en entidades - Valor Razonable | C70: =SUMIF('Balance Empresa'!$K:$K,BC_PCGEmpresarial!$B70,'Balance Empresa'!N:N) -> 0 | D70: =SUMIF('Balance Empresa'!$K:$K,BC_PCGEmpresarial!$B70,'Balance Empresa'!O:O) -> 0 | E70: =SUMIF('Balance Empresa'!$K:$K,BC_PCGEmpresarial!$B70,'Balance Empresa'!P:P) -> 0 | F70: =SUMIF('Balance Empresa'!$K:$K,BC_PCGEmpresarial!$B70,'Balance Empresa'!Q:Q) -> 0 | G70: 0 | H70: 0 | I70: 0 | J70: 0 | O70: 0 | P70: 0
A71: 11211 | B71: 11211. Inversiones disponibles para la venta - Valores emitidos o garantizados por el Estado - Costo | C71: =SUMIF('Balance Empresa'!$K:$K,BC_PCGEmpresarial!$B71,'Balance Empresa'!N:N) -> 0 | D71: =SUMIF('Balance Empresa'!$K:$K,BC_PCGEmpresarial!$B71,'Balance Empresa'!O:O) -> 0 | E71: =SUMIF('Balance Empresa'!$K:$K,BC_PCGEmpresarial!$B71,'Balance Empresa'!P:P) -> 0 | F71: =SUMIF('Balance Empresa'!$K:$K,BC_PCGEmpresarial!$B71,'Balance Empresa'!Q:Q) -> 0 | G71: 0 | H71: 0 | I71: 0 | J71: 0 | O71: 0 | P71: 0
A72: 11212 | B72: 11212. Inversiones disponibles para la venta - Valores emitidos o garantizados por el Estado - Valor Razonable | C72: =SUMIF('Balance Empresa'!$K:$K,BC_PCGEmpresarial!$B72,'Balance Empresa'!N:N) -> 0 | D72: =SUMIF('Balance Empresa'!$K:$K,BC_PCGEmpresarial!$B72,'Balance Empresa'!O:O) -> 0 | E72: =SUMIF('Balance Empresa'!$K:$K,BC_PCGEmpresarial!$B72,'Balance Empresa'!P:P) -> 0 | F72: =SUMIF('Balance Empresa'!$K:$K,BC_PCGEmpresarial!$B72,'Balance Empresa'!Q:Q) -> 0 | G72: 0 | H72: 0 | I72: =IF($G72-$H72>=0,$G72-$H72,0) -> 0 | J72: =IF($G72-$H72<0,-$G72+$H72,0) -> 0 | O72: 0 | P72: 0
A73: 11221 | B73: 11221. Inversiones disponibles para la venta - Valores emitidos por el sistema financiero - Costo | C73: =SUMIF('Balance Empresa'!$K:$K,BC_PCGEmpresarial!$B73,'Balance Empresa'!N:N) -> 0 | D73: =SUMIF('Balance Empresa'!$K:$K,BC_PCGEmpresarial!$B73,'Balance Empresa'!O:O) -> 0 | E73: =SUMIF('Balance Empresa'!$K:$K,BC_PCGEmpresarial!$B73,'Balance Empresa'!P:P) -> 0 | F73: =SUMIF('Balance Empresa'!$K:$K,BC_PCGEmpresarial!$B73,'Balance Empresa'!Q:Q) -> 0 | G73: 0 | H73: 0 | I73: 0 | J73: 0 | O73: =IF($I73-$J73+$K73-$L73+$M73-$N73>=0,$I73-$J73+$K73-$L73+$M73-$N73,0) -> 0 | P73: =IF($I73-$J73+$K73-$L73+$M73-$N73<0,-($I73-$J73+$K73-$L73+$M73-$N73),0) -> 0
A74: 11222 | B74: 11222. Inversiones disponibles para la venta - Valores emitidos por el sistema financiero - Valor Razonable | C74: =SUMIF('Balance Empresa'!$K:$K,BC_PCGEmpresarial!$B74,'Balance Empresa'!N:N) -> 0 | D74: =SUMIF('Balance Empresa'!$K:$K,BC_PCGEmpresarial!$B74,'Balance Empresa'!O:O) -> 0 | E74: =SUMIF('Balance Empresa'!$K:$K,BC_PCGEmpresarial!$B74,'Balance Empresa'!P:P) -> 0 | F74: =SUMIF('Balance Empresa'!$K:$K,BC_PCGEmpresarial!$B74,'Balance Empresa'!Q:Q) -> 0 | G74: 0 | H74: 0 | I74: 0 | J74: 0 | O74: 0 | P74: 0
A75: 11231 | B75: 11231. Inversiones disponibles para la venta - Valores emitidos por empresas - Costo | C75: =SUMIF('Balance Empresa'!$K:$K,BC_PCGEmpresarial!$B75,'Balance Empresa'!N:N) -> 0 | D75: =SUMIF('Balance Empresa'!$K:$K,BC_PCGEmpresarial!$B75,'Balance Empresa'!O:O) -> 0 | E75: =SUMIF('Balance Empresa'!$K:$K,BC_PCGEmpresarial!$B75,'Balance Empresa'!P:P) -> 0 | F75: =SUMIF('Balance Empresa'!$K:$K,BC_PCGEmpresarial!$B75,'Balance Empresa'!Q:Q) -> 0 | G75: 0 | H75: 0 | I75: 0 | J75: 0 | O75: 0 | P75: 0
A76: 11232 | B76: 11232. Inversiones disponibles para la venta - Valores emitidos por empresas - Valor Razonable | C76: =SUMIF('Balance Empresa'!$K:$K,BC_PCGEmpresarial!$B76,'Balance Empresa'!N:N) -> 0 | D76: =SUMIF('Balance Empresa'!$K:$K,BC_PCGEmpresarial!$B76,'Balance Empresa'!O:O) -> 0 | E76: =SUMIF('Balance Empresa'!$K:$K,BC_PCGEmpresarial!$B76,'Balance Empresa'!P:P) -> 0 | F76: =SUMIF('Balance Empresa'!$K:$K,BC_PCGEmpresarial!$B76,'Balance Empresa'!Q:Q) -> 0 | G76: 0 | H76: 0 | I76: 0 | J76: 0 | O76: 0 | P76: 0
A77: 11241 | B77: 11241. Inversiones disponibles para la venta - Otros títulos representativos de deuda - Costo | C77: =SUMIF('Balance Empresa'!$K:$K,BC_PCGEmpresarial!$B77,'Balance Empresa'!N:N) -> 0 | D77: =SUMIF('Balance Empresa'!$K:$K,BC_PCGEmpresarial!$B77,'Balance Empresa'!O:O) -> 0 | E77: =SUMIF('Balance Empresa'!$K:$K,BC_PCGEmpresarial!$B77,'Balance Empresa'!P:P) -> 0 | F77: =SUMIF('Balance Empresa'!$K:$K,BC_PCGEmpresarial!$B77,'Balance Empresa'!Q:Q) -> 0 | G77: 0 | H77: 0 | I77: 0 | J77: 0 | O77: 0 | P77: 0
A78: 11242 | B78: 11242. Inversiones disponibles para la venta - Otros títulos representativos de deuda - Valor Razonable | C78: =SUMIF('Balance Empresa'!$K:$K,BC_PCGEmpresarial!$B78,'Balance Empresa'!N:N) -> 0 | D78: =SUMIF('Balance Empresa'!$K:$K,BC_PCGEmpresarial!$B78,'Balance Empresa'!O:O) -> 0 | E78: =SUMIF('Balance Empresa'!$K:$K,BC_PCGEmpresarial!$B78,'Balance Empresa'!P:P) -> 0 | F78: =SUMIF('Balance Empresa'!$K:$K,BC_PCGEmpresarial!$B78,'Balance Empresa'!Q:Q) -> 0 | G78: 0 | H78: 0 | I78: 0 | J78: 0 | O78: 0 | P78: 0
A79: 11311 | B79: 11311. Activos financieros – Acuerdo de compra - Inversiones mantenidas para negociación – Acuerdo de compra - Costo | C79: =SUMIF('Balance Empresa'!$K:$K,BC_PCGEmpresarial!$B79,'Balance Empresa'!N:N) -> 0 | D79: =SUMIF('Balance Empresa'!$K:$K,BC_PCGEmpresarial!$B79,'Balance Empresa'!O:O) -> 0 | E79: =SUMIF('Balance Empresa'!$K:$K,BC_PCGEmpresarial!$B79,'Balance Empresa'!P:P) -> 0 | F79: =SUMIF('Balance Empresa'!$K:$K,BC_PCGEmpresarial!$B79,'Balance Empresa'!Q:Q) -> 0 | G79: 0 | H79: 0 | I79: 0 | J79: 0 | O79: 0 | P79: 0
A80: 11312 | B80: 11312. Activos financieros – Acuerdo de compra - Inversiones mantenidas para negociación – Acuerdo de compra - Valor Razonable | C80: =SUMIF('Balance Empresa'!$K:$K,BC_PCGEmpresarial!$B80,'Balance Empresa'!N:N) -> 0 | D80: =SUMIF('Balance Empresa'!$K:$K,BC_PCGEmpresarial!$B80,'Balance Empresa'!O:O) -> 0 | E80: =SUMIF('Balance Empresa'!$K:$K,BC_PCGEmpresarial!$B80,'Balance Empresa'!P:P) -> 0 | F80: =SUMIF('Balance Empresa'!$K:$K,BC_PCGEmpresarial!$B80,'Balance Empresa'!Q:Q) -> 0 | G80: 0 | H80: 0 | I80: 0 | J80: 0 | O80: 0 | P80: 0
A81: 11321 | B81: 11321. Activos financieros – Acuerdo de compra - Inversiones disponibles para la venta – Acuerdo de compra - Costo | C81: =SUMIF('Balance Empresa'!$K:$K,BC_PCGEmpresarial!$B81,'Balance Empresa'!N:N) -> 0 | D81: =SUMIF('Balance Empresa'!$K:$K,BC_PCGEmpresarial!$B81,'Balance Empresa'!O:O) -> 0 | E81: =SUMIF('Balance Empresa'!$K:$K,BC_PCGEmpresarial!$B81,'Balance Empresa'!P:P) -> 0 | F81: =SUMIF('Balance Empresa'!$K:$K,BC_PCGEmpresarial!$B81,'Balance Empresa'!Q:Q) -> 0 | G81: 0 | H81: 0 | I81: 0 | J81: 0 | O81: 0 | P81: 0
A82: 11322 | B82: 11322. Activos financieros – Acuerdo de compra - Inversiones disponibles para la venta – Acuerdo de compra - Valor Razonable | C82: =SUMIF('Balance Empresa'!$K:$K,BC_PCGEmpresarial!$B82,'Balance Empresa'!N:N) -> 0 | D82: =SUMIF('Balance Empresa'!$K:$K,BC_PCGEmpresarial!$B82,'Balance Empresa'!O:O) -> 0 | E82: =SUMIF('Balance Empresa'!$K:$K,BC_PCGEmpresarial!$B82,'Balance Empresa'!P:P) -> 0 | F82: =SUMIF('Balance Empresa'!$K:$K,BC_PCGEmpresarial!$B82,'Balance Empresa'!Q:Q) -> 0 | G82: 0 | H82: 0 | I82: 0 | J82: 0 | O82: 0 | P82: 0
A83: 1211 | B83: 1211. Facturas, boletas y otros comprobantes por cobrar - No emitidas | C83: =SUMIF('Balance Empresa'!$K:$K,BC_PCGEmpresarial!$B83,'Balance Empresa'!N:N) -> 1088673 | D83: =SUMIF('Balance Empresa'!$K:$K,BC_PCGEmpresarial!$B83,'Balance Empresa'!O:O) -> 0 | E83: =SUMIF('Balance Empresa'!$K:$K,BC_PCGEmpresarial!$B83,'Balance Empresa'!P:P) -> 491959 | F83: =SUMIF('Balance Empresa'!$K:$K,BC_PCGEmpresarial!$B83,'Balance Empresa'!Q:Q) -> 1111638 | G83: 1580632 | H83: 1111638 | I83: 468994 | J83: 0 | O83: 468994 | P83: 0
A84: 1212 | B84: 1212. Facturas, boletas y otros comprobantes por cobrar - Emitidas en cartera | C84: =SUMIF('Balance Empresa'!$K:$K,BC_PCGEmpresarial!$B84,'Balance Empresa'!N:N) -> 398970 | D84: =SUMIF('Balance Empresa'!$K:$K,BC_PCGEmpresarial!$B84,'Balance Empresa'!O:O) -> 0 | E84: =SUMIF('Balance Empresa'!$K:$K,BC_PCGEmpresarial!$B84,'Balance Empresa'!P:P) -> 3378423 | F84: =SUMIF('Balance Empresa'!$K:$K,BC_PCGEmpresarial!$B84,'Balance Empresa'!Q:Q) -> 2636142 | G84: 3777393 | H84: 2636142 | I84: 1141251 | J84: 0 | O84: 1141251 | P84: 0
A85: 1213 | B85: 1213. Facturas, boletas y otros comprobantes por cobrar - En cobranza | C85: =SUMIF('Balance Empresa'!$K:$K,BC_PCGEmpresarial!$B85,'Balance Empresa'!N:N) -> 0 | D85: =SUMIF('Balance Empresa'!$K:$K,BC_PCGEmpresarial!$B85,'Balance Empresa'!O:O) -> 0 | E85: =SUMIF('Balance Empresa'!$K:$K,BC_PCGEmpresarial!$B85,'Balance Empresa'!P:P) -> 0 | F85: =SUMIF('Balance Empresa'!$K:$K,BC_PCGEmpresarial!$B85,'Balance Empresa'!Q:Q) -> 0 | G85: 0 | H85: 0 | I85: 0 | J85: 0 | O85: 0 | P85: 0
A86: 1214 | B86: 1214. Facturas, boletas y otros comprobantes por cobrar - En descuento | C86: =SUMIF('Balance Empresa'!$K:$K,BC_PCGEmpresarial!$B86,'Balance Empresa'!N:N) -> 0 | D86: =SUMIF('Balance Empresa'!$K:$K,BC_PCGEmpresarial!$B86,'Balance Empresa'!O:O) -> 0 | E86: =SUMIF('Balance Empresa'!$K:$K,BC_PCGEmpresarial!$B86,'Balance Empresa'!P:P) -> 0 | F86: =SUMIF('Balance Empresa'!$K:$K,BC_PCGEmpresarial!$B86,'Balance Empresa'!Q:Q) -> 0 | G86: 0 | H86: 0 | I86: 0 | J86: 0 | O86: 0 | P86: 0
A87: 122 | B87: 122. Anticipos de clientes | C87: =SUMIF('Balance Empresa'!$K:$K,BC_PCGEmpresarial!$B87,'Balance Empresa'!N:N) -> 0 | D87: =SUMIF('Balance Empresa'!$K:$K,BC_PCGEmpresarial!$B87,'Balance Empresa'!O:O) -> 351949 | E87: =SUMIF('Balance Empresa'!$K:$K,BC_PCGEmpresarial!$B87,'Balance Empresa'!P:P) -> 212983 | F87: =SUMIF('Balance Empresa'!$K:$K,BC_PCGEmpresarial!$B87,'Balance Empresa'!Q:Q) -> 126913 | G87: 212983 | H87: 478862 | I87: 0 | J87: 265879 | O87: 0 | P87: 265879
A88: 1231 | B88: 1231. Letras por cobrar - En cartera | C88: =SUMIF('Balance Empresa'!$K:$K,BC_PCGEmpresarial!$B88,'Balance Empresa'!N:N) -> 0 | D88: =SUMIF('Balance Empresa'!$K:$K,BC_PCGEmpresarial!$B88,'Balance Empresa'!O:O) -> 0 | E88: =SUMIF('Balance Empresa'!$K:$K,BC_PCGEmpresarial!$B88,'Balance Empresa'!P:P) -> 0 | F88: =SUMIF('Balance Empresa'!$K:$K,BC_PCGEmpresarial!$B88,'Balance Empresa'!Q:Q) -> 0 | G88: 0 | H88: 0 | I88: 0 | J88: 0 | O88: 0 | P88: 0
A89: 1232 | B89: 1232. Letras por cobrar - En cobranza | C89: =SUMIF('Balance Empresa'!$K:$K,BC_PCGEmpresarial!$B89,'Balance Empresa'!N:N) -> 0 | D89: =SUMIF('Balance Empresa'!$K:$K,BC_PCGEmpresarial!$B89,'Balance Empresa'!O:O) -> 0 | E89: =SUMIF('Balance Empresa'!$K:$K,BC_PCGEmpresarial!$B89,'Balance Empresa'!P:P) -> 0 | F89: =SUMIF('Balance Empresa'!$K:$K,BC_PCGEmpresarial!$B89,'Balance Empresa'!Q:Q) -> 0 | G89: 0 | H89: 0 | I89: 0 | J89: 0 | O89: 0 | P89: 0
A90: 1233 | B90: 1233. Letras por cobrar - En descuento | C90: =SUMIF('Balance Empresa'!$K:$K,BC_PCGEmpresarial!$B90,'Balance Empresa'!N:N) -> 0 | D90: =SUMIF('Balance Empresa'!$K:$K,BC_PCGEmpresarial!$B90,'Balance Empresa'!O:O) -> 0 | E90: =SUMIF('Balance Empresa'!$K:$K,BC_PCGEmpresarial!$B90,'Balance Empresa'!P:P) -> 0 | F90: =SUMIF('Balance Empresa'!$K:$K,BC_PCGEmpresarial!$B90,'Balance Empresa'!Q:Q) -> 0 | G90: 0 | H90: 0 | I90: 0 | J90: 0 | O90: 0 | P90: 0
A91: 13111 | B91: 13111. Facturas, boletas y otros comprobantes por cobrar - No emitidas - Matriz | C91: =SUMIF('Balance Empresa'!$K:$K,BC_PCGEmpresarial!$B91,'Balance Empresa'!N:N) -> 0 | D91: =SUMIF('Balance Empresa'!$K:$K,BC_PCGEmpresarial!$B91,'Balance Empresa'!O:O) -> 0 | E91: =SUMIF('Balance Empresa'!$K:$K,BC_PCGEmpresarial!$B91,'Balance Empresa'!P:P) -> 0 | F91: =SUMIF('Balance Empresa'!$K:$K,BC_PCGEmpresarial!$B91,'Balance Empresa'!Q:Q) -> 0 | G91: 0 | H91: 0 | I91: 0 | J91: 0 | O91: 0 | P91: 0
A92: 13112 | B92: 13112. Facturas, boletas y otros comprobantes por cobrar - No emitidas - Subsidiarias | C92: =SUMIF('Balance Empresa'!$K:$K,BC_PCGEmpresarial!$B92,'Balance Empresa'!N:N) -> 0 | D92: =SUMIF('Balance Empresa'!$K:$K,BC_PCGEmpresarial!$B92,'Balance Empresa'!O:O) -> 0 | E92: =SUMIF('Balance Empresa'!$K:$K,BC_PCGEmpresarial!$B92,'Balance Empresa'!P:P) -> 0 | F92: =SUMIF('Balance Empresa'!$K:$K,BC_PCGEmpresarial!$B92,'Balance Empresa'!Q:Q) -> 0 | G92: 0 | H92: 0 | I92: 0 | J92: 0 | O92: 0 | P92: 0
A93: 13113 | B93: 13113. Facturas, boletas y otros comprobantes por cobrar - No emitidas - Asociadas | C93: =SUMIF('Balance Empresa'!$K:$K,BC_PCGEmpresarial!$B93,'Balance Empresa'!N:N) -> 0 | D93: =SUMIF('Balance Empresa'!$K:$K,BC_PCGEmpresarial!$B93,'Balance Empresa'!O:O) -> 0 | E93: =SUMIF('Balance Empresa'!$K:$K,BC_PCGEmpresarial!$B93,'Balance Empresa'!P:P) -> 0 | F93: =SUMIF('Balance Empresa'!$K:$K,BC_PCGEmpresarial!$B93,'Balance Empresa'!Q:Q) -> 0 | G93: 0 | H93: 0 | I93: 0 | J93: 0 | O93: 0 | P93: 0
A94: 13114 | B94: 13114. Facturas, boletas y otros comprobantes por cobrar - No emitidas - Sucursales | C94: =SUMIF('Balance Empresa'!$K:$K,BC_PCGEmpresarial!$B94,'Balance Empresa'!N:N) -> 0 | D94: =SUMIF('Balance Empresa'!$K:$K,BC_PCGEmpresarial!$B94,'Balance Empresa'!O:O) -> 0 | E94: =SUMIF('Balance Empresa'!$K:$K,BC_PCGEmpresarial!$B94,'Balance Empresa'!P:P) -> 0 | F94: =SUMIF('Balance Empresa'!$K:$K,BC_PCGEmpresarial!$B94,'Balance Empresa'!Q:Q) -> 0 | G94: 0 | H94: 0 | I94: 0 | J94: 0 | O94: 0 | P94: 0
A95: 13115 | B95: 13115. Facturas, boletas y otros comprobantes por cobrar - No emitidas - Otros | C95: =SUMIF('Balance Empresa'!$K:$K,BC_PCGEmpresarial!$B95,'Balance Empresa'!N:N) -> 0 | D95: =SUMIF('Balance Empresa'!$K:$K,BC_PCGEmpresarial!$B95,'Balance Empresa'!O:O) -> 0 | E95: =SUMIF('Balance Empresa'!$K:$K,BC_PCGEmpresarial!$B95,'Balance Empresa'!P:P) -> 0 | F95: =SUMIF('Balance Empresa'!$K:$K,BC_PCGEmpresarial!$B95,'Balance Empresa'!Q:Q) -> 0 | G95: 0 | H95: 0 | I95: 0 | J95: 0 | O95: 0 | P95: 0
A96: 13121 | B96: 13121. Facturas, boletas y otros comprobantes por cobrar - Emitidas en cartera - Matriz | C96: =SUMIF('Balance Empresa'!$K:$K,BC_PCGEmpresarial!$B96,'Balance Empresa'!N:N) -> 0 | D96: =SUMIF('Balance Empresa'!$K:$K,BC_PCGEmpresarial!$B96,'Balance Empresa'!O:O) -> 0 | E96: =SUMIF('Balance Empresa'!$K:$K,BC_PCGEmpresarial!$B96,'Balance Empresa'!P:P) -> 0 | F96: =SUMIF('Balance Empresa'!$K:$K,BC_PCGEmpresarial!$B96,'Balance Empresa'!Q:Q) -> 0 | G96: 0 | H96: 0 | I96: 0 | J96: 0 | O96: 0 | P96: 0
A97: 13122 | B97: 13122. Facturas, boletas y otros comprobantes por cobrar - Emitidas en cartera - Subsidiarias | C97: =SUMIF('Balance Empresa'!$K:$K,BC_PCGEmpresarial!$B97,'Balance Empresa'!N:N) -> 0 | D97: =SUMIF('Balance Empresa'!$K:$K,BC_PCGEmpresarial!$B97,'Balance Empresa'!O:O) -> 0 | E97: =SUMIF('Balance Empresa'!$K:$K,BC_PCGEmpresarial!$B97,'Balance Empresa'!P:P) -> 0 | F97: =SUMIF('Balance Empresa'!$K:$K,BC_PCGEmpresarial!$B97,'Balance Empresa'!Q:Q) -> 0 | G97: 0 | H97: 0 | I97: 0 | J97: 0 | O97: 0 | P97: 0
A98: 13123 | B98: 13123. Facturas, boletas y otros comprobantes por cobrar - Emitidas en cartera - Asociadas | C98: =SUMIF('Balance Empresa'!$K:$K,BC_PCGEmpresarial!$B98,'Balance Empresa'!N:N) -> 522522 | D98: =SUMIF('Balance Empresa'!$K:$K,BC_PCGEmpresarial!$B98,'Balance Empresa'!O:O) -> 0 | E98: =SUMIF('Balance Empresa'!$K:$K,BC_PCGEmpresarial!$B98,'Balance Empresa'!P:P) -> 85797 | F98: =SUMIF('Balance Empresa'!$K:$K,BC_PCGEmpresarial!$B98,'Balance Empresa'!Q:Q) -> 328259 | G98: 608319 | H98: 328259 | I98: 280060 | J98: 0 | O98: 280060 | P98: 0
A99: 13124 | B99: 13124. Facturas, boletas y otros comprobantes por cobrar - Emitidas en cartera - Sucursales | C99: =SUMIF('Balance Empresa'!$K:$K,BC_PCGEmpresarial!$B99,'Balance Empresa'!N:N) -> 0 | D99: =SUMIF('Balance Empresa'!$K:$K,BC_PCGEmpresarial!$B99,'Balance Empresa'!O:O) -> 0 | E99: =SUMIF('Balance Empresa'!$K:$K,BC_PCGEmpresarial!$B99,'Balance Empresa'!P:P) -> 0 | F99: =SUMIF('Balance Empresa'!$K:$K,BC_PCGEmpresarial!$B99,'Balance Empresa'!Q:Q) -> 0 | G99: 0 | H99: 0 | I99: 0 | J99: 0 | O99: 0 | P99: 0
A100: 13125 | B100: 13125. Facturas, boletas y otros comprobantes por cobrar - Emitidas en cartera - Otros | C100: =SUMIF('Balance Empresa'!$K:$K,BC_PCGEmpresarial!$B100,'Balance Empresa'!N:N) -> 0 | D100: =SUMIF('Balance Empresa'!$K:$K,BC_PCGEmpresarial!$B100,'Balance Empresa'!O:O) -> 0 | E100: =SUMIF('Balance Empresa'!$K:$K,BC_PCGEmpresarial!$B100,'Balance Empresa'!P:P) -> 0 | F100: =SUMIF('Balance Empresa'!$K:$K,BC_PCGEmpresarial!$B100,'Balance Empresa'!Q:Q) -> 0 | G100: 0 | H100: 0 | I100: 0 | J100: 0 | O100: 0 | P100: 0
A101: 13131 | B101: 13131. Facturas, boletas y otros comprobantes por cobrar - En cobranza - Matriz | C101: =SUMIF('Balance Empresa'!$K:$K,BC_PCGEmpresarial!$B101,'Balance Empresa'!N:N) -> 0 | D101: =SUMIF('Balance Empresa'!$K:$K,BC_PCGEmpresarial!$B101,'Balance Empresa'!O:O) -> 0 | E101: =SUMIF('Balance Empresa'!$K:$K,BC_PCGEmpresarial!$B101,'Balance Empresa'!P:P) -> 0 | F101: =SUMIF('Balance Empresa'!$K:$K,BC_PCGEmpresarial!$B101,'Balance Empresa'!Q:Q) -> 0 | G101: 0 | H101: 0 | I101: 0 | J101: 0 | O101: 0 | P101: 0
A102: 13132 | B102: 13132. Facturas, boletas y otros comprobantes por cobrar - En cobranza - Subsidiarias | C102: =SUMIF('Balance Empresa'!$K:$K,BC_PCGEmpresarial!$B102,'Balance Empresa'!N:N) -> 0 | D102: =SUMIF('Balance Empresa'!$K:$K,BC_PCGEmpresarial!$B102,'Balance Empresa'!O:O) -> 0 | E102: =SUMIF('Balance Empresa'!$K:$K,BC_PCGEmpresarial!$B102,'Balance Empresa'!P:P) -> 0 | F102: =SUMIF('Balance Empresa'!$K:$K,BC_PCGEmpresarial!$B102,'Balance Empresa'!Q:Q) -> 0 | G102: 0 | H102: 0 | I102: 0 | J102: 0 | O102: 0 | P102: 0
A103: 13133 | B103: 13133. Facturas, boletas y otros comprobantes por cobrar - En cobranza - Asociadas | C103: =SUMIF('Balance Empresa'!$K:$K,BC_PCGEmpresarial!$B103,'Balance Empresa'!N:N) -> 0 | D103: =SUMIF('Balance Empresa'!$K:$K,BC_PCGEmpresarial!$B103,'Balance Empresa'!O:O) -> 0 | E103: =SUMIF('Balance Empresa'!$K:$K,BC_PCGEmpresarial!$B103,'Balance Empresa'!P:P) -> 0 | F103: =SUMIF('Balance Empresa'!$K:$K,BC_PCGEmpresarial!$B103,'Balance Empresa'!Q:Q) -> 0 | G103: 0 | H103: 0 | I103: 0 | J103: 0 | O103: 0 | P103: 0
A104: 13134 | B104: 13134. Facturas, boletas y otros comprobantes por cobrar - En cobranza - Sucursales | C104: =SUMIF('Balance Empresa'!$K:$K,BC_PCGEmpresarial!$B104,'Balance Empresa'!N:N) -> 0 | D104: =SUMIF('Balance Empresa'!$K:$K,BC_PCGEmpresarial!$B104,'Balance Empresa'!O:O) -> 0 | E104: =SUMIF('Balance Empresa'!$K:$K,BC_PCGEmpresarial!$B104,'Balance Empresa'!P:P) -> 0 | F104: =SUMIF('Balance Empresa'!$K:$K,BC_PCGEmpresarial!$B104,'Balance Empresa'!Q:Q) -> 0 | G104: 0 | H104: 0 | I104: 0 | J104: 0 | O104: 0 | P104: 0
A105: 13135 | B105: 13135. Facturas, boletas y otros comprobantes por cobrar - En cobranza - Otros | C105: =SUMIF('Balance Empresa'!$K:$K,BC_PCGEmpresarial!$B105,'Balance Empresa'!N:N) -> 0 | D105: =SUMIF('Balance Empresa'!$K:$K,BC_PCGEmpresarial!$B105,'Balance Empresa'!O:O) -> 0 | E105: =SUMIF('Balance Empresa'!$K:$K,BC_PCGEmpresarial!$B105,'Balance Empresa'!P:P) -> 0 | F105: =SUMIF('Balance Empresa'!$K:$K,BC_PCGEmpresarial!$B105,'Balance Empresa'!Q:Q) -> 0 | G105: 0 | H105: 0 | I105: 0 | J105: 0 | O105: 0 | P105: 0
A106: 13141 | B106: 13141. Facturas, boletas y otros comprobantes por cobrar - En descuento - Matriz | C106: =SUMIF('Balance Empresa'!$K:$K,BC_PCGEmpresarial!$B106,'Balance Empresa'!N:N) -> 0 | D106: =SUMIF('Balance Empresa'!$K:$K,BC_PCGEmpresarial!$B106,'Balance Empresa'!O:O) -> 0 | E106: =SUMIF('Balance Empresa'!$K:$K,BC_PCGEmpresarial!$B106,'Balance Empresa'!P:P) -> 0 | F106: =SUMIF('Balance Empresa'!$K:$K,BC_PCGEmpresarial!$B106,'Balance Empresa'!Q:Q) -> 0 | G106: 0 | H106: 0 | I106: 0 | J106: 0 | O106: 0 | P106: 0
A107: 13142 | B107: 13142. Facturas, boletas y otros comprobantes por cobrar - En descuento - Subsidiarias | C107: =SUMIF('Balance Empresa'!$K:$K,BC_PCGEmpresarial!$B107,'Balance Empresa'!N:N) -> 0 | D107: =SUMIF('Balance Empresa'!$K:$K,BC_PCGEmpresarial!$B107,'Balance Empresa'!O:O) -> 0 | E107: =SUMIF('Balance Empresa'!$K:$K,BC_PCGEmpresarial!$B107,'Balance Empresa'!P:P) -> 0 | F107: =SUMIF('Balance Empresa'!$K:$K,BC_PCGEmpresarial!$B107,'Balance Empresa'!Q:Q) -> 0 | G107: 0 | H107: 0 | I107: 0 | J107: 0 | O107: 0 | P107: 0
A108: 13143 | B108: 13143. Facturas, boletas y otros comprobantes por cobrar - En descuento - Asociadas | C108: =SUMIF('Balance Empresa'!$K:$K,BC_PCGEmpresarial!$B108,'Balance Empresa'!N:N) -> 0 | D108: =SUMIF('Balance Empresa'!$K:$K,BC_PCGEmpresarial!$B108,'Balance Empresa'!O:O) -> 0 | E108: =SUMIF('Balance Empresa'!$K:$K,BC_PCGEmpresarial!$B108,'Balance Empresa'!P:P) -> 0 | F108: =SUMIF('Balance Empresa'!$K:$K,BC_PCGEmpresarial!$B108,'Balance Empresa'!Q:Q) -> 0 | G108: 0 | H108: 0 | I108: 0 | J108: 0 | O108: 0 | P108: 0
A109: 13144 | B109: 13144. Facturas, boletas y otros comprobantes por cobrar - En descuento - Sucursales | C109: =SUMIF('Balance Empresa'!$K:$K,BC_PCGEmpresarial!$B109,'Balance Empresa'!N:N) -> 0 | D109: =SUMIF('Balance Empresa'!$K:$K,BC_PCGEmpresarial!$B109,'Balance Empresa'!O:O) -> 0 | E109: =SUMIF('Balance Empresa'!$K:$K,BC_PCGEmpresarial!$B109,'Balance Empresa'!P:P) -> 0 | F109: =SUMIF('Balance Empresa'!$K:$K,BC_PCGEmpresarial!$B109,'Balance Empresa'!Q:Q) -> 0 | G109: 0 | H109: 0 | I109: 0 | J109: 0 | O109: 0 | P109: 0
A110: 13145 | B110: 13145. Facturas, boletas y otros comprobantes por cobrar - En descuento - Otros | C110: =SUMIF('Balance Empresa'!$K:$K,BC_PCGEmpresarial!$B110,'Balance Empresa'!N:N) -> 0 | D110: =SUMIF('Balance Empresa'!$K:$K,BC_PCGEmpresarial!$B110,'Balance Empresa'!O:O) -> 0 | E110: =SUMIF('Balance Empresa'!$K:$K,BC_PCGEmpresarial!$B110,'Balance Empresa'!P:P) -> 0 | F110: =SUMIF('Balance Empresa'!$K:$K,BC_PCGEmpresarial!$B110,'Balance Empresa'!Q:Q) -> 0 | G110: =+C110+E110 -> 0 | H110: 0 | I110: 0 | J110: 0 | O110: 0 | P110: 0
A111: 13211 | B111: 13211. Anticipos recibidos - Anticipos recibidos - Matriz | C111: =SUMIF('Balance Empresa'!$K:$K,BC_PCGEmpresarial!$B111,'Balance Empresa'!N:N) -> 0 | D111: =SUMIF('Balance Empresa'!$K:$K,BC_PCGEmpresarial!$B111,'Balance Empresa'!O:O) -> 0 | E111: =SUMIF('Balance Empresa'!$K:$K,BC_PCGEmpresarial!$B111,'Balance Empresa'!P:P) -> 0 | F111: =SUMIF('Balance Empresa'!$K:$K,BC_PCGEmpresarial!$B111,'Balance Empresa'!Q:Q) -> 0 | G111: 0 | H111: 0 | I111: 0 | J111: 0 | O111: 0 | P111: 0
A112: 13212 | B112: 13212. Anticipos recibidos - Anticipos recibidos - Subsidiarias | C112: =SUMIF('Balance Empresa'!$K:$K,BC_PCGEmpresarial!$B112,'Balance Empresa'!N:N) -> 0 | D112: =SUMIF('Balance Empresa'!$K:$K,BC_PCGEmpresarial!$B112,'Balance Empresa'!O:O) -> 0 | E112: =SUMIF('Balance Empresa'!$K:$K,BC_PCGEmpresarial!$B112,'Balance Empresa'!P:P) -> 0 | F112: =SUMIF('Balance Empresa'!$K:$K,BC_PCGEmpresarial!$B112,'Balance Empresa'!Q:Q) -> 0 | G112: 0 | H112: 0 | I112: 0 | J112: 0 | O112: 0 | P112: 0
A113: 13213 | B113: 13213. Anticipos recibidos - Anticipos recibidos - Asociadas | C113: =SUMIF('Balance Empresa'!$K:$K,BC_PCGEmpresarial!$B113,'Balance Empresa'!N:N) -> 0 | D113: =SUMIF('Balance Empresa'!$K:$K,BC_PCGEmpresarial!$B113,'Balance Empresa'!O:O) -> 74265 | E113: =SUMIF('Balance Empresa'!$K:$K,BC_PCGEmpresarial!$B113,'Balance Empresa'!P:P) -> 74265 | F113: =SUMIF('Balance Empresa'!$K:$K,BC_PCGEmpresarial!$B113,'Balance Empresa'!Q:Q) -> 0 | G113: 74265 | H113: 74265 | I113: 0 | J113: 0 | O113: 0 | P113: 0
A114: 13214 | B114: 13214. Anticipos recibidos - Anticipos recibidos - Sucursales | C114: =SUMIF('Balance Empresa'!$K:$K,BC_PCGEmpresarial!$B114,'Balance Empresa'!N:N) -> 0 | D114: =SUMIF('Balance Empresa'!$K:$K,BC_PCGEmpresarial!$B114,'Balance Empresa'!O:O) -> 0 | E114: =SUMIF('Balance Empresa'!$K:$K,BC_PCGEmpresarial!$B114,'Balance Empresa'!P:P) -> 0 | F114: =SUMIF('Balance Empresa'!$K:$K,BC_PCGEmpresarial!$B114,'Balance Empresa'!Q:Q) -> 0 | G114: 0 | H114: 0 | I114: 0 | J114: 0 | O114: 0 | P114: 0
A115: 13215 | B115: 13215. Anticipos recibidos - Anticipos recibidos - Otros | C115: =SUMIF('Balance Empresa'!$K:$K,BC_PCGEmpresarial!$B115,'Balance Empresa'!N:N) -> 0 | D115: =SUMIF('Balance Empresa'!$K:$K,BC_PCGEmpresarial!$B115,'Balance Empresa'!O:O) -> 0 | E115: =SUMIF('Balance Empresa'!$K:$K,BC_PCGEmpresarial!$B115,'Balance Empresa'!P:P) -> 0 | F115: =SUMIF('Balance Empresa'!$K:$K,BC_PCGEmpresarial!$B115,'Balance Empresa'!Q:Q) -> 0 | G115: 0 | H115: 0 | I115: 0 | J115: 0 | O115: 0 | P115: 0
A116: 13311 | B116: 13311. Letras por cobrar - En cartera - Matriz | C116: =SUMIF('Balance Empresa'!$K:$K,BC_PCGEmpresarial!$B116,'Balance Empresa'!N:N) -> 0 | D116: =SUMIF('Balance Empresa'!$K:$K,BC_PCGEmpresarial!$B116,'Balance Empresa'!O:O) -> 0 | E116: =SUMIF('Balance Empresa'!$K:$K,BC_PCGEmpresarial!$B116,'Balance Empresa'!P:P) -> 0 | F116: =SUMIF('Balance Empresa'!$K:$K,BC_PCGEmpresarial!$B116,'Balance Empresa'!Q:Q) -> 0 | G116: 0 | H116: 0 | I116: 0 | J116: 0 | O116: 0 | P116: 0
A117: 13312 | B117: 13312. Letras por cobrar - En cartera - Subsidiarias | C117: =SUMIF('Balance Empresa'!$K:$K,BC_PCGEmpresarial!$B117,'Balance Empresa'!N:N) -> 0 | D117: =SUMIF('Balance Empresa'!$K:$K,BC_PCGEmpresarial!$B117,'Balance Empresa'!O:O) -> 0 | E117: =SUMIF('Balance Empresa'!$K:$K,BC_PCGEmpresarial!$B117,'Balance Empresa'!P:P) -> 0 | F117: =SUMIF('Balance Empresa'!$K:$K,BC_PCGEmpresarial!$B117,'Balance Empresa'!Q:Q) -> 0 | G117: 0 | H117: 0 | I117: 0 | J117: 0 | O117: 0 | P117: 0
A118: 13313 | B118: 13313. Letras por cobrar - En cartera - Asociadas | C118: =SUMIF('Balance Empresa'!$K:$K,BC_PCGEmpresarial!$B118,'Balance Empresa'!N:N) -> 0 | D118: =SUMIF('Balance Empresa'!$K:$K,BC_PCGEmpresarial!$B118,'Balance Empresa'!O:O) -> 0 | E118: =SUMIF('Balance Empresa'!$K:$K,BC_PCGEmpresarial!$B118,'Balance Empresa'!P:P) -> 0 | F118: =SUMIF('Balance Empresa'!$K:$K,BC_PCGEmpresarial!$B118,'Balance Empresa'!Q:Q) -> 0 | G118: 0 | H118: 0 | I118: 0 | J118: 0 | O118: 0 | P118: 0
A119: 13314 | B119: 13314. Letras por cobrar - En cartera - Sucursales | C119: =SUMIF('Balance Empresa'!$K:$K,BC_PCGEmpresarial!$B119,'Balance Empresa'!N:N) -> 0 | D119: =SUMIF('Balance Empresa'!$K:$K,BC_PCGEmpresarial!$B119,'Balance Empresa'!O:O) -> 0 | E119: =SUMIF('Balance Empresa'!$K:$K,BC_PCGEmpresarial!$B119,'Balance Empresa'!P:P) -> 0 | F119: =SUMIF('Balance Empresa'!$K:$K,BC_PCGEmpresarial!$B119,'Balance Empresa'!Q:Q) -> 0 | G119: 0 | H119: 0 | I119: 0 | J119: 0 | O119: 0 | P119: 0
A120: 13315 | B120: 13315. Letras por cobrar - En cartera - Otros | C120: =SUMIF('Balance Empresa'!$K:$K,BC_PCGEmpresarial!$B120,'Balance Empresa'!N:N) -> 0 | D120: =SUMIF('Balance Empresa'!$K:$K,BC_PCGEmpresarial!$B120,'Balance Empresa'!O:O) -> 0 | E120: =SUMIF('Balance Empresa'!$K:$K,BC_PCGEmpresarial!$B120,'Balance Empresa'!P:P) -> 0 | F120: =SUMIF('Balance Empresa'!$K:$K,BC_PCGEmpresarial!$B120,'Balance Empresa'!Q:Q) -> 0 | G120: 0 | H120: 0 | I120: 0 | J120: 0 | O120: 0 | P120: 0
A121: 13321 | B121: 13321. Letras por cobrar - En cobranza - Matriz | C121: =SUMIF('Balance Empresa'!$K:$K,BC_PCGEmpresarial!$B121,'Balance Empresa'!N:N) -> 0 | D121: =SUMIF('Balance Empresa'!$K:$K,BC_PCGEmpresarial!$B121,'Balance Empresa'!O:O) -> 0 | E121: =SUMIF('Balance Empresa'!$K:$K,BC_PCGEmpresarial!$B121,'Balance Empresa'!P:P) -> 0 | F121: =SUMIF('Balance Empresa'!$K:$K,BC_PCGEmpresarial!$B121,'Balance Empresa'!Q:Q) -> 0 | G121: 0 | H121: 0 | I121: 0 | J121: 0 | O121: 0 | P121: 0
A122: 13322 | B122: 13322. Letras por cobrar - En cobranza - Subsidiarias | C122: =SUMIF('Balance Empresa'!$K:$K,BC_PCGEmpresarial!$B122,'Balance Empresa'!N:N) -> 0 | D122: =SUMIF('Balance Empresa'!$K:$K,BC_PCGEmpresarial!$B122,'Balance Empresa'!O:O) -> 0 | E122: =SUMIF('Balance Empresa'!$K:$K,BC_PCGEmpresarial!$B122,'Balance Empresa'!P:P) -> 0 | F122: =SUMIF('Balance Empresa'!$K:$K,BC_PCGEmpresarial!$B122,'Balance Empresa'!Q:Q) -> 0 | G122: 0 | H122: 0 | I122: 0 | J122: 0 | O122: 0 | P122: 0
A123: 13323 | B123: 13323. Letras por cobrar - En cobranza - Asociadas | C123: =SUMIF('Balance Empresa'!$K:$K,BC_PCGEmpresarial!$B123,'Balance Empresa'!N:N) -> 0 | D123: =SUMIF('Balance Empresa'!$K:$K,BC_PCGEmpresarial!$B123,'Balance Empresa'!O:O) -> 0 | E123: =SUMIF('Balance Empresa'!$K:$K,BC_PCGEmpresarial!$B123,'Balance Empresa'!P:P) -> 0 | F123: =SUMIF('Balance Empresa'!$K:$K,BC_PCGEmpresarial!$B123,'Balance Empresa'!Q:Q) -> 0 | G123: 0 | H123: 0 | I123: 0 | J123: 0 | O123: 0 | P123: 0
A124: 13324 | B124: 13324. Letras por cobrar - En cobranza - Sucursales | C124: =SUMIF('Balance Empresa'!$K:$K,BC_PCGEmpresarial!$B124,'Balance Empresa'!N:N) -> 0 | D124: =SUMIF('Balance Empresa'!$K:$K,BC_PCGEmpresarial!$B124,'Balance Empresa'!O:O) -> 0 | E124: =SUMIF('Balance Empresa'!$K:$K,BC_PCGEmpresarial!$B124,'Balance Empresa'!P:P) -> 0 | F124: =SUMIF('Balance Empresa'!$K:$K,BC_PCGEmpresarial!$B124,'Balance Empresa'!Q:Q) -> 0 | G124: 0 | H124: 0 | I124: 0 | J124: 0 | O124: 0 | P124: 0
A125: 13325 | B125: 13325. Letras por cobrar - En cobranza - Otros | C125: =SUMIF('Balance Empresa'!$K:$K,BC_PCGEmpresarial!$B125,'Balance Empresa'!N:N) -> 0 | D125: =SUMIF('Balance Empresa'!$K:$K,BC_PCGEmpresarial!$B125,'Balance Empresa'!O:O) -> 0 | E125: =SUMIF('Balance Empresa'!$K:$K,BC_PCGEmpresarial!$B125,'Balance Empresa'!P:P) -> 0 | F125: =SUMIF('Balance Empresa'!$K:$K,BC_PCGEmpresarial!$B125,'Balance Empresa'!Q:Q) -> 0 | G125: 0 | H125: 0 | I125: 0 | J125: 0 | O125: 0 | P125: 0
A126: 13331 | B126: 13331. Letras por cobrar - En descuento - Matriz | C126: =SUMIF('Balance Empresa'!$K:$K,BC_PCGEmpresarial!$B126,'Balance Empresa'!N:N) -> 0 | D126: =SUMIF('Balance Empresa'!$K:$K,BC_PCGEmpresarial!$B126,'Balance Empresa'!O:O) -> 0 | E126: =SUMIF('Balance Empresa'!$K:$K,BC_PCGEmpresarial!$B126,'Balance Empresa'!P:P) -> 0 | F126: =SUMIF('Balance Empresa'!$K:$K,BC_PCGEmpresarial!$B126,'Balance Empresa'!Q:Q) -> 0 | G126: 0 | H126: 0 | I126: 0 | J126: 0 | O126: 0 | P126: 0
A127: 13332 | B127: 13332. Letras por cobrar - En descuento - Subsidiarias | C127: =SUMIF('Balance Empresa'!$K:$K,BC_PCGEmpresarial!$B127,'Balance Empresa'!N:N) -> 0 | D127: =SUMIF('Balance Empresa'!$K:$K,BC_PCGEmpresarial!$B127,'Balance Empresa'!O:O) -> 0 | E127: =SUMIF('Balance Empresa'!$K:$K,BC_PCGEmpresarial!$B127,'Balance Empresa'!P:P) -> 0 | F127: =SUMIF('Balance Empresa'!$K:$K,BC_PCGEmpresarial!$B127,'Balance Empresa'!Q:Q) -> 0 | G127: 0 | H127: 0 | I127: 0 | J127: 0 | O127: 0 | P127: 0
A128: 13333 | B128: 13333. Letras por cobrar - En descuento - Asociadas | C128: =SUMIF('Balance Empresa'!$K:$K,BC_PCGEmpresarial!$B128,'Balance Empresa'!N:N) -> 0 | D128: =SUMIF('Balance Empresa'!$K:$K,BC_PCGEmpresarial!$B128,'Balance Empresa'!O:O) -> 0 | E128: =SUMIF('Balance Empresa'!$K:$K,BC_PCGEmpresarial!$B128,'Balance Empresa'!P:P) -> 0 | F128: =SUMIF('Balance Empresa'!$K:$K,BC_PCGEmpresarial!$B128,'Balance Empresa'!Q:Q) -> 0 | G128: 0 | H128: 0 | I128: 0 | J128: 0 | O128: 0 | P128: 0
A129: 13334 | B129: 13334. Letras por cobrar - En descuento - Sucursales | C129: =SUMIF('Balance Empresa'!$K:$K,BC_PCGEmpresarial!$B129,'Balance Empresa'!N:N) -> 0 | D129: =SUMIF('Balance Empresa'!$K:$K,BC_PCGEmpresarial!$B129,'Balance Empresa'!O:O) -> 0 | E129: =SUMIF('Balance Empresa'!$K:$K,BC_PCGEmpresarial!$B129,'Balance Empresa'!P:P) -> 0 | F129: =SUMIF('Balance Empresa'!$K:$K,BC_PCGEmpresarial!$B129,'Balance Empresa'!Q:Q) -> 0 | G129: 0 | H129: 0 | I129: 0 | J129: 0 | O129: 0 | P129: 0
A130: 13335 | B130: 13335. Letras por cobrar - En descuento - Otros | C130: =SUMIF('Balance Empresa'!$K:$K,BC_PCGEmpresarial!$B130,'Balance Empresa'!N:N) -> 0 | D130: =SUMIF('Balance Empresa'!$K:$K,BC_PCGEmpresarial!$B130,'Balance Empresa'!O:O) -> 0 | E130: =SUMIF('Balance Empresa'!$K:$K,BC_PCGEmpresarial!$B130,'Balance Empresa'!P:P) -> 0 | F130: =SUMIF('Balance Empresa'!$K:$K,BC_PCGEmpresarial!$B130,'Balance Empresa'!Q:Q) -> 0 | G130: 0 | H130: 0 | I130: 0 | J130: 0 | O130: 0 | P130: 0
A131: 1411 | B131: 1411. Personal - Préstamos | C131: =SUMIF('Balance Empresa'!$K:$K,BC_PCGEmpresarial!$B131,'Balance Empresa'!N:N) -> 87871 | D131: =SUMIF('Balance Empresa'!$K:$K,BC_PCGEmpresarial!$B131,'Balance Empresa'!O:O) -> 0 | E131: =SUMIF('Balance Empresa'!$K:$K,BC_PCGEmpresarial!$B131,'Balance Empresa'!P:P) -> 2538 | F131: =SUMIF('Balance Empresa'!$K:$K,BC_PCGEmpresarial!$B131,'Balance Empresa'!Q:Q) -> 5176 | G131: 90409 | H131: 5176 | I131: 85233 | J131: 0 | O131: 85233 | P131: 0
A132: 1412 | B132: 1412. Personal - Adelanto de remuneraciones | C132: =SUMIF('Balance Empresa'!$K:$K,BC_PCGEmpresarial!$B132,'Balance Empresa'!N:N) -> 0 | D132: =SUMIF('Balance Empresa'!$K:$K,BC_PCGEmpresarial!$B132,'Balance Empresa'!O:O) -> 0 | E132: =SUMIF('Balance Empresa'!$K:$K,BC_PCGEmpresarial!$B132,'Balance Empresa'!P:P) -> 0 | F132: =SUMIF('Balance Empresa'!$K:$K,BC_PCGEmpresarial!$B132,'Balance Empresa'!Q:Q) -> 0 | G132: 0 | H132: 0 | I132: 0 | J132: 0 | O132: 0 | P132: 0
A133: 1413 | B133: 1413. Personal - Entregas a rendir cuenta | C133: =SUMIF('Balance Empresa'!$K:$K,BC_PCGEmpresarial!$B133,'Balance Empresa'!N:N) -> 7680 | D133: =SUMIF('Balance Empresa'!$K:$K,BC_PCGEmpresarial!$B133,'Balance Empresa'!O:O) -> 0 | E133: =SUMIF('Balance Empresa'!$K:$K,BC_PCGEmpresarial!$B133,'Balance Empresa'!P:P) -> 107975 | F133: =SUMIF('Balance Empresa'!$K:$K,BC_PCGEmpresarial!$B133,'Balance Empresa'!Q:Q) -> 105506 | G133: 115655 | H133: 105506 | I133: 10149 | J133: 0 | O133: 10149 | P133: 0
A134: 1419 | B134: 1419. Personal - Otras cuentas por cobrar al personal | C134: =SUMIF('Balance Empresa'!$K:$K,BC_PCGEmpresarial!$B134,'Balance Empresa'!N:N) -> 0 | D134: =SUMIF('Balance Empresa'!$K:$K,BC_PCGEmpresarial!$B134,'Balance Empresa'!O:O) -> 0 | E134: =SUMIF('Balance Empresa'!$K:$K,BC_PCGEmpresarial!$B134,'Balance Empresa'!P:P) -> 0 | F134: =SUMIF('Balance Empresa'!$K:$K,BC_PCGEmpresarial!$B134,'Balance Empresa'!Q:Q) -> 0 | G134: 0 | H134: 0 | I134: 0 | J134: 0 | O134: 0 | P134: 0
A135: 1421 | B135: 1421. Accionistas (o socios) - Suscripciones por cobrar a socios o accionistas | C135: =SUMIF('Balance Empresa'!$K:$K,BC_PCGEmpresarial!$B135,'Balance Empresa'!N:N) -> 0 | D135: =SUMIF('Balance Empresa'!$K:$K,BC_PCGEmpresarial!$B135,'Balance Empresa'!O:O) -> 0 | E135: =SUMIF('Balance Empresa'!$K:$K,BC_PCGEmpresarial!$B135,'Balance Empresa'!P:P) -> 0 | F135: =SUMIF('Balance Empresa'!$K:$K,BC_PCGEmpresarial!$B135,'Balance Empresa'!Q:Q) -> 0 | G135: 0 | H135: 0 | I135: 0 | J135: 0 | O135: 0 | P135: 0
A136: 1422 | B136: 1422. Accionistas (o socios) - Préstamos | C136: =SUMIF('Balance Empresa'!$K:$K,BC_PCGEmpresarial!$B136,'Balance Empresa'!N:N) -> 0 | D136: =SUMIF('Balance Empresa'!$K:$K,BC_PCGEmpresarial!$B136,'Balance Empresa'!O:O) -> 0 | E136: =SUMIF('Balance Empresa'!$K:$K,BC_PCGEmpresarial!$B136,'Balance Empresa'!P:P) -> 0 | F136: =SUMIF('Balance Empresa'!$K:$K,BC_PCGEmpresarial!$B136,'Balance Empresa'!Q:Q) -> 0 | G136: 0 | H136: 0 | I136: =IF($G136-$H136>=0,$G136-$H136,0) -> 0 | J136: =IF($G136-$H136<0,-$G136+$H136,0) -> 0 | O136: 0 | P136: 0
A137: 1431 | B137: 1431. Directores - Préstamos | C137: =SUMIF('Balance Empresa'!$K:$K,BC_PCGEmpresarial!$B137,'Balance Empresa'!N:N) -> 0 | D137: =SUMIF('Balance Empresa'!$K:$K,BC_PCGEmpresarial!$B137,'Balance Empresa'!O:O) -> 0 | E137: =SUMIF('Balance Empresa'!$K:$K,BC_PCGEmpresarial!$B137,'Balance Empresa'!P:P) -> 0 | F137: =SUMIF('Balance Empresa'!$K:$K,BC_PCGEmpresarial!$B137,'Balance Empresa'!Q:Q) -> 0 | G137: 0 | H137: 0 | I137: 0 | J137: 0 | O137: =IF($I137-$J137+$K137-$L137+$M137-$N137>=0,$I137-$J137+$K137-$L137+$M137-$N137,0) -> 0 | P137: =IF($I137-$J137+$K137-$L137+$M137-$N137<0,-($I137-$J137+$K137-$L137+$M137-$N137),0) -> 0
A138: 1432 | B138: 1432. Directores - Adelanto de dietas | C138: =SUMIF('Balance Empresa'!$K:$K,BC_PCGEmpresarial!$B138,'Balance Empresa'!N:N) -> 0 | D138: =SUMIF('Balance Empresa'!$K:$K,BC_PCGEmpresarial!$B138,'Balance Empresa'!O:O) -> 0 | E138: =SUMIF('Balance Empresa'!$K:$K,BC_PCGEmpresarial!$B138,'Balance Empresa'!P:P) -> 0 | F138: =SUMIF('Balance Empresa'!$K:$K,BC_PCGEmpresarial!$B138,'Balance Empresa'!Q:Q) -> 0 | G138: 0 | H138: 0 | I138: 0 | J138: 0 | O138: 0 | P138: 0
A139: 1433 | B139: 1433. Directores - Entregas a rendir cuenta | C139: =SUMIF('Balance Empresa'!$K:$K,BC_PCGEmpresarial!$B139,'Balance Empresa'!N:N) -> 0 | D139: =SUMIF('Balance Empresa'!$K:$K,BC_PCGEmpresarial!$B139,'Balance Empresa'!O:O) -> 0 | E139: =SUMIF('Balance Empresa'!$K:$K,BC_PCGEmpresarial!$B139,'Balance Empresa'!P:P) -> 0 | F139: =SUMIF('Balance Empresa'!$K:$K,BC_PCGEmpresarial!$B139,'Balance Empresa'!Q:Q) -> 0 | G139: 0 | H139: 0 | I139: 0 | J139: 0 | O139: 0 | P139: 0
A140: 1441 | B140: 1441. Gerentes - Préstamos | C140: =SUMIF('Balance Empresa'!$K:$K,BC_PCGEmpresarial!$B140,'Balance Empresa'!N:N) -> 0 | D140: =SUMIF('Balance Empresa'!$K:$K,BC_PCGEmpresarial!$B140,'Balance Empresa'!O:O) -> 0 | E140: =SUMIF('Balance Empresa'!$K:$K,BC_PCGEmpresarial!$B140,'Balance Empresa'!P:P) -> 0 | F140: =SUMIF('Balance Empresa'!$K:$K,BC_PCGEmpresarial!$B140,'Balance Empresa'!Q:Q) -> 0 | G140: 0 | H140: 0 | I140: 0 | J140: 0 | O140: 0 | P140: 0
A141: 1442 | B141: 1442. Gerentes - Adelanto de remuneraciones | C141: =SUMIF('Balance Empresa'!$K:$K,BC_PCGEmpresarial!$B141,'Balance Empresa'!N:N) -> 0 | D141: =SUMIF('Balance Empresa'!$K:$K,BC_PCGEmpresarial!$B141,'Balance Empresa'!O:O) -> 0 | E141: =SUMIF('Balance Empresa'!$K:$K,BC_PCGEmpresarial!$B141,'Balance Empresa'!P:P) -> 0 | F141: =SUMIF('Balance Empresa'!$K:$K,BC_PCGEmpresarial!$B141,'Balance Empresa'!Q:Q) -> 0 | G141: 0 | H141: 0 | I141: 0 | J141: 0 | O141: 0 | P141: 0
A142: 1443 | B142: 1443. Gerentes - Entregas a rendir cuenta | C142: =SUMIF('Balance Empresa'!$K:$K,BC_PCGEmpresarial!$B142,'Balance Empresa'!N:N) -> 0 | D142: =SUMIF('Balance Empresa'!$K:$K,BC_PCGEmpresarial!$B142,'Balance Empresa'!O:O) -> 0 | E142: =SUMIF('Balance Empresa'!$K:$K,BC_PCGEmpresarial!$B142,'Balance Empresa'!P:P) -> 0 | F142: =SUMIF('Balance Empresa'!$K:$K,BC_PCGEmpresarial!$B142,'Balance Empresa'!Q:Q) -> 0 | G142: 0 | H142: 0 | I142: 0 | J142: 0 | O142: 0 | P142: 0
A143: 148 | B143: 148. Diversas | C143: =SUMIF('Balance Empresa'!$K:$K,BC_PCGEmpresarial!$B143,'Balance Empresa'!N:N) -> 0 | D143: =SUMIF('Balance Empresa'!$K:$K,BC_PCGEmpresarial!$B143,'Balance Empresa'!O:O) -> 0 | E143: =SUMIF('Balance Empresa'!$K:$K,BC_PCGEmpresarial!$B143,'Balance Empresa'!P:P) -> 0 | F143: =SUMIF('Balance Empresa'!$K:$K,BC_PCGEmpresarial!$B143,'Balance Empresa'!Q:Q) -> 0 | G143: 0 | H143: 0 | I143: 0 | J143: 0 | O143: 0 | P143: 0
A144: 1611 | B144: 1611. Préstamos - Con garantía | C144: =SUMIF('Balance Empresa'!$K:$K,BC_PCGEmpresarial!$B144,'Balance Empresa'!N:N) -> 44063 | D144: =SUMIF('Balance Empresa'!$K:$K,BC_PCGEmpresarial!$B144,'Balance Empresa'!O:O) -> 0 | E144: =SUMIF('Balance Empresa'!$K:$K,BC_PCGEmpresarial!$B144,'Balance Empresa'!P:P) -> 0 | F144: =SUMIF('Balance Empresa'!$K:$K,BC_PCGEmpresarial!$B144,'Balance Empresa'!Q:Q) -> 0 | G144: 44063 | H144: 0 | I144: 44063 | J144: 0 | O144: 44063 | P144: 0
A145: 1612 | B145: 1612. Préstamos - Sin garantía | C145: =SUMIF('Balance Empresa'!$K:$K,BC_PCGEmpresarial!$B145,'Balance Empresa'!N:N) -> 0 | D145: =SUMIF('Balance Empresa'!$K:$K,BC_PCGEmpresarial!$B145,'Balance Empresa'!O:O) -> 0 | E145: =SUMIF('Balance Empresa'!$K:$K,BC_PCGEmpresarial!$B145,'Balance Empresa'!P:P) -> 0 | F145: =SUMIF('Balance Empresa'!$K:$K,BC_PCGEmpresarial!$B145,'Balance Empresa'!Q:Q) -> 0 | G145: 0 | H145: 0 | I145: 0 | J145: 0 | O145: 0 | P145: 0
A146: 1621 | B146: 1621. Reclamaciones a terceros - Compañías aseguradoras | C146: =SUMIF('Balance Empresa'!$K:$K,BC_PCGEmpresarial!$B146,'Balance Empresa'!N:N) -> 0 | D146: =SUMIF('Balance Empresa'!$K:$K,BC_PCGEmpresarial!$B146,'Balance Empresa'!O:O) -> 0 | E146: =SUMIF('Balance Empresa'!$K:$K,BC_PCGEmpresarial!$B146,'Balance Empresa'!P:P) -> 0 | F146: =SUMIF('Balance Empresa'!$K:$K,BC_PCGEmpresarial!$B146,'Balance Empresa'!Q:Q) -> 0 | G146: 0 | H146: 0 | I146: 0 | J146: 0 | O146: 0 | P146: 0
A147: 1622 | B147: 1622. Reclamaciones a terceros - Transportadoras | C147: =SUMIF('Balance Empresa'!$K:$K,BC_PCGEmpresarial!$B147,'Balance Empresa'!N:N) -> 0 | D147: =SUMIF('Balance Empresa'!$K:$K,BC_PCGEmpresarial!$B147,'Balance Empresa'!O:O) -> 0 | E147: =SUMIF('Balance Empresa'!$K:$K,BC_PCGEmpresarial!$B147,'Balance Empresa'!P:P) -> 0 | F147: =SUMIF('Balance Empresa'!$K:$K,BC_PCGEmpresarial!$B147,'Balance Empresa'!Q:Q) -> 0 | G147: 0 | H147: 0 | I147: 0 | J147: 0 | O147: 0 | P147: 0
A148: 1623 | B148: 1623. Reclamaciones a terceros - Servicios públicos | C148: =SUMIF('Balance Empresa'!$K:$K,BC_PCGEmpresarial!$B148,'Balance Empresa'!N:N) -> 1876 | D148: =SUMIF('Balance Empresa'!$K:$K,BC_PCGEmpresarial!$B148,'Balance Empresa'!O:O) -> 0 | E148: =SUMIF('Balance Empresa'!$K:$K,BC_PCGEmpresarial!$B148,'Balance Empresa'!P:P) -> 2309 | F148: =SUMIF('Balance Empresa'!$K:$K,BC_PCGEmpresarial!$B148,'Balance Empresa'!Q:Q) -> 2323 | G148: 4185 | H148: 2323 | I148: 1862 | J148: 0 | O148: 1862 | P148: 0
A149: 1624 | B149: 1624. Reclamaciones a terceros - Tributos | C149: =SUMIF('Balance Empresa'!$K:$K,BC_PCGEmpresarial!$B149,'Balance Empresa'!N:N) -> 213510 | D149: =SUMIF('Balance Empresa'!$K:$K,BC_PCGEmpresarial!$B149,'Balance Empresa'!O:O) -> 0 | E149: =SUMIF('Balance Empresa'!$K:$K,BC_PCGEmpresarial!$B149,'Balance Empresa'!P:P) -> 38836 | F149: =SUMIF('Balance Empresa'!$K:$K,BC_PCGEmpresarial!$B149,'Balance Empresa'!Q:Q) -> 18961 | G149: 252346 | H149: 18961 | I149: 233385 | J149: 0 | O149: 233385 | P149: 0
A150: 1629 | B150: 1629. Reclamaciones a terceros - Otras | C150: =SUMIF('Balance Empresa'!$K:$K,BC_PCGEmpresarial!$B150,'Balance Empresa'!N:N) -> 0 | D150: =SUMIF('Balance Empresa'!$K:$K,BC_PCGEmpresarial!$B150,'Balance Empresa'!O:O) -> 0 | E150: =SUMIF('Balance Empresa'!$K:$K,BC_PCGEmpresarial!$B150,'Balance Empresa'!P:P) -> 0 | F150: =SUMIF('Balance Empresa'!$K:$K,BC_PCGEmpresarial!$B150,'Balance Empresa'!Q:Q) -> 0 | G150: 0 | H150: 0 | I150: 0 | J150: 0 | O150: 0 | P150: 0
A151: 1631 | B151: 1631. Intereses, regalías y dividendos - Intereses | C151: =SUMIF('Balance Empresa'!$K:$K,BC_PCGEmpresarial!$B151,'Balance Empresa'!N:N) -> 0 | D151: =SUMIF('Balance Empresa'!$K:$K,BC_PCGEmpresarial!$B151,'Balance Empresa'!O:O) -> 0 | E151: =SUMIF('Balance Empresa'!$K:$K,BC_PCGEmpresarial!$B151,'Balance Empresa'!P:P) -> 0 | F151: =SUMIF('Balance Empresa'!$K:$K,BC_PCGEmpresarial!$B151,'Balance Empresa'!Q:Q) -> 0 | G151: 0 | H151: 0 | I151: 0 | J151: 0 | O151: 0 | P151: 0
A152: 1632 | B152: 1632. Intereses, regalías y dividendos - Regalías | C152: =SUMIF('Balance Empresa'!$K:$K,BC_PCGEmpresarial!$B152,'Balance Empresa'!N:N) -> 0 | D152: =SUMIF('Balance Empresa'!$K:$K,BC_PCGEmpresarial!$B152,'Balance Empresa'!O:O) -> 0 | E152: =SUMIF('Balance Empresa'!$K:$K,BC_PCGEmpresarial!$B152,'Balance Empresa'!P:P) -> 0 | F152: =SUMIF('Balance Empresa'!$K:$K,BC_PCGEmpresarial!$B152,'Balance Empresa'!Q:Q) -> 0 | G152: 0 | H152: 0 | I152: 0 | J152: 0 | O152: 0 | P152: 0
A153: 1633 | B153: 1633. Intereses, regalías y dividendos - Dividendos | C153: =SUMIF('Balance Empresa'!$K:$K,BC_PCGEmpresarial!$B153,'Balance Empresa'!N:N) -> 0 | D153: =SUMIF('Balance Empresa'!$K:$K,BC_PCGEmpresarial!$B153,'Balance Empresa'!O:O) -> 0 | E153: =SUMIF('Balance Empresa'!$K:$K,BC_PCGEmpresarial!$B153,'Balance Empresa'!P:P) -> 0 | F153: =SUMIF('Balance Empresa'!$K:$K,BC_PCGEmpresarial!$B153,'Balance Empresa'!Q:Q) -> 0 | G153: 0 | H153: 0 | I153: 0 | J153: 0 | O153: 0 | P153: 0
A154: 1641 | B154: 1641. Depósitos otorgados en garantía - Préstamos de instituciones financieras | C154: =SUMIF('Balance Empresa'!$K:$K,BC_PCGEmpresarial!$B154,'Balance Empresa'!N:N) -> 0 | D154: =SUMIF('Balance Empresa'!$K:$K,BC_PCGEmpresarial!$B154,'Balance Empresa'!O:O) -> 0 | E154: =SUMIF('Balance Empresa'!$K:$K,BC_PCGEmpresarial!$B154,'Balance Empresa'!P:P) -> 0 | F154: =SUMIF('Balance Empresa'!$K:$K,BC_PCGEmpresarial!$B154,'Balance Empresa'!Q:Q) -> 0 | G154: 0 | H154: 0 | I154: 0 | J154: 0 | O154: 0 | P154: 0
A155: 1642 | B155: 1642. Depósitos otorgados en garantía - Préstamos de instituciones no financieras | C155: =SUMIF('Balance Empresa'!$K:$K,BC_PCGEmpresarial!$B155,'Balance Empresa'!N:N) -> 0 | D155: =SUMIF('Balance Empresa'!$K:$K,BC_PCGEmpresarial!$B155,'Balance Empresa'!O:O) -> 0 | E155: =SUMIF('Balance Empresa'!$K:$K,BC_PCGEmpresarial!$B155,'Balance Empresa'!P:P) -> 0 | F155: =SUMIF('Balance Empresa'!$K:$K,BC_PCGEmpresarial!$B155,'Balance Empresa'!Q:Q) -> 0 | G155: 0 | H155: 0 | I155: 0 | J155: 0 | O155: 0 | P155: 0
A156: 1644 | B156: 1644. Depósitos otorgados en garantía - Depósitos en garantía por alquileres | C156: =SUMIF('Balance Empresa'!$K:$K,BC_PCGEmpresarial!$B156,'Balance Empresa'!N:N) -> 0 | D156: =SUMIF('Balance Empresa'!$K:$K,BC_PCGEmpresarial!$B156,'Balance Empresa'!O:O) -> 0 | E156: =SUMIF('Balance Empresa'!$K:$K,BC_PCGEmpresarial!$B156,'Balance Empresa'!P:P) -> 0 | F156: =SUMIF('Balance Empresa'!$K:$K,BC_PCGEmpresarial!$B156,'Balance Empresa'!Q:Q) -> 0 | G156: 0 | H156: 0 | I156: 0 | J156: 0 | O156: 0 | P156: 0
A157: 1649 | B157: 1649. Depósitos otorgados en garantía - Otros depósitos en garantía | C157: =SUMIF('Balance Empresa'!$K:$K,BC_PCGEmpresarial!$B157,'Balance Empresa'!N:N) -> 254371 | D157: =SUMIF('Balance Empresa'!$K:$K,BC_PCGEmpresarial!$B157,'Balance Empresa'!O:O) -> 0 | E157: =SUMIF('Balance Empresa'!$K:$K,BC_PCGEmpresarial!$B157,'Balance Empresa'!P:P) -> 1075 | F157: =SUMIF('Balance Empresa'!$K:$K,BC_PCGEmpresarial!$B157,'Balance Empresa'!Q:Q) -> 147755 | G157: 255446 | H157: 147755 | I157: 107691 | J157: 0 | O157: 107691 | P157: 0
A158: 1651 | B158: 1651. Venta de activo inmovilizado - Inversión mobiliaria | C158: =SUMIF('Balance Empresa'!$K:$K,BC_PCGEmpresarial!$B158,'Balance Empresa'!N:N) -> 0 | D158: =SUMIF('Balance Empresa'!$K:$K,BC_PCGEmpresarial!$B158,'Balance Empresa'!O:O) -> 0 | E158: =SUMIF('Balance Empresa'!$K:$K,BC_PCGEmpresarial!$B158,'Balance Empresa'!P:P) -> 0 | F158: =SUMIF('Balance Empresa'!$K:$K,BC_PCGEmpresarial!$B158,'Balance Empresa'!Q:Q) -> 0 | G158: 0 | H158: 0 | I158: 0 | J158: 0 | O158: 0 | P158: 0
A159: 1652 | B159: 1652. Venta de activo inmovilizado - Inversión inmobiliaria | C159: =SUMIF('Balance Empresa'!$K:$K,BC_PCGEmpresarial!$B159,'Balance Empresa'!N:N) -> 0 | D159: =SUMIF('Balance Empresa'!$K:$K,BC_PCGEmpresarial!$B159,'Balance Empresa'!O:O) -> 0 | E159: =SUMIF('Balance Empresa'!$K:$K,BC_PCGEmpresarial!$B159,'Balance Empresa'!P:P) -> 0 | F159: =SUMIF('Balance Empresa'!$K:$K,BC_PCGEmpresarial!$B159,'Balance Empresa'!Q:Q) -> 0 | G159: 0 | H159: 0 | I159: 0 | J159: 0 | O159: 0 | P159: 0
A160: 1653 | B160: 1653. Venta de activo inmovilizado - Inmuebles, maquinaria y equipo | C160: =SUMIF('Balance Empresa'!$K:$K,BC_PCGEmpresarial!$B160,'Balance Empresa'!N:N) -> 0 | D160: =SUMIF('Balance Empresa'!$K:$K,BC_PCGEmpresarial!$B160,'Balance Empresa'!O:O) -> 0 | E160: =SUMIF('Balance Empresa'!$K:$K,BC_PCGEmpresarial!$B160,'Balance Empresa'!P:P) -> 0 | F160: =SUMIF('Balance Empresa'!$K:$K,BC_PCGEmpresarial!$B160,'Balance Empresa'!Q:Q) -> 0 | G160: 0 | H160: 0 | I160: 0 | J160: 0 | O160: 0 | P160: 0
A161: 1654 | B161: 1654. Venta de activo inmovilizado - Intangibles | C161: =SUMIF('Balance Empresa'!$K:$K,BC_PCGEmpresarial!$B161,'Balance Empresa'!N:N) -> 0 | D161: =SUMIF('Balance Empresa'!$K:$K,BC_PCGEmpresarial!$B161,'Balance Empresa'!O:O) -> 0 | E161: =SUMIF('Balance Empresa'!$K:$K,BC_PCGEmpresarial!$B161,'Balance Empresa'!P:P) -> 0 | F161: =SUMIF('Balance Empresa'!$K:$K,BC_PCGEmpresarial!$B161,'Balance Empresa'!Q:Q) -> 0 | G161: 0 | H161: 0 | I161: 0 | J161: 0 | O161: 0 | P161: 0
A162: 1655 | B162: 1655. Venta de activo inmovilizado - Activos biológicos | C162: =SUMIF('Balance Empresa'!$K:$K,BC_PCGEmpresarial!$B162,'Balance Empresa'!N:N) -> 0 | D162: =SUMIF('Balance Empresa'!$K:$K,BC_PCGEmpresarial!$B162,'Balance Empresa'!O:O) -> 0 | E162: =SUMIF('Balance Empresa'!$K:$K,BC_PCGEmpresarial!$B162,'Balance Empresa'!P:P) -> 0 | F162: =SUMIF('Balance Empresa'!$K:$K,BC_PCGEmpresarial!$B162,'Balance Empresa'!Q:Q) -> 0 | G162: 0 | H162: 0 | I162: 0 | J162: 0 | O162: 0 | P162: 0
A163: 1661 | B163: 1661. Activos por instrumentos financieros - Instrumentos financieros primarios | C163: =SUMIF('Balance Empresa'!$K:$K,BC_PCGEmpresarial!$B163,'Balance Empresa'!N:N) -> 0 | D163: =SUMIF('Balance Empresa'!$K:$K,BC_PCGEmpresarial!$B163,'Balance Empresa'!O:O) -> 0 | E163: =SUMIF('Balance Empresa'!$K:$K,BC_PCGEmpresarial!$B163,'Balance Empresa'!P:P) -> 0 | F163: =SUMIF('Balance Empresa'!$K:$K,BC_PCGEmpresarial!$B163,'Balance Empresa'!Q:Q) -> 0 | G163: 0 | H163: 0 | I163: 0 | J163: 0 | O163: 0 | P163: 0
A164: 16621 | B164: 16621. Activos por instrumentos financieros - Instrumentos financieros derivados - Cartera de negociación | C164: =SUMIF('Balance Empresa'!$K:$K,BC_PCGEmpresarial!$B164,'Balance Empresa'!N:N) -> 0 | D164: =SUMIF('Balance Empresa'!$K:$K,BC_PCGEmpresarial!$B164,'Balance Empresa'!O:O) -> 0 | E164: =SUMIF('Balance Empresa'!$K:$K,BC_PCGEmpresarial!$B164,'Balance Empresa'!P:P) -> 0 | F164: =SUMIF('Balance Empresa'!$K:$K,BC_PCGEmpresarial!$B164,'Balance Empresa'!Q:Q) -> 0 | G164: 0 | H164: 0 | I164: 0 | J164: 0 | O164: 0 | P164: 0
A165: 16622 | B165: 16622. Activos por instrumentos financieros - Instrumentos financieros derivados - Instrumentos de cobertura | C165: =SUMIF('Balance Empresa'!$K:$K,BC_PCGEmpresarial!$B165,'Balance Empresa'!N:N) -> 0 | D165: =SUMIF('Balance Empresa'!$K:$K,BC_PCGEmpresarial!$B165,'Balance Empresa'!O:O) -> 0 | E165: =SUMIF('Balance Empresa'!$K:$K,BC_PCGEmpresarial!$B165,'Balance Empresa'!P:P) -> 0 | F165: =SUMIF('Balance Empresa'!$K:$K,BC_PCGEmpresarial!$B165,'Balance Empresa'!Q:Q) -> 0 | G165: 0 | H165: 0 | I165: 0 | J165: 0 | O165: 0 | P165: 0
A166: 1681 | B166: 1681. Otras cuentas por cobrar diversas - Entregas a rendir cuenta a terceros | C166: =SUMIF('Balance Empresa'!$K:$K,BC_PCGEmpresarial!$B166,'Balance Empresa'!N:N) -> 0 | D166: =SUMIF('Balance Empresa'!$K:$K,BC_PCGEmpresarial!$B166,'Balance Empresa'!O:O) -> 0 | E166: =SUMIF('Balance Empresa'!$K:$K,BC_PCGEmpresarial!$B166,'Balance Empresa'!P:P) -> 0 | F166: =SUMIF('Balance Empresa'!$K:$K,BC_PCGEmpresarial!$B166,'Balance Empresa'!Q:Q) -> 0 | G166: 0 | H166: 0 | I166: 0 | J166: 0 | O166: 0 | P166: 0
A167: 1682 | B167: 1682. Otras cuentas por cobrar diversas - Otras cuentas por cobrar diversas | C167: =SUMIF('Balance Empresa'!$K:$K,BC_PCGEmpresarial!$B167,'Balance Empresa'!N:N) -> 35363 | D167: =SUMIF('Balance Empresa'!$K:$K,BC_PCGEmpresarial!$B167,'Balance Empresa'!O:O) -> 0 | E167: =SUMIF('Balance Empresa'!$K:$K,BC_PCGEmpresarial!$B167,'Balance Empresa'!P:P) -> 5881 | F167: =SUMIF('Balance Empresa'!$K:$K,BC_PCGEmpresarial!$B167,'Balance Empresa'!Q:Q) -> 3297 | G167: 41244 | H167: 3297 | I167: 37947 | J167: 0 | O167: 37947 | P167: 0
A168: 17111 | B168: 17111. Préstamos - Con garantía - Matriz | C168: =SUMIF('Balance Empresa'!$K:$K,BC_PCGEmpresarial!$B168,'Balance Empresa'!N:N) -> 0 | D168: =SUMIF('Balance Empresa'!$K:$K,BC_PCGEmpresarial!$B168,'Balance Empresa'!O:O) -> 0 | E168: =SUMIF('Balance Empresa'!$K:$K,BC_PCGEmpresarial!$B168,'Balance Empresa'!P:P) -> 0 | F168: =SUMIF('Balance Empresa'!$K:$K,BC_PCGEmpresarial!$B168,'Balance Empresa'!Q:Q) -> 0 | G168: 0 | H168: 0 | I168: 0 | J168: 0 | O168: 0 | P168: 0
A169: 17112 | B169: 17112. Préstamos - Con garantía - Subsidiarias | C169: =SUMIF('Balance Empresa'!$K:$K,BC_PCGEmpresarial!$B169,'Balance Empresa'!N:N) -> 0 | D169: =SUMIF('Balance Empresa'!$K:$K,BC_PCGEmpresarial!$B169,'Balance Empresa'!O:O) -> 0 | E169: =SUMIF('Balance Empresa'!$K:$K,BC_PCGEmpresarial!$B169,'Balance Empresa'!P:P) -> 0 | F169: =SUMIF('Balance Empresa'!$K:$K,BC_PCGEmpresarial!$B169,'Balance Empresa'!Q:Q) -> 0 | G169: 0 | H169: 0 | I169: 0 | J169: 0 | O169: 0 | P169: 0
A170: 17113 | B170: 17113. Préstamos - Con garantía - Asociadas | C170: =SUMIF('Balance Empresa'!$K:$K,BC_PCGEmpresarial!$B170,'Balance Empresa'!N:N) -> 0 | D170: =SUMIF('Balance Empresa'!$K:$K,BC_PCGEmpresarial!$B170,'Balance Empresa'!O:O) -> 0 | E170: =SUMIF('Balance Empresa'!$K:$K,BC_PCGEmpresarial!$B170,'Balance Empresa'!P:P) -> 0 | F170: =SUMIF('Balance Empresa'!$K:$K,BC_PCGEmpresarial!$B170,'Balance Empresa'!Q:Q) -> 0 | G170: 0 | H170: 0 | I170: 0 | J170: 0 | O170: 0 | P170: 0
A171: 17114 | B171: 17114. Préstamos - Con garantía - Sucursales | C171: =SUMIF('Balance Empresa'!$K:$K,BC_PCGEmpresarial!$B171,'Balance Empresa'!N:N) -> 0 | D171: =SUMIF('Balance Empresa'!$K:$K,BC_PCGEmpresarial!$B171,'Balance Empresa'!O:O) -> 0 | E171: =SUMIF('Balance Empresa'!$K:$K,BC_PCGEmpresarial!$B171,'Balance Empresa'!P:P) -> 0 | F171: =SUMIF('Balance Empresa'!$K:$K,BC_PCGEmpresarial!$B171,'Balance Empresa'!Q:Q) -> 0 | G171: 0 | H171: 0 | I171: 0 | J171: 0 | O171: 0 | P171: 0
A172: 17115 | B172: 17115. Préstamos - Con garantía - Otros | C172: =SUMIF('Balance Empresa'!$K:$K,BC_PCGEmpresarial!$B172,'Balance Empresa'!N:N) -> 0 | D172: =SUMIF('Balance Empresa'!$K:$K,BC_PCGEmpresarial!$B172,'Balance Empresa'!O:O) -> 0 | E172: =SUMIF('Balance Empresa'!$K:$K,BC_PCGEmpresarial!$B172,'Balance Empresa'!P:P) -> 0 | F172: =SUMIF('Balance Empresa'!$K:$K,BC_PCGEmpresarial!$B172,'Balance Empresa'!Q:Q) -> 0 | G172: 0 | H172: 0 | I172: 0 | J172: 0 | O172: 0 | P172: 0
A173: 17121 | B173: 17121. Préstamos - Sin garantía - Matriz | C173: =SUMIF('Balance Empresa'!$K:$K,BC_PCGEmpresarial!$B173,'Balance Empresa'!N:N) -> 0 | D173: =SUMIF('Balance Empresa'!$K:$K,BC_PCGEmpresarial!$B173,'Balance Empresa'!O:O) -> 0 | E173: =SUMIF('Balance Empresa'!$K:$K,BC_PCGEmpresarial!$B173,'Balance Empresa'!P:P) -> 0 | F173: =SUMIF('Balance Empresa'!$K:$K,BC_PCGEmpresarial!$B173,'Balance Empresa'!Q:Q) -> 0 | G173: 0 | H173: 0 | I173: 0 | J173: 0 | O173: 0 | P173: 0
A174: 17122 | B174: 17122. Préstamos - Sin garantía - Subsidiarias | C174: =SUMIF('Balance Empresa'!$K:$K,BC_PCGEmpresarial!$B174,'Balance Empresa'!N:N) -> 0 | D174: =SUMIF('Balance Empresa'!$K:$K,BC_PCGEmpresarial!$B174,'Balance Empresa'!O:O) -> 0 | E174: =SUMIF('Balance Empresa'!$K:$K,BC_PCGEmpresarial!$B174,'Balance Empresa'!P:P) -> 0 | F174: =SUMIF('Balance Empresa'!$K:$K,BC_PCGEmpresarial!$B174,'Balance Empresa'!Q:Q) -> 0 | G174: =+C174+E174 -> 0 | H174: 0 | I174: 0 | J174: 0 | O174: 0 | P174: 0
A175: 17123 | B175: 17123. Préstamos - Sin garantía - Asociadas | C175: =SUMIF('Balance Empresa'!$K:$K,BC_PCGEmpresarial!$B175,'Balance Empresa'!N:N) -> 484340 | D175: =SUMIF('Balance Empresa'!$K:$K,BC_PCGEmpresarial!$B175,'Balance Empresa'!O:O) -> 0 | E175: =SUMIF('Balance Empresa'!$K:$K,BC_PCGEmpresarial!$B175,'Balance Empresa'!P:P) -> 6836 | F175: =SUMIF('Balance Empresa'!$K:$K,BC_PCGEmpresarial!$B175,'Balance Empresa'!Q:Q) -> 106669 | G175: 491176 | H175: 106669 | I175: 384507 | J175: 0 | O175: 384507 | P175: 0
A176: 17124 | B176: 17124. Préstamos - Sin garantía - Sucursales | C176: =SUMIF('Balance Empresa'!$K:$K,BC_PCGEmpresarial!$B176,'Balance Empresa'!N:N) -> 181162 | D176: =SUMIF('Balance Empresa'!$K:$K,BC_PCGEmpresarial!$B176,'Balance Empresa'!O:O) -> 0 | E176: =SUMIF('Balance Empresa'!$K:$K,BC_PCGEmpresarial!$B176,'Balance Empresa'!P:P) -> 3783 | F176: =SUMIF('Balance Empresa'!$K:$K,BC_PCGEmpresarial!$B176,'Balance Empresa'!Q:Q) -> 10539 | G176: 184945 | H176: 10539 | I176: 174406 | J176: 0 | O176: 174406 | P176: 0
A177: 17125 | B177: 17125. Préstamos - Sin garantía - Otros | C177: =SUMIF('Balance Empresa'!$K:$K,BC_PCGEmpresarial!$B177,'Balance Empresa'!N:N) -> 0 | D177: =SUMIF('Balance Empresa'!$K:$K,BC_PCGEmpresarial!$B177,'Balance Empresa'!O:O) -> 0 | E177: =SUMIF('Balance Empresa'!$K:$K,BC_PCGEmpresarial!$B177,'Balance Empresa'!P:P) -> 0 | F177: =SUMIF('Balance Empresa'!$K:$K,BC_PCGEmpresarial!$B177,'Balance Empresa'!Q:Q) -> 0 | G177: 0 | H177: 0 | I177: 0 | J177: 0 | O177: 0 | P177: 0
A178: 17311 | B178: 17311. Intereses, regalías y dividendos - Intereses - Matriz | C178: =SUMIF('Balance Empresa'!$K:$K,BC_PCGEmpresarial!$B178,'Balance Empresa'!N:N) -> 0 | D178: =SUMIF('Balance Empresa'!$K:$K,BC_PCGEmpresarial!$B178,'Balance Empresa'!O:O) -> 0 | E178: =SUMIF('Balance Empresa'!$K:$K,BC_PCGEmpresarial!$B178,'Balance Empresa'!P:P) -> 0 | F178: =SUMIF('Balance Empresa'!$K:$K,BC_PCGEmpresarial!$B178,'Balance Empresa'!Q:Q) -> 0 | G178: 0 | H178: 0 | I178: 0 | J178: 0 | O178: 0 | P178: 0
A179: 17312 | B179: 17312. Intereses, regalías y dividendos - Intereses - Subsidiarias | C179: =SUMIF('Balance Empresa'!$K:$K,BC_PCGEmpresarial!$B179,'Balance Empresa'!N:N) -> 0 | D179: =SUMIF('Balance Empresa'!$K:$K,BC_PCGEmpresarial!$B179,'Balance Empresa'!O:O) -> 0 | E179: =SUMIF('Balance Empresa'!$K:$K,BC_PCGEmpresarial!$B179,'Balance Empresa'!P:P) -> 0 | F179: =SUMIF('Balance Empresa'!$K:$K,BC_PCGEmpresarial!$B179,'Balance Empresa'!Q:Q) -> 0 | G179: 0 | H179: 0 | I179: 0 | J179: 0 | O179: 0 | P179: 0
A180: 17313 | B180: 17313. Intereses, regalías y dividendos - Intereses - Asociadas | C180: =SUMIF('Balance Empresa'!$K:$K,BC_PCGEmpresarial!$B180,'Balance Empresa'!N:N) -> 0 | D180: =SUMIF('Balance Empresa'!$K:$K,BC_PCGEmpresarial!$B180,'Balance Empresa'!O:O) -> 0 | E180: =SUMIF('Balance Empresa'!$K:$K,BC_PCGEmpresarial!$B180,'Balance Empresa'!P:P) -> 0 | F180: =SUMIF('Balance Empresa'!$K:$K,BC_PCGEmpresarial!$B180,'Balance Empresa'!Q:Q) -> 0 | G180: 0 | H180: 0 | I180: 0 | J180: 0 | O180: 0 | P180: 0
A181: 17314 | B181: 17314. Intereses, regalías y dividendos - Intereses - Sucursales | C181: =SUMIF('Balance Empresa'!$K:$K,BC_PCGEmpresarial!$B181,'Balance Empresa'!N:N) -> 22669 | D181: =SUMIF('Balance Empresa'!$K:$K,BC_PCGEmpresarial!$B181,'Balance Empresa'!O:O) -> 0 | E181: =SUMIF('Balance Empresa'!$K:$K,BC_PCGEmpresarial!$B181,'Balance Empresa'!P:P) -> 773 | F181: =SUMIF('Balance Empresa'!$K:$K,BC_PCGEmpresarial!$B181,'Balance Empresa'!Q:Q) -> 1332 | G181: 23442 | H181: 1332 | I181: 22110 | J181: 0 | O181: 22110 | P181: 0
A182: 17315 | B182: 17315. Intereses, regalías y dividendos - Intereses - Otros | C182: =SUMIF('Balance Empresa'!$K:$K,BC_PCGEmpresarial!$B182,'Balance Empresa'!N:N) -> 0 | D182: =SUMIF('Balance Empresa'!$K:$K,BC_PCGEmpresarial!$B182,'Balance Empresa'!O:O) -> 0 | E182: =SUMIF('Balance Empresa'!$K:$K,BC_PCGEmpresarial!$B182,'Balance Empresa'!P:P) -> 0 | F182: =SUMIF('Balance Empresa'!$K:$K,BC_PCGEmpresarial!$B182,'Balance Empresa'!Q:Q) -> 0 | G182: 0 | H182: 0 | I182: 0 | J182: 0 | O182: 0 | P182: 0
A183: 17321 | B183: 17321. Intereses, regalías y dividendos - Regalías - Matriz | C183: =SUMIF('Balance Empresa'!$K:$K,BC_PCGEmpresarial!$B183,'Balance Empresa'!N:N) -> 0 | D183: =SUMIF('Balance Empresa'!$K:$K,BC_PCGEmpresarial!$B183,'Balance Empresa'!O:O) -> 0 | E183: =SUMIF('Balance Empresa'!$K:$K,BC_PCGEmpresarial!$B183,'Balance Empresa'!P:P) -> 0 | F183: =SUMIF('Balance Empresa'!$K:$K,BC_PCGEmpresarial!$B183,'Balance Empresa'!Q:Q) -> 0 | G183: 0 | H183: 0 | I183: 0 | J183: 0 | O183: 0 | P183: 0
A184: 17322 | B184: 17322. Intereses, regalías y dividendos - Regalías - Subsidiarias | C184: =SUMIF('Balance Empresa'!$K:$K,BC_PCGEmpresarial!$B184,'Balance Empresa'!N:N) -> 0 | D184: =SUMIF('Balance Empresa'!$K:$K,BC_PCGEmpresarial!$B184,'Balance Empresa'!O:O) -> 0 | E184: =SUMIF('Balance Empresa'!$K:$K,BC_PCGEmpresarial!$B184,'Balance Empresa'!P:P) -> 0 | F184: =SUMIF('Balance Empresa'!$K:$K,BC_PCGEmpresarial!$B184,'Balance Empresa'!Q:Q) -> 0 | G184: 0 | H184: 0 | I184: 0 | J184: 0 | O184: 0 | P184: 0
A185: 17323 | B185: 17323. Intereses, regalías y dividendos - Regalías - Asociadas | C185: =SUMIF('Balance Empresa'!$K:$K,BC_PCGEmpresarial!$B185,'Balance Empresa'!N:N) -> 0 | D185: =SUMIF('Balance Empresa'!$K:$K,BC_PCGEmpresarial!$B185,'Balance Empresa'!O:O) -> 0 | E185: =SUMIF('Balance Empresa'!$K:$K,BC_PCGEmpresarial!$B185,'Balance Empresa'!P:P) -> 0 | F185: =SUMIF('Balance Empresa'!$K:$K,BC_PCGEmpresarial!$B185,'Balance Empresa'!Q:Q) -> 0 | G185: 0 | H185: 0 | I185: 0 | J185: 0 | O185: 0 | P185: 0
A186: 17324 | B186: 17324. Intereses, regalías y dividendos - Regalías - Sucursales | C186: =SUMIF('Balance Empresa'!$K:$K,BC_PCGEmpresarial!$B186,'Balance Empresa'!N:N) -> 0 | D186: =SUMIF('Balance Empresa'!$K:$K,BC_PCGEmpresarial!$B186,'Balance Empresa'!O:O) -> 0 | E186: =SUMIF('Balance Empresa'!$K:$K,BC_PCGEmpresarial!$B186,'Balance Empresa'!P:P) -> 0 | F186: =SUMIF('Balance Empresa'!$K:$K,BC_PCGEmpresarial!$B186,'Balance Empresa'!Q:Q) -> 0 | G186: 0 | H186: 0 | I186: 0 | J186: 0 | O186: 0 | P186: 0
A187: 17325 | B187: 17325. Intereses, regalías y dividendos - Regalías - Otros | C187: =SUMIF('Balance Empresa'!$K:$K,BC_PCGEmpresarial!$B187,'Balance Empresa'!N:N) -> 0 | D187: =SUMIF('Balance Empresa'!$K:$K,BC_PCGEmpresarial!$B187,'Balance Empresa'!O:O) -> 0 | E187: =SUMIF('Balance Empresa'!$K:$K,BC_PCGEmpresarial!$B187,'Balance Empresa'!P:P) -> 0 | F187: =SUMIF('Balance Empresa'!$K:$K,BC_PCGEmpresarial!$B187,'Balance Empresa'!Q:Q) -> 0 | G187: 0 | H187: 0 | I187: 0 | J187: 0 | O187: 0 | P187: 0
A188: 17331 | B188: 17331. Intereses, regalías y dividendos - Dividendos - Matriz | C188: =SUMIF('Balance Empresa'!$K:$K,BC_PCGEmpresarial!$B188,'Balance Empresa'!N:N) -> 868757 | D188: =SUMIF('Balance Empresa'!$K:$K,BC_PCGEmpresarial!$B188,'Balance Empresa'!O:O) -> 0 | E188: =SUMIF('Balance Empresa'!$K:$K,BC_PCGEmpresarial!$B188,'Balance Empresa'!P:P) -> 9905 | F188: =SUMIF('Balance Empresa'!$K:$K,BC_PCGEmpresarial!$B188,'Balance Empresa'!Q:Q) -> 0 | G188: 878662 | H188: 0 | I188: 878662 | J188: 0 | O188: 878662 | P188: 0
A189: 17332 | B189: 17332. Intereses, regalías y dividendos - Dividendos - Subsidiarias | C189: =SUMIF('Balance Empresa'!$K:$K,BC_PCGEmpresarial!$B189,'Balance Empresa'!N:N) -> 0 | D189: =SUMIF('Balance Empresa'!$K:$K,BC_PCGEmpresarial!$B189,'Balance Empresa'!O:O) -> 0 | E189: =SUMIF('Balance Empresa'!$K:$K,BC_PCGEmpresarial!$B189,'Balance Empresa'!P:P) -> 0 | F189: =SUMIF('Balance Empresa'!$K:$K,BC_PCGEmpresarial!$B189,'Balance Empresa'!Q:Q) -> 0 | G189: 0 | H189: 0 | I189: 0 | J189: 0 | O189: 0 | P189: 0
A190: 17333 | B190: 17333. Intereses, regalías y dividendos - Dividendos - Asociadas | C190: =SUMIF('Balance Empresa'!$K:$K,BC_PCGEmpresarial!$B190,'Balance Empresa'!N:N) -> 329723 | D190: =SUMIF('Balance Empresa'!$K:$K,BC_PCGEmpresarial!$B190,'Balance Empresa'!O:O) -> 0 | E190: =SUMIF('Balance Empresa'!$K:$K,BC_PCGEmpresarial!$B190,'Balance Empresa'!P:P) -> 6886 | F190: =SUMIF('Balance Empresa'!$K:$K,BC_PCGEmpresarial!$B190,'Balance Empresa'!Q:Q) -> 19181 | G190: 336609 | H190: 19181 | I190: 317428 | J190: 0 | O190: 317428 | P190: 0
A191: 17334 | B191: 17334. Intereses, regalías y dividendos - Dividendos - Otros | C191: =SUMIF('Balance Empresa'!$K:$K,BC_PCGEmpresarial!$B191,'Balance Empresa'!N:N) -> 30778 | D191: =SUMIF('Balance Empresa'!$K:$K,BC_PCGEmpresarial!$B191,'Balance Empresa'!O:O) -> 0 | E191: =SUMIF('Balance Empresa'!$K:$K,BC_PCGEmpresarial!$B191,'Balance Empresa'!P:P) -> 0 | F191: =SUMIF('Balance Empresa'!$K:$K,BC_PCGEmpresarial!$B191,'Balance Empresa'!Q:Q) -> 0 | G191: 30778 | H191: 0 | I191: 30778 | J191: 0 | O191: 30778 | P191: 0
A192: 174 | B192: 174. Depósitos otorgados en garantía | C192: =SUMIF('Balance Empresa'!$K:$K,BC_PCGEmpresarial!$B192,'Balance Empresa'!N:N) -> 0 | D192: =SUMIF('Balance Empresa'!$K:$K,BC_PCGEmpresarial!$B192,'Balance Empresa'!O:O) -> 0 | E192: =SUMIF('Balance Empresa'!$K:$K,BC_PCGEmpresarial!$B192,'Balance Empresa'!P:P) -> 0 | F192: =SUMIF('Balance Empresa'!$K:$K,BC_PCGEmpresarial!$B192,'Balance Empresa'!Q:Q) -> 0 | G192: 0 | H192: 0 | I192: 0 | J192: 0 | O192: 0 | P192: 0
A193: 1751 | B193: 1751. Venta de activo inmovilizado - Inversión mobiliaria | C193: =SUMIF('Balance Empresa'!$K:$K,BC_PCGEmpresarial!$B193,'Balance Empresa'!N:N) -> 0 | D193: =SUMIF('Balance Empresa'!$K:$K,BC_PCGEmpresarial!$B193,'Balance Empresa'!O:O) -> 0 | E193: =SUMIF('Balance Empresa'!$K:$K,BC_PCGEmpresarial!$B193,'Balance Empresa'!P:P) -> 0 | F193: =SUMIF('Balance Empresa'!$K:$K,BC_PCGEmpresarial!$B193,'Balance Empresa'!Q:Q) -> 0 | G193: 0 | H193: 0 | I193: 0 | J193: 0 | O193: 0 | P193: 0
A194: 1752 | B194: 1752. Venta de activo inmovilizado - Inversión inmobiliaria | C194: =SUMIF('Balance Empresa'!$K:$K,BC_PCGEmpresarial!$B194,'Balance Empresa'!N:N) -> 0 | D194: =SUMIF('Balance Empresa'!$K:$K,BC_PCGEmpresarial!$B194,'Balance Empresa'!O:O) -> 0 | E194: =SUMIF('Balance Empresa'!$K:$K,BC_PCGEmpresarial!$B194,'Balance Empresa'!P:P) -> 0 | F194: =SUMIF('Balance Empresa'!$K:$K,BC_PCGEmpresarial!$B194,'Balance Empresa'!Q:Q) -> 0 | G194: 0 | H194: 0 | I194: 0 | J194: 0 | O194: 0 | P194: 0
A195: 1753 | B195: 1753. Venta de activo inmovilizado - Inmuebles, maquinaria y equipo | C195: =SUMIF('Balance Empresa'!$K:$K,BC_PCGEmpresarial!$B195,'Balance Empresa'!N:N) -> 0 | D195: =SUMIF('Balance Empresa'!$K:$K,BC_PCGEmpresarial!$B195,'Balance Empresa'!O:O) -> 0 | E195: =SUMIF('Balance Empresa'!$K:$K,BC_PCGEmpresarial!$B195,'Balance Empresa'!P:P) -> 0 | F195: =SUMIF('Balance Empresa'!$K:$K,BC_PCGEmpresarial!$B195,'Balance Empresa'!Q:Q) -> 0 | G195: 0 | H195: 0 | I195: 0 | J195: 0 | O195: 0 | P195: 0
A196: 1754 | B196: 1754. Venta de activo inmovilizado - Intangibles | C196: =SUMIF('Balance Empresa'!$K:$K,BC_PCGEmpresarial!$B196,'Balance Empresa'!N:N) -> 0 | D196: =SUMIF('Balance Empresa'!$K:$K,BC_PCGEmpresarial!$B196,'Balance Empresa'!O:O) -> 0 | E196: =SUMIF('Balance Empresa'!$K:$K,BC_PCGEmpresarial!$B196,'Balance Empresa'!P:P) -> 0 | F196: =SUMIF('Balance Empresa'!$K:$K,BC_PCGEmpresarial!$B196,'Balance Empresa'!Q:Q) -> 0 | G196: 0 | H196: 0 | I196: 0 | J196: 0 | O196: 0 | P196: 0
A197: 1755 | B197: 1755. Venta de activo inmovilizado - Activos biológicos | C197: =SUMIF('Balance Empresa'!$K:$K,BC_PCGEmpresarial!$B197,'Balance Empresa'!N:N) -> 0 | D197: =SUMIF('Balance Empresa'!$K:$K,BC_PCGEmpresarial!$B197,'Balance Empresa'!O:O) -> 0 | E197: =SUMIF('Balance Empresa'!$K:$K,BC_PCGEmpresarial!$B197,'Balance Empresa'!P:P) -> 0 | F197: =SUMIF('Balance Empresa'!$K:$K,BC_PCGEmpresarial!$B197,'Balance Empresa'!Q:Q) -> 0 | G197: 0 | H197: 0 | I197: 0 | J197: 0 | O197: 0 | P197: 0
A198: 176 | B198: 176. Activos por instrumentos financieros | C198: =SUMIF('Balance Empresa'!$K:$K,BC_PCGEmpresarial!$B198,'Balance Empresa'!N:N) -> 0 | D198: =SUMIF('Balance Empresa'!$K:$K,BC_PCGEmpresarial!$B198,'Balance Empresa'!O:O) -> 0 | E198: =SUMIF('Balance Empresa'!$K:$K,BC_PCGEmpresarial!$B198,'Balance Empresa'!P:P) -> 0 | F198: =SUMIF('Balance Empresa'!$K:$K,BC_PCGEmpresarial!$B198,'Balance Empresa'!Q:Q) -> 0 | G198: 0 | H198: 0 | I198: 0 | J198: 0 | O198: 0 | P198: 0
A199: 178 | B199: 178. Otras cuentas por cobrar diversas | C199: =SUMIF('Balance Empresa'!$K:$K,BC_PCGEmpresarial!$B199,'Balance Empresa'!N:N) -> 0 | D199: =SUMIF('Balance Empresa'!$K:$K,BC_PCGEmpresarial!$B199,'Balance Empresa'!O:O) -> 0 | E199: =SUMIF('Balance Empresa'!$K:$K,BC_PCGEmpresarial!$B199,'Balance Empresa'!P:P) -> 0 | F199: =SUMIF('Balance Empresa'!$K:$K,BC_PCGEmpresarial!$B199,'Balance Empresa'!Q:Q) -> 0 | G199: 0 | H199: 0 | I199: 0 | J199: 0 | O199: 0 | P199: 0
A200: 181 | B200: 181. Costos financieros | C200: =SUMIF('Balance Empresa'!$K:$K,BC_PCGEmpresarial!$B200,'Balance Empresa'!N:N) -> 6577 | D200: =SUMIF('Balance Empresa'!$K:$K,BC_PCGEmpresarial!$B200,'Balance Empresa'!O:O) -> 0 | E200: =SUMIF('Balance Empresa'!$K:$K,BC_PCGEmpresarial!$B200,'Balance Empresa'!P:P) -> 23422 | F200: =SUMIF('Balance Empresa'!$K:$K,BC_PCGEmpresarial!$B200,'Balance Empresa'!Q:Q) -> 27871 | G200: 29999 | H200: 27871 | I200: =IF($G200-$H200>=0,$G200-$H200,0) -> 2128 | J200: =IF($G200-$H200<0,-$G200+$H200,0) -> 0 | O200: 2128 | P200: 0
A201: 182 | B201: 182. Seguros | C201: =SUMIF('Balance Empresa'!$K:$K,BC_PCGEmpresarial!$B201,'Balance Empresa'!N:N) -> 13672 | D201: =SUMIF('Balance Empresa'!$K:$K,BC_PCGEmpresarial!$B201,'Balance Empresa'!O:O) -> 0 | E201: =SUMIF('Balance Empresa'!$K:$K,BC_PCGEmpresarial!$B201,'Balance Empresa'!P:P) -> 14508 | F201: =SUMIF('Balance Empresa'!$K:$K,BC_PCGEmpresarial!$B201,'Balance Empresa'!Q:Q) -> 21430 | G201: 28180 | H201: 21430 | I201: 6750 | J201: 0 | O201: =IF($I201-$J201+$K201-$L201+$M201-$N201>=0,$I201-$J201+$K201-$L201+$M201-$N201,0) -> 6750 | P201: =IF($I201-$J201+$K201-$L201+$M201-$N201<0,-($I201-$J201+$K201-$L201+$M201-$N201),0) -> 0
A202: 183 | B202: 183. Alquileres | C202: =SUMIF('Balance Empresa'!$K:$K,BC_PCGEmpresarial!$B202,'Balance Empresa'!N:N) -> 0 | D202: =SUMIF('Balance Empresa'!$K:$K,BC_PCGEmpresarial!$B202,'Balance Empresa'!O:O) -> 0 | E202: =SUMIF('Balance Empresa'!$K:$K,BC_PCGEmpresarial!$B202,'Balance Empresa'!P:P) -> 0 | F202: =SUMIF('Balance Empresa'!$K:$K,BC_PCGEmpresarial!$B202,'Balance Empresa'!Q:Q) -> 0 | G202: 0 | H202: 0 | I202: 0 | J202: 0 | O202: 0 | P202: 0
A203: 184 | B203: 184. Primas pagadas por opciones | C203: =SUMIF('Balance Empresa'!$K:$K,BC_PCGEmpresarial!$B203,'Balance Empresa'!N:N) -> 0 | D203: =SUMIF('Balance Empresa'!$K:$K,BC_PCGEmpresarial!$B203,'Balance Empresa'!O:O) -> 0 | E203: =SUMIF('Balance Empresa'!$K:$K,BC_PCGEmpresarial!$B203,'Balance Empresa'!P:P) -> 0 | F203: =SUMIF('Balance Empresa'!$K:$K,BC_PCGEmpresarial!$B203,'Balance Empresa'!Q:Q) -> 0 | G203: 0 | H203: 0 | I203: 0 | J203: 0 | O203: 0 | P203: 0
A204: 185 | B204: 185. Mantenimiento de activos inmovilizados | C204: =SUMIF('Balance Empresa'!$K:$K,BC_PCGEmpresarial!$B204,'Balance Empresa'!N:N) -> 0 | D204: =SUMIF('Balance Empresa'!$K:$K,BC_PCGEmpresarial!$B204,'Balance Empresa'!O:O) -> 0 | E204: =SUMIF('Balance Empresa'!$K:$K,BC_PCGEmpresarial!$B204,'Balance Empresa'!P:P) -> 0 | F204: =SUMIF('Balance Empresa'!$K:$K,BC_PCGEmpresarial!$B204,'Balance Empresa'!Q:Q) -> 0 | G204: 0 | H204: 0 | I204: 0 | J204: 0 | O204: 0 | P204: 0
A205: 189 | B205: 189. Otros gastos contratados por anticipado | C205: =SUMIF('Balance Empresa'!$K:$K,BC_PCGEmpresarial!$B205,'Balance Empresa'!N:N) -> 296444 | D205: =SUMIF('Balance Empresa'!$K:$K,BC_PCGEmpresarial!$B205,'Balance Empresa'!O:O) -> 0 | E205: =SUMIF('Balance Empresa'!$K:$K,BC_PCGEmpresarial!$B205,'Balance Empresa'!P:P) -> 23533 | F205: =SUMIF('Balance Empresa'!$K:$K,BC_PCGEmpresarial!$B205,'Balance Empresa'!Q:Q) -> 179319 | G205: 319977 | H205: 179319 | I205: 140658 | J205: 0 | O205: 140658 | P205: 0
... 1090 more rows

Sheet Balance Empresa (hidden)
C1: EXCEL NO CONVENCIONAL
C2: www.excelnoconvencional.pe
C3: informes@excelnoconvencional.pe
C4: Whatsapp 998401784
B6: CUENTA | C6: NOMBRE DE CUENTA | D6: SI DEBE1 | E6: SI HABER1 | F6: MOV DEBE1 | G6: MOV HABER1 | H6: SALDO1 | I6: XCODIGO REEMP | J6: XCODIGO | K6: CUENTA EQUIVALENTE SUNAT | L6: XAJ POSICION | M6: XAJ IMPORTE | N6: SI DEBE2 | O6: SI HABER2 | P6: MOV DEBE2 | Q6: MOV HABER2 | R6: SALDO2 | S6: CASILLA | T6: NOMBRE CASILLA | V6: CUENTA | W6: CASILLA
B7: 101101 | C7: CAJA M.N.. | D7: 0.00 | E7: 0.00 | F7: 352.05 | G7: 370.04 | H7: =IF('Balance Empresa'!$B7<>"",SUM('Balance Empresa'!$D7,-'Balance Empresa'!$E7,'Balance Empresa'!$F7,-'Balance Empresa'!$G7),"") -> -17.99 | J7: =IF(AND('Balance Empresa'!$B7<>"",IFERROR(VALUE(LEFT('Balance Empresa'!$B7,2)),FALSE)<>79),LEFT('Balance Empresa'!$B7,VLOOKUP('Balance Empresa'!$B7,t.caracter[],2)),"") -> 101 | K7: =IF(OR(TODAY()>r.real,'Balance Empresa'!$J7=""),"",IF(LEFT('Balance Empresa'!$J7)="9",'Balance Empresa'!$B7&". "&'Balance Empresa'!$C7,VLOOKUP(IF('Balance Empresa'!$I7<>"",'Balance Empresa'!$I7&"",'Balance Empresa'!$J7),BC_PCGEmpresarial!$A:$B,2,0))) -> 101. Caja | N7: =IF($J7="","",ROUND(D7,0)+IF($L7=N$6,$M7,0)) -> 0.00 | O7: =IF($J7="","",ROUND(E7,0)+IF($L7=O$6,$M7,0)) -> 0.00 | P7: =IF($J7="","",ROUND(F7,0)+IF($L7=P$6,$M7,0)) -> 352.00 | Q7: =IF($J7="","",ROUND(G7,0)+IF($L7=Q$6,$M7,0)) -> 370.00 | R7: =IF($J7="","",SUM(N7,-O7,P7,-Q7)) -> -18.00 | S7: =IF(OR(TODAY()>r.real,'Balance Empresa'!$J7=""),"",IF(VLOOKUP('Balance Empresa'!$K7,t.casillas[],2)=0,"",VLOOKUP('Balance Empresa'!$K7,t.casillas[],2))) -> 359 | T7: =IF(OR('Balance Empresa'!$S7={"",0}),"",VLOOKUP(S7,t.codigos[],2)) -> Caja y bancos | V7: 101 | W7: 359
B8: 102101 | C8: FONDOS FIJOS M.N | D8: 1,707.88 | E8: 0.00 | F8: 0.00 | G8: 0.00 | H8: =IF('Balance Empresa'!$B8<>"",SUM('Balance Empresa'!$D8,-'Balance Empresa'!$E8,'Balance Empresa'!$F8,-'Balance Empresa'!$G8),"") -> 1,707.88 | J8: =IF(AND('Balance Empresa'!$B8<>"",IFERROR(VALUE(LEFT('Balance Empresa'!$B8,2)),FALSE)<>79),LEFT('Balance Empresa'!$B8,VLOOKUP('Balance Empresa'!$B8,t.caracter[],2)),"") -> 102 | K8: =IF(OR(TODAY()>r.real,'Balance Empresa'!$J8=""),"",IF(LEFT('Balance Empresa'!$J8)="9",'Balance Empresa'!$B8&". "&'Balance Empresa'!$C8,VLOOKUP(IF('Balance Empresa'!$I8<>"",'Balance Empresa'!$I8&"",'Balance Empresa'!$J8),BC_PCGEmpresarial!$A:$B,2,0))) -> 102. Fondos fijos | N8: 1,708.00 | O8: 0.00 | P8: 0.00 | Q8: 0.00 | R8: =IF($J8="","",SUM(N8,-O8,P8,-Q8)) -> 1,708.00 | S8: =IF(OR(TODAY()>r.real,'Balance Empresa'!$J8=""),"",IF(VLOOKUP('Balance Empresa'!$K8,t.casillas[],2)=0,"",VLOOKUP('Balance Empresa'!$K8,t.casillas[],2))) -> 359 | T8: =IF(OR('Balance Empresa'!$S8={"",0}),"",VLOOKUP(S8,t.codigos[],2)) -> Caja y bancos | V8: 102 | W8: 359
B9: 104111 | C9: BBVAL M.N. CTA CTE | D9: 396.70 | E9: 0.00 | F9: 1,158,365.79 | G9: 1,145,053.85 | H9: =IF('Balance Empresa'!$B9<>"",SUM('Balance Empresa'!$D9,-'Balance Empresa'!$E9,'Balance Empresa'!$F9,-'Balance Empresa'!$G9),"") -> 13,708.64 | J9: =IF(AND('Balance Empresa'!$B9<>"",IFERROR(VALUE(LEFT('Balance Empresa'!$B9,2)),FALSE)<>79),LEFT('Balance Empresa'!$B9,VLOOKUP('Balance Empresa'!$B9,t.caracter[],2)),"") -> 1041 | K9: =IF(OR(TODAY()>r.real,'Balance Empresa'!$J9=""),"",IF(LEFT('Balance Empresa'!$J9)="9",'Balance Empresa'!$B9&". "&'Balance Empresa'!$C9,VLOOKUP(IF('Balance Empresa'!$I9<>"",'Balance Empresa'!$I9&"",'Balance Empresa'!$J9),BC_PCGEmpresarial!$A:$B,2,0))) -> 1041. Cuentas corrientes en instituciones financieras - Cuentas corrientes operativas | N9: 397.00 | O9: 0.00 | P9: 1,158,366.00 | Q9: 1,145,054.00 | R9: 13,709.00 | S9: =IF(OR(TODAY()>r.real,'Balance Empresa'!$J9=""),"",IF(VLOOKUP('Balance Empresa'!$K9,t.casillas[],2)=0,"",VLOOKUP('Balance Empresa'!$K9,t.casillas[],2))) -> 359 | T9: =IF(OR('Balance Empresa'!$S9={"",0}),"",VLOOKUP(S9,t.codigos[],2)) -> Caja y bancos | V9: 103 | W9: 359
B10: 104112 | C10: BBVA M.E. CTA CTE | D10: 330.52 | E10: 0.00 | F10: 475,362.30 | G10: 475,257.07 | H10: =IF('Balance Empresa'!$B10<>"",SUM('Balance Empresa'!$D10,-'Balance Empresa'!$E10,'Balance Empresa'!$F10,-'Balance Empresa'!$G10),"") -> 435.74 | J10: =IF(AND('Balance Empresa'!$B10<>"",IFERROR(VALUE(LEFT('Balance Empresa'!$B10,2)),FALSE)<>79),LEFT('Balance Empresa'!$B10,VLOOKUP('Balance Empresa'!$B10,t.caracter[],2)),"") -> 1041 | K10: =IF(OR(TODAY()>r.real,'Balance Empresa'!$J10=""),"",IF(LEFT('Balance Empresa'!$J10)="9",'Balance Empresa'!$B10&". "&'Balance Empresa'!$C10,VLOOKUP(IF('Balance Empresa'!$I10<>"",'Balance Empresa'!$I10&"",'Balance Empresa'!$J10),BC_PCGEmpresarial!$A:$B,2,0))) -> 1041. Cuentas corrientes en instituciones financieras - Cuentas corrientes operativas | N10: 331.00 | O10: 0.00 | P10: 475,362.00 | Q10: 475,257.00 | R10: 436.00 | S10: =IF(OR(TODAY()>r.real,'Balance Empresa'!$J10=""),"",IF(VLOOKUP('Balance Empresa'!$K10,t.casillas[],2)=0,"",VLOOKUP('Balance Empresa'!$K10,t.casillas[],2))) -> 359 | T10: =IF(OR('Balance Empresa'!$S10={"",0}),"",VLOOKUP(S10,t.codigos[],2)) -> Caja y bancos | V10: 104 | W10: 359
B11: 104121 | C11: SCOTIABANK M.N. CTA CTE | D11: 2,108.43 | E11: 0.00 | F11: 108,905.55 | G11: 110,941.86 | H11: =IF('Balance Empresa'!$B11<>"",SUM('Balance Empresa'!$D11,-'Balance Empresa'!$E11,'Balance Empresa'!$F11,-'Balance Empresa'!$G11),"") -> 72.12 | J11: =IF(AND('Balance Empresa'!$B11<>"",IFERROR(VALUE(LEFT('Balance Empresa'!$B11,2)),FALSE)<>79),LEFT('Balance Empresa'!$B11,VLOOKUP('Balance Empresa'!$B11,t.caracter[],2)),"") -> 1041 | K11: =IF(OR(TODAY()>r.real,'Balance Empresa'!$J11=""),"",IF(LEFT('Balance Empresa'!$J11)="9",'Balance Empresa'!$B11&". "&'Balance Empresa'!$C11,VLOOKUP(IF('Balance Empresa'!$I11<>"",'Balance Empresa'!$I11&"",'Balance Empresa'!$J11),BC_PCGEmpresarial!$A:$B,2,0))) -> 1041. Cuentas corrientes en instituciones financieras - Cuentas corrientes operativas | N11: 2,108.00 | O11: 0.00 | P11: 108,906.00 | Q11: 110,942.00 | R11: 72.00 | S11: =IF(OR(TODAY()>r.real,'Balance Empresa'!$J11=""),"",IF(VLOOKUP('Balance Empresa'!$K11,t.casillas[],2)=0,"",VLOOKUP('Balance Empresa'!$K11,t.casillas[],2))) -> 359 | T11: =IF(OR('Balance Empresa'!$S11={"",0}),"",VLOOKUP(S11,t.codigos[],2)) -> Caja y bancos | V11: 105 | W11: 359
B12: 104122 | C12: SCOTIANBAK M.E.CTA CTE | D12: 208.54 | E12: 0.00 | F12: 353.73 | G12: 358.02 | H12: =IF('Balance Empresa'!$B12<>"",SUM('Balance Empresa'!$D12,-'Balance Empresa'!$E12,'Balance Empresa'!$F12,-'Balance Empresa'!$G12),"") -> 204.25 | J12: =IF(AND('Balance Empresa'!$B12<>"",IFERROR(VALUE(LEFT('Balance Empresa'!$B12,2)),FALSE)<>79),LEFT('Balance Empresa'!$B12,VLOOKUP('Balance Empresa'!$B12,t.caracter[],2)),"") -> 1041 | K12: =IF(OR(TODAY()>r.real,'Balance Empresa'!$J12=""),"",IF(LEFT('Balance Empresa'!$J12)="9",'Balance Empresa'!$B12&". "&'Balance Empresa'!$C12,VLOOKUP(IF('Balance Empresa'!$I12<>"",'Balance Empresa'!$I12&"",'Balance Empresa'!$J12),BC_PCGEmpresarial!$A:$B,2,0))) -> 1041. Cuentas corrientes en instituciones financieras - Cuentas corrientes operativas | N12: 209.00 | O12: 0.00 | P12: 354.00 | Q12: 358.00 | R12: 205.00 | S12: =IF(OR(TODAY()>r.real,'Balance Empresa'!$J12=""),"",IF(VLOOKUP('Balance Empresa'!$K12,t.casillas[],2)=0,"",VLOOKUP('Balance Empresa'!$K12,t.casillas[],2))) -> 359 | T12: =IF(OR('Balance Empresa'!$S12={"",0}),"",VLOOKUP(S12,t.codigos[],2)) -> Caja y bancos | V12: 106 | W12: 359
B13: 104131 | C13: INTERBANK M.N. CTA CTE | D13: 234.06 | E13: 0.00 | F13: 25,383.11 | G13: 25,472.08 | H13: =IF('Balance Empresa'!$B13<>"",SUM('Balance Empresa'!$D13,-'Balance Empresa'!$E13,'Balance Empresa'!$F13,-'Balance Empresa'!$G13),"") -> 145.09 | J13: =IF(AND('Balance Empresa'!$B13<>"",IFERROR(VALUE(LEFT('Balance Empresa'!$B13,2)),FALSE)<>79),LEFT('Balance Empresa'!$B13,VLOOKUP('Balance Empresa'!$B13,t.caracter[],2)),"") -> 1041 | K13: =IF(OR(TODAY()>r.real,'Balance Empresa'!$J13=""),"",IF(LEFT('Balance Empresa'!$J13)="9",'Balance Empresa'!$B13&". "&'Balance Empresa'!$C13,VLOOKUP(IF('Balance Empresa'!$I13<>"",'Balance Empresa'!$I13&"",'Balance Empresa'!$J13),BC_PCGEmpresarial!$A:$B,2,0))) -> 1041. Cuentas corrientes en instituciones financieras - Cuentas corrientes operativas | N13: 234.00 | O13: 0.00 | P13: 25,383.00 | Q13: 25,472.00 | R13: 145.00 | S13: =IF(OR(TODAY()>r.real,'Balance Empresa'!$J13=""),"",IF(VLOOKUP('Balance Empresa'!$K13,t.casillas[],2)=0,"",VLOOKUP('Balance Empresa'!$K13,t.casillas[],2))) -> 359 | T13: =IF(OR('Balance Empresa'!$S13={"",0}),"",VLOOKUP(S13,t.codigos[],2)) -> Caja y bancos | V13: 107 | W13: 359
B14: 104132 | C14: INTERBANK M.E. CTA CTE | D14: 168.73 | E14: 0.00 | F14: 36,635.61 | G14: 36,560.46 | H14: =IF('Balance Empresa'!$B14<>"",SUM('Balance Empresa'!$D14,-'Balance Empresa'!$E14,'Balance Empresa'!$F14,-'Balance Empresa'!$G14),"") -> 243.87 | J14: =IF(AND('Balance Empresa'!$B14<>"",IFERROR(VALUE(LEFT('Balance Empresa'!$B14,2)),FALSE)<>79),LEFT('Balance Empresa'!$B14,VLOOKUP('Balance Empresa'!$B14,t.caracter[],2)),"") -> 1041 | K14: =IF(OR(TODAY()>r.real,'Balance Empresa'!$J14=""),"",IF(LEFT('Balance Empresa'!$J14)="9",'Balance Empresa'!$B14&". "&'Balance Empresa'!$C14,VLOOKUP(IF('Balance Empresa'!$I14<>"",'Balance Empresa'!$I14&"",'Balance Empresa'!$J14),BC_PCGEmpresarial!$A:$B,2,0))) -> 1041. Cuentas corrientes en instituciones financieras - Cuentas corrientes operativas | N14: 169.00 | O14: 0.00 | P14: 36,636.00 | Q14: 36,560.00 | R14: 245.00 | S14: =IF(OR(TODAY()>r.real,'Balance Empresa'!$J14=""),"",IF(VLOOKUP('Balance Empresa'!$K14,t.casillas[],2)=0,"",VLOOKUP('Balance Empresa'!$K14,t.casillas[],2))) -> 359 | T14: =IF(OR('Balance Empresa'!$S14={"",0}),"",VLOOKUP(S14,t.codigos[],2)) -> Caja y bancos | V14: 111 | W14: 360
B15: 104141 | C15: CTA DETRACCION | D15: 33,119.12 | E15: 0.00 | F15: 286,217.86 | G15: 214,899.38 | H15: =IF('Balance Empresa'!$B15<>"",SUM('Balance Empresa'!$D15,-'Balance Empresa'!$E15,'Balance Empresa'!$F15,-'Balance Empresa'!$G15),"") -> 104,437.60 | J15: =IF(AND('Balance Empresa'!$B15<>"",IFERROR(VALUE(LEFT('Balance Empresa'!$B15,2)),FALSE)<>79),LEFT('Balance Empresa'!$B15,VLOOKUP('Balance Empresa'!$B15,t.caracter[],2)),"") -> 1041 | K15: =IF(OR(TODAY()>r.real,'Balance Empresa'!$J15=""),"",IF(LEFT('Balance Empresa'!$J15)="9",'Balance Empresa'!$B15&". "&'Balance Empresa'!$C15,VLOOKUP(IF('Balance Empresa'!$I15<>"",'Balance Empresa'!$I15&"",'Balance Empresa'!$J15),BC_PCGEmpresarial!$A:$B,2,0))) -> 1041. Cuentas corrientes en instituciones financieras - Cuentas corrientes operativas | N15: 33,119.00 | O15: 0.00 | P15: 286,218.00 | Q15: 214,899.00 | R15: 104,438.00 | S15: =IF(OR(TODAY()>r.real,'Balance Empresa'!$J15=""),"",IF(VLOOKUP('Balance Empresa'!$K15,t.casillas[],2)=0,"",VLOOKUP('Balance Empresa'!$K15,t.casillas[],2))) -> 359 | T15: =IF(OR('Balance Empresa'!$S15={"",0}),"",VLOOKUP(S15,t.codigos[],2)) -> Caja y bancos | V15: 112 | W15: 360
B16: 104151 | C16: BCO. CREDITO M.N. | D16: 1,276.56 | E16: 0.00 | F16: 1,358,770.03 | G16: 1,350,028.12 | H16: =IF('Balance Empresa'!$B16<>"",SUM('Balance Empresa'!$D16,-'Balance Empresa'!$E16,'Balance Empresa'!$F16,-'Balance Empresa'!$G16),"") -> 10,018.46 | J16: =IF(AND('Balance Empresa'!$B16<>"",IFERROR(VALUE(LEFT('Balance Empresa'!$B16,2)),FALSE)<>79),LEFT('Balance Empresa'!$B16,VLOOKUP('Balance Empresa'!$B16,t.caracter[],2)),"") -> 1041 | K16: =IF(OR(TODAY()>r.real,'Balance Empresa'!$J16=""),"",IF(LEFT('Balance Empresa'!$J16)="9",'Balance Empresa'!$B16&". "&'Balance Empresa'!$C16,VLOOKUP(IF('Balance Empresa'!$I16<>"",'Balance Empresa'!$I16&"",'Balance Empresa'!$J16),BC_PCGEmpresarial!$A:$B,2,0))) -> 1041. Cuentas corrientes en instituciones financieras - Cuentas corrientes operativas | N16: 1,277.00 | O16: 0.00 | P16: 1,358,770.00 | Q16: 1,350,028.00 | R16: 10,019.00 | S16: =IF(OR(TODAY()>r.real,'Balance Empresa'!$J16=""),"",IF(VLOOKUP('Balance Empresa'!$K16,t.casillas[],2)=0,"",VLOOKUP('Balance Empresa'!$K16,t.casillas[],2))) -> 359 | T16: =IF(OR('Balance Empresa'!$S16={"",0}),"",VLOOKUP(S16,t.codigos[],2)) -> Caja y bancos | V16: 113 | W16: 360
B17: 104152 | C17: BCO DE CREDITO M.E. | D17: 47,061.78 | E17: 0.00 | F17: 836,910.07 | G17: 869,727.74 | H17: =IF('Balance Empresa'!$B17<>"",SUM('Balance Empresa'!$D17,-'Balance Empresa'!$E17,'Balance Empresa'!$F17,-'Balance Empresa'!$G17),"") -> 14,244.12 | J17: =IF(AND('Balance Empresa'!$B17<>"",IFERROR(VALUE(LEFT('Balance Empresa'!$B17,2)),FALSE)<>79),LEFT('Balance Empresa'!$B17,VLOOKUP('Balance Empresa'!$B17,t.caracter[],2)),"") -> 1041 | K17: =IF(OR(TODAY()>r.real,'Balance Empresa'!$J17=""),"",IF(LEFT('Balance Empresa'!$J17)="9",'Balance Empresa'!$B17&". "&'Balance Empresa'!$C17,VLOOKUP(IF('Balance Empresa'!$I17<>"",'Balance Empresa'!$I17&"",'Balance Empresa'!$J17),BC_PCGEmpresarial!$A:$B,2,0))) -> 1041. Cuentas corrientes en instituciones financieras - Cuentas corrientes operativas | N17: 47,062.00 | O17: 0.00 | P17: 836,910.00 | Q17: 869,728.00 | R17: 14,244.00 | S17: =IF(OR(TODAY()>r.real,'Balance Empresa'!$J17=""),"",IF(VLOOKUP('Balance Empresa'!$K17,t.casillas[],2)=0,"",VLOOKUP('Balance Empresa'!$K17,t.casillas[],2))) -> 359 | T17: =IF(OR('Balance Empresa'!$S17={"",0}),"",VLOOKUP(S17,t.codigos[],2)) -> Caja y bancos | V17: 121 | W17: 361
B18: 104161 | C18: BCO DE COMERCIO M.N. | D18: 27.95 | E18: 0.00 | F18: 199.25 | G18: 153.71 | H18: =IF('Balance Empresa'!$B18<>"",SUM('Balance Empresa'!$D18,-'Balance Empresa'!$E18,'Balance Empresa'!$F18,-'Balance Empresa'!$G18),"") -> 73.50 | J18: =IF(AND('Balance Empresa'!$B18<>"",IFERROR(VALUE(LEFT('Balance Empresa'!$B18,2)),FALSE)<>79),LEFT('Balance Empresa'!$B18,VLOOKUP('Balance Empresa'!$B18,t.caracter[],2)),"") -> 1041 | K18: =IF(OR(TODAY()>r.real,'Balance Empresa'!$J18=""),"",IF(LEFT('Balance Empresa'!$J18)="9",'Balance Empresa'!$B18&". "&'Balance Empresa'!$C18,VLOOKUP(IF('Balance Empresa'!$I18<>"",'Balance Empresa'!$I18&"",'Balance Empresa'!$J18),BC_PCGEmpresarial!$A:$B,2,0))) -> 1041. Cuentas corrientes en instituciones financieras - Cuentas corrientes operativas | N18: 28.00 | O18: 0.00 | P18: 199.00 | Q18: 154.00 | R18: 73.00 | S18: =IF(OR(TODAY()>r.real,'Balance Empresa'!$J18=""),"",IF(VLOOKUP('Balance Empresa'!$K18,t.casillas[],2)=0,"",VLOOKUP('Balance Empresa'!$K18,t.casillas[],2))) -> 359 | T18: =IF(OR('Balance Empresa'!$S18={"",0}),"",VLOOKUP(S18,t.codigos[],2)) -> Caja y bancos | V18: 122 | W18: 361
B19: 104162 | C19: BCO DE COMERCIO M.E. | D19: 99.82 | E19: 0.00 | F19: 167.13 | G19: 198.41 | H19: =IF('Balance Empresa'!$B19<>"",SUM('Balance Empresa'!$D19,-'Balance Empresa'!$E19,'Balance Empresa'!$F19,-'Balance Empresa'!$G19),"") -> 68.54 | J19: =IF(AND('Balance Empresa'!$B19<>"",IFERROR(VALUE(LEFT('Balance Empresa'!$B19,2)),FALSE)<>79),LEFT('Balance Empresa'!$B19,VLOOKUP('Balance Empresa'!$B19,t.caracter[],2)),"") -> 1041 | K19: =IF(OR(TODAY()>r.real,'Balance Empresa'!$J19=""),"",IF(LEFT('Balance Empresa'!$J19)="9",'Balance Empresa'!$B19&". "&'Balance Empresa'!$C19,VLOOKUP(IF('Balance Empresa'!$I19<>"",'Balance Empresa'!$I19&"",'Balance Empresa'!$J19),BC_PCGEmpresarial!$A:$B,2,0))) -> 1041. Cuentas corrientes en instituciones financieras - Cuentas corrientes operativas | N19: 100.00 | O19: 0.00 | P19: 167.00 | Q19: 198.00 | R19: 69.00 | S19: =IF(OR(TODAY()>r.real,'Balance Empresa'!$J19=""),"",IF(VLOOKUP('Balance Empresa'!$K19,t.casillas[],2)=0,"",VLOOKUP('Balance Empresa'!$K19,t.casillas[],2))) -> 359 | T19: =IF(OR('Balance Empresa'!$S19={"",0}),"",VLOOKUP(S19,t.codigos[],2)) -> Caja y bancos | V19: 123 | W19: 361
B20: 104171 | C20: BIF M.N. | D20: 72.62 | E20: 0.00 | F20: 20,096.08 | G20: 20,090.40 | H20: =IF('Balance Empresa'!$B20<>"",SUM('Balance Empresa'!$D20,-'Balance Empresa'!$E20,'Balance Empresa'!$F20,-'Balance Empresa'!$G20),"") -> 78.31 | J20: =IF(AND('Balance Empresa'!$B20<>"",IFERROR(VALUE(LEFT('Balance Empresa'!$B20,2)),FALSE)<>79),LEFT('Balance Empresa'!$B20,VLOOKUP('Balance Empresa'!$B20,t.caracter[],2)),"") -> 1041 | K20: =IF(OR(TODAY()>r.real,'Balance Empresa'!$J20=""),"",IF(LEFT('Balance Empresa'!$J20)="9",'Balance Empresa'!$B20&". "&'Balance Empresa'!$C20,VLOOKUP(IF('Balance Empresa'!$I20<>"",'Balance Empresa'!$I20&"",'Balance Empresa'!$J20),BC_PCGEmpresarial!$A:$B,2,0))) -> 1041. Cuentas corrientes en instituciones financieras - Cuentas corrientes operativas | N20: 73.00 | O20: 0.00 | P20: 20,096.00 | Q20: 20,090.00 | R20: 79.00 | S20: =IF(OR(TODAY()>r.real,'Balance Empresa'!$J20=""),"",IF(VLOOKUP('Balance Empresa'!$K20,t.casillas[],2)=0,"",VLOOKUP('Balance Empresa'!$K20,t.casillas[],2))) -> 359 | T20: =IF(OR('Balance Empresa'!$S20={"",0}),"",VLOOKUP(S20,t.codigos[],2)) -> Caja y bancos | V20: 131 | W20: 362
B21: 104172 | C21: BIF M.E. | D21: 247.88 | E21: 0.00 | F21: 5,483.66 | G21: 5,566.72 | H21: =IF('Balance Empresa'!$B21<>"",SUM('Balance Empresa'!$D21,-'Balance Empresa'!$E21,'Balance Empresa'!$F21,-'Balance Empresa'!$G21),"") -> 164.83 | J21: =IF(AND('Balance Empresa'!$B21<>"",IFERROR(VALUE(LEFT('Balance Empresa'!$B21,2)),FALSE)<>79),LEFT('Balance Empresa'!$B21,VLOOKUP('Balance Empresa'!$B21,t.caracter[],2)),"") -> 1041 | K21: =IF(OR(TODAY()>r.real,'Balance Empresa'!$J21=""),"",IF(LEFT('Balance Empresa'!$J21)="9",'Balance Empresa'!$B21&". "&'Balance Empresa'!$C21,VLOOKUP(IF('Balance Empresa'!$I21<>"",'Balance Empresa'!$I21&"",'Balance Empresa'!$J21),BC_PCGEmpresarial!$A:$B,2,0))) -> 1041. Cuentas corrientes en instituciones financieras - Cuentas corrientes operativas | N21: 248.00 | O21: 0.00 | P21: 5,484.00 | Q21: 5,567.00 | R21: 165.00 | S21: =IF(OR(TODAY()>r.real,'Balance Empresa'!$J21=""),"",IF(VLOOKUP('Balance Empresa'!$K21,t.casillas[],2)=0,"",VLOOKUP('Balance Empresa'!$K21,t.casillas[],2))) -> 359 | T21: =IF(OR('Balance Empresa'!$S21={"",0}),"",VLOOKUP(S21,t.codigos[],2)) -> Caja y bancos | V21: 132 | W21: 362
B22: 104181 | C22: BCO FINANCIERO M.N. | D22: 26,737.79 | E22: 0.00 | F22: 903,279.08 | G22: 910,628.88 | H22: =IF('Balance Empresa'!$B22<>"",SUM('Balance Empresa'!$D22,-'Balance Empresa'!$E22,'Balance Empresa'!$F22,-'Balance Empresa'!$G22),"") -> 19,387.98 | J22: =IF(AND('Balance Empresa'!$B22<>"",IFERROR(VALUE(LEFT('Balance Empresa'!$B22,2)),FALSE)<>79),LEFT('Balance Empresa'!$B22,VLOOKUP('Balance Empresa'!$B22,t.caracter[],2)),"") -> 1041 | K22: =IF(OR(TODAY()>r.real,'Balance Empresa'!$J22=""),"",IF(LEFT('Balance Empresa'!$J22)="9",'Balance Empresa'!$B22&". "&'Balance Empresa'!$C22,VLOOKUP(IF('Balance Empresa'!$I22<>"",'Balance Empresa'!$I22&"",'Balance Empresa'!$J22),BC_PCGEmpresarial!$A:$B,2,0))) -> 1041. Cuentas corrientes en instituciones financieras - Cuentas corrientes operativas | N22: 26,738.00 | O22: 0.00 | P22: 903,279.00 | Q22: 910,629.00 | R22: 19,388.00 | S22: =IF(OR(TODAY()>r.real,'Balance Empresa'!$J22=""),"",IF(VLOOKUP('Balance Empresa'!$K22,t.casillas[],2)=0,"",VLOOKUP('Balance Empresa'!$K22,t.casillas[],2))) -> 359 | T22: =IF(OR('Balance Empresa'!$S22={"",0}),"",VLOOKUP(S22,t.codigos[],2)) -> Caja y bancos | V22: 133 | W22: 362
B23: 104182 | C23: BCO FINANCIERO M.E. | D23: 118.93 | E23: 0.00 | F23: 138,359.69 | G23: 138,278.87 | H23: =IF('Balance Empresa'!$B23<>"",SUM('Balance Empresa'!$D23,-'Balance Empresa'!$E23,'Balance Empresa'!$F23,-'Balance Empresa'!$G23),"") -> 199.75 | J23: =IF(AND('Balance Empresa'!$B23<>"",IFERROR(VALUE(LEFT('Balance Empresa'!$B23,2)),FALSE)<>79),LEFT('Balance Empresa'!$B23,VLOOKUP('Balance Empresa'!$B23,t.caracter[],2)),"") -> 1041 | K23: =IF(OR(TODAY()>r.real,'Balance Empresa'!$J23=""),"",IF(LEFT('Balance Empresa'!$J23)="9",'Balance Empresa'!$B23&". "&'Balance Empresa'!$C23,VLOOKUP(IF('Balance Empresa'!$I23<>"",'Balance Empresa'!$I23&"",'Balance Empresa'!$J23),BC_PCGEmpresarial!$A:$B,2,0))) -> 1041. Cuentas corrientes en instituciones financieras - Cuentas corrientes operativas | N23: 119.00 | O23: 0.00 | P23: 138,360.00 | Q23: 138,279.00 | R23: 200.00 | S23: =IF(OR(TODAY()>r.real,'Balance Empresa'!$J23=""),"",IF(VLOOKUP('Balance Empresa'!$K23,t.casillas[],2)=0,"",VLOOKUP('Balance Empresa'!$K23,t.casillas[],2))) -> 359 | T23: =IF(OR('Balance Empresa'!$S23={"",0}),"",VLOOKUP(S23,t.codigos[],2)) -> Caja y bancos | V23: 141 | W23: 363
B24: 105012 | C24: BANCO DE CREDITO M.N. | D24: 85,474.28 | E24: 0.00 | F24: 1,784.96 | G24: 4,972.40 | H24: =IF('Balance Empresa'!$B24<>"",SUM('Balance Empresa'!$D24,-'Balance Empresa'!$E24,'Balance Empresa'!$F24,-'Balance Empresa'!$G24),"") -> 82,286.84 | I24: 1051 | J24: =IF(AND('Balance Empresa'!$B24<>"",IFERROR(VALUE(LEFT('Balance Empresa'!$B24,2)),FALSE)<>79),LEFT('Balance Empresa'!$B24,VLOOKUP('Balance Empresa'!$B24,t.caracter[],2)),"") -> 1050 | K24: =IF(OR(TODAY()>r.real,'Balance Empresa'!$J24=""),"",IF(LEFT('Balance Empresa'!$J24)="9",'Balance Empresa'!$B24&". "&'Balance Empresa'!$C24,VLOOKUP(IF('Balance Empresa'!$I24<>"",'Balance Empresa'!$I24&"",'Balance Empresa'!$J24),BC_PCGEmpresarial!$A:$B,2,0))) -> 1051. Otros equivalentes de efectivo - Otros equivalentes de efectivo | N24: 85,474.00 | O24: 0.00 | P24: 1,785.00 | Q24: 4,972.00 | R24: 82,287.00 | S24: =IF(OR(TODAY()>r.real,'Balance Empresa'!$J24=""),"",IF(VLOOKUP('Balance Empresa'!$K24,t.casillas[],2)=0,"",VLOOKUP('Balance Empresa'!$K24,t.casillas[],2))) -> 359 | T24: =IF(OR('Balance Empresa'!$S24={"",0}),"",VLOOKUP(S24,t.codigos[],2)) -> Caja y bancos | V24: 142 | W24: 363
B25: 105102 | C25: BANCO DE CREDITO M.E. | D25: 113,369.21 | E25: 0.00 | F25: 2,015.30 | G25: 115,384.51 | H25: =IF('Balance Empresa'!$B25<>"",SUM('Balance Empresa'!$D25,-'Balance Empresa'!$E25,'Balance Empresa'!$F25,-'Balance Empresa'!$G25),"") -> 0.00 | J25: =IF(AND('Balance Empresa'!$B25<>"",IFERROR(VALUE(LEFT('Balance Empresa'!$B25,2)),FALSE)<>79),LEFT('Balance Empresa'!$B25,VLOOKUP('Balance Empresa'!$B25,t.caracter[],2)),"") -> 1051 | K25: =IF(OR(TODAY()>r.real,'Balance Empresa'!$J25=""),"",IF(LEFT('Balance Empresa'!$J25)="9",'Balance Empresa'!$B25&". "&'Balance Empresa'!$C25,VLOOKUP(IF('Balance Empresa'!$I25<>"",'Balance Empresa'!$I25&"",'Balance Empresa'!$J25),BC_PCGEmpresarial!$A:$B,2,0))) -> 1051. Otros equivalentes de efectivo - Otros equivalentes de efectivo | N25: 113,369.00 | O25: 0.00 | P25: 2,015.00 | Q25: 115,385.00 | R25: -1.00 | S25: =IF(OR(TODAY()>r.real,'Balance Empresa'!$J25=""),"",IF(VLOOKUP('Balance Empresa'!$K25,t.casillas[],2)=0,"",VLOOKUP('Balance Empresa'!$K25,t.casillas[],2))) -> 359 | T25: =IF(OR('Balance Empresa'!$S25={"",0}),"",VLOOKUP(S25,t.codigos[],2)) -> Caja y bancos | V25: 143 | W25: 363
B26: 107101 | C26: FONDO SUJETOS A RESTRICCION ME | D26: 140.60 | E26: 0.00 | F26: 11,114.65 | G26: 11,119.89 | H26: =IF('Balance Empresa'!$B26<>"",SUM('Balance Empresa'!$D26,-'Balance Empresa'!$E26,'Balance Empresa'!$F26,-'Balance Empresa'!$G26),"") -> 135.36 | J26: =IF(AND('Balance Empresa'!$B26<>"",IFERROR(VALUE(LEFT('Balance Empresa'!$B26,2)),FALSE)<>79),LEFT('Balance Empresa'!$B26,VLOOKUP('Balance Empresa'!$B26,t.caracter[],2)),"") -> 1071 | K26: =IF(OR(TODAY()>r.real,'Balance Empresa'!$J26=""),"",IF(LEFT('Balance Empresa'!$J26)="9",'Balance Empresa'!$B26&". "&'Balance Empresa'!$C26,VLOOKUP(IF('Balance Empresa'!$I26<>"",'Balance Empresa'!$I26&"",'Balance Empresa'!$J26),BC_PCGEmpresarial!$A:$B,2,0))) -> 1071. Fondos sujetos a restricción - Fondos Sujetos a Restricción | N26: 141.00 | O26: 0.00 | P26: 11,115.00 | Q26: 11,120.00 | R26: 136.00 | S26: =IF(OR(TODAY()>r.real,'Balance Empresa'!$J26=""),"",IF(VLOOKUP('Balance Empresa'!$K26,t.casillas[],2)=0,"",VLOOKUP('Balance Empresa'!$K26,t.casillas[],2))) -> 359 | T26: =IF(OR('Balance Empresa'!$S26={"",0}),"",VLOOKUP(S26,t.codigos[],2)) -> Caja y bancos | V26: 144 | W26: 363
B27: 107113 | C27: FONDO SUJETO A RESTRIC. ME BBVA | D27: 7,256.46 | E27: 0.00 | F27: 139.01 | G27: 5,553.62 | H27: =IF('Balance Empresa'!$B27<>"",SUM('Balance Empresa'!$D27,-'Balance Empresa'!$E27,'Balance Empresa'!$F27,-'Balance Empresa'!$G27),"") -> 1,841.85 | J27: =IF(AND('Balance Empresa'!$B27<>"",IFERROR(VALUE(LEFT('Balance Empresa'!$B27,2)),FALSE)<>79),LEFT('Balance Empresa'!$B27,VLOOKUP('Balance Empresa'!$B27,t.caracter[],2)),"") -> 1071 | K27: =IF(OR(TODAY()>r.real,'Balance Empresa'!$J27=""),"",IF(LEFT('Balance Empresa'!$J27)="9",'Balance Empresa'!$B27&". "&'Balance Empresa'!$C27,VLOOKUP(IF('Balance Empresa'!$I27<>"",'Balance Empresa'!$I27&"",'Balance Empresa'!$J27),BC_PCGEmpresarial!$A:$B,2,0))) -> 1071. Fondos sujetos a restricción - Fondos Sujetos a Restricción | N27: 7,256.00 | O27: 0.00 | P27: 139.00 | Q27: 5,554.00 | R27: 1,841.00 | S27: =IF(OR(TODAY()>r.real,'Balance Empresa'!$J27=""),"",IF(VLOOKUP('Balance Empresa'!$K27,t.casillas[],2)=0,"",VLOOKUP('Balance Empresa'!$K27,t.casillas[],2))) -> 359 | T27: =IF(OR('Balance Empresa'!$S27={"",0}),"",VLOOKUP(S27,t.codigos[],2)) -> Caja y bancos | V27: 148 | W27: 363
B28: 107114 | C28: FONDO SUJETO A RESTRIC. ME BCP | D28: 140,552.63 | E28: 0.00 | F28: 2,935.17 | G28: 8,176.54 | H28: =IF('Balance Empresa'!$B28<>"",SUM('Balance Empresa'!$D28,-'Balance Empresa'!$E28,'Balance Empresa'!$F28,-'Balance Empresa'!$G28),"") -> 135,311.26 | J28: =IF(AND('Balance Empresa'!$B28<>"",IFERROR(VALUE(LEFT('Balance Empresa'!$B28,2)),FALSE)<>79),LEFT('Balance Empresa'!$B28,VLOOKUP('Balance Empresa'!$B28,t.caracter[],2)),"") -> 1071 | K28: =IF(OR(TODAY()>r.real,'Balance Empresa'!$J28=""),"",IF(LEFT('Balance Empresa'!$J28)="9",'Balance Empresa'!$B28&". "&'Balance Empresa'!$C28,VLOOKUP(IF('Balance Empresa'!$I28<>"",'Balance Empresa'!$I28&"",'Balance Empresa'!$J28),BC_PCGEmpresarial!$A:$B,2,0))) -> 1071. Fondos sujetos a restricción - Fondos Sujetos a Restricción | N28: 140,553.00 | O28: 0.00 | P28: 2,935.00 | Q28: 8,177.00 | R28: 135,311.00 | S28: =IF(OR(TODAY()>r.real,'Balance Empresa'!$J28=""),"",IF(VLOOKUP('Balance Empresa'!$K28,t.casillas[],2)=0,"",VLOOKUP('Balance Empresa'!$K28,t.casillas[],2))) -> 359 | T28: =IF(OR('Balance Empresa'!$S28={"",0}),"",VLOOKUP(S28,t.codigos[],2)) -> Caja y bancos | V28: 161 | W28: 364
B29: 121101 | C29: FACTURAS POR COBRAR NO EMITIDAS TERCEROS MN | D29: 215,951.98 | E29: 0.00 | F29: 478,030.26 | G29: 427,226.35 | H29: =IF('Balance Empresa'!$B29<>"",SUM('Balance Empresa'!$D29,-'Balance Empresa'!$E29,'Balance Empresa'!$F29,-'Balance Empresa'!$G29),"") -> 266,755.89 | J29: =IF(AND('Balance Empresa'!$B29<>"",IFERROR(VALUE(LEFT('Balance Empresa'!$B29,2)),FALSE)<>79),LEFT('Balance Empresa'!$B29,VLOOKUP('Balance Empresa'!$B29,t.caracter[],2)),"") -> 1211 | K29: =IF(OR(TODAY()>r.real,'Balance Empresa'!$J29=""),"",IF(LEFT('Balance Empresa'!$J29)="9",'Balance Empresa'!$B29&". "&'Balance Empresa'!$C29,VLOOKUP(IF('Balance Empresa'!$I29<>"",'Balance Empresa'!$I29&"",'Balance Empresa'!$J29),BC_PCGEmpresarial!$A:$B,2,0))) -> 1211. Facturas, boletas y otros comprobantes por cobrar - No emitidas | N29: 215,952.00 | O29: 0.00 | P29: 478,030.00 | Q29: 427,226.00 | R29: 266,756.00 | S29: =IF(OR(TODAY()>r.real,'Balance Empresa'!$J29=""),"",IF(VLOOKUP('Balance Empresa'!$K29,t.casillas[],2)=0,"",VLOOKUP('Balance Empresa'!$K29,t.casillas[],2))) -> 361 | T29: =IF(OR('Balance Empresa'!$S29={"",0}),"",VLOOKUP(S29,t.codigos[],2)) -> Ctas por cobrar comerciales - terc | V29: 162 | W29: 364
B30: 121102 | C30: FACTURAS POR COBRAR NO EMITIDAS TERCEROS ME | D30: 872,720.94 | E30: 0.00 | F30: 13,929.16 | G30: 684,411.95 | H30: =IF('Balance Empresa'!$B30<>"",SUM('Balance Empresa'!$D30,-'Balance Empresa'!$E30,'Balance Empresa'!$F30,-'Balance Empresa'!$G30),"") -> 202,238.15 | J30: =IF(AND('Balance Empresa'!$B30<>"",IFERROR(VALUE(LEFT('Balance Empresa'!$B30,2)),FALSE)<>79),LEFT('Balance Empresa'!$B30,VLOOKUP('Balance Empresa'!$B30,t.caracter[],2)),"") -> 1211 | K30: =IF(OR(TODAY()>r.real,'Balance Empresa'!$J30=""),"",IF(LEFT('Balance Empresa'!$J30)="9",'Balance Empresa'!$B30&". "&'Balance Empresa'!$C30,VLOOKUP(IF('Balance Empresa'!$I30<>"",'Balance Empresa'!$I30&"",'Balance Empresa'!$J30),BC_PCGEmpresarial!$A:$B,2,0))) -> 1211. Facturas, boletas y otros comprobantes por cobrar - No emitidas | N30: 872,721.00 | O30: 0.00 | P30: 13,929.00 | Q30: 684,412.00 | R30: 202,238.00 | S30: =IF(OR(TODAY()>r.real,'Balance Empresa'!$J30=""),"",IF(VLOOKUP('Balance Empresa'!$K30,t.casillas[],2)=0,"",VLOOKUP('Balance Empresa'!$K30,t.casillas[],2))) -> 361 | T30: =IF(OR('Balance Empresa'!$S30={"",0}),"",VLOOKUP(S30,t.codigos[],2)) -> Ctas por cobrar comerciales - terc | V30: 163 | W30: 364
B31: 121201 | C31: FACTURAS POR COBRAR EMITIDAS CARTERA TERCEROS MN | D31: 161,369.50 | E31: 0.00 | F31: 1,080,637.93 | G31: 1,074,936.11 | H31: =IF('Balance Empresa'!$B31<>"",SUM('Balance Empresa'!$D31,-'Balance Empresa'!$E31,'Balance Empresa'!$F31,-'Balance Empresa'!$G31),"") -> 167,071.32 | J31: =IF(AND('Balance Empresa'!$B31<>"",IFERROR(VALUE(LEFT('Balance Empresa'!$B31,2)),FALSE)<>79),LEFT('Balance Empresa'!$B31,VLOOKUP('Balance Empresa'!$B31,t.caracter[],2)),"") -> 1212 | K31: =IF(OR(TODAY()>r.real,'Balance Empresa'!$J31=""),"",IF(LEFT('Balance Empresa'!$J31)="9",'Balance Empresa'!$B31&". "&'Balance Empresa'!$C31,VLOOKUP(IF('Balance Empresa'!$I31<>"",'Balance Empresa'!$I31&"",'Balance Empresa'!$J31),BC_PCGEmpresarial!$A:$B,2,0))) -> 1212. Facturas, boletas y otros comprobantes por cobrar - Emitidas en cartera | N31: 161,370.00 | O31: 0.00 | P31: 1,080,638.00 | Q31: 1,074,936.00 | R31: 167,072.00 | S31: =IF(OR(TODAY()>r.real,'Balance Empresa'!$J31=""),"",IF(VLOOKUP('Balance Empresa'!$K31,t.casillas[],2)=0,"",VLOOKUP('Balance Empresa'!$K31,t.casillas[],2))) -> 361 | T31: =IF(OR('Balance Empresa'!$S31={"",0}),"",VLOOKUP(S31,t.codigos[],2)) -> Ctas por cobrar comerciales - terc | V31: 164 | W31: 364
B32: 121202 | C32: FACTURAS POR COBRAR EMITIDAS CARTERA TERCEROS M.E. | D32: 197,196.14 | E32: 0.00 | F32: 2,297,759.70 | G32: 1,561,137.19 | H32: =IF('Balance Empresa'!$B32<>"",SUM('Balance Empresa'!$D32,-'Balance Empresa'!$E32,'Balance Empresa'!$F32,-'Balance Empresa'!$G32),"") -> 933,818.65 | J32: =IF(AND('Balance Empresa'!$B32<>"",IFERROR(VALUE(LEFT('Balance Empresa'!$B32,2)),FALSE)<>79),LEFT('Balance Empresa'!$B32,VLOOKUP('Balance Empresa'!$B32,t.caracter[],2)),"") -> 1212 | K32: =IF(OR(TODAY()>r.real,'Balance Empresa'!$J32=""),"",IF(LEFT('Balance Empresa'!$J32)="9",'Balance Empresa'!$B32&". "&'Balance Empresa'!$C32,VLOOKUP(IF('Balance Empresa'!$I32<>"",'Balance Empresa'!$I32&"",'Balance Empresa'!$J32),BC_PCGEmpresarial!$A:$B,2,0))) -> 1212. Facturas, boletas y otros comprobantes por cobrar - Emitidas en cartera | N32: 197,196.00 | O32: 0.00 | P32: 2,297,760.00 | Q32: 1,561,137.00 | R32: 933,819.00 | S32: =IF(OR(TODAY()>r.real,'Balance Empresa'!$J32=""),"",IF(VLOOKUP('Balance Empresa'!$K32,t.casillas[],2)=0,"",VLOOKUP('Balance Empresa'!$K32,t.casillas[],2))) -> 361 | T32: =IF(OR('Balance Empresa'!$S32={"",0}),"",VLOOKUP(S32,t.codigos[],2)) -> Ctas por cobrar comerciales - terc | V32: 165 | W32: 364
B33: 121221 | C33: FACTURAS POR COBRAR CARTERA TERCEROS MN (NO CTE) | D33: 39,214.53 | E33: 0.00 | F33: 0.00 | G33: 0.00 | H33: =IF('Balance Empresa'!$B33<>"",SUM('Balance Empresa'!$D33,-'Balance Empresa'!$E33,'Balance Empresa'!$F33,-'Balance Empresa'!$G33),"") -> 39,214.53 | J33: =IF(AND('Balance Empresa'!$B33<>"",IFERROR(VALUE(LEFT('Balance Empresa'!$B33,2)),FALSE)<>79),LEFT('Balance Empresa'!$B33,VLOOKUP('Balance Empresa'!$B33,t.caracter[],2)),"") -> 1212 | K33: =IF(OR(TODAY()>r.real,'Balance Empresa'!$J33=""),"",IF(LEFT('Balance Empresa'!$J33)="9",'Balance Empresa'!$B33&". "&'Balance Empresa'!$C33,VLOOKUP(IF('Balance Empresa'!$I33<>"",'Balance Empresa'!$I33&"",'Balance Empresa'!$J33),BC_PCGEmpresarial!$A:$B,2,0))) -> 1212. Facturas, boletas y otros comprobantes por cobrar - Emitidas en cartera | N33: 39,215.00 | O33: 0.00 | P33: 0.00 | Q33: 0.00 | R33: 39,215.00 | S33: =IF(OR(TODAY()>r.real,'Balance Empresa'!$J33=""),"",IF(VLOOKUP('Balance Empresa'!$K33,t.casillas[],2)=0,"",VLOOKUP('Balance Empresa'!$K33,t.casillas[],2))) -> 361 | T33: =IF(OR('Balance Empresa'!$S33={"",0}),"",VLOOKUP(S33,t.codigos[],2)) -> Ctas por cobrar comerciales - terc | V33: 1661 | W33: 364
B34: 121222 | C34: FACTURAS POR COBRAR CARTERA TERCEROS ME (NO CTE) | D34: 1,188.72 | E34: 0.00 | F34: 24.82 | G34: 69.15 | H34: =IF('Balance Empresa'!$B34<>"",SUM('Balance Empresa'!$D34,-'Balance Empresa'!$E34,'Balance Empresa'!$F34,-'Balance Empresa'!$G34),"") -> 1,144.39 | J34: =IF(AND('Balance Empresa'!$B34<>"",IFERROR(VALUE(LEFT('Balance Empresa'!$B34,2)),FALSE)<>79),LEFT('Balance Empresa'!$B34,VLOOKUP('Balance Empresa'!$B34,t.caracter[],2)),"") -> 1212 | K34: =IF(OR(TODAY()>r.real,'Balance Empresa'!$J34=""),"",IF(LEFT('Balance Empresa'!$J34)="9",'Balance Empresa'!$B34&". "&'Balance Empresa'!$C34,VLOOKUP(IF('Balance Empresa'!$I34<>"",'Balance Empresa'!$I34&"",'Balance Empresa'!$J34),BC_PCGEmpresarial!$A:$B,2,0))) -> 1212. Facturas, boletas y otros comprobantes por cobrar - Emitidas en cartera | N34: 1,189.00 | O34: 0.00 | P34: 25.00 | Q34: 69.00 | R34: 1,145.00 | S34: =IF(OR(TODAY()>r.real,'Balance Empresa'!$J34=""),"",IF(VLOOKUP('Balance Empresa'!$K34,t.casillas[],2)=0,"",VLOOKUP('Balance Empresa'!$K34,t.casillas[],2))) -> 361 | T34: =IF(OR('Balance Empresa'!$S34={"",0}),"",VLOOKUP(S34,t.codigos[],2)) -> Ctas por cobrar comerciales - terc | V34: 1662 | W34: 364
B35: 122101 | C35: ANTICIPOS DE CLIENTES TERCEROS M.N. | D35: 0.00 | E35: 339,319.98 | F35: 201,106.07 | G35: 126,383.27 | H35: =IF('Balance Empresa'!$B35<>"",SUM('Balance Empresa'!$D35,-'Balance Empresa'!$E35,'Balance Empresa'!$F35,-'Balance Empresa'!$G35),"") -> -264,597.18 | J35: =IF(AND('Balance Empresa'!$B35<>"",IFERROR(VALUE(LEFT('Balance Empresa'!$B35,2)),FALSE)<>79),LEFT('Balance Empresa'!$B35,VLOOKUP('Balance Empresa'!$B35,t.caracter[],2)),"") -> 122 | K35: =IF(OR(TODAY()>r.real,'Balance Empresa'!$J35=""),"",IF(LEFT('Balance Empresa'!$J35)="9",'Balance Empresa'!$B35&". "&'Balance Empresa'!$C35,VLOOKUP(IF('Balance Empresa'!$I35<>"",'Balance Empresa'!$I35&"",'Balance Empresa'!$J35),BC_PCGEmpresarial!$A:$B,2,0))) -> 122. Anticipos de clientes | L35: SI HABER2 | M35: 1.00 | N35: 0.00 | O35: 339,321.00 | P35: 201,106.00 | Q35: 126,383.00 | R35: -264,598.00 | S35: =IF(OR(TODAY()>r.real,'Balance Empresa'!$J35=""),"",IF(VLOOKUP('Balance Empresa'!$K35,t.casillas[],2)=0,"",VLOOKUP('Balance Empresa'!$K35,t.casillas[],2))) -> 361 | T35: =IF(OR('Balance Empresa'!$S35={"",0}),"",VLOOKUP(S35,t.codigos[],2)) -> Ctas por cobrar comerciales - terc | V35: 168 | W35: 364
B36: 122102 | C36: ANTICIPOS DE CLIENTES TERCEROS M.E. | D36: 0.00 | E36: 11,347.28 | F36: 11,877.50 | G36: 530.22 | H36: =IF('Balance Empresa'!$B36<>"",SUM('Balance Empresa'!$D36,-'Balance Empresa'!$E36,'Balance Empresa'!$F36,-'Balance Empresa'!$G36),"") -> 0.00 | J36: =IF(AND('Balance Empresa'!$B36<>"",IFERROR(VALUE(LEFT('Balance Empresa'!$B36,2)),FALSE)<>79),LEFT('Balance Empresa'!$B36,VLOOKUP('Balance Empresa'!$B36,t.caracter[],2)),"") -> 122 | K36: =IF(OR(TODAY()>r.real,'Balance Empresa'!$J36=""),"",IF(LEFT('Balance Empresa'!$J36)="9",'Balance Empresa'!$B36&". "&'Balance Empresa'!$C36,VLOOKUP(IF('Balance Empresa'!$I36<>"",'Balance Empresa'!$I36&"",'Balance Empresa'!$J36),BC_PCGEmpresarial!$A:$B,2,0))) -> 122. Anticipos de clientes | N36: 0.00 | O36: 11,347.00 | P36: 11,877.00 | Q36: 530.00 | R36: 0.00 | S36: =IF(OR(TODAY()>r.real,'Balance Empresa'!$J36=""),"",IF(VLOOKUP('Balance Empresa'!$K36,t.casillas[],2)=0,"",VLOOKUP('Balance Empresa'!$K36,t.casillas[],2))) -> 361 | T36: =IF(OR('Balance Empresa'!$S36={"",0}),"",VLOOKUP(S36,t.codigos[],2)) -> Ctas por cobrar comerciales - terc | V36: 171 | W36: 365
B37: 122121 | C37: ANTICIPOS DE CLIENTES TERCEROS MN (NO CTE) | D37: 0.00 | E37: 1,281.20 | F37: 0.00 | G37: 0.00 | H37: =IF('Balance Empresa'!$B37<>"",SUM('Balance Empresa'!$D37,-'Balance Empresa'!$E37,'Balance Empresa'!$F37,-'Balance Empresa'!$G37),"") -> -1,281.20 | J37: =IF(AND('Balance Empresa'!$B37<>"",IFERROR(VALUE(LEFT('Balance Empresa'!$B37,2)),FALSE)<>79),LEFT('Balance Empresa'!$B37,VLOOKUP('Balance Empresa'!$B37,t.caracter[],2)),"") -> 122 | K37: =IF(OR(TODAY()>r.real,'Balance Empresa'!$J37=""),"",IF(LEFT('Balance Empresa'!$J37)="9",'Balance Empresa'!$B37&". "&'Balance Empresa'!$C37,VLOOKUP(IF('Balance Empresa'!$I37<>"",'Balance Empresa'!$I37&"",'Balance Empresa'!$J37),BC_PCGEmpresarial!$A:$B,2,0))) -> 122. Anticipos de clientes | N37: 0.00 | O37: 1,281.00 | P37: 0.00 | Q37: 0.00 | R37: -1,281.00 | S37: =IF(OR(TODAY()>r.real,'Balance Empresa'!$J37=""),"",IF(VLOOKUP('Balance Empresa'!$K37,t.casillas[],2)=0,"",VLOOKUP('Balance Empresa'!$K37,t.casillas[],2))) -> 361 | T37: =IF(OR('Balance Empresa'!$S37={"",0}),"",VLOOKUP(S37,t.codigos[],2)) -> Ctas por cobrar comerciales - terc | V37: 173 | W37: 365
B38: 131231 | C38: FACTURAS POR COBRAR EMITIDAS ASOC.RELAC. M.N. | D38: 242,353.01 | E38: 0.00 | F38: 85,567.28 | G38: 327,617.99 | H38: =IF('Balance Empresa'!$B38<>"",SUM('Balance Empresa'!$D38,-'Balance Empresa'!$E38,'Balance Empresa'!$F38,-'Balance Empresa'!$G38),"") -> 302.30 | J38: =IF(AND('Balance Empresa'!$B38<>"",IFERROR(VALUE(LEFT('Balance Empresa'!$B38,2)),FALSE)<>79),LEFT('Balance Empresa'!$B38,VLOOKUP('Balance Empresa'!$B38,t.caracter[],2)),"") -> 13123 | K38: =IF(OR(TODAY()>r.real,'Balance Empresa'!$J38=""),"",IF(LEFT('Balance Empresa'!$J38)="9",'Balance Empresa'!$B38&". "&'Balance Empresa'!$C38,VLOOKUP(IF('Balance Empresa'!$I38<>"",'Balance Empresa'!$I38&"",'Balance Empresa'!$J38),BC_PCGEmpresarial!$A:$B,2,0))) -> 13123. Facturas, boletas y otros comprobantes por cobrar - Emitidas en cartera - Asociadas | N38: 242,353.00 | O38: 0.00 | P38: 85,567.00 | Q38: 327,618.00 | R38: 302.00 | S38: =IF(OR(TODAY()>r.real,'Balance Empresa'!$J38=""),"",IF(VLOOKUP('Balance Empresa'!$K38,t.casillas[],2)=0,"",VLOOKUP('Balance Empresa'!$K38,t.casillas[],2))) -> 362 | T38: =IF(OR('Balance Empresa'!$S38={"",0}),"",VLOOKUP(S38,t.codigos[],2)) -> Ctas por cobrar comerciales - relac | V38: 174 | W38: 365
B39: 131232 | C39: FACTURAS POR COBRAR EMITIDAS ASOC.RELAC. M.E. | D39: 2,671.58 | E39: 0.00 | F39: 55.79 | G39: 155.42 | H39: =IF('Balance Empresa'!$B39<>"",SUM('Balance Empresa'!$D39,-'Balance Empresa'!$E39,'Balance Empresa'!$F39,-'Balance Empresa'!$G39),"") -> 2,571.96 | J39: =IF(AND('Balance Empresa'!$B39<>"",IFERROR(VALUE(LEFT('Balance Empresa'!$B39,2)),FALSE)<>79),LEFT('Balance Empresa'!$B39,VLOOKUP('Balance Empresa'!$B39,t.caracter[],2)),"") -> 13123 | K39: =IF(OR(TODAY()>r.real,'Balance Empresa'!$J39=""),"",IF(LEFT('Balance Empresa'!$J39)="9",'Balance Empresa'!$B39&". "&'Balance Empresa'!$C39,VLOOKUP(IF('Balance Empresa'!$I39<>"",'Balance Empresa'!$I39&"",'Balance Empresa'!$J39),BC_PCGEmpresarial!$A:$B,2,0))) -> 13123. Facturas, boletas y otros comprobantes por cobrar - Emitidas en cartera - Asociadas | N39: 2,672.00 | O39: 0.00 | P39: 56.00 | Q39: 155.00 | R39: 2,573.00 | S39: =IF(OR(TODAY()>r.real,'Balance Empresa'!$J39=""),"",IF(VLOOKUP('Balance Empresa'!$K39,t.casillas[],2)=0,"",VLOOKUP('Balance Empresa'!$K39,t.casillas[],2))) -> 362 | T39: =IF(OR('Balance Empresa'!$S39={"",0}),"",VLOOKUP(S39,t.codigos[],2)) -> Ctas por cobrar comerciales - relac | V39: 175 | W39: 365
B40: 131233 | C40: FACTURAS POR COBRAR EMITIDAS ASOC.RELAC. NO CTE MN | D40: 236,813.10 | E40: 0.00 | F40: 0.00 | G40: 0.00 | H40: =IF('Balance Empresa'!$B40<>"",SUM('Balance Empresa'!$D40,-'Balance Empresa'!$E40,'Balance Empresa'!$F40,-'Balance Empresa'!$G40),"") -> 236,813.10 | J40: =IF(AND('Balance Empresa'!$B40<>"",IFERROR(VALUE(LEFT('Balance Empresa'!$B40,2)),FALSE)<>79),LEFT('Balance Empresa'!$B40,VLOOKUP('Balance Empresa'!$B40,t.caracter[],2)),"") -> 13123 | K40: =IF(OR(TODAY()>r.real,'Balance Empresa'!$J40=""),"",IF(LEFT('Balance Empresa'!$J40)="9",'Balance Empresa'!$B40&". "&'Balance Empresa'!$C40,VLOOKUP(IF('Balance Empresa'!$I40<>"",'Balance Empresa'!$I40&"",'Balance Empresa'!$J40),BC_PCGEmpresarial!$A:$B,2,0))) -> 13123. Facturas, boletas y otros comprobantes por cobrar - Emitidas en cartera - Asociadas | N40: 236,813.00 | O40: 0.00 | P40: 0.00 | Q40: 0.00 | R40: 236,813.00 | S40: =IF(OR(TODAY()>r.real,'Balance Empresa'!$J40=""),"",IF(VLOOKUP('Balance Empresa'!$K40,t.casillas[],2)=0,"",VLOOKUP('Balance Empresa'!$K40,t.casillas[],2))) -> 362 | T40: =IF(OR('Balance Empresa'!$S40={"",0}),"",VLOOKUP(S40,t.codigos[],2)) -> Ctas por cobrar comerciales - relac | V40: 176 | W40: 365
B41: 131234 | C41: FACTURAS POR COBRAR EMITIDAS ASOC.RELAC. NO CTE ME | D41: 7,798.54 | E41: 0.00 | F41: 0.00 | G41: 0.00 | H41: =IF('Balance Empresa'!$B41<>"",SUM('Balance Empresa'!$D41,-'Balance Empresa'!$E41,'Balance Empresa'!$F41,-'Balance Empresa'!$G41),"") -> 7,798.54 | J41: =IF(AND('Balance Empresa'!$B41<>"",IFERROR(VALUE(LEFT('Balance Empresa'!$B41,2)),FALSE)<>79),LEFT('Balance Empresa'!$B41,VLOOKUP('Balance Empresa'!$B41,t.caracter[],2)),"") -> 13123 | K41: =IF(OR(TODAY()>r.real,'Balance Empresa'!$J41=""),"",IF(LEFT('Balance Empresa'!$J41)="9",'Balance Empresa'!$B41&". "&'Balance Empresa'!$C41,VLOOKUP(IF('Balance Empresa'!$I41<>"",'Balance Empresa'!$I41&"",'Balance Empresa'!$J41),BC_PCGEmpresarial!$A:$B,2,0))) -> 13123. Facturas, boletas y otros comprobantes por cobrar - Emitidas en cartera - Asociadas | N41: 7,799.00 | O41: 0.00 | P41: 0.00 | Q41: 0.00 | R41: 7,799.00 | S41: =IF(OR(TODAY()>r.real,'Balance Empresa'!$J41=""),"",IF(VLOOKUP('Balance Empresa'!$K41,t.casillas[],2)=0,"",VLOOKUP('Balance Empresa'!$K41,t.casillas[],2))) -> 362 | T41: =IF(OR('Balance Empresa'!$S41={"",0}),"",VLOOKUP(S41,t.codigos[],2)) -> Ctas por cobrar comerciales - relac | V41: 178 | W41: 365
B42: 131235 | C42: FACTURAS POR COBRAR EMITIDAS ASOC.RELAC. ARBITRAJE | D42: 24,529.90 | E42: 0.00 | F42: 0.00 | G42: 0.00 | H42: =IF('Balance Empresa'!$B42<>"",SUM('Balance Empresa'!$D42,-'Balance Empresa'!$E42,'Balance Empresa'!$F42,-'Balance Empresa'!$G42),"") -> 24,529.90 | J42: =IF(AND('Balance Empresa'!$B42<>"",IFERROR(VALUE(LEFT('Balance Empresa'!$B42,2)),FALSE)<>79),LEFT('Balance Empresa'!$B42,VLOOKUP('Balance Empresa'!$B42,t.caracter[],2)),"") -> 13123 | K42: =IF(OR(TODAY()>r.real,'Balance Empresa'!$J42=""),"",IF(LEFT('Balance Empresa'!$J42)="9",'Balance Empresa'!$B42&". "&'Balance Empresa'!$C42,VLOOKUP(IF('Balance Empresa'!$I42<>"",'Balance Empresa'!$I42&"",'Balance Empresa'!$J42),BC_PCGEmpresarial!$A:$B,2,0))) -> 13123. Facturas, boletas y otros comprobantes por cobrar - Emitidas en cartera - Asociadas | N42: 24,530.00 | O42: 0.00 | P42: 0.00 | Q42: 0.00 | R42: 24,530.00 | S42: =IF(OR(TODAY()>r.real,'Balance Empresa'!$J42=""),"",IF(VLOOKUP('Balance Empresa'!$K42,t.casillas[],2)=0,"",VLOOKUP('Balance Empresa'!$K42,t.casillas[],2))) -> 362 | T42: =IF(OR('Balance Empresa'!$S42={"",0}),"",VLOOKUP(S42,t.codigos[],2)) -> Ctas por cobrar comerciales - relac | V42: 181 | W42: 366
B43: 131237 | C43: FACTURAS POR COBRAR EMITIDAS ASOC.RELAC.INCOBRAB | D43: 8,354.65 | E43: 0.00 | F43: 174.47 | G43: 486.03 | H43: =IF('Balance Empresa'!$B43<>"",SUM('Balance Empresa'!$D43,-'Balance Empresa'!$E43,'Balance Empresa'!$F43,-'Balance Empresa'!$G43),"") -> 8,043.09 | J43: =IF(AND('Balance Empresa'!$B43<>"",IFERROR(VALUE(LEFT('Balance Empresa'!$B43,2)),FALSE)<>79),LEFT('Balance Empresa'!$B43,VLOOKUP('Balance Empresa'!$B43,t.caracter[],2)),"") -> 13123 | K43: =IF(OR(TODAY()>r.real,'Balance Empresa'!$J43=""),"",IF(LEFT('Balance Empresa'!$J43)="9",'Balance Empresa'!$B43&". "&'Balance Empresa'!$C43,VLOOKUP(IF('Balance Empresa'!$I43<>"",'Balance Empresa'!$I43&"",'Balance Empresa'!$J43),BC_PCGEmpresarial!$A:$B,2,0))) -> 13123. Facturas, boletas y otros comprobantes por cobrar - Emitidas en cartera - Asociadas | N43: 8,355.00 | O43: 0.00 | P43: 174.00 | Q43: 486.00 | R43: 8,043.00 | S43: =IF(OR(TODAY()>r.real,'Balance Empresa'!$J43=""),"",IF(VLOOKUP('Balance Empresa'!$K43,t.casillas[],2)=0,"",VLOOKUP('Balance Empresa'!$K43,t.casillas[],2))) -> 362 | T43: =IF(OR('Balance Empresa'!$S43={"",0}),"",VLOOKUP(S43,t.codigos[],2)) -> Ctas por cobrar comerciales - relac | V43: 182 | W43: 366
B44: 132131 | C44: ANTICIPOS RECIBIDOS ASOCIADAS MN (CTE) | D44: 0.00 | E44: 74,264.89 | F44: 74,264.89 | G44: 0.00 | H44: =IF('Balance Empresa'!$B44<>"",SUM('Balance Empresa'!$D44,-'Balance Empresa'!$E44,'Balance Empresa'!$F44,-'Balance Empresa'!$G44),"") -> 0.00 | J44: =IF(AND('Balance Empresa'!$B44<>"",IFERROR(VALUE(LEFT('Balance Empresa'!$B44,2)),FALSE)<>79),LEFT('Balance Empresa'!$B44,VLOOKUP('Balance Empresa'!$B44,t.caracter[],2)),"") -> 13213 | K44: =IF(OR(TODAY()>r.real,'Balance Empresa'!$J44=""),"",IF(LEFT('Balance Empresa'!$J44)="9",'Balance Empresa'!$B44&". "&'Balance Empresa'!$C44,VLOOKUP(IF('Balance Empresa'!$I44<>"",'Balance Empresa'!$I44&"",'Balance Empresa'!$J44),BC_PCGEmpresarial!$A:$B,2,0))) -> 13213. Anticipos recibidos - Anticipos recibidos - Asociadas | N44: 0.00 | O44: 74,265.00 | P44: 74,265.00 | Q44: 0.00 | R44: 0.00 | S44: =IF(OR(TODAY()>r.real,'Balance Empresa'!$J44=""),"",IF(VLOOKUP('Balance Empresa'!$K44,t.casillas[],2)=0,"",VLOOKUP('Balance Empresa'!$K44,t.casillas[],2))) -> 362 | T44: =IF(OR('Balance Empresa'!$S44={"",0}),"",VLOOKUP(S44,t.codigos[],2)) -> Ctas por cobrar comerciales - relac | V44: 183 | W44: 366
B45: 141101 | C45: PRESTAMOS DE PERSONAL EMPLEADOS M.N. | D45: 825.48 | E45: 0.00 | F45: 2,538.39 | G45: 3,328.96 | H45: =IF('Balance Empresa'!$B45<>"",SUM('Balance Empresa'!$D45,-'Balance Empresa'!$E45,'Balance Empresa'!$F45,-'Balance Empresa'!$G45),"") -> 34.90 | J45: =IF(AND('Balance Empresa'!$B45<>"",IFERROR(VALUE(LEFT('Balance Empresa'!$B45,2)),FALSE)<>79),LEFT('Balance Empresa'!$B45,VLOOKUP('Balance Empresa'!$B45,t.caracter[],2)),"") -> 1411 | K45: =IF(OR(TODAY()>r.real,'Balance Empresa'!$J45=""),"",IF(LEFT('Balance Empresa'!$J45)="9",'Balance Empresa'!$B45&". "&'Balance Empresa'!$C45,VLOOKUP(IF('Balance Empresa'!$I45<>"",'Balance Empresa'!$I45&"",'Balance Empresa'!$J45),BC_PCGEmpresarial!$A:$B,2,0))) -> 1411. Personal - Préstamos | N45: 825.00 | O45: 0.00 | P45: 2,538.00 | Q45: 3,329.00 | R45: 34.00 | S45: =IF(OR(TODAY()>r.real,'Balance Empresa'!$J45=""),"",IF(VLOOKUP('Balance Empresa'!$K45,t.casillas[],2)=0,"",VLOOKUP('Balance Empresa'!$K45,t.casillas[],2))) -> 363 | T45: =IF(OR('Balance Empresa'!$S45={"",0}),"",VLOOKUP(S45,t.codigos[],2)) -> Ctas p cob per, acc, soc, dir y ger | V45: 184 | W45: 366
B46: 141121 | C46: PRESTAMOS DE PERSONAL EMPLEADOS MN (NO CTE) | D46: 87,045.58 | E46: 0.00 | F46: 0.00 | G46: 1,847.36 | H46: =IF('Balance Empresa'!$B46<>"",SUM('Balance Empresa'!$D46,-'Balance Empresa'!$E46,'Balance Empresa'!$F46,-'Balance Empresa'!$G46),"") -> 85,198.22 | J46: =IF(AND('Balance Empresa'!$B46<>"",IFERROR(VALUE(LEFT('Balance Empresa'!$B46,2)),FALSE)<>79),LEFT('Balance Empresa'!$B46,VLOOKUP('Balance Empresa'!$B46,t.caracter[],2)),"") -> 1411 | K46: =IF(OR(TODAY()>r.real,'Balance Empresa'!$J46=""),"",IF(LEFT('Balance Empresa'!$J46)="9",'Balance Empresa'!$B46&". "&'Balance Empresa'!$C46,VLOOKUP(IF('Balance Empresa'!$I46<>"",'Balance Empresa'!$I46&"",'Balance Empresa'!$J46),BC_PCGEmpresarial!$A:$B,2,0))) -> 1411. Personal - Préstamos | N46: 87,046.00 | O46: 0.00 | P46: 0.00 | Q46: 1,847.00 | R46: 85,199.00 | S46: =IF(OR(TODAY()>r.real,'Balance Empresa'!$J46=""),"",IF(VLOOKUP('Balance Empresa'!$K46,t.casillas[],2)=0,"",VLOOKUP('Balance Empresa'!$K46,t.casillas[],2))) -> 363 | T46: =IF(OR('Balance Empresa'!$S46={"",0}),"",VLOOKUP(S46,t.codigos[],2)) -> Ctas p cob per, acc, soc, dir y ger | V46: 185 | W46: 366
B47: 141301 | C47: ENTREGAS A RENDIR CUENTA DE PERSONAL M.N. | D47: 7,658.91 | E47: 0.00 | F47: 96,298.00 | G47: 95,938.03 | H47: =IF('Balance Empresa'!$B47<>"",SUM('Balance Empresa'!$D47,-'Balance Empresa'!$E47,'Balance Empresa'!$F47,-'Balance Empresa'!$G47),"") -> 8,018.88 | J47: =IF(AND('Balance Empresa'!$B47<>"",IFERROR(VALUE(LEFT('Balance Empresa'!$B47,2)),FALSE)<>79),LEFT('Balance Empresa'!$B47,VLOOKUP('Balance Empresa'!$B47,t.caracter[],2)),"") -> 1413 | K47: =IF(OR(TODAY()>r.real,'Balance Empresa'!$J47=""),"",IF(LEFT('Balance Empresa'!$J47)="9",'Balance Empresa'!$B47&". "&'Balance Empresa'!$C47,VLOOKUP(IF('Balance Empresa'!$I47<>"",'Balance Empresa'!$I47&"",'Balance Empresa'!$J47),BC_PCGEmpresarial!$A:$B,2,0))) -> 1413. Personal - Entregas a rendir cuenta | N47: 7,659.00 | O47: 0.00 | P47: 96,298.00 | Q47: 95,938.00 | R47: 8,019.00 | S47: =IF(OR(TODAY()>r.real,'Balance Empresa'!$J47=""),"",IF(VLOOKUP('Balance Empresa'!$K47,t.casillas[],2)=0,"",VLOOKUP('Balance Empresa'!$K47,t.casillas[],2))) -> 363 | T47: =IF(OR('Balance Empresa'!$S47={"",0}),"",VLOOKUP(S47,t.codigos[],2)) -> Ctas p cob per, acc, soc, dir y ger | V47: 189 | W47: 366
B48: 141302 | C48: ENTREGAS A RENDIR CUENTA DE PERSONAL M.E. | D48: 20.89 | E48: 0.00 | F48: 11,676.61 | G48: 9,568.15 | H48: =IF('Balance Empresa'!$B48<>"",SUM('Balance Empresa'!$D48,-'Balance Empresa'!$E48,'Balance Empresa'!$F48,-'Balance Empresa'!$G48),"") -> 2,129.36 | J48: =IF(AND('Balance Empresa'!$B48<>"",IFERROR(VALUE(LEFT('Balance Empresa'!$B48,2)),FALSE)<>79),LEFT('Balance Empresa'!$B48,VLOOKUP('Balance Empresa'!$B48,t.caracter[],2)),"") -> 1413 | K48: =IF(OR(TODAY()>r.real,'Balance Empresa'!$J48=""),"",IF(LEFT('Balance Empresa'!$J48)="9",'Balance Empresa'!$B48&". "&'Balance Empresa'!$C48,VLOOKUP(IF('Balance Empresa'!$I48<>"",'Balance Empresa'!$I48&"",'Balance Empresa'!$J48),BC_PCGEmpresarial!$A:$B,2,0))) -> 1413. Personal - Entregas a rendir cuenta | N48: 21.00 | O48: 0.00 | P48: 11,677.00 | Q48: 9,568.00 | R48: 2,130.00 | S48: =IF(OR(TODAY()>r.real,'Balance Empresa'!$J48=""),"",IF(VLOOKUP('Balance Empresa'!$K48,t.casillas[],2)=0,"",VLOOKUP('Balance Empresa'!$K48,t.casillas[],2))) -> 363 | T48: =IF(OR('Balance Empresa'!$S48={"",0}),"",VLOOKUP(S48,t.codigos[],2)) -> Ctas p cob per, acc, soc, dir y ger | V48: 191 | W48: 367
B49: 161111 | C49: COBRANZA DIVERSAS PRESTAMOS S/GARANTIA TERCEROS MN | D49: 285.16 | E49: 0.00 | F49: 0.00 | G49: 0.00 | H49: =IF('Balance Empresa'!$B49<>"",SUM('Balance Empresa'!$D49,-'Balance Empresa'!$E49,'Balance Empresa'!$F49,-'Balance Empresa'!$G49),"") -> 285.16 | J49: =IF(AND('Balance Empresa'!$B49<>"",IFERROR(VALUE(LEFT('Balance Empresa'!$B49,2)),FALSE)<>79),LEFT('Balance Empresa'!$B49,VLOOKUP('Balance Empresa'!$B49,t.caracter[],2)),"") -> 1611 | K49: =IF(OR(TODAY()>r.real,'Balance Empresa'!$J49=""),"",IF(LEFT('Balance Empresa'!$J49)="9",'Balance Empresa'!$B49&". "&'Balance Empresa'!$C49,VLOOKUP(IF('Balance Empresa'!$I49<>"",'Balance Empresa'!$I49&"",'Balance Empresa'!$J49),BC_PCGEmpresarial!$A:$B,2,0))) -> 1611. Préstamos - Con garantía | N49: 285.00 | O49: 0.00 | P49: 0.00 | Q49: 0.00 | R49: 285.00 | S49: =IF(OR(TODAY()>r.real,'Balance Empresa'!$J49=""),"",IF(VLOOKUP('Balance Empresa'!$K49,t.casillas[],2)=0,"",VLOOKUP('Balance Empresa'!$K49,t.casillas[],2))) -> 364 | T49: =IF(OR('Balance Empresa'!$S49={"",0}),"",VLOOKUP(S49,t.codigos[],2)) -> Ctas por cobrar diversas - terceros | V49: 192 | W49: 367
B50: 161121 | C50: COBRANZA DIVERSAS PRESTAMOS S/GARANTIA MN (NO CTE) | D50: 43,777.79 | E50: 0.00 | F50: 0.00 | G50: 0.00 | H50: =IF('Balance Empresa'!$B50<>"",SUM('Balance Empresa'!$D50,-'Balance Empresa'!$E50,'Balance Empresa'!$F50,-'Balance Empresa'!$G50),"") -> 43,777.79 | J50: =IF(AND('Balance Empresa'!$B50<>"",IFERROR(VALUE(LEFT('Balance Empresa'!$B50,2)),FALSE)<>79),LEFT('Balance Empresa'!$B50,VLOOKUP('Balance Empresa'!$B50,t.caracter[],2)),"") -> 1611 | K50: =IF(OR(TODAY()>r.real,'Balance Empresa'!$J50=""),"",IF(LEFT('Balance Empresa'!$J50)="9",'Balance Empresa'!$B50&". "&'Balance Empresa'!$C50,VLOOKUP(IF('Balance Empresa'!$I50<>"",'Balance Empresa'!$I50&"",'Balance Empresa'!$J50),BC_PCGEmpresarial!$A:$B,2,0))) -> 1611. Préstamos - Con garantía | N50: 43,778.00 | O50: 0.00 | P50: 0.00 | Q50: 0.00 | R50: 43,778.00 | S50: =IF(OR(TODAY()>r.real,'Balance Empresa'!$J50=""),"",IF(VLOOKUP('Balance Empresa'!$K50,t.casillas[],2)=0,"",VLOOKUP('Balance Empresa'!$K50,t.casillas[],2))) -> 364 | T50: =IF(OR('Balance Empresa'!$S50={"",0}),"",VLOOKUP(S50,t.codigos[],2)) -> Ctas por cobrar diversas - terceros | V50: 193 | W50: 367
B51: 162301 | C51: RECLAMACIONES A TERCEROS ME | D51: 371.79 | E51: 0.00 | F51: 7.77 | G51: 21.63 | H51: =IF('Balance Empresa'!$B51<>"",SUM('Balance Empresa'!$D51,-'Balance Empresa'!$E51,'Balance Empresa'!$F51,-'Balance Empresa'!$G51),"") -> 357.93 | J51: =IF(AND('Balance Empresa'!$B51<>"",IFERROR(VALUE(LEFT('Balance Empresa'!$B51,2)),FALSE)<>79),LEFT('Balance Empresa'!$B51,VLOOKUP('Balance Empresa'!$B51,t.caracter[],2)),"") -> 1623 | K51: =IF(OR(TODAY()>r.real,'Balance Empresa'!$J51=""),"",IF(LEFT('Balance Empresa'!$J51)="9",'Balance Empresa'!$B51&". "&'Balance Empresa'!$C51,VLOOKUP(IF('Balance Empresa'!$I51<>"",'Balance Empresa'!$I51&"",'Balance Empresa'!$J51),BC_PCGEmpresarial!$A:$B,2,0))) -> 1623. Reclamaciones a terceros - Servicios públicos | N51: 372.00 | O51: 0.00 | P51: 8.00 | Q51: 22.00 | R51: 358.00 | S51: =IF(OR(TODAY()>r.real,'Balance Empresa'!$J51=""),"",IF(VLOOKUP('Balance Empresa'!$K51,t.casillas[],2)=0,"",VLOOKUP('Balance Empresa'!$K51,t.casillas[],2))) -> 364 | T51: =IF(OR('Balance Empresa'!$S51={"",0}),"",VLOOKUP(S51,t.codigos[],2)) -> Ctas por cobrar diversas - terceros | V51: 194 | W51: 367
B52: 162302 | C52: RECLAMACIONES A TERCEROS MN | D52: 1,504.19 | E52: 0.00 | F52: 2,300.64 | G52: 2,300.64 | H52: =IF('Balance Empresa'!$B52<>"",SUM('Balance Empresa'!$D52,-'Balance Empresa'!$E52,'Balance Empresa'!$F52,-'Balance Empresa'!$G52),"") -> 1,504.19 | J52: =IF(AND('Balance Empresa'!$B52<>"",IFERROR(VALUE(LEFT('Balance Empresa'!$B52,2)),FALSE)<>79),LEFT('Balance Empresa'!$B52,VLOOKUP('Balance Empresa'!$B52,t.caracter[],2)),"") -> 1623 | K52: =IF(OR(TODAY()>r.real,'Balance Empresa'!$J52=""),"",IF(LEFT('Balance Empresa'!$J52)="9",'Balance Empresa'!$B52&". "&'Balance Empresa'!$C52,VLOOKUP(IF('Balance Empresa'!$I52<>"",'Balance Empresa'!$I52&"",'Balance Empresa'!$J52),BC_PCGEmpresarial!$A:$B,2,0))) -> 1623. Reclamaciones a terceros - Servicios públicos | N52: 1,504.00 | O52: 0.00 | P52: 2,301.00 | Q52: 2,301.00 | R52: 1,504.00 | S52: =IF(OR(TODAY()>r.real,'Balance Empresa'!$J52=""),"",IF(VLOOKUP('Balance Empresa'!$K52,t.casillas[],2)=0,"",VLOOKUP('Balance Empresa'!$K52,t.casillas[],2))) -> 364 | T52: =IF(OR('Balance Empresa'!$S52={"",0}),"",VLOOKUP(S52,t.codigos[],2)) -> Ctas por cobrar diversas - terceros | V52: 195 | W52: 367
B53: 162402 | C53: RENTA PAGOS A CUENTA | D53: 4,108.03 | E53: 0.00 | F53: 12,312.12 | G53: 4,108.03 | H53: =IF('Balance Empresa'!$B53<>"",SUM('Balance Empresa'!$D53,-'Balance Empresa'!$E53,'Balance Empresa'!$F53,-'Balance Empresa'!$G53),"") -> 12,312.12 | J53: =IF(AND('Balance Empresa'!$B53<>"",IFERROR(VALUE(LEFT('Balance Empresa'!$B53,2)),FALSE)<>79),LEFT('Balance Empresa'!$B53,VLOOKUP('Balance Empresa'!$B53,t.caracter[],2)),"") -> 1624 | K53: =IF(OR(TODAY()>r.real,'Balance Empresa'!$J53=""),"",IF(LEFT('Balance Empresa'!$J53)="9",'Balance Empresa'!$B53&". "&'Balance Empresa'!$C53,VLOOKUP(IF('Balance Empresa'!$I53<>"",'Balance Empresa'!$I53&"",'Balance Empresa'!$J53),BC_PCGEmpresarial!$A:$B,2,0))) -> 1624. Reclamaciones a terceros - Tributos | N53: 4,108.00 | O53: 0.00 | P53: 12,312.00 | Q53: 4,108.00 | R53: 12,312.00 | S53: =IF(OR(TODAY()>r.real,'Balance Empresa'!$J53=""),"",IF(VLOOKUP('Balance Empresa'!$K53,t.casillas[],2)=0,"",VLOOKUP('Balance Empresa'!$K53,t.casillas[],2))) -> 364 | T53: =IF(OR('Balance Empresa'!$S53={"",0}),"",VLOOKUP(S53,t.codigos[],2)) -> Ctas por cobrar diversas - terceros | V53: 201 | W53: 368
B54: 162403 | C54: RENTA ITAN | D54: 14,853.45 | E54: 0.00 | F54: 22,415.95 | G54: 14,853.45 | H54: =IF('Balance Empresa'!$B54<>"",SUM('Balance Empresa'!$D54,-'Balance Empresa'!$E54,'Balance Empresa'!$F54,-'Balance Empresa'!$G54),"") -> 22,415.95 | J54: =IF(AND('Balance Empresa'!$B54<>"",IFERROR(VALUE(LEFT('Balance Empresa'!$B54,2)),FALSE)<>79),LEFT('Balance Empresa'!$B54,VLOOKUP('Balance Empresa'!$B54,t.caracter[],2)),"") -> 1624 | K54: =IF(OR(TODAY()>r.real,'Balance Empresa'!$J54=""),"",IF(LEFT('Balance Empresa'!$J54)="9",'Balance Empresa'!$B54&". "&'Balance Empresa'!$C54,VLOOKUP(IF('Balance Empresa'!$I54<>"",'Balance Empresa'!$I54&"",'Balance Empresa'!$J54),BC_PCGEmpresarial!$A:$B,2,0))) -> 1624. Reclamaciones a terceros - Tributos | N54: 14,853.00 | O54: 0.00 | P54: 22,416.00 | Q54: 14,853.00 | R54: 22,416.00 | S54: =IF(OR(TODAY()>r.real,'Balance Empresa'!$J54=""),"",IF(VLOOKUP('Balance Empresa'!$K54,t.casillas[],2)=0,"",VLOOKUP('Balance Empresa'!$K54,t.casillas[],2))) -> 364 | T54: =IF(OR('Balance Empresa'!$S54={"",0}),"",VLOOKUP(S54,t.codigos[],2)) -> Ctas por cobrar diversas - terceros | V54: 202 | W54: 368
B55: 162404 | C55: CREDITO ANUAL RENTA | D55: 88,232.03 | E55: 0.00 | F55: 4,108.03 | G55: 0.00 | H55: =IF('Balance Empresa'!$B55<>"",SUM('Balance Empresa'!$D55,-'Balance Empresa'!$E55,'Balance Empresa'!$F55,-'Balance Empresa'!$G55),"") -> 92,340.06 | J55: =IF(AND('Balance Empresa'!$B55<>"",IFERROR(VALUE(LEFT('Balance Empresa'!$B55,2)),FALSE)<>79),LEFT('Balance Empresa'!$B55,VLOOKUP('Balance Empresa'!$B55,t.caracter[],2)),"") -> 1624 | K55: =IF(OR(TODAY()>r.real,'Balance Empresa'!$J55=""),"",IF(LEFT('Balance Empresa'!$J55)="9",'Balance Empresa'!$B55&". "&'Balance Empresa'!$C55,VLOOKUP(IF('Balance Empresa'!$I55<>"",'Balance Empresa'!$I55&"",'Balance Empresa'!$J55),BC_PCGEmpresarial!$A:$B,2,0))) -> 1624. Reclamaciones a terceros - Tributos | N55: 88,232.00 | O55: 0.00 | P55: 4,108.00 | Q55: 0.00 | R55: 92,340.00 | S55: =IF(OR(TODAY()>r.real,'Balance Empresa'!$J55=""),"",IF(VLOOKUP('Balance Empresa'!$K55,t.casillas[],2)=0,"",VLOOKUP('Balance Empresa'!$K55,t.casillas[],2))) -> 364 | T55: =IF(OR('Balance Empresa'!$S55={"",0}),"",VLOOKUP(S55,t.codigos[],2)) -> Ctas por cobrar diversas - terceros | V55: 203 | W55: 368
B56: 162423 | C56: RENTA ITAN (NO CTE) | D56: 37,530.71 | E56: 0.00 | F56: 0.00 | G56: 0.00 | H56: =IF('Balance Empresa'!$B56<>"",SUM('Balance Empresa'!$D56,-'Balance Empresa'!$E56,'Balance Empresa'!$F56,-'Balance Empresa'!$G56),"") -> 37,530.71 | J56: =IF(AND('Balance Empresa'!$B56<>"",IFERROR(VALUE(LEFT('Balance Empresa'!$B56,2)),FALSE)<>79),LEFT('Balance Empresa'!$B56,VLOOKUP('Balance Empresa'!$B56,t.caracter[],2)),"") -> 1624 | K56: =IF(OR(TODAY()>r.real,'Balance Empresa'!$J56=""),"",IF(LEFT('Balance Empresa'!$J56)="9",'Balance Empresa'!$B56&". "&'Balance Empresa'!$C56,VLOOKUP(IF('Balance Empresa'!$I56<>"",'Balance Empresa'!$I56&"",'Balance Empresa'!$J56),BC_PCGEmpresarial!$A:$B,2,0))) -> 1624. Reclamaciones a terceros - Tributos | N56: 37,531.00 | O56: 0.00 | P56: 0.00 | Q56: 0.00 | R56: 37,531.00 | S56: =IF(OR(TODAY()>r.real,'Balance Empresa'!$J56=""),"",IF(VLOOKUP('Balance Empresa'!$K56,t.casillas[],2)=0,"",VLOOKUP('Balance Empresa'!$K56,t.casillas[],2))) -> 364 | T56: =IF(OR('Balance Empresa'!$S56={"",0}),"",VLOOKUP(S56,t.codigos[],2)) -> Ctas por cobrar diversas - terceros | V56: 204 | W56: 368
B57: 162425 | C57: CREDITO IGV (NO CTE) | D57: 68,786.04 | E57: 0.00 | F57: 0.00 | G57: 0.00 | H57: =IF('Balance Empresa'!$B57<>"",SUM('Balance Empresa'!$D57,-'Balance Empresa'!$E57,'Balance Empresa'!$F57,-'Balance Empresa'!$G57),"") -> 68,786.04 | J57: =IF(AND('Balance Empresa'!$B57<>"",IFERROR(VALUE(LEFT('Balance Empresa'!$B57,2)),FALSE)<>79),LEFT('Balance Empresa'!$B57,VLOOKUP('Balance Empresa'!$B57,t.caracter[],2)),"") -> 1624 | K57: =IF(OR(TODAY()>r.real,'Balance Empresa'!$J57=""),"",IF(LEFT('Balance Empresa'!$J57)="9",'Balance Empresa'!$B57&". "&'Balance Empresa'!$C57,VLOOKUP(IF('Balance Empresa'!$I57<>"",'Balance Empresa'!$I57&"",'Balance Empresa'!$J57),BC_PCGEmpresarial!$A:$B,2,0))) -> 1624. Reclamaciones a terceros - Tributos | N57: 68,786.00 | O57: 0.00 | P57: 0.00 | Q57: 0.00 | R57: 68,786.00 | S57: =IF(OR(TODAY()>r.real,'Balance Empresa'!$J57=""),"",IF(VLOOKUP('Balance Empresa'!$K57,t.casillas[],2)=0,"",VLOOKUP('Balance Empresa'!$K57,t.casillas[],2))) -> 364 | T57: =IF(OR('Balance Empresa'!$S57={"",0}),"",VLOOKUP(S57,t.codigos[],2)) -> Ctas por cobrar diversas - terceros | V57: 208 | W57: 368
B58: 164901 | C58: DEPOSITOS EN GARANTIA M.N. | D58: 185,716.81 | E58: 0.00 | F58: 0.01 | G58: 102,810.73 | H58: =IF('Balance Empresa'!$B58<>"",SUM('Balance Empresa'!$D58,-'Balance Empresa'!$E58,'Balance Empresa'!$F58,-'Balance Empresa'!$G58),"") -> 82,906.09 | J58: =IF(AND('Balance Empresa'!$B58<>"",IFERROR(VALUE(LEFT('Balance Empresa'!$B58,2)),FALSE)<>79),LEFT('Balance Empresa'!$B58,VLOOKUP('Balance Empresa'!$B58,t.caracter[],2)),"") -> 1649 | K58: =IF(OR(TODAY()>r.real,'Balance Empresa'!$J58=""),"",IF(LEFT('Balance Empresa'!$J58)="9",'Balance Empresa'!$B58&". "&'Balance Empresa'!$C58,VLOOKUP(IF('Balance Empresa'!$I58<>"",'Balance Empresa'!$I58&"",'Balance Empresa'!$J58),BC_PCGEmpresarial!$A:$B,2,0))) -> 1649. Depósitos otorgados en garantía - Otros depósitos en garantía | N58: 185,717.00 | O58: 0.00 | P58: 0.00 | Q58: 102,811.00 | R58: 82,906.00 | S58: =IF(OR(TODAY()>r.real,'Balance Empresa'!$J58=""),"",IF(VLOOKUP('Balance Empresa'!$K58,t.casillas[],2)=0,"",VLOOKUP('Balance Empresa'!$K58,t.casillas[],2))) -> 364 | T58: =IF(OR('Balance Empresa'!$S58={"",0}),"",VLOOKUP(S58,t.codigos[],2)) -> Ctas por cobrar diversas - terceros | V58: 211 | W58: 369
B59: 164902 | C59: DEPOSITOS EN GARANTIA M.E. | D59: 68,654.05 | E59: 0.00 | F59: 1,075.27 | G59: 44,944.13 | H59: =IF('Balance Empresa'!$B59<>"",SUM('Balance Empresa'!$D59,-'Balance Empresa'!$E59,'Balance Empresa'!$F59,-'Balance Empresa'!$G59),"") -> 24,785.19 | J59: =IF(AND('Balance Empresa'!$B59<>"",IFERROR(VALUE(LEFT('Balance Empresa'!$B59,2)),FALSE)<>79),LEFT('Balance Empresa'!$B59,VLOOKUP('Balance Empresa'!$B59,t.caracter[],2)),"") -> 1649 | K59: =IF(OR(TODAY()>r.real,'Balance Empresa'!$J59=""),"",IF(LEFT('Balance Empresa'!$J59)="9",'Balance Empresa'!$B59&". "&'Balance Empresa'!$C59,VLOOKUP(IF('Balance Empresa'!$I59<>"",'Balance Empresa'!$I59&"",'Balance Empresa'!$J59),BC_PCGEmpresarial!$A:$B,2,0))) -> 1649. Depósitos otorgados en garantía - Otros depósitos en garantía | N59: 68,654.00 | O59: 0.00 | P59: 1,075.00 | Q59: 44,944.00 | R59: 24,785.00 | S59: =IF(OR(TODAY()>r.real,'Balance Empresa'!$J59=""),"",IF(VLOOKUP('Balance Empresa'!$K59,t.casillas[],2)=0,"",VLOOKUP('Balance Empresa'!$K59,t.casillas[],2))) -> 364 | T59: =IF(OR('Balance Empresa'!$S59={"",0}),"",VLOOKUP(S59,t.codigos[],2)) -> Ctas por cobrar diversas - terceros | V59: 212 | W59: 369
B60: 168901 | C60: ENTREGAS A RENDIR CUENTA TERCEROS | D60: 125.81 | E60: 0.00 | F60: 2,134.40 | G60: 1,246.87 | H60: =IF('Balance Empresa'!$B60<>"",SUM('Balance Empresa'!$D60,-'Balance Empresa'!$E60,'Balance Empresa'!$F60,-'Balance Empresa'!$G60),"") -> 1,013.34 | I60: 1682 | J60: =IF(AND('Balance Empresa'!$B60<>"",IFERROR(VALUE(LEFT('Balance Empresa'!$B60,2)),FALSE)<>79),LEFT('Balance Empresa'!$B60,VLOOKUP('Balance Empresa'!$B60,t.caracter[],2)),"") -> 1689 | K60: =IF(OR(TODAY()>r.real,'Balance Empresa'!$J60=""),"",IF(LEFT('Balance Empresa'!$J60)="9",'Balance Empresa'!$B60&". "&'Balance Empresa'!$C60,VLOOKUP(IF('Balance Empresa'!$I60<>"",'Balance Empresa'!$I60&"",'Balance Empresa'!$J60),BC_PCGEmpresarial!$A:$B,2,0))) -> 1682. Otras cuentas por cobrar diversas - Otras cuentas por cobrar diversas | N60: 126.00 | O60: 0.00 | P60: 2,134.00 | Q60: 1,247.00 | R60: 1,013.00 | S60: =IF(OR(TODAY()>r.real,'Balance Empresa'!$J60=""),"",IF(VLOOKUP('Balance Empresa'!$K60,t.casillas[],2)=0,"",VLOOKUP('Balance Empresa'!$K60,t.casillas[],2))) -> 364 | T60: =IF(OR('Balance Empresa'!$S60={"",0}),"",VLOOKUP(S60,t.codigos[],2)) -> Ctas por cobrar diversas - terceros | V60: 213 | W60: 369
B61: 168902 | C61: ENTREGAS A RENDIR CUENTA TERCEROS ME | D61: 35,237.11 | E61: 0.00 | F61: 735.86 | G61: 2,049.89 | H61: =IF('Balance Empresa'!$B61<>"",SUM('Balance Empresa'!$D61,-'Balance Empresa'!$E61,'Balance Empresa'!$F61,-'Balance Empresa'!$G61),"") -> 33,923.07 | I61: 1682 | J61: =IF(AND('Balance Empresa'!$B61<>"",IFERROR(VALUE(LEFT('Balance Empresa'!$B61,2)),FALSE)<>79),LEFT('Balance Empresa'!$B61,VLOOKUP('Balance Empresa'!$B61,t.caracter[],2)),"") -> 1689 | K61: =IF(OR(TODAY()>r.real,'Balance Empresa'!$J61=""),"",IF(LEFT('Balance Empresa'!$J61)="9",'Balance Empresa'!$B61&". "&'Balance Empresa'!$C61,VLOOKUP(IF('Balance Empresa'!$I61<>"",'Balance Empresa'!$I61&"",'Balance Empresa'!$J61),BC_PCGEmpresarial!$A:$B,2,0))) -> 1682. Otras cuentas por cobrar diversas - Otras cuentas por cobrar diversas | N61: 35,237.00 | O61: 0.00 | P61: 736.00 | Q61: 2,050.00 | R61: 33,923.00 | S61: =IF(OR(TODAY()>r.real,'Balance Empresa'!$J61=""),"",IF(VLOOKUP('Balance Empresa'!$K61,t.casillas[],2)=0,"",VLOOKUP('Balance Empresa'!$K61,t.casillas[],2))) -> 364 | T61: =IF(OR('Balance Empresa'!$S61={"",0}),"",VLOOKUP(S61,t.codigos[],2)) -> Ctas por cobrar diversas - terceros | V61: 214 | W61: 369
B62: 168903 | C62: SUBSIDIOS POR COBRAR | D62: 0.00 | E62: 0.00 | F62: 3,010.75 | G62: 0.00 | H62: =IF('Balance Empresa'!$B62<>"",SUM('Balance Empresa'!$D62,-'Balance Empresa'!$E62,'Balance Empresa'!$F62,-'Balance Empresa'!$G62),"") -> 3,010.75 | I62: 1682 | J62: =IF(AND('Balance Empresa'!$B62<>"",IFERROR(VALUE(LEFT('Balance Empresa'!$B62,2)),FALSE)<>79),LEFT('Balance Empresa'!$B62,VLOOKUP('Balance Empresa'!$B62,t.caracter[],2)),"") -> 1689 | K62: =IF(OR(TODAY()>r.real,'Balance Empresa'!$J62=""),"",IF(LEFT('Balance Empresa'!$J62)="9",'Balance Empresa'!$B62&". "&'Balance Empresa'!$C62,VLOOKUP(IF('Balance Empresa'!$I62<>"",'Balance Empresa'!$I62&"",'Balance Empresa'!$J62),BC_PCGEmpresarial!$A:$B,2,0))) -> 1682. Otras cuentas por cobrar diversas - Otras cuentas por cobrar diversas | N62: 0.00 | O62: 0.00 | P62: 3,011.00 | Q62: 0.00 | R62: 3,011.00 | S62: =IF(OR(TODAY()>r.real,'Balance Empresa'!$J62=""),"",IF(VLOOKUP('Balance Empresa'!$K62,t.casillas[],2)=0,"",VLOOKUP('Balance Empresa'!$K62,t.casillas[],2))) -> 364 | T62: =IF(OR('Balance Empresa'!$S62={"",0}),"",VLOOKUP(S62,t.codigos[],2)) -> Ctas por cobrar diversas - terceros | V62: 215 | W62: 369
B63: 171231 | C63: COB. DIV. PREST. S/GARANTIA ASOCIADA MN | D63: 189,192.09 | E63: 0.00 | F63: 2,049.46 | G63: 93,335.75 | H63: =IF('Balance Empresa'!$B63<>"",SUM('Balance Empresa'!$D63,-'Balance Empresa'!$E63,'Balance Empresa'!$F63,-'Balance Empresa'!$G63),"") -> 97,905.80 | J63: =IF(AND('Balance Empresa'!$B63<>"",IFERROR(VALUE(LEFT('Balance Empresa'!$B63,2)),FALSE)<>79),LEFT('Balance Empresa'!$B63,VLOOKUP('Balance Empresa'!$B63,t.caracter[],2)),"") -> 17123 | K63: =IF(OR(TODAY()>r.real,'Balance Empresa'!$J63=""),"",IF(LEFT('Balance Empresa'!$J63)="9",'Balance Empresa'!$B63&". "&'Balance Empresa'!$C63,VLOOKUP(IF('Balance Empresa'!$I63<>"",'Balance Empresa'!$I63&"",'Balance Empresa'!$J63),BC_PCGEmpresarial!$A:$B,2,0))) -> 17123. Préstamos - Sin garantía - Asociadas | N63: 189,192.00 | O63: 0.00 | P63: 2,049.00 | Q63: 93,336.00 | R63: 97,905.00 | S63: =IF(OR(TODAY()>r.real,'Balance Empresa'!$J63=""),"",IF(VLOOKUP('Balance Empresa'!$K63,t.casillas[],2)=0,"",VLOOKUP('Balance Empresa'!$K63,t.casillas[],2))) -> 365 | T63: =IF(OR('Balance Empresa'!$S63={"",0}),"",VLOOKUP(S63,t.codigos[],2)) -> Ctas por cobrar diversas - relacionados | V63: 217 | W63: 369
B64: 171233 | C64: COB. DIV. PREST. S/GARANTIA ASOCIADA MN (NO CTE) | D64: 21,018.90 | E64: 0.00 | F64: 0.00 | G64: 0.00 | H64: =IF('Balance Empresa'!$B64<>"",SUM('Balance Empresa'!$D64,-'Balance Empresa'!$E64,'Balance Empresa'!$F64,-'Balance Empresa'!$G64),"") -> 21,018.90 | J64: =IF(AND('Balance Empresa'!$B64<>"",IFERROR(VALUE(LEFT('Balance Empresa'!$B64,2)),FALSE)<>79),LEFT('Balance Empresa'!$B64,VLOOKUP('Balance Empresa'!$B64,t.caracter[],2)),"") -> 17123 | K64: =IF(OR(TODAY()>r.real,'Balance Empresa'!$J64=""),"",IF(LEFT('Balance Empresa'!$J64)="9",'Balance Empresa'!$B64&". "&'Balance Empresa'!$C64,VLOOKUP(IF('Balance Empresa'!$I64<>"",'Balance Empresa'!$I64&"",'Balance Empresa'!$J64),BC_PCGEmpresarial!$A:$B,2,0))) -> 17123. Préstamos - Sin garantía - Asociadas | N64: 21,019.00 | O64: 0.00 | P64: 0.00 | Q64: 0.00 | R64: 21,019.00 | S64: =IF(OR(TODAY()>r.real,'Balance Empresa'!$J64=""),"",IF(VLOOKUP('Balance Empresa'!$K64,t.casillas[],2)=0,"",VLOOKUP('Balance Empresa'!$K64,t.casillas[],2))) -> 365 | T64: =IF(OR('Balance Empresa'!$S64={"",0}),"",VLOOKUP(S64,t.codigos[],2)) -> Ctas por cobrar diversas - relacionados | V64: 218 | W64: 369
B65: 171234 | C65: COB. DIV. PREST. S/GARANTIA ASOCIADA ME (NO CTE) | D65: 115,527.06 | E65: 0.00 | F65: 2,412.57 | G65: 6,720.70 | H65: =IF('Balance Empresa'!$B65<>"",SUM('Balance Empresa'!$D65,-'Balance Empresa'!$E65,'Balance Empresa'!$F65,-'Balance Empresa'!$G65),"") -> 111,218.93 | J65: =IF(AND('Balance Empresa'!$B65<>"",IFERROR(VALUE(LEFT('Balance Empresa'!$B65,2)),FALSE)<>79),LEFT('Balance Empresa'!$B65,VLOOKUP('Balance Empresa'!$B65,t.caracter[],2)),"") -> 17123 | K65: =IF(OR(TODAY()>r.real,'Balance Empresa'!$J65=""),"",IF(LEFT('Balance Empresa'!$J65)="9",'Balance Empresa'!$B65&". "&'Balance Empresa'!$C65,VLOOKUP(IF('Balance Empresa'!$I65<>"",'Balance Empresa'!$I65&"",'Balance Empresa'!$J65),BC_PCGEmpresarial!$A:$B,2,0))) -> 17123. Préstamos - Sin garantía - Asociadas | N65: 115,527.00 | O65: 0.00 | P65: 2,413.00 | Q65: 6,721.00 | R65: 111,219.00 | S65: =IF(OR(TODAY()>r.real,'Balance Empresa'!$J65=""),"",IF(VLOOKUP('Balance Empresa'!$K65,t.casillas[],2)=0,"",VLOOKUP('Balance Empresa'!$K65,t.casillas[],2))) -> 365 | T65: =IF(OR('Balance Empresa'!$S65={"",0}),"",VLOOKUP(S65,t.codigos[],2)) -> Ctas por cobrar diversas - relacionados | V65: 221 | W65: 370
B66: 171235 | C66: COB. DIV. PREST. S/GARANTIA ASOCIADA ARBITRAJE ME | D66: 68,421.41 | E66: 0.00 | F66: 1,428.85 | G66: 3,980.36 | H66: =IF('Balance Empresa'!$B66<>"",SUM('Balance Empresa'!$D66,-'Balance Empresa'!$E66,'Balance Empresa'!$F66,-'Balance Empresa'!$G66),"") -> 65,869.90 | J66: =IF(AND('Balance Empresa'!$B66<>"",IFERROR(VALUE(LEFT('Balance Empresa'!$B66,2)),FALSE)<>79),LEFT('Balance Empresa'!$B66,VLOOKUP('Balance Empresa'!$B66,t.caracter[],2)),"") -> 17123 | K66: =IF(OR(TODAY()>r.real,'Balance Empresa'!$J66=""),"",IF(LEFT('Balance Empresa'!$J66)="9",'Balance Empresa'!$B66&". "&'Balance Empresa'!$C66,VLOOKUP(IF('Balance Empresa'!$I66<>"",'Balance Empresa'!$I66&"",'Balance Empresa'!$J66),BC_PCGEmpresarial!$A:$B,2,0))) -> 17123. Préstamos - Sin garantía - Asociadas | N66: 68,421.00 | O66: 0.00 | P66: 1,429.00 | Q66: 3,980.00 | R66: 65,870.00 | S66: =IF(OR(TODAY()>r.real,'Balance Empresa'!$J66=""),"",IF(VLOOKUP('Balance Empresa'!$K66,t.casillas[],2)=0,"",VLOOKUP('Balance Empresa'!$K66,t.casillas[],2))) -> 365 | T66: =IF(OR('Balance Empresa'!$S66={"",0}),"",VLOOKUP(S66,t.codigos[],2)) -> Ctas por cobrar diversas - relacionados | V66: 222 | W66: 370
B67: 171236 | C67: COB. DIV. PREST. S/GARANTIA ASOCIADA ARBITRAJE MN | D67: 44,940.37 | E67: 0.00 | F67: 0.00 | G67: 0.00 | H67: =IF('Balance Empresa'!$B67<>"",SUM('Balance Empresa'!$D67,-'Balance Empresa'!$E67,'Balance Empresa'!$F67,-'Balance Empresa'!$G67),"") -> 44,940.37 | J67: =IF(AND('Balance Empresa'!$B67<>"",IFERROR(VALUE(LEFT('Balance Empresa'!$B67,2)),FALSE)<>79),LEFT('Balance Empresa'!$B67,VLOOKUP('Balance Empresa'!$B67,t.caracter[],2)),"") -> 17123 | K67: =IF(OR(TODAY()>r.real,'Balance Empresa'!$J67=""),"",IF(LEFT('Balance Empresa'!$J67)="9",'Balance Empresa'!$B67&". "&'Balance Empresa'!$C67,VLOOKUP(IF('Balance Empresa'!$I67<>"",'Balance Empresa'!$I67&"",'Balance Empresa'!$J67),BC_PCGEmpresarial!$A:$B,2,0))) -> 17123. Préstamos - Sin garantía - Asociadas | N67: 44,940.00 | O67: 0.00 | P67: 0.00 | Q67: 0.00 | R67: 44,940.00 | S67: =IF(OR(TODAY()>r.real,'Balance Empresa'!$J67=""),"",IF(VLOOKUP('Balance Empresa'!$K67,t.casillas[],2)=0,"",VLOOKUP('Balance Empresa'!$K67,t.casillas[],2))) -> 365 | T67: =IF(OR('Balance Empresa'!$S67={"",0}),"",VLOOKUP(S67,t.codigos[],2)) -> Ctas por cobrar diversas - relacionados | V67: 231 | W67: 371
B68: 171237 | C68: COB. DIV. PREST. S/GARANTIA ASOCIADA INCOBRABLE | D68: 45,241.00 | E68: 0.00 | F68: 944.77 | G68: 2,631.86 | H68: =IF('Balance Empresa'!$B68<>"",SUM('Balance Empresa'!$D68,-'Balance Empresa'!$E68,'Balance Empresa'!$F68,-'Balance Empresa'!$G68),"") -> 43,553.92 | J68: =IF(AND('Balance Empresa'!$B68<>"",IFERROR(VALUE(LEFT('Balance Empresa'!$B68,2)),FALSE)<>79),LEFT('Balance Empresa'!$B68,VLOOKUP('Balance Empresa'!$B68,t.caracter[],2)),"") -> 17123 | K68: =IF(OR(TODAY()>r.real,'Balance Empresa'!$J68=""),"",IF(LEFT('Balance Empresa'!$J68)="9",'Balance Empresa'!$B68&". "&'Balance Empresa'!$C68,VLOOKUP(IF('Balance Empresa'!$I68<>"",'Balance Empresa'!$I68&"",'Balance Empresa'!$J68),BC_PCGEmpresarial!$A:$B,2,0))) -> 17123. Préstamos - Sin garantía - Asociadas | N68: 45,241.00 | O68: 0.00 | P68: 945.00 | Q68: 2,632.00 | R68: 43,554.00 | S68: =IF(OR(TODAY()>r.real,'Balance Empresa'!$J68=""),"",IF(VLOOKUP('Balance Empresa'!$K68,t.casillas[],2)=0,"",VLOOKUP('Balance Empresa'!$K68,t.casillas[],2))) -> 365 | T68: =IF(OR('Balance Empresa'!$S68={"",0}),"",VLOOKUP(S68,t.codigos[],2)) -> Ctas por cobrar diversas - relacionados | V68: 232 | W68: 371
B69: 171242 | C69: CBZA. DIVERSA PRESTAMOS S/GARANTIA SUCURS.RELAC ME | D69: 181,161.94 | E69: 0.00 | F69: 3,783.21 | G69: 10,538.96 | H69: =IF('Balance Empresa'!$B69<>"",SUM('Balance Empresa'!$D69,-'Balance Empresa'!$E69,'Balance Empresa'!$F69,-'Balance Empresa'!$G69),"") -> 174,406.20 | J69: =IF(AND('Balance Empresa'!$B69<>"",IFERROR(VALUE(LEFT('Balance Empresa'!$B69,2)),FALSE)<>79),LEFT('Balance Empresa'!$B69,VLOOKUP('Balance Empresa'!$B69,t.caracter[],2)),"") -> 17124 | K69: =IF(OR(TODAY()>r.real,'Balance Empresa'!$J69=""),"",IF(LEFT('Balance Empresa'!$J69)="9",'Balance Empresa'!$B69&". "&'Balance Empresa'!$C69,VLOOKUP(IF('Balance Empresa'!$I69<>"",'Balance Empresa'!$I69&"",'Balance Empresa'!$J69),BC_PCGEmpresarial!$A:$B,2,0))) -> 17124. Préstamos - Sin garantía - Sucursales | N69: 181,162.00 | O69: 0.00 | P69: 3,783.00 | Q69: 10,539.00 | R69: 174,406.00 | S69: =IF(OR(TODAY()>r.real,'Balance Empresa'!$J69=""),"",IF(VLOOKUP('Balance Empresa'!$K69,t.casillas[],2)=0,"",VLOOKUP('Balance Empresa'!$K69,t.casillas[],2))) -> 365 | T69: =IF(OR('Balance Empresa'!$S69={"",0}),"",VLOOKUP(S69,t.codigos[],2)) -> Ctas por cobrar diversas - relacionados | V69: 233 | W69: 371
B70: 173142 | C70: GASTOS, COMISIONES POR COBRAR A NICARAGUA | D70: 22,669.03 | E70: 0.00 | F70: 773.20 | G70: 1,331.97 | H70: =IF('Balance Empresa'!$B70<>"",SUM('Balance Empresa'!$D70,-'Balance Empresa'!$E70,'Balance Empresa'!$F70,-'Balance Empresa'!$G70),"") -> 22,110.26 | J70: =IF(AND('Balance Empresa'!$B70<>"",IFERROR(VALUE(LEFT('Balance Empresa'!$B70,2)),FALSE)<>79),LEFT('Balance Empresa'!$B70,VLOOKUP('Balance Empresa'!$B70,t.caracter[],2)),"") -> 17314 | K70: =IF(OR(TODAY()>r.real,'Balance Empresa'!$J70=""),"",IF(LEFT('Balance Empresa'!$J70)="9",'Balance Empresa'!$B70&". "&'Balance Empresa'!$C70,VLOOKUP(IF('Balance Empresa'!$I70<>"",'Balance Empresa'!$I70&"",'Balance Empresa'!$J70),BC_PCGEmpresarial!$A:$B,2,0))) -> 17314. Intereses, regalías y dividendos - Intereses - Sucursales | N70: 22,669.00 | O70: 0.00 | P70: 773.00 | Q70: 1,332.00 | R70: 22,110.00 | S70: =IF(OR(TODAY()>r.real,'Balance Empresa'!$J70=""),"",IF(VLOOKUP('Balance Empresa'!$K70,t.casillas[],2)=0,"",VLOOKUP('Balance Empresa'!$K70,t.casillas[],2))) -> 365 | T70: =IF(OR('Balance Empresa'!$S70={"",0}),"",VLOOKUP(S70,t.codigos[],2)) -> Ctas por cobrar diversas - relacionados | V70: 234 | W70: 371
B71: 173310 | C71: DIVIDENDOS ACCIONISTAS MM | D71: 868,757.22 | E71: 0.00 | F71: 9,904.64 | G71: 0.00 | H71: =IF('Balance Empresa'!$B71<>"",SUM('Balance Empresa'!$D71,-'Balance Empresa'!$E71,'Balance Empresa'!$F71,-'Balance Empresa'!$G71),"") -> 878,661.86 | J71: =IF(AND('Balance Empresa'!$B71<>"",IFERROR(VALUE(LEFT('Balance Empresa'!$B71,2)),FALSE)<>79),LEFT('Balance Empresa'!$B71,VLOOKUP('Balance Empresa'!$B71,t.caracter[],2)),"") -> 17331 | K71: =IF(OR(TODAY()>r.real,'Balance Empresa'!$J71=""),"",IF(LEFT('Balance Empresa'!$J71)="9",'Balance Empresa'!$B71&". "&'Balance Empresa'!$C71,VLOOKUP(IF('Balance Empresa'!$I71<>"",'Balance Empresa'!$I71&"",'Balance Empresa'!$J71),BC_PCGEmpresarial!$A:$B,2,0))) -> 17331. Intereses, regalías y dividendos - Dividendos - Matriz | N71: =IF($J71="","",ROUND(D71,0)+IF($L71=N$6,$M71,0)) -> 868,757.00 | O71: =IF($J71="","",ROUND(E71,0)+IF($L71=O$6,$M71,0)) -> 0.00 | P71: =IF($J71="","",ROUND(F71,0)+IF($L71=P$6,$M71,0)) -> 9,905.00 | Q71: =IF($J71="","",ROUND(G71,0)+IF($L71=Q$6,$M71,0)) -> 0.00 | R71: 878,662.00 | S71: =IF(OR(TODAY()>r.real,'Balance Empresa'!$J71=""),"",IF(VLOOKUP('Balance Empresa'!$K71,t.casillas[],2)=0,"",VLOOKUP('Balance Empresa'!$K71,t.casillas[],2))) -> 365 | T71: =IF(OR('Balance Empresa'!$S71={"",0}),"",VLOOKUP(S71,t.codigos[],2)) -> Ctas por cobrar diversas - relacionados | V71: 235 | W71: 371
B72: 173331 | C72: DIVIDENDOS CONSORCIOS | D72: 329,722.71 | E72: 0.00 | F72: 6,885.62 | G72: 19,181.37 | H72: =IF('Balance Empresa'!$B72<>"",SUM('Balance Empresa'!$D72,-'Balance Empresa'!$E72,'Balance Empresa'!$F72,-'Balance Empresa'!$G72),"") -> 317,426.97 | J72: =IF(AND('Balance Empresa'!$B72<>"",IFERROR(VALUE(LEFT('Balance Empresa'!$B72,2)),FALSE)<>79),LEFT('Balance Empresa'!$B72,VLOOKUP('Balance Empresa'!$B72,t.caracter[],2)),"") -> 17333 | K72: =IF(OR(TODAY()>r.real,'Balance Empresa'!$J72=""),"",IF(LEFT('Balance Empresa'!$J72)="9",'Balance Empresa'!$B72&". "&'Balance Empresa'!$C72,VLOOKUP(IF('Balance Empresa'!$I72<>"",'Balance Empresa'!$I72&"",'Balance Empresa'!$J72),BC_PCGEmpresarial!$A:$B,2,0))) -> 17333. Intereses, regalías y dividendos - Dividendos - Asociadas | N72: 329,723.00 | O72: 0.00 | P72: 6,886.00 | Q72: 19,181.00 | R72: =IF($J72="","",SUM(N72,-O72,P72,-Q72)) -> 317,428.00 | S72: =IF(OR(TODAY()>r.real,'Balance Empresa'!$J72=""),"",IF(VLOOKUP('Balance Empresa'!$K72,t.casillas[],2)=0,"",VLOOKUP('Balance Empresa'!$K72,t.casillas[],2))) -> 365 | T72: =IF(OR('Balance Empresa'!$S72={"",0}),"",VLOOKUP(S72,t.codigos[],2)) -> Ctas por cobrar diversas - relacionados | V72: 237 | W72: 371
B73: 173341 | C73: INTERESES, REGALIAS, DIVIDENDOS OTROS | D73: 30,778.08 | E73: 0.00 | F73: 0.00 | G73: 0.00 | H73: =IF('Balance Empresa'!$B73<>"",SUM('Balance Empresa'!$D73,-'Balance Empresa'!$E73,'Balance Empresa'!$F73,-'Balance Empresa'!$G73),"") -> 30,778.08 | J73: =IF(AND('Balance Empresa'!$B73<>"",IFERROR(VALUE(LEFT('Balance Empresa'!$B73,2)),FALSE)<>79),LEFT('Balance Empresa'!$B73,VLOOKUP('Balance Empresa'!$B73,t.caracter[],2)),"") -> 17334 | K73: =IF(OR(TODAY()>r.real,'Balance Empresa'!$J73=""),"",IF(LEFT('Balance Empresa'!$J73)="9",'Balance Empresa'!$B73&". "&'Balance Empresa'!$C73,VLOOKUP(IF('Balance Empresa'!$I73<>"",'Balance Empresa'!$I73&"",'Balance Empresa'!$J73),BC_PCGEmpresarial!$A:$B,2,0))) -> 17334. Intereses, regalías y dividendos - Dividendos - Otros | N73: 30,778.00 | O73: 0.00 | P73: 0.00 | Q73: 0.00 | R73: 30,778.00 | S73: =IF(OR(TODAY()>r.real,'Balance Empresa'!$J73=""),"",IF(VLOOKUP('Balance Empresa'!$K73,t.casillas[],2)=0,"",VLOOKUP('Balance Empresa'!$K73,t.casillas[],2))) -> 365 | T73: =IF(OR('Balance Empresa'!$S73={"",0}),"",VLOOKUP(S73,t.codigos[],2)) -> Ctas por cobrar diversas - relacionados | V73: 238 | W73: 371
B74: 181101 | C74: COSTOS FINANCIEROS M.N. | D74: 1,280.93 | E74: 0.00 | F74: 22,367.65 | G74: 21,521.18 | H74: =IF('Balance Empresa'!$B74<>"",SUM('Balance Empresa'!$D74,-'Balance Empresa'!$E74,'Balance Empresa'!$F74,-'Balance Empresa'!$G74),"") -> 2,127.39 | J74: =IF(AND('Balance Empresa'!$B74<>"",IFERROR(VALUE(LEFT('Balance Empresa'!$B74,2)),FALSE)<>79),LEFT('Balance Empresa'!$B74,VLOOKUP('Balance Empresa'!$B74,t.caracter[],2)),"") -> 181 | K74: =IF(OR(TODAY()>r.real,'Balance Empresa'!$J74=""),"",IF(LEFT('Balance Empresa'!$J74)="9",'Balance Empresa'!$B74&". "&'Balance Empresa'!$C74,VLOOKUP(IF('Balance Empresa'!$I74<>"",'Balance Empresa'!$I74&"",'Balance Empresa'!$J74),BC_PCGEmpresarial!$A:$B,2,0))) -> 181. Costos financieros | N74: 1,281.00 | O74: 0.00 | P74: 22,368.00 | Q74: 21,521.00 | R74: 2,128.00 | S74: =IF(OR(TODAY()>r.real,'Balance Empresa'!$J74=""),"",IF(VLOOKUP('Balance Empresa'!$K74,t.casillas[],2)=0,"",VLOOKUP('Balance Empresa'!$K74,t.casillas[],2))) -> 366 | T74: =IF(OR('Balance Empresa'!$S74={"",0}),"",VLOOKUP(S74,t.codigos[],2)) -> Serv y otros contratados por anticipad | V74: 241 | W74: 372
B75: 181102 | C75: COSTOS FINANCIEROS M.E.(CTE) | D75: 5,296.40 | E75: 0.00 | F75: 1,053.52 | G75: 6,349.92 | H75: =IF('Balance Empresa'!$B75<>"",SUM('Balance Empresa'!$D75,-'Balance Empresa'!$E75,'Balance Empresa'!$F75,-'Balance Empresa'!$G75),"") -> 0.00 | J75: =IF(AND('Balance Empresa'!$B75<>"",IFERROR(VALUE(LEFT('Balance Empresa'!$B75,2)),FALSE)<>79),LEFT('Balance Empresa'!$B75,VLOOKUP('Balance Empresa'!$B75,t.caracter[],2)),"") -> 181 | K75: =IF(OR(TODAY()>r.real,'Balance Empresa'!$J75=""),"",IF(LEFT('Balance Empresa'!$J75)="9",'Balance Empresa'!$B75&". "&'Balance Empresa'!$C75,VLOOKUP(IF('Balance Empresa'!$I75<>"",'Balance Empresa'!$I75&"",'Balance Empresa'!$J75),BC_PCGEmpresarial!$A:$B,2,0))) -> 181. Costos financieros | N75: 5,296.00 | O75: 0.00 | P75: 1,054.00 | Q75: 6,350.00 | R75: 0.00 | S75: =IF(OR(TODAY()>r.real,'Balance Empresa'!$J75=""),"",IF(VLOOKUP('Balance Empresa'!$K75,t.casillas[],2)=0,"",VLOOKUP('Balance Empresa'!$K75,t.casillas[],2))) -> 366 | T75: =IF(OR('Balance Empresa'!$S75={"",0}),"",VLOOKUP(S75,t.codigos[],2)) -> Serv y otros contratados por anticipad | V75: 242 | W75: 372
B76: 182101 | C76: SEGUROS (MN) | D76: 317.99 | E76: 0.00 | F76: 7,585.01 | G76: 5,649.66 | H76: =IF('Balance Empresa'!$B76<>"",SUM('Balance Empresa'!$D76,-'Balance Empresa'!$E76,'Balance Empresa'!$F76,-'Balance Empresa'!$G76),"") -> 2,253.35 | J76: =IF(AND('Balance Empresa'!$B76<>"",IFERROR(VALUE(LEFT('Balance Empresa'!$B76,2)),FALSE)<>79),LEFT('Balance Empresa'!$B76,VLOOKUP('Balance Empresa'!$B76,t.caracter[],2)),"") -> 182 | K76: =IF(OR(TODAY()>r.real,'Balance Empresa'!$J76=""),"",IF(LEFT('Balance Empresa'!$J76)="9",'Balance Empresa'!$B76&". "&'Balance Empresa'!$C76,VLOOKUP(IF('Balance Empresa'!$I76<>"",'Balance Empresa'!$I76&"",'Balance Empresa'!$J76),BC_PCGEmpresarial!$A:$B,2,0))) -> 182. Seguros | N76: 318.00 | O76: 0.00 | P76: 7,585.00 | Q76: 5,650.00 | R76: 2,253.00 | S76: =IF(OR(TODAY()>r.real,'Balance Empresa'!$J76=""),"",IF(VLOOKUP('Balance Empresa'!$K76,t.casillas[],2)=0,"",VLOOKUP('Balance Empresa'!$K76,t.casillas[],2))) -> 366 | T76: =IF(OR('Balance Empresa'!$S76={"",0}),"",VLOOKUP(S76,t.codigos[],2)) -> Serv y otros contratados por anticipad | V76: 243 | W76: 372
B77: 182102 | C77: SEGUROS (ME) | D77: 13,353.51 | E77: 0.00 | F77: 6,923.06 | G77: 15,779.66 | H77: =IF('Balance Empresa'!$B77<>"",SUM('Balance Empresa'!$D77,-'Balance Empresa'!$E77,'Balance Empresa'!$F77,-'Balance Empresa'!$G77),"") -> 4,496.91 | J77: =IF(AND('Balance Empresa'!$B77<>"",IFERROR(VALUE(LEFT('Balance Empresa'!$B77,2)),FALSE)<>79),LEFT('Balance Empresa'!$B77,VLOOKUP('Balance Empresa'!$B77,t.caracter[],2)),"") -> 182 | K77: =IF(OR(TODAY()>r.real,'Balance Empresa'!$J77=""),"",IF(LEFT('Balance Empresa'!$J77)="9",'Balance Empresa'!$B77&". "&'Balance Empresa'!$C77,VLOOKUP(IF('Balance Empresa'!$I77<>"",'Balance Empresa'!$I77&"",'Balance Empresa'!$J77),BC_PCGEmpresarial!$A:$B,2,0))) -> 182. Seguros | N77: 13,354.00 | O77: 0.00 | P77: 6,923.00 | Q77: 15,780.00 | R77: 4,497.00 | S77: =IF(OR(TODAY()>r.real,'Balance Empresa'!$J77=""),"",IF(VLOOKUP('Balance Empresa'!$K77,t.casillas[],2)=0,"",VLOOKUP('Balance Empresa'!$K77,t.casillas[],2))) -> 366 | T77: =IF(OR('Balance Empresa'!$S77={"",0}),"",VLOOKUP(S77,t.codigos[],2)) -> Serv y otros contratados por anticipad | V77: 244 | W77: 372
B78: 189111 | C78: SUB CONTRATOS DE CONSULTORIA M.N. | D78: 294,373.64 | E78: 0.00 | F78: 15,598.66 | G78: 173,495.81 | H78: =IF('Balance Empresa'!$B78<>"",SUM('Balance Empresa'!$D78,-'Balance Empresa'!$E78,'Balance Empresa'!$F78,-'Balance Empresa'!$G78),"") -> 136,476.48 | J78: =IF(AND('Balance Empresa'!$B78<>"",IFERROR(VALUE(LEFT('Balance Empresa'!$B78,2)),FALSE)<>79),LEFT('Balance Empresa'!$B78,VLOOKUP('Balance Empresa'!$B78,t.caracter[],2)),"") -> 189 | K78: =IF(OR(TODAY()>r.real,'Balance Empresa'!$J78=""),"",IF(LEFT('Balance Empresa'!$J78)="9",'Balance Empresa'!$B78&". "&'Balance Empresa'!$C78,VLOOKUP(IF('Balance Empresa'!$I78<>"",'Balance Empresa'!$I78&"",'Balance Empresa'!$J78),BC_PCGEmpresarial!$A:$B,2,0))) -> 189. Otros gastos contratados por anticipado | N78: 294,374.00 | O78: 0.00 | P78: 15,599.00 | Q78: 173,496.00 | R78: 136,477.00 | S78: =IF(OR(TODAY()>r.real,'Balance Empresa'!$J78=""),"",IF(VLOOKUP('Balance Empresa'!$K78,t.casillas[],2)=0,"",VLOOKUP('Balance Empresa'!$K78,t.casillas[],2))) -> 366 | T78: =IF(OR('Balance Empresa'!$S78={"",0}),"",VLOOKUP(S78,t.codigos[],2)) -> Serv y otros contratados por anticipad | V78: 251 | W78: 373
B79: 189311 | C79: OTROS GASTOS PAGADOS POR ANTICIPADO | D79: 508.25 | E79: 0.00 | F79: 7,932.96 | G79: 4,259.67 | H79: =IF('Balance Empresa'!$B79<>"",SUM('Balance Empresa'!$D79,-'Balance Empresa'!$E79,'Balance Empresa'!$F79,-'Balance Empresa'!$G79),"") -> 4,181.54 | J79: =IF(AND('Balance Empresa'!$B79<>"",IFERROR(VALUE(LEFT('Balance Empresa'!$B79,2)),FALSE)<>79),LEFT('Balance Empresa'!$B79,VLOOKUP('Balance Empresa'!$B79,t.caracter[],2)),"") -> 189 | K79: =IF(OR(TODAY()>r.real,'Balance Empresa'!$J79=""),"",IF(LEFT('Balance Empresa'!$J79)="9",'Balance Empresa'!$B79&". "&'Balance Empresa'!$C79,VLOOKUP(IF('Balance Empresa'!$I79<>"",'Balance Empresa'!$I79&"",'Balance Empresa'!$J79),BC_PCGEmpresarial!$A:$B,2,0))) -> 189. Otros gastos contratados por anticipado | N79: 508.00 | O79: 0.00 | P79: 7,933.00 | Q79: 4,260.00 | R79: 4,181.00 | S79: =IF(OR(TODAY()>r.real,'Balance Empresa'!$J79=""),"",IF(VLOOKUP('Balance Empresa'!$K79,t.casillas[],2)=0,"",VLOOKUP('Balance Empresa'!$K79,t.casillas[],2))) -> 366 | T79: =IF(OR('Balance Empresa'!$S79={"",0}),"",VLOOKUP(S79,t.codigos[],2)) -> Serv y otros contratados por anticipad | V79: 252 | W79: 373
B80: 189312 | C80: OTROS GASTOS PAGADOS POR ANTICIPADO ME | D80: 1,562.16 | E80: 0.00 | F80: 0.69 | G80: 1,562.85 | H80: =IF('Balance Empresa'!$B80<>"",SUM('Balance Empresa'!$D80,-'Balance Empresa'!$E80,'Balance Empresa'!$F80,-'Balance Empresa'!$G80),"") -> 0.00 | J80: =IF(AND('Balance Empresa'!$B80<>"",IFERROR(VALUE(LEFT('Balance Empresa'!$B80,2)),FALSE)<>79),LEFT('Balance Empresa'!$B80,VLOOKUP('Balance Empresa'!$B80,t.caracter[],2)),"") -> 189 | K80: =IF(OR(TODAY()>r.real,'Balance Empresa'!$J80=""),"",IF(LEFT('Balance Empresa'!$J80)="9",'Balance Empresa'!$B80&". "&'Balance Empresa'!$C80,VLOOKUP(IF('Balance Empresa'!$I80<>"",'Balance Empresa'!$I80&"",'Balance Empresa'!$J80),BC_PCGEmpresarial!$A:$B,2,0))) -> 189. Otros gastos contratados por anticipado | N80: 1,562.00 | O80: 0.00 | P80: 1.00 | Q80: 1,563.00 | R80: 0.00 | S80: =IF(OR(TODAY()>r.real,'Balance Empresa'!$J80=""),"",IF(VLOOKUP('Balance Empresa'!$K80,t.casillas[],2)=0,"",VLOOKUP('Balance Empresa'!$K80,t.casillas[],2))) -> 366 | T80: =IF(OR('Balance Empresa'!$S80={"",0}),"",VLOOKUP(S80,t.codigos[],2)) -> Serv y otros contratados por anticipad | V80: 253 | W80: 373
B81: 302731 | C81: PARTICIPACION EN CONSORCIOS - CARTAS FIANZA MN | D81: 85,174.29 | E81: 0.00 | F81: 18,473.90 | G81: 0.00 | H81: =IF('Balance Empresa'!$B81<>"",SUM('Balance Empresa'!$D81,-'Balance Empresa'!$E81,'Balance Empresa'!$F81,-'Balance Empresa'!$G81),"") -> 103,648.19 | J81: =IF(AND('Balance Empresa'!$B81<>"",IFERROR(VALUE(LEFT('Balance Empresa'!$B81,2)),FALSE)<>79),LEFT('Balance Empresa'!$B81,VLOOKUP('Balance Empresa'!$B81,t.caracter[],2)),"") -> 30273 | K81: =IF(OR(TODAY()>r.real,'Balance Empresa'!$J81=""),"",IF(LEFT('Balance Empresa'!$J81)="9",'Balance Empresa'!$B81&". "&'Balance Empresa'!$C81,VLOOKUP(IF('Balance Empresa'!$I81<>"",'Balance Empresa'!$I81&"",'Balance Empresa'!$J81),BC_PCGEmpresarial!$A:$B,2,0))) -> 30273. Instrumentos financieros representativos de derecho patrimonial - Participaciones en asociaciones en participación y consorcios - Participación patrimonial | N81: 85,174.00 | O81: 0.00 | P81: 18,474.00 | Q81: 0.00 | R81: 103,648.00 | S81: =IF(OR(TODAY()>r.real,'Balance Empresa'!$J81=""),"",IF(VLOOKUP('Balance Empresa'!$K81,t.casillas[],2)=0,"",VLOOKUP('Balance Empresa'!$K81,t.casillas[],2))) -> 379 | T81: =IF(OR('Balance Empresa'!$S81={"",0}),"",VLOOKUP(S81,t.codigos[],2)) -> Inversiones mobiliarias | V81: 261 | W81: 374
B82: 302732 | C82: PARTICIPACION EN CONSORCIOS - CARTAS FIANZA ME | D82: 256,062.66 | E82: 0.00 | F82: 122,956.94 | G82: 18,080.75 | H82: =IF('Balance Empresa'!$B82<>"",SUM('Balance Empresa'!$D82,-'Balance Empresa'!$E82,'Balance Empresa'!$F82,-'Balance Empresa'!$G82),"") -> 360,938.85 | J82: =IF(AND('Balance Empresa'!$B82<>"",IFERROR(VALUE(LEFT('Balance Empresa'!$B82,2)),FALSE)<>79),LEFT('Balance Empresa'!$B82,VLOOKUP('Balance Empresa'!$B82,t.caracter[],2)),"") -> 30273 | K82: =IF(OR(TODAY()>r.real,'Balance Empresa'!$J82=""),"",IF(LEFT('Balance Empresa'!$J82)="9",'Balance Empresa'!$B82&". "&'Balance Empresa'!$C82,VLOOKUP(IF('Balance Empresa'!$I82<>"",'Balance Empresa'!$I82&"",'Balance Empresa'!$J82),BC_PCGEmpresarial!$A:$B,2,0))) -> 30273. Instrumentos financieros representativos de derecho patrimonial - Participaciones en asociaciones en participación y consorcios - Participación patrimonial | N82: 256,063.00 | O82: 0.00 | P82: 122,957.00 | Q82: 18,081.00 | R82: 360,939.00 | S82: =IF(OR(TODAY()>r.real,'Balance Empresa'!$J82=""),"",IF(VLOOKUP('Balance Empresa'!$K82,t.casillas[],2)=0,"",VLOOKUP('Balance Empresa'!$K82,t.casillas[],2))) -> 379 | T82: =IF(OR('Balance Empresa'!$S82={"",0}),"",VLOOKUP(S82,t.codigos[],2)) -> Inversiones mobiliarias | V82: 262 | W82: 374
B83: 322411 | C83: EQUIPOS DE TRANSPORTE | D83: 36,811.48 | E83: 0.00 | F83: 0.00 | G83: 0.00 | H83: =IF('Balance Empresa'!$B83<>"",SUM('Balance Empresa'!$D83,-'Balance Empresa'!$E83,'Balance Empresa'!$F83,-'Balance Empresa'!$G83),"") -> 36,811.48 | J83: =IF(AND('Balance Empresa'!$B83<>"",IFERROR(VALUE(LEFT('Balance Empresa'!$B83,2)),FALSE)<>79),LEFT('Balance Empresa'!$B83,VLOOKUP('Balance Empresa'!$B83,t.caracter[],2)),"") -> 3224 | K83: =IF(OR(TODAY()>r.real,'Balance Empresa'!$J83=""),"",IF(LEFT('Balance Empresa'!$J83)="9",'Balance Empresa'!$B83&". "&'Balance Empresa'!$C83,VLOOKUP(IF('Balance Empresa'!$I83<>"",'Balance Empresa'!$I83&"",'Balance Empresa'!$J83),BC_PCGEmpresarial!$A:$B,2,0))) -> 3224. Inmuebles, maquinaria y equipo - Equipo de transporte | N83: 36,811.00 | O83: 0.00 | P83: 0.00 | Q83: 0.00 | R83: 36,811.00 | S83: =IF(OR(TODAY()>r.real,'Balance Empresa'!$J83=""),"",IF(VLOOKUP('Balance Empresa'!$K83,t.casillas[],2)=0,"",VLOOKUP('Balance Empresa'!$K83,t.casillas[],2))) -> 381 | T83: =IF(OR('Balance Empresa'!$S83={"",0}),"",VLOOKUP(S83,t.codigos[],2)) -> Activ. Adq en arrendamiento finan. (2) | V83: 271 | W83: 376
B84: 332111 | C84: COSTO DE ADQUISICION O CONSTRUCCION | D84: 109,756.26 | E84: 0.00 | F84: 0.00 | G84: 0.00 | H84: =IF('Balance Empresa'!$B84<>"",SUM('Balance Empresa'!$D84,-'Balance Empresa'!$E84,'Balance Empresa'!$F84,-'Balance Empresa'!$G84),"") -> 109,756.26 | J84: =IF(AND('Balance Empresa'!$B84<>"",IFERROR(VALUE(LEFT('Balance Empresa'!$B84,2)),FALSE)<>79),LEFT('Balance Empresa'!$B84,VLOOKUP('Balance Empresa'!$B84,t.caracter[],2)),"") -> 33211 | K84: =IF(OR(TODAY()>r.real,'Balance Empresa'!$J84=""),"",IF(LEFT('Balance Empresa'!$J84)="9",'Balance Empresa'!$B84&". "&'Balance Empresa'!$C84,VLOOKUP(IF('Balance Empresa'!$I84<>"",'Balance Empresa'!$I84&"",'Balance Empresa'!$J84),BC_PCGEmpresarial!$A:$B,2,0))) -> 33211. Edificaciones - Edificaciones administrativas - Costo de adquisición o construcción | N84: 109,756.00 | O84: 0.00 | P84: 0.00 | Q84: 0.00 | R84: 109,756.00 | S84: =IF(OR(TODAY()>r.real,'Balance Empresa'!$J84=""),"",IF(VLOOKUP('Balance Empresa'!$K84,t.casillas[],2)=0,"",VLOOKUP('Balance Empresa'!$K84,t.casillas[],2))) -> 382 | T84: =IF(OR('Balance Empresa'!$S84={"",0}),"",VLOOKUP(S84,t.codigos[],2)) -> Inmueble, maquinaria y equipo | V84: 272 | W84: 376
B85: 333111 | C85: COSTO DE ADQUISICION MAQUINARIA Y EQUIPO | D85: 57,647.87 | E85: 0.00 | F85: 0.00 | G85: 0.00 | H85: =IF('Balance Empresa'!$B85<>"",SUM('Balance Empresa'!$D85,-'Balance Empresa'!$E85,'Balance Empresa'!$F85,-'Balance Empresa'!$G85),"") -> 57,647.87 | J85: =IF(AND('Balance Empresa'!$B85<>"",IFERROR(VALUE(LEFT('Balance Empresa'!$B85,2)),FALSE)<>79),LEFT('Balance Empresa'!$B85,VLOOKUP('Balance Empresa'!$B85,t.caracter[],2)),"") -> 33311 | K85: =IF(OR(TODAY()>r.real,'Balance Empresa'!$J85=""),"",IF(LEFT('Balance Empresa'!$J85)="9",'Balance Empresa'!$B85&". "&'Balance Empresa'!$C85,VLOOKUP(IF('Balance Empresa'!$I85<>"",'Balance Empresa'!$I85&"",'Balance Empresa'!$J85),BC_PCGEmpresarial!$A:$B,2,0))) -> 33311. Maquinarias y equipos de explotación - Maquinarias y equipos de explotación - Costo de adquisición o construcción | N85: 57,648.00 | O85: 0.00 | P85: 0.00 | Q85: 0.00 | R85: 57,648.00 | S85: =IF(OR(TODAY()>r.real,'Balance Empresa'!$J85=""),"",IF(VLOOKUP('Balance Empresa'!$K85,t.casillas[],2)=0,"",VLOOKUP('Balance Empresa'!$K85,t.casillas[],2))) -> 382 | T85: =IF(OR('Balance Empresa'!$S85={"",0}),"",VLOOKUP(S85,t.codigos[],2)) -> Inmueble, maquinaria y equipo | V85: 273 | W85: 376
B86: 334111 | C86: COSTO VEHICULOS MOTORIZADOS | D86: 284,944.04 | E86: 0.00 | F86: 22,964.74 | G86: 117,515.19 | H86: =IF('Balance Empresa'!$B86<>"",SUM('Balance Empresa'!$D86,-'Balance Empresa'!$E86,'Balance Empresa'!$F86,-'Balance Empresa'!$G86),"") -> 190,393.59 | J86: =IF(AND('Balance Empresa'!$B86<>"",IFERROR(VALUE(LEFT('Balance Empresa'!$B86,2)),FALSE)<>79),LEFT('Balance Empresa'!$B86,VLOOKUP('Balance Empresa'!$B86,t.caracter[],2)),"") -> 33411 | K86: =IF(OR(TODAY()>r.real,'Balance Empresa'!$J86=""),"",IF(LEFT('Balance Empresa'!$J86)="9",'Balance Empresa'!$B86&". "&'Balance Empresa'!$C86,VLOOKUP(IF('Balance Empresa'!$I86<>"",'Balance Empresa'!$I86&"",'Balance Empresa'!$J86),BC_PCGEmpresarial!$A:$B,2,0))) -> 33411. Unidades de transporte - Vehículos motorizados - Costo | N86: 284,944.00 | O86: 0.00 | P86: 22,965.00 | Q86: 117,515.00 | R86: 190,394.00 | S86: =IF(OR(TODAY()>r.real,'Balance Empresa'!$J86=""),"",IF(VLOOKUP('Balance Empresa'!$K86,t.casillas[],2)=0,"",VLOOKUP('Balance Empresa'!$K86,t.casillas[],2))) -> 382 | T86: =IF(OR('Balance Empresa'!$S86={"",0}),"",VLOOKUP(S86,t.codigos[],2)) -> Inmueble, maquinaria y equipo | V86: 274 | W86: 376
B87: 335111 | C87: COSTO MUEBLES ENSERES | D87: 226,456.98 | E87: 0.00 | F87: 0.00 | G87: 0.00 | H87: =IF('Balance Empresa'!$B87<>"",SUM('Balance Empresa'!$D87,-'Balance Empresa'!$E87,'Balance Empresa'!$F87,-'Balance Empresa'!$G87),"") -> 226,456.98 | J87: =IF(AND('Balance Empresa'!$B87<>"",IFERROR(VALUE(LEFT('Balance Empresa'!$B87,2)),FALSE)<>79),LEFT('Balance Empresa'!$B87,VLOOKUP('Balance Empresa'!$B87,t.caracter[],2)),"") -> 33511 | K87: =IF(OR(TODAY()>r.real,'Balance Empresa'!$J87=""),"",IF(LEFT('Balance Empresa'!$J87)="9",'Balance Empresa'!$B87&". "&'Balance Empresa'!$C87,VLOOKUP(IF('Balance Empresa'!$I87<>"",'Balance Empresa'!$I87&"",'Balance Empresa'!$J87),BC_PCGEmpresarial!$A:$B,2,0))) -> 33511. Muebles y enseres - Muebles - Costo | N87: 226,457.00 | O87: 0.00 | P87: 0.00 | Q87: 0.00 | R87: 226,457.00 | S87: =IF(OR(TODAY()>r.real,'Balance Empresa'!$J87=""),"",IF(VLOOKUP('Balance Empresa'!$K87,t.casillas[],2)=0,"",VLOOKUP('Balance Empresa'!$K87,t.casillas[],2))) -> 382 | T87: =IF(OR('Balance Empresa'!$S87={"",0}),"",VLOOKUP(S87,t.codigos[],2)) -> Inmueble, maquinaria y equipo | V87: 275 | W87: 376
B88: 336101 | C88: EQUIPOS DIVERSOS | D88: 473,511.58 | E88: 0.00 | F88: 0.00 | G88: 0.00 | H88: =IF('Balance Empresa'!$B88<>"",SUM('Balance Empresa'!$D88,-'Balance Empresa'!$E88,'Balance Empresa'!$F88,-'Balance Empresa'!$G88),"") -> 473,511.58 | I88: 33691 | J88: =IF(AND('Balance Empresa'!$B88<>"",IFERROR(VALUE(LEFT('Balance Empresa'!$B88,2)),FALSE)<>79),LEFT('Balance Empresa'!$B88,VLOOKUP('Balance Empresa'!$B88,t.caracter[],2)),"") -> 33610 | K88: =IF(OR(TODAY()>r.real,'Balance Empresa'!$J88=""),"",IF(LEFT('Balance Empresa'!$J88)="9",'Balance Empresa'!$B88&". "&'Balance Empresa'!$C88,VLOOKUP(IF('Balance Empresa'!$I88<>"",'Balance Empresa'!$I88&"",'Balance Empresa'!$J88),BC_PCGEmpresarial!$A:$B,2,0))) -> 33691. Equipos diversos - Otros equipos - Costo | N88: 473,512.00 | O88: 0.00 | P88: 0.00 | Q88: 0.00 | R88: 473,512.00 | S88: =IF(OR(TODAY()>r.real,'Balance Empresa'!$J88=""),"",IF(VLOOKUP('Balance Empresa'!$K88,t.casillas[],2)=0,"",VLOOKUP('Balance Empresa'!$K88,t.casillas[],2))) -> 382 | T88: =IF(OR('Balance Empresa'!$S88={"",0}),"",VLOOKUP(S88,t.codigos[],2)) -> Inmueble, maquinaria y equipo | V88: 276 | W88: 376
B89: 336111 | C89: COSTO EQUIPO COMPUTO | D89: 509,862.23 | E89: 0.00 | F89: 0.00 | G89: 0.00 | H89: =IF('Balance Empresa'!$B89<>"",SUM('Balance Empresa'!$D89,-'Balance Empresa'!$E89,'Balance Empresa'!$F89,-'Balance Empresa'!$G89),"") -> 509,862.23 | J89: =IF(AND('Balance Empresa'!$B89<>"",IFERROR(VALUE(LEFT('Balance Empresa'!$B89,2)),FALSE)<>79),LEFT('Balance Empresa'!$B89,VLOOKUP('Balance Empresa'!$B89,t.caracter[],2)),"") -> 33611 | K89: =IF(OR(TODAY()>r.real,'Balance Empresa'!$J89=""),"",IF(LEFT('Balance Empresa'!$J89)="9",'Balance Empresa'!$B89&". "&'Balance Empresa'!$C89,VLOOKUP(IF('Balance Empresa'!$I89<>"",'Balance Empresa'!$I89&"",'Balance Empresa'!$J89),BC_PCGEmpresarial!$A:$B,2,0))) -> 33611. Equipos diversos - Equipo para procesamiento de información (de cómputo) - Costo | N89: 509,862.00 | O89: 0.00 | P89: 0.00 | Q89: 0.00 | R89: 509,862.00 | S89: =IF(OR(TODAY()>r.real,'Balance Empresa'!$J89=""),"",IF(VLOOKUP('Balance Empresa'!$K89,t.casillas[],2)=0,"",VLOOKUP('Balance Empresa'!$K89,t.casillas[],2))) -> 382 | T89: =IF(OR('Balance Empresa'!$S89={"",0}),"",VLOOKUP(S89,t.codigos[],2)) -> Inmueble, maquinaria y equipo | V89: 277 | W89: 376
B90: 336211 | C90: COSTO EQUIPO DE COMUNICACION | D90: 196,797.41 | E90: 0.00 | F90: 0.00 | G90: 0.00 | H90: =IF('Balance Empresa'!$B90<>"",SUM('Balance Empresa'!$D90,-'Balance Empresa'!$E90,'Balance Empresa'!$F90,-'Balance Empresa'!$G90),"") -> 196,797.41 | J90: =IF(AND('Balance Empresa'!$B90<>"",IFERROR(VALUE(LEFT('Balance Empresa'!$B90,2)),FALSE)<>79),LEFT('Balance Empresa'!$B90,VLOOKUP('Balance Empresa'!$B90,t.caracter[],2)),"") -> 33621 | K90: =IF(OR(TODAY()>r.real,'Balance Empresa'!$J90=""),"",IF(LEFT('Balance Empresa'!$J90)="9",'Balance Empresa'!$B90&". "&'Balance Empresa'!$C90,VLOOKUP(IF('Balance Empresa'!$I90<>"",'Balance Empresa'!$I90&"",'Balance Empresa'!$J90),BC_PCGEmpresarial!$A:$B,2,0))) -> 33621. Equipos diversos - Equipo de comunicación - Costo | N90: 196,797.00 | O90: 0.00 | P90: 0.00 | Q90: 0.00 | R90: 196,797.00 | S90: =IF(OR(TODAY()>r.real,'Balance Empresa'!$J90=""),"",IF(VLOOKUP('Balance Empresa'!$K90,t.casillas[],2)=0,"",VLOOKUP('Balance Empresa'!$K90,t.casillas[],2))) -> 382 | T90: =IF(OR('Balance Empresa'!$S90={"",0}),"",VLOOKUP(S90,t.codigos[],2)) -> Inmueble, maquinaria y equipo | V90: 278 | W90: 376
B91: 341211 | C91: LICENCIAS DE PROGRAMAS | D91: 194,483.91 | E91: 0.00 | F91: 17,026.99 | G91: 7,736.24 | H91: =IF('Balance Empresa'!$B91<>"",SUM('Balance Empresa'!$D91,-'Balance Empresa'!$E91,'Balance Empresa'!$F91,-'Balance Empresa'!$G91),"") -> 203,774.66 | J91: =IF(AND('Balance Empresa'!$B91<>"",IFERROR(VALUE(LEFT('Balance Empresa'!$B91,2)),FALSE)<>79),LEFT('Balance Empresa'!$B91,VLOOKUP('Balance Empresa'!$B91,t.caracter[],2)),"") -> 34121 | K91: =IF(OR(TODAY()>r.real,'Balance Empresa'!$J91=""),"",IF(LEFT('Balance Empresa'!$J91)="9",'Balance Empresa'!$B91&". "&'Balance Empresa'!$C91,VLOOKUP(IF('Balance Empresa'!$I91<>"",'Balance Empresa'!$I91&"",'Balance Empresa'!$J91),BC_PCGEmpresarial!$A:$B,2,0))) -> 34121. Concesiones, licencias y otros derechos - Licencias - Costo | N91: 194,484.00 | O91: 0.00 | P91: 17,027.00 | Q91: 7,736.00 | R91: 203,775.00 | S91: =IF(OR(TODAY()>r.real,'Balance Empresa'!$J91=""),"",IF(VLOOKUP('Balance Empresa'!$K91,t.casillas[],2)=0,"",VLOOKUP('Balance Empresa'!$K91,t.casillas[],2))) -> 384 | T91: =IF(OR('Balance Empresa'!$S91={"",0}),"",VLOOKUP(S91,t.codigos[],2)) -> Intangibles | V91: 279 | W91: 376
B92: 371201 | C92: IMPUESTO A LA RENTA DIFERIDO | D92: 118,499.14 | E92: 0.00 | F92: 0.00 | G92: 0.00 | H92: =IF('Balance Empresa'!$B92<>"",SUM('Balance Empresa'!$D92,-'Balance Empresa'!$E92,'Balance Empresa'!$F92,-'Balance Empresa'!$G92),"") -> 118,499.14 | J92: =IF(AND('Balance Empresa'!$B92<>"",IFERROR(VALUE(LEFT('Balance Empresa'!$B92,2)),FALSE)<>79),LEFT('Balance Empresa'!$B92,VLOOKUP('Balance Empresa'!$B92,t.caracter[],2)),"") -> 3712 | K92: =IF(OR(TODAY()>r.real,'Balance Empresa'!$J92=""),"",IF(LEFT('Balance Empresa'!$J92)="9",'Balance Empresa'!$B92&". "&'Balance Empresa'!$C92,VLOOKUP(IF('Balance Empresa'!$I92<>"",'Balance Empresa'!$I92&"",'Balance Empresa'!$J92),BC_PCGEmpresarial!$A:$B,2,0))) -> 3712. Impuesto a la renta diferido - Impuesto a la renta diferido – Resultados | N92: 118,499.00 | O92: 0.00 | P92: 0.00 | Q92: 0.00 | R92: 118,499.00 | S92: =IF(OR(TODAY()>r.real,'Balance Empresa'!$J92=""),"",IF(VLOOKUP('Balance Empresa'!$K92,t.casillas[],2)=0,"",VLOOKUP('Balance Empresa'!$K92,t.casillas[],2))) -> 388 | T92: =IF(OR('Balance Empresa'!$S92={"",0}),"",VLOOKUP(S92,t.codigos[],2)) -> Activo diferido | V92: 281 | W92: 375
B93: 373101 | C93: INTERESES FRACIONAMIENTO ART. 36 | D93: 229.99 | E93: 0.00 | F93: 0.00 | G93: 229.99 | H93: =IF('Balance Empresa'!$B93<>"",SUM('Balance Empresa'!$D93,-'Balance Empresa'!$E93,'Balance Empresa'!$F93,-'Balance Empresa'!$G93),"") -> 0.00 | J93: =IF(AND('Balance Empresa'!$B93<>"",IFERROR(VALUE(LEFT('Balance Empresa'!$B93,2)),FALSE)<>79),LEFT('Balance Empresa'!$B93,VLOOKUP('Balance Empresa'!$B93,t.caracter[],2)),"") -> 3731 | K93: =IF(OR(TODAY()>r.real,'Balance Empresa'!$J93=""),"",IF(LEFT('Balance Empresa'!$J93)="9",'Balance Empresa'!$B93&". "&'Balance Empresa'!$C93,VLOOKUP(IF('Balance Empresa'!$I93<>"",'Balance Empresa'!$I93&"",'Balance Empresa'!$J93),BC_PCGEmpresarial!$A:$B,2,0))) -> 3731. Intereses diferidos - Intereses no devengados en transacciones con terceros | N93: 230.00 | O93: 0.00 | P93: 0.00 | Q93: 230.00 | R93: 0.00 | S93: =IF(OR(TODAY()>r.real,'Balance Empresa'!$J93=""),"",IF(VLOOKUP('Balance Empresa'!$K93,t.casillas[],2)=0,"",VLOOKUP('Balance Empresa'!$K93,t.casillas[],2))) -> 388 | T93: =IF(OR('Balance Empresa'!$S93={"",0}),"",VLOOKUP(S93,t.codigos[],2)) -> Activo diferido | V93: 284 | W93: 375
B94: 373102 | C94: INTERESES FRACCIONAMIENTO ART.19 M.TRABAJO | D94: 0.00 | E94: 0.00 | F94: 217.24 | G94: 0.00 | H94: =IF('Balance Empresa'!$B94<>"",SUM('Balance Empresa'!$D94,-'Balance Empresa'!$E94,'Balance Empresa'!$F94,-'Balance Empresa'!$G94),"") -> 217.24 | J94: =IF(AND('Balance Empresa'!$B94<>"",IFERROR(VALUE(LEFT('Balance Empresa'!$B94,2)),FALSE)<>79),LEFT('Balance Empresa'!$B94,VLOOKUP('Balance Empresa'!$B94,t.caracter[],2)),"") -> 3731 | K94: =IF(OR(TODAY()>r.real,'Balance Empresa'!$J94=""),"",IF(LEFT('Balance Empresa'!$J94)="9",'Balance Empresa'!$B94&". "&'Balance Empresa'!$C94,VLOOKUP(IF('Balance Empresa'!$I94<>"",'Balance Empresa'!$I94&"",'Balance Empresa'!$J94),BC_PCGEmpresarial!$A:$B,2,0))) -> 3731. Intereses diferidos - Intereses no devengados en transacciones con terceros | N94: 0.00 | O94: 0.00 | P94: 217.00 | Q94: 0.00 | R94: 217.00 | S94: =IF(OR(TODAY()>r.real,'Balance Empresa'!$J94=""),"",IF(VLOOKUP('Balance Empresa'!$K94,t.casillas[],2)=0,"",VLOOKUP('Balance Empresa'!$K94,t.casillas[],2))) -> 388 | T94: =IF(OR('Balance Empresa'!$S94={"",0}),"",VLOOKUP(S94,t.codigos[],2)) -> Activo diferido | V94: 285 | W94: 375
B95: 391241 | C95: DEPREC EQUIPO DE TRANSP LEASING | D95: 0.00 | E95: 17,178.68 | F95: 0.00 | G95: 7,362.27 | H95: =IF('Balance Empresa'!$B95<>"",SUM('Balance Empresa'!$D95,-'Balance Empresa'!$E95,'Balance Empresa'!$F95,-'Balance Empresa'!$G95),"") -> -24,540.95 | J95: =IF(AND('Balance Empresa'!$B95<>"",IFERROR(VALUE(LEFT('Balance Empresa'!$B95,2)),FALSE)<>79),LEFT('Balance Empresa'!$B95,VLOOKUP('Balance Empresa'!$B95,t.caracter[],2)),"") -> 39124 | K95: =IF(OR(TODAY()>r.real,'Balance Empresa'!$J95=""),"",IF(LEFT('Balance Empresa'!$J95)="9",'Balance Empresa'!$B95&". "&'Balance Empresa'!$C95,VLOOKUP(IF('Balance Empresa'!$I95<>"",'Balance Empresa'!$I95&"",'Balance Empresa'!$J95),BC_PCGEmpresarial!$A:$B,2,0))) -> 39124. Depreciación acumulada - Activos adquiridos en arrendamiento financiero - Inmuebles, maquinaria y equipo – Equipos de transporte | N95: 0.00 | O95: 17,179.00 | P95: 0.00 | Q95: 7,362.00 | R95: -24,541.00 | S95: =IF(OR(TODAY()>r.real,'Balance Empresa'!$J95=""),"",IF(VLOOKUP('Balance Empresa'!$K95,t.casillas[],2)=0,"",VLOOKUP('Balance Empresa'!$K95,t.casillas[],2))) -> 383 | T95: =IF(OR('Balance Empresa'!$S95={"",0}),"",VLOOKUP(S95,t.codigos[],2)) -> Depreciación de 1, 2 e IME acumulad | V95: 286 | W95: 375
B96: 391311 | C96: DEPRECIACION EDIFICACIONES COSTO | D96: 0.00 | E96: 66,013.41 | F96: 0.00 | G96: 5,487.83 | H96: =IF('Balance Empresa'!$B96<>"",SUM('Balance Empresa'!$D96,-'Balance Empresa'!$E96,'Balance Empresa'!$F96,-'Balance Empresa'!$G96),"") -> -71,501.24 | J96: =IF(AND('Balance Empresa'!$B96<>"",IFERROR(VALUE(LEFT('Balance Empresa'!$B96,2)),FALSE)<>79),LEFT('Balance Empresa'!$B96,VLOOKUP('Balance Empresa'!$B96,t.caracter[],2)),"") -> 39131 | K96: =IF(OR(TODAY()>r.real,'Balance Empresa'!$J96=""),"",IF(LEFT('Balance Empresa'!$J96)="9",'Balance Empresa'!$B96&". "&'Balance Empresa'!$C96,VLOOKUP(IF('Balance Empresa'!$I96<>"",'Balance Empresa'!$I96&"",'Balance Empresa'!$J96),BC_PCGEmpresarial!$A:$B,2,0))) -> 39131. Depreciación acumulada - Inmuebles, maquinaria y equipo – Costo - Edificaciones | N96: 0.00 | O96: 66,013.00 | P96: 0.00 | Q96: 5,488.00 | R96: -71,501.00 | S96: =IF(OR(TODAY()>r.real,'Balance Empresa'!$J96=""),"",IF(VLOOKUP('Balance Empresa'!$K96,t.casillas[],2)=0,"",VLOOKUP('Balance Empresa'!$K96,t.casillas[],2))) -> 383 | T96: =IF(OR('Balance Empresa'!$S96={"",0}),"",VLOOKUP(S96,t.codigos[],2)) -> Depreciación de 1, 2 e IME acumulad | V96: 291 | W96: 376
B97: 391321 | C97: DEPRECIACION MAQUINARIAS Y EQUIPOS EXPLOTACION - C | D97: 0.00 | E97: 57,324.36 | F97: 0.00 | G97: 502.05 | H97: =IF('Balance Empresa'!$B97<>"",SUM('Balance Empresa'!$D97,-'Balance Empresa'!$E97,'Balance Empresa'!$F97,-'Balance Empresa'!$G97),"") -> -57,826.41 | J97: =IF(AND('Balance Empresa'!$B97<>"",IFERROR(VALUE(LEFT('Balance Empresa'!$B97,2)),FALSE)<>79),LEFT('Balance Empresa'!$B97,VLOOKUP('Balance Empresa'!$B97,t.caracter[],2)),"") -> 39132 | K97: =IF(OR(TODAY()>r.real,'Balance Empresa'!$J97=""),"",IF(LEFT('Balance Empresa'!$J97)="9",'Balance Empresa'!$B97&". "&'Balance Empresa'!$C97,VLOOKUP(IF('Balance Empresa'!$I97<>"",'Balance Empresa'!$I97&"",'Balance Empresa'!$J97),BC_PCGEmpresarial!$A:$B,2,0))) -> 39132. Depreciación acumulada - Inmuebles, maquinaria y equipo – Costo - Maquinarias y equipos de explotación | N97: 0.00 | O97: 57,324.00 | P97: 0.00 | Q97: 502.00 | R97: -57,826.00 | S97: =IF(OR(TODAY()>r.real,'Balance Empresa'!$J97=""),"",IF(VLOOKUP('Balance Empresa'!$K97,t.casillas[],2)=0,"",VLOOKUP('Balance Empresa'!$K97,t.casillas[],2))) -> 383 | T97: =IF(OR('Balance Empresa'!$S97={"",0}),"",VLOOKUP(S97,t.codigos[],2)) -> Depreciación de 1, 2 e IME acumulad | V97: 292 | W97: 376
B98: 391331 | C98: DEPRECIACION EQUIPO DE TRANSPORTE - COSTO | D98: 0.00 | E98: 202,150.19 | F98: 81,118.79 | G98: 39,765.21 | H98: =IF('Balance Empresa'!$B98<>"",SUM('Balance Empresa'!$D98,-'Balance Empresa'!$E98,'Balance Empresa'!$F98,-'Balance Empresa'!$G98),"") -> -160,796.61 | J98: =IF(AND('Balance Empresa'!$B98<>"",IFERROR(VALUE(LEFT('Balance Empresa'!$B98,2)),FALSE)<>79),LEFT('Balance Empresa'!$B98,VLOOKUP('Balance Empresa'!$B98,t.caracter[],2)),"") -> 39133 | K98: =IF(OR(TODAY()>r.real,'Balance Empresa'!$J98=""),"",IF(LEFT('Balance Empresa'!$J98)="9",'Balance Empresa'!$B98&". "&'Balance Empresa'!$C98,VLOOKUP(IF('Balance Empresa'!$I98<>"",'Balance Empresa'!$I98&"",'Balance Empresa'!$J98),BC_PCGEmpresarial!$A:$B,2,0))) -> 39133. Depreciación acumulada - Inmuebles, maquinaria y equipo – Costo - Equipo de transporte | N98: 0.00 | O98: 202,150.00 | P98: 81,119.00 | Q98: 39,765.00 | R98: -160,796.00 | S98: =IF(OR(TODAY()>r.real,'Balance Empresa'!$J98=""),"",IF(VLOOKUP('Balance Empresa'!$K98,t.casillas[],2)=0,"",VLOOKUP('Balance Empresa'!$K98,t.casillas[],2))) -> 383 | T98: =IF(OR('Balance Empresa'!$S98={"",0}),"",VLOOKUP(S98,t.codigos[],2)) -> Depreciación de 1, 2 e IME acumulad | V98: 293 | W98: 376
B99: 391341 | C99: DEPRECIACION MUEBLES Y ENSERES - COSTO | D99: 0.00 | E99: 134,843.76 | F99: 0.00 | G99: 15,026.44 | H99: =IF('Balance Empresa'!$B99<>"",SUM('Balance Empresa'!$D99,-'Balance Empresa'!$E99,'Balance Empresa'!$F99,-'Balance Empresa'!$G99),"") -> -149,870.19 | J99: =IF(AND('Balance Empresa'!$B99<>"",IFERROR(VALUE(LEFT('Balance Empresa'!$B99,2)),FALSE)<>79),LEFT('Balance Empresa'!$B99,VLOOKUP('Balance Empresa'!$B99,t.caracter[],2)),"") -> 39134 | K99: =IF(OR(TODAY()>r.real,'Balance Empresa'!$J99=""),"",IF(LEFT('Balance Empresa'!$J99)="9",'Balance Empresa'!$B99&". "&'Balance Empresa'!$C99,VLOOKUP(IF('Balance Empresa'!$I99<>"",'Balance Empresa'!$I99&"",'Balance Empresa'!$J99),BC_PCGEmpresarial!$A:$B,2,0))) -> 39134. Depreciación acumulada - Inmuebles, maquinaria y equipo – Costo - Muebles y enseres | N99: 0.00 | O99: 134,844.00 | P99: 0.00 | Q99: 15,026.00 | R99: -149,870.00 | S99: =IF(OR(TODAY()>r.real,'Balance Empresa'!$J99=""),"",IF(VLOOKUP('Balance Empresa'!$K99,t.casillas[],2)=0,"",VLOOKUP('Balance Empresa'!$K99,t.casillas[],2))) -> 383 | T99: =IF(OR('Balance Empresa'!$S99={"",0}),"",VLOOKUP(S99,t.codigos[],2)) -> Depreciación de 1, 2 e IME acumulad | V99: 294 | W99: 376
B100: 391351 | C100: DEPRECIACION EQUIPOS DIVERSOS - COSTO | D100: 0.00 | E100: 371,978.74 | F100: 0.00 | G100: 26,493.07 | H100: =IF('Balance Empresa'!$B100<>"",SUM('Balance Empresa'!$D100,-'Balance Empresa'!$E100,'Balance Empresa'!$F100,-'Balance Empresa'!$G100),"") -> -398,471.81 | J100: =IF(AND('Balance Empresa'!$B100<>"",IFERROR(VALUE(LEFT('Balance Empresa'!$B100,2)),FALSE)<>79),LEFT('Balance Empresa'!$B100,VLOOKUP('Balance Empresa'!$B100,t.caracter[],2)),"") -> 39135 | K100: =IF(OR(TODAY()>r.real,'Balance Empresa'!$J100=""),"",IF(LEFT('Balance Empresa'!$J100)="9",'Balance Empresa'!$B100&". "&'Balance Empresa'!$C100,VLOOKUP(IF('Balance Empresa'!$I100<>"",'Balance Empresa'!$I100&"",'Balance Empresa'!$J100),BC_PCGEmpresarial!$A:$B,2,0))) -> 39135. Depreciación acumulada - Inmuebles, maquinaria y equipo – Costo - Equipos diversos | L100: SI HABER2 | M100: 1.00 | N100: 0.00 | O100: 371,980.00 | P100: 0.00 | Q100: 26,493.00 | R100: -398,473.00 | S100: =IF(OR(TODAY()>r.real,'Balance Empresa'!$J100=""),"",IF(VLOOKUP('Balance Empresa'!$K100,t.casillas[],2)=0,"",VLOOKUP('Balance Empresa'!$K100,t.casillas[],2))) -> 383 | T100: =IF(OR('Balance Empresa'!$S100={"",0}),"",VLOOKUP(S100,t.codigos[],2)) -> Depreciación de 1, 2 e IME acumulad | V100: 295 | W100: 376
B101: 391352 | C101: DEPRECIACION DE EQUIPO DE COMPUTO | D101: 0.00 | E101: 467,387.30 | F101: 0.00 | G101: 20,364.25 | H101: =IF('Balance Empresa'!$B101<>"",SUM('Balance Empresa'!$D101,-'Balance Empresa'!$E101,'Balance Empresa'!$F101,-'Balance Empresa'!$G101),"") -> -487,751.55 | J101: =IF(AND('Balance Empresa'!$B101<>"",IFERROR(VALUE(LEFT('Balance Empresa'!$B101,2)),FALSE)<>79),LEFT('Balance Empresa'!$B101,VLOOKUP('Balance Empresa'!$B101,t.caracter[],2)),"") -> 39135 | K101: =IF(OR(TODAY()>r.real,'Balance Empresa'!$J101=""),"",IF(LEFT('Balance Empresa'!$J101)="9",'Balance Empresa'!$B101&". "&'Balance Empresa'!$C101,VLOOKUP(IF('Balance Empresa'!$I101<>"",'Balance Empresa'!$I101&"",'Balance Empresa'!$J101),BC_PCGEmpresarial!$A:$B,2,0))) -> 39135. Depreciación acumulada - Inmuebles, maquinaria y equipo – Costo - Equipos diversos | N101: 0.00 | O101: 467,387.00 | P101: 0.00 | Q101: 20,364.00 | R101: -487,751.00 | S101: =IF(OR(TODAY()>r.real,'Balance Empresa'!$J101=""),"",IF(VLOOKUP('Balance Empresa'!$K101,t.casillas[],2)=0,"",VLOOKUP('Balance Empresa'!$K101,t.casillas[],2))) -> 383 | T101: =IF(OR('Balance Empresa'!$S101={"",0}),"",VLOOKUP(S101,t.codigos[],2)) -> Depreciación de 1, 2 e IME acumulad | V101: 296 | W101: 376
B102: 391353 | C102: DEPRECIACION DE EQUIPO DE COMUNICACIËN | D102: 0.00 | E102: 174,733.63 | F102: 0.00 | G102: 11,540.03 | H102: =IF('Balance Empresa'!$B102<>"",SUM('Balance Empresa'!$D102,-'Balance Empresa'!$E102,'Balance Empresa'!$F102,-'Balance Empresa'!$G102),"") -> -186,273.66 | J102: =IF(AND('Balance Empresa'!$B102<>"",IFERROR(VALUE(LEFT('Balance Empresa'!$B102,2)),FALSE)<>79),LEFT('Balance Empresa'!$B102,VLOOKUP('Balance Empresa'!$B102,t.caracter[],2)),"") -> 39135 | K102: =IF(OR(TODAY()>r.real,'Balance Empresa'!$J102=""),"",IF(LEFT('Balance Empresa'!$J102)="9",'Balance Empresa'!$B102&". "&'Balance Empresa'!$C102,VLOOKUP(IF('Balance Empresa'!$I102<>"",'Balance Empresa'!$I102&"",'Balance Empresa'!$J102),BC_PCGEmpresarial!$A:$B,2,0))) -> 39135. Depreciación acumulada - Inmuebles, maquinaria y equipo – Costo - Equipos diversos | N102: 0.00 | O102: 174,734.00 | P102: 0.00 | Q102: 11,540.00 | R102: -186,274.00 | S102: =IF(OR(TODAY()>r.real,'Balance Empresa'!$J102=""),"",IF(VLOOKUP('Balance Empresa'!$K102,t.casillas[],2)=0,"",VLOOKUP('Balance Empresa'!$K102,t.casillas[],2))) -> 383 | T102: =IF(OR('Balance Empresa'!$S102={"",0}),"",VLOOKUP(S102,t.codigos[],2)) -> Depreciación de 1, 2 e IME acumulad | V102: 297 | W102: 376
B103: 392111 | C103: AMORTIZACION DE LICENCIAS | D103: 0.00 | E103: 146,198.94 | F103: 0.00 | G103: 6,825.34 | H103: =IF('Balance Empresa'!$B103<>"",SUM('Balance Empresa'!$D103,-'Balance Empresa'!$E103,'Balance Empresa'!$F103,-'Balance Empresa'!$G103),"") -> -153,024.28 | J103: =IF(AND('Balance Empresa'!$B103<>"",IFERROR(VALUE(LEFT('Balance Empresa'!$B103,2)),FALSE)<>79),LEFT('Balance Empresa'!$B103,VLOOKUP('Balance Empresa'!$B103,t.caracter[],2)),"") -> 39211 | K103: =IF(OR(TODAY()>r.real,'Balance Empresa'!$J103=""),"",IF(LEFT('Balance Empresa'!$J103)="9",'Balance Empresa'!$B103&". "&'Balance Empresa'!$C103,VLOOKUP(IF('Balance Empresa'!$I103<>"",'Balance Empresa'!$I103&"",'Balance Empresa'!$J103),BC_PCGEmpresarial!$A:$B,2,0))) -> 39211. Amortización acumulada - Intangibles – Costo - Concesiones, licencias y otros derechos | N103: 0.00 | O103: 146,199.00 | P103: 0.00 | Q103: 6,825.00 | R103: -153,024.00 | S103: =IF(OR(TODAY()>r.real,'Balance Empresa'!$J103=""),"",IF(VLOOKUP('Balance Empresa'!$K103,t.casillas[],2)=0,"",VLOOKUP('Balance Empresa'!$K103,t.casillas[],2))) -> 383 | T103: =IF(OR('Balance Empresa'!$S103={"",0}),"",VLOOKUP(S103,t.codigos[],2)) -> Depreciación de 1, 2 e IME acumulad | V103: 298 | W103: 376
B104: 401111 | C104: IGV - CUENTA PROPIA | D104: 0.00 | E104: 48,810.82 | F104: 362,293.81 | G104: 473,731.56 | H104: =IF('Balance Empresa'!$B104<>"",SUM('Balance Empresa'!$D104,-'Balance Empresa'!$E104,'Balance Empresa'!$F104,-'Balance Empresa'!$G104),"") -> -160,248.56 | J104: =IF(AND('Balance Empresa'!$B104<>"",IFERROR(VALUE(LEFT('Balance Empresa'!$B104,2)),FALSE)<>79),LEFT('Balance Empresa'!$B104,VLOOKUP('Balance Empresa'!$B104,t.caracter[],2)),"") -> 40111 | K104: =IF(OR(TODAY()>r.real,'Balance Empresa'!$J104=""),"",IF(LEFT('Balance Empresa'!$J104)="9",'Balance Empresa'!$B104&". "&'Balance Empresa'!$C104,VLOOKUP(IF('Balance Empresa'!$I104<>"",'Balance Empresa'!$I104&"",'Balance Empresa'!$J104),BC_PCGEmpresarial!$A:$B,2,0))) -> 40111. Gobierno central - Impuesto general a las ventas - IGV – Cuenta propia | N104: 0.00 | O104: 48,811.00 | P104: 362,294.00 | Q104: 473,732.00 | R104: -160,249.00 | S104: =IF(OR(TODAY()>r.real,'Balance Empresa'!$J104=""),"",IF(VLOOKUP('Balance Empresa'!$K104,t.casillas[],2)=0,"",VLOOKUP('Balance Empresa'!$K104,t.casillas[],2))) -> 402 | T104: =IF(OR('Balance Empresa'!$S104={"",0}),"",VLOOKUP(S104,t.codigos[],2)) -> Trib y aport sist pens y salud p pagar | V104: 301 | W104: 379
B105: 401131 | C105: IGV - REGIMEN DE PERCEPCIONES | D105: 0.85 | E105: 0.00 | F105: 0.00 | G105: 0.85 | H105: =IF('Balance Empresa'!$B105<>"",SUM('Balance Empresa'!$D105,-'Balance Empresa'!$E105,'Balance Empresa'!$F105,-'Balance Empresa'!$G105),"") -> 0.00 | J105: =IF(AND('Balance Empresa'!$B105<>"",IFERROR(VALUE(LEFT('Balance Empresa'!$B105,2)),FALSE)<>79),LEFT('Balance Empresa'!$B105,VLOOKUP('Balance Empresa'!$B105,t.caracter[],2)),"") -> 40113 | K105: =IF(OR(TODAY()>r.real,'Balance Empresa'!$J105=""),"",IF(LEFT('Balance Empresa'!$J105)="9",'Balance Empresa'!$B105&". "&'Balance Empresa'!$C105,VLOOKUP(IF('Balance Empresa'!$I105<>"",'Balance Empresa'!$I105&"",'Balance Empresa'!$J105),BC_PCGEmpresarial!$A:$B,2,0))) -> 40113. Gobierno central - Impuesto general a las ventas - IGV – Régimen de percepciones | N105: 1.00 | O105: 0.00 | P105: 0.00 | Q105: 1.00 | R105: 0.00 | S105: =IF(OR(TODAY()>r.real,'Balance Empresa'!$J105=""),"",IF(VLOOKUP('Balance Empresa'!$K105,t.casillas[],2)=0,"",VLOOKUP('Balance Empresa'!$K105,t.casillas[],2))) -> 402 | T105: =IF(OR('Balance Empresa'!$S105={"",0}),"",VLOOKUP(S105,t.codigos[],2)) -> Trib y aport sist pens y salud p pagar | V105: 3021 | W105: 379
B106: 401701 | C106: RENTA 3RA CAT POR PAGAR (CTE) | D106: 0.00 | E106: 37,770.49 | F106: 0.00 | G106: 12,312.12 | H106: =IF('Balance Empresa'!$B106<>"",SUM('Balance Empresa'!$D106,-'Balance Empresa'!$E106,'Balance Empresa'!$F106,-'Balance Empresa'!$G106),"") -> -50,082.61 | I106: 40171 | J106: =IF(AND('Balance Empresa'!$B106<>"",IFERROR(VALUE(LEFT('Balance Empresa'!$B106,2)),FALSE)<>79),LEFT('Balance Empresa'!$B106,VLOOKUP('Balance Empresa'!$B106,t.caracter[],2)),"") -> 40170 | K106: =IF(OR(TODAY()>r.real,'Balance Empresa'!$J106=""),"",IF(LEFT('Balance Empresa'!$J106)="9",'Balance Empresa'!$B106&". "&'Balance Empresa'!$C106,VLOOKUP(IF('Balance Empresa'!$I106<>"",'Balance Empresa'!$I106&"",'Balance Empresa'!$J106),BC_PCGEmpresarial!$A:$B,2,0))) -> 40171. Gobierno central - Impuesto a la renta - Renta de tercera categoría | N106: 0.00 | O106: 37,770.00 | P106: 0.00 | Q106: 12,312.00 | R106: -50,082.00 | S106: =IF(OR(TODAY()>r.real,'Balance Empresa'!$J106=""),"",IF(VLOOKUP('Balance Empresa'!$K106,t.casillas[],2)=0,"",VLOOKUP('Balance Empresa'!$K106,t.casillas[],2))) -> 402 | T106: =IF(OR('Balance Empresa'!$S106={"",0}),"",VLOOKUP(S106,t.codigos[],2)) -> Trib y aport sist pens y salud p pagar | V106: 3022 | W106: 379
B107: 401722 | C107: RENTA 4TA CAT POR PAGAR (CTE) | D107: 0.00 | E107: 11,502.31 | F107: 25,525.88 | G107: 19,823.58 | H107: =IF('Balance Empresa'!$B107<>"",SUM('Balance Empresa'!$D107,-'Balance Empresa'!$E107,'Balance Empresa'!$F107,-'Balance Empresa'!$G107),"") -> -5,800.01 | J107: =IF(AND('Balance Empresa'!$B107<>"",IFERROR(VALUE(LEFT('Balance Empresa'!$B107,2)),FALSE)<>79),LEFT('Balance Empresa'!$B107,VLOOKUP('Balance Empresa'!$B107,t.caracter[],2)),"") -> 40172 | K107: =IF(OR(TODAY()>r.real,'Balance Empresa'!$J107=""),"",IF(LEFT('Balance Empresa'!$J107)="9",'Balance Empresa'!$B107&". "&'Balance Empresa'!$C107,VLOOKUP(IF('Balance Empresa'!$I107<>"",'Balance Empresa'!$I107&"",'Balance Empresa'!$J107),BC_PCGEmpresarial!$A:$B,2,0))) -> 40172. Gobierno central - Impuesto a la renta - Renta de cuarta categoría | N107: 0.00 | O107: 11,502.00 | P107: 25,526.00 | Q107: 19,824.00 | R107: -5,800.00 | S107: =IF(OR(TODAY()>r.real,'Balance Empresa'!$J107=""),"",IF(VLOOKUP('Balance Empresa'!$K107,t.casillas[],2)=0,"",VLOOKUP('Balance Empresa'!$K107,t.casillas[],2))) -> 402 | T107: =IF(OR('Balance Empresa'!$S107={"",0}),"",VLOOKUP(S107,t.codigos[],2)) -> Trib y aport sist pens y salud p pagar | V107: 3023 | W107: 379
B108: 401732 | C108: RENTA 5TA CAT POR PAGAR (CTE) | D108: 0.00 | E108: 10,604.69 | F108: 73,563.07 | G108: 64,663.83 | H108: =IF('Balance Empresa'!$B108<>"",SUM('Balance Empresa'!$D108,-'Balance Empresa'!$E108,'Balance Empresa'!$F108,-'Balance Empresa'!$G108),"") -> -1,705.46 | J108: =IF(AND('Balance Empresa'!$B108<>"",IFERROR(VALUE(LEFT('Balance Empresa'!$B108,2)),FALSE)<>79),LEFT('Balance Empresa'!$B108,VLOOKUP('Balance Empresa'!$B108,t.caracter[],2)),"") -> 40173 | K108: =IF(OR(TODAY()>r.real,'Balance Empresa'!$J108=""),"",IF(LEFT('Balance Empresa'!$J108)="9",'Balance Empresa'!$B108&". "&'Balance Empresa'!$C108,VLOOKUP(IF('Balance Empresa'!$I108<>"",'Balance Empresa'!$I108&"",'Balance Empresa'!$J108),BC_PCGEmpresarial!$A:$B,2,0))) -> 40173. Gobierno central - Impuesto a la renta - Renta de quinta categoría | L108: MOV HABER2 | M108: 1.00 | N108: 0.00 | O108: 10,605.00 | P108: 73,563.00 | Q108: 64,665.00 | R108: -1,707.00 | S108: =IF(OR(TODAY()>r.real,'Balance Empresa'!$J108=""),"",IF(VLOOKUP('Balance Empresa'!$K108,t.casillas[],2)=0,"",VLOOKUP('Balance Empresa'!$K108,t.casillas[],2))) -> 402 | T108: =IF(OR('Balance Empresa'!$S108={"",0}),"",VLOOKUP(S108,t.codigos[],2)) -> Trib y aport sist pens y salud p pagar | V108: 3024 | W108: 379
B109: 401741 | C109: RENTA DE NO DOMICILIADOS | D109: 0.00 | E109: 0.14 | F109: 0.14 | G109: 0.00 | H109: =IF('Balance Empresa'!$B109<>"",SUM('Balance Empresa'!$D109,-'Balance Empresa'!$E109,'Balance Empresa'!$F109,-'Balance Empresa'!$G109),"") -> 0.00 | J109: =IF(AND('Balance Empresa'!$B109<>"",IFERROR(VALUE(LEFT('Balance Empresa'!$B109,2)),FALSE)<>79),LEFT('Balance Empresa'!$B109,VLOOKUP('Balance Empresa'!$B109,t.caracter[],2)),"") -> 40174 | K109: =IF(OR(TODAY()>r.real,'Balance Empresa'!$J109=""),"",IF(LEFT('Balance Empresa'!$J109)="9",'Balance Empresa'!$B109&". "&'Balance Empresa'!$C109,VLOOKUP(IF('Balance Empresa'!$I109<>"",'Balance Empresa'!$I109&"",'Balance Empresa'!$J109),BC_PCGEmpresarial!$A:$B,2,0))) -> 40174. Gobierno central - Impuesto a la renta - Renta de no domiciliados | N109: 0.00 | O109: 0.00 | P109: 0.00 | Q109: 0.00 | R109: 0.00 | S109: =IF(OR(TODAY()>r.real,'Balance Empresa'!$J109=""),"",IF(VLOOKUP('Balance Empresa'!$K109,t.casillas[],2)=0,"",VLOOKUP('Balance Empresa'!$K109,t.casillas[],2))) -> 402 | T109: =IF(OR('Balance Empresa'!$S109={"",0}),"",VLOOKUP(S109,t.codigos[],2)) -> Trib y aport sist pens y salud p pagar | V109: 3025 | W109: 379
B110: 401851 | C110: IMPUESTO ALOS DIVIDENDOS | D110: 0.00 | E110: 0.00 | F110: 673.54 | G110: 673.54 | H110: =IF('Balance Empresa'!$B110<>"",SUM('Balance Empresa'!$D110,-'Balance Empresa'!$E110,'Balance Empresa'!$F110,-'Balance Empresa'!$G110),"") -> 0.00 | J110: =IF(AND('Balance Empresa'!$B110<>"",IFERROR(VALUE(LEFT('Balance Empresa'!$B110,2)),FALSE)<>79),LEFT('Balance Empresa'!$B110,VLOOKUP('Balance Empresa'!$B110,t.caracter[],2)),"") -> 40185 | K110: =IF(OR(TODAY()>r.real,'Balance Empresa'!$J110=""),"",IF(LEFT('Balance Empresa'!$J110)="9",'Balance Empresa'!$B110&". "&'Balance Empresa'!$C110,VLOOKUP(IF('Balance Empresa'!$I110<>"",'Balance Empresa'!$I110&"",'Balance Empresa'!$J110),BC_PCGEmpresarial!$A:$B,2,0))) -> 40185. Gobierno central - Otros impuestos y contraprestaciones - Impuesto a los dividendos | N110: 0.00 | O110: 0.00 | P110: 674.00 | Q110: 674.00 | R110: 0.00 | S110: =IF(OR(TODAY()>r.real,'Balance Empresa'!$J110=""),"",IF(VLOOKUP('Balance Empresa'!$K110,t.casillas[],2)=0,"",VLOOKUP('Balance Empresa'!$K110,t.casillas[],2))) -> 402 | T110: =IF(OR('Balance Empresa'!$S110={"",0}),"",VLOOKUP(S110,t.codigos[],2)) -> Trib y aport sist pens y salud p pagar | V110: 3026 | W110: 379
B111: 403111 | C111: ESSALUD POR PAGAR (CTE) | D111: 0.00 | E111: 7,379.36 | F111: 77,268.89 | G111: 72,145.19 | H111: =IF('Balance Empresa'!$B111<>"",SUM('Balance Empresa'!$D111,-'Balance Empresa'!$E111,'Balance Empresa'!$F111,-'Balance Empresa'!$G111),"") -> -2,255.67 | J111: =IF(AND('Balance Empresa'!$B111<>"",IFERROR(VALUE(LEFT('Balance Empresa'!$B111,2)),FALSE)<>79),LEFT('Balance Empresa'!$B111,VLOOKUP('Balance Empresa'!$B111,t.caracter[],2)),"") -> 4031 | K111: =IF(OR(TODAY()>r.real,'Balance Empresa'!$J111=""),"",IF(LEFT('Balance Empresa'!$J111)="9",'Balance Empresa'!$B111&". "&'Balance Empresa'!$C111,VLOOKUP(IF('Balance Empresa'!$I111<>"",'Balance Empresa'!$I111&"",'Balance Empresa'!$J111),BC_PCGEmpresarial!$A:$B,2,0))) -> 4031. Instituciones públicas - ESSALUD | N111: 0.00 | O111: 7,379.00 | P111: 77,269.00 | Q111: 72,145.00 | R111: -2,255.00 | S111: =IF(OR(TODAY()>r.real,'Balance Empresa'!$J111=""),"",IF(VLOOKUP('Balance Empresa'!$K111,t.casillas[],2)=0,"",VLOOKUP('Balance Empresa'!$K111,t.casillas[],2))) -> 402 | T111: =IF(OR('Balance Empresa'!$S111={"",0}),"",VLOOKUP(S111,t.codigos[],2)) -> Trib y aport sist pens y salud p pagar | V111: 3027 | W111: 379
B112: 403112 | C112: SCTR POR PAGAR (CTE) | D112: 0.00 | E112: 146.04 | F112: 1,192.31 | G112: 1,046.27 | H112: =IF('Balance Empresa'!$B112<>"",SUM('Balance Empresa'!$D112,-'Balance Empresa'!$E112,'Balance Empresa'!$F112,-'Balance Empresa'!$G112),"") -> 0.00 | J112: =IF(AND('Balance Empresa'!$B112<>"",IFERROR(VALUE(LEFT('Balance Empresa'!$B112,2)),FALSE)<>79),LEFT('Balance Empresa'!$B112,VLOOKUP('Balance Empresa'!$B112,t.caracter[],2)),"") -> 4031 | K112: =IF(OR(TODAY()>r.real,'Balance Empresa'!$J112=""),"",IF(LEFT('Balance Empresa'!$J112)="9",'Balance Empresa'!$B112&". "&'Balance Empresa'!$C112,VLOOKUP(IF('Balance Empresa'!$I112<>"",'Balance Empresa'!$I112&"",'Balance Empresa'!$J112),BC_PCGEmpresarial!$A:$B,2,0))) -> 4031. Instituciones públicas - ESSALUD | N112: 0.00 | O112: 146.00 | P112: 1,192.00 | Q112: 1,046.00 | R112: 0.00 | S112: =IF(OR(TODAY()>r.real,'Balance Empresa'!$J112=""),"",IF(VLOOKUP('Balance Empresa'!$K112,t.casillas[],2)=0,"",VLOOKUP('Balance Empresa'!$K112,t.casillas[],2))) -> 402 | T112: =IF(OR('Balance Empresa'!$S112={"",0}),"",VLOOKUP(S112,t.codigos[],2)) -> Trib y aport sist pens y salud p pagar | V112: 3028 | W112: 379
B113: 403113 | C113: ESSALUD VIDA POR PAGAR (CTE) | D113: 0.00 | E113: 54.07 | F113: 518.04 | G113: 500.96 | H113: =IF('Balance Empresa'!$B113<>"",SUM('Balance Empresa'!$D113,-'Balance Empresa'!$E113,'Balance Empresa'!$F113,-'Balance Empresa'!$G113),"") -> -36.99 | J113: =IF(AND('Balance Empresa'!$B113<>"",IFERROR(VALUE(LEFT('Balance Empresa'!$B113,2)),FALSE)<>79),LEFT('Balance Empresa'!$B113,VLOOKUP('Balance Empresa'!$B113,t.caracter[],2)),"") -> 4031 | K113: =IF(OR(TODAY()>r.real,'Balance Empresa'!$J113=""),"",IF(LEFT('Balance Empresa'!$J113)="9",'Balance Empresa'!$B113&". "&'Balance Empresa'!$C113,VLOOKUP(IF('Balance Empresa'!$I113<>"",'Balance Empresa'!$I113&"",'Balance Empresa'!$J113),BC_PCGEmpresarial!$A:$B,2,0))) -> 4031. Instituciones públicas - ESSALUD | N113: 0.00 | O113: 54.00 | P113: 518.00 | Q113: 501.00 | R113: -37.00 | S113: =IF(OR(TODAY()>r.real,'Balance Empresa'!$J113=""),"",IF(VLOOKUP('Balance Empresa'!$K113,t.casillas[],2)=0,"",VLOOKUP('Balance Empresa'!$K113,t.casillas[],2))) -> 402 | T113: =IF(OR('Balance Empresa'!$S113={"",0}),"",VLOOKUP(S113,t.codigos[],2)) -> Trib y aport sist pens y salud p pagar | V113: 308 | W113: 379
B114: 403202 | C114: AFP | D114: 0.00 | E114: 0.00 | F114: 0.00 | G114: 3,668.82 | H114: =IF('Balance Empresa'!$B114<>"",SUM('Balance Empresa'!$D114,-'Balance Empresa'!$E114,'Balance Empresa'!$F114,-'Balance Empresa'!$G114),"") -> -3,668.82 | J114: =IF(AND('Balance Empresa'!$B114<>"",IFERROR(VALUE(LEFT('Balance Empresa'!$B114,2)),FALSE)<>79),LEFT('Balance Empresa'!$B114,VLOOKUP('Balance Empresa'!$B114,t.caracter[],2)),"") -> 4032 | K114: =IF(OR(TODAY()>r.real,'Balance Empresa'!$J114=""),"",IF(LEFT('Balance Empresa'!$J114)="9",'Balance Empresa'!$B114&". "&'Balance Empresa'!$C114,VLOOKUP(IF('Balance Empresa'!$I114<>"",'Balance Empresa'!$I114&"",'Balance Empresa'!$J114),BC_PCGEmpresarial!$A:$B,2,0))) -> 4032. Instituciones públicas - ONP | N114: 0.00 | O114: 0.00 | P114: 0.00 | Q114: 3,669.00 | R114: -3,669.00 | S114: =IF(OR(TODAY()>r.real,'Balance Empresa'!$J114=""),"",IF(VLOOKUP('Balance Empresa'!$K114,t.casillas[],2)=0,"",VLOOKUP('Balance Empresa'!$K114,t.casillas[],2))) -> 402 | T114: =IF(OR('Balance Empresa'!$S114={"",0}),"",VLOOKUP(S114,t.codigos[],2)) -> Trib y aport sist pens y salud p pagar | V114: 311 | W114: 380
B115: 403211 | C115: ONP POR PAGAR (CTE) | D115: 0.00 | E115: 543.58 | F115: 2,731.69 | G115: 2,188.11 | H115: =IF('Balance Empresa'!$B115<>"",SUM('Balance Empresa'!$D115,-'Balance Empresa'!$E115,'Balance Empresa'!$F115,-'Balance Empresa'!$G115),"") -> 0.00 | J115: =IF(AND('Balance Empresa'!$B115<>"",IFERROR(VALUE(LEFT('Balance Empresa'!$B115,2)),FALSE)<>79),LEFT('Balance Empresa'!$B115,VLOOKUP('Balance Empresa'!$B115,t.caracter[],2)),"") -> 4032 | K115: =IF(OR(TODAY()>r.real,'Balance Empresa'!$J115=""),"",IF(LEFT('Balance Empresa'!$J115)="9",'Balance Empresa'!$B115&". "&'Balance Empresa'!$C115,VLOOKUP(IF('Balance Empresa'!$I115<>"",'Balance Empresa'!$I115&"",'Balance Empresa'!$J115),BC_PCGEmpresarial!$A:$B,2,0))) -> 4032. Instituciones públicas - ONP | N115: 0.00 | O115: 544.00 | P115: 2,732.00 | Q115: 2,188.00 | R115: 0.00 | S115: =IF(OR(TODAY()>r.real,'Balance Empresa'!$J115=""),"",IF(VLOOKUP('Balance Empresa'!$K115,t.casillas[],2)=0,"",VLOOKUP('Balance Empresa'!$K115,t.casillas[],2))) -> 402 | T115: =IF(OR('Balance Empresa'!$S115={"",0}),"",VLOOKUP(S115,t.codigos[],2)) -> Trib y aport sist pens y salud p pagar | V115: 312 | W115: 380
B116: 407111 | C116: AFP POR PAGAR (CTE) | D116: 0.00 | E116: 8,590.46 | F116: 68,778.54 | G116: 67,576.51 | H116: =IF('Balance Empresa'!$B116<>"",SUM('Balance Empresa'!$D116,-'Balance Empresa'!$E116,'Balance Empresa'!$F116,-'Balance Empresa'!$G116),"") -> -7,388.43 | J116: =IF(AND('Balance Empresa'!$B116<>"",IFERROR(VALUE(LEFT('Balance Empresa'!$B116,2)),FALSE)<>79),LEFT('Balance Empresa'!$B116,VLOOKUP('Balance Empresa'!$B116,t.caracter[],2)),"") -> 407 | K116: =IF(OR(TODAY()>r.real,'Balance Empresa'!$J116=""),"",IF(LEFT('Balance Empresa'!$J116)="9",'Balance Empresa'!$B116&". "&'Balance Empresa'!$C116,VLOOKUP(IF('Balance Empresa'!$I116<>"",'Balance Empresa'!$I116&"",'Balance Empresa'!$J116),BC_PCGEmpresarial!$A:$B,2,0))) -> 407. Administradoras de fondos de pensiones | N116: 0.00 | O116: 8,590.00 | P116: 68,779.00 | Q116: 67,577.00 | R116: -7,388.00 | S116: =IF(OR(TODAY()>r.real,'Balance Empresa'!$J116=""),"",IF(VLOOKUP('Balance Empresa'!$K116,t.casillas[],2)=0,"",VLOOKUP('Balance Empresa'!$K116,t.casillas[],2))) -> 402 | T116: =IF(OR('Balance Empresa'!$S116={"",0}),"",VLOOKUP(S116,t.codigos[],2)) -> Trib y aport sist pens y salud p pagar | V116: 321 | W116: 381
B117: 409101 | C117: FRACC.ART.36º DEL C.T. | D117: 0.00 | E117: 12,172.64 | F117: 12,172.64 | G117: 0.00 | H117: =IF('Balance Empresa'!$B117<>"",SUM('Balance Empresa'!$D117,-'Balance Empresa'!$E117,'Balance Empresa'!$F117,-'Balance Empresa'!$G117),"") -> 0.00 | J117: =IF(AND('Balance Empresa'!$B117<>"",IFERROR(VALUE(LEFT('Balance Empresa'!$B117,2)),FALSE)<>79),LEFT('Balance Empresa'!$B117,VLOOKUP('Balance Empresa'!$B117,t.caracter[],2)),"") -> 409 | K117: =IF(OR(TODAY()>r.real,'Balance Empresa'!$J117=""),"",IF(LEFT('Balance Empresa'!$J117)="9",'Balance Empresa'!$B117&". "&'Balance Empresa'!$C117,VLOOKUP(IF('Balance Empresa'!$I117<>"",'Balance Empresa'!$I117&"",'Balance Empresa'!$J117),BC_PCGEmpresarial!$A:$B,2,0))) -> 409. Otros costos administrativos e intereses | N117: 0.00 | O117: 12,173.00 | P117: 12,173.00 | Q117: 0.00 | R117: 0.00 | S117: =IF(OR(TODAY()>r.real,'Balance Empresa'!$J117=""),"",IF(VLOOKUP('Balance Empresa'!$K117,t.casillas[],2)=0,"",VLOOKUP('Balance Empresa'!$K117,t.casillas[],2))) -> 402 | T117: =IF(OR('Balance Empresa'!$S117={"",0}),"",VLOOKUP(S117,t.codigos[],2)) -> Trib y aport sist pens y salud p pagar | V117: 322 | W117: 381
B118: 411101 | C118: SUELDOS | D118: 0.00 | E118: 325,742.88 | F118: 507,902.22 | G118: 782,855.12 | H118: =IF('Balance Empresa'!$B118<>"",SUM('Balance Empresa'!$D118,-'Balance Empresa'!$E118,'Balance Empresa'!$F118,-'Balance Empresa'!$G118),"") -> -600,695.78 | J118: =IF(AND('Balance Empresa'!$B118<>"",IFERROR(VALUE(LEFT('Balance Empresa'!$B118,2)),FALSE)<>79),LEFT('Balance Empresa'!$B118,VLOOKUP('Balance Empresa'!$B118,t.caracter[],2)),"") -> 4111 | K118: =IF(OR(TODAY()>r.real,'Balance Empresa'!$J118=""),"",IF(LEFT('Balance Empresa'!$J118)="9",'Balance Empresa'!$B118&". "&'Balance Empresa'!$C118,VLOOKUP(IF('Balance Empresa'!$I118<>"",'Balance Empresa'!$I118&"",'Balance Empresa'!$J118),BC_PCGEmpresarial!$A:$B,2,0))) -> 4111. Remuneraciones por pagar - Sueldos y salarios por pagar | N118: 0.00 | O118: 325,743.00 | P118: 507,902.00 | Q118: 782,855.00 | R118: -600,696.00 | S118: =IF(OR(TODAY()>r.real,'Balance Empresa'!$J118=""),"",IF(VLOOKUP('Balance Empresa'!$K118,t.casillas[],2)=0,"",VLOOKUP('Balance Empresa'!$K118,t.casillas[],2))) -> 403 | T118: =IF(OR('Balance Empresa'!$S118={"",0}),"",VLOOKUP(S118,t.codigos[],2)) -> Remuneraciones y particip por pagar | V118: 331 | W118: 382
B119: 411104 | C119: FONDO DE TRABAJADORES | D119: 0.00 | E119: 9,679.18 | F119: 0.00 | G119: 0.00 | H119: =IF('Balance Empresa'!$B119<>"",SUM('Balance Empresa'!$D119,-'Balance Empresa'!$E119,'Balance Empresa'!$F119,-'Balance Empresa'!$G119),"") -> -9,679.18 | J119: =IF(AND('Balance Empresa'!$B119<>"",IFERROR(VALUE(LEFT('Balance Empresa'!$B119,2)),FALSE)<>79),LEFT('Balance Empresa'!$B119,VLOOKUP('Balance Empresa'!$B119,t.caracter[],2)),"") -> 4111 | K119: =IF(OR(TODAY()>r.real,'Balance Empresa'!$J119=""),"",IF(LEFT('Balance Empresa'!$J119)="9",'Balance Empresa'!$B119&". "&'Balance Empresa'!$C119,VLOOKUP(IF('Balance Empresa'!$I119<>"",'Balance Empresa'!$I119&"",'Balance Empresa'!$J119),BC_PCGEmpresarial!$A:$B,2,0))) -> 4111. Remuneraciones por pagar - Sueldos y salarios por pagar | N119: 0.00 | O119: 9,679.00 | P119: 0.00 | Q119: 0.00 | R119: -9,679.00 | S119: =IF(OR(TODAY()>r.real,'Balance Empresa'!$J119=""),"",IF(VLOOKUP('Balance Empresa'!$K119,t.casillas[],2)=0,"",VLOOKUP('Balance Empresa'!$K119,t.casillas[],2))) -> 403 | T119: =IF(OR('Balance Empresa'!$S119={"",0}),"",VLOOKUP(S119,t.codigos[],2)) -> Remuneraciones y particip por pagar | V119: 332 | W119: 382
B120: 411401 | C120: GRATIFICACIONES EMPLEADOS | D120: 0.00 | E120: 0.00 | F120: 194,755.99 | G120: 199,098.03 | H120: =IF('Balance Empresa'!$B120<>"",SUM('Balance Empresa'!$D120,-'Balance Empresa'!$E120,'Balance Empresa'!$F120,-'Balance Empresa'!$G120),"") -> -4,342.04 | J120: =IF(AND('Balance Empresa'!$B120<>"",IFERROR(VALUE(LEFT('Balance Empresa'!$B120,2)),FALSE)<>79),LEFT('Balance Empresa'!$B120,VLOOKUP('Balance Empresa'!$B120,t.caracter[],2)),"") -> 4114 | K120: =IF(OR(TODAY()>r.real,'Balance Empresa'!$J120=""),"",IF(LEFT('Balance Empresa'!$J120)="9",'Balance Empresa'!$B120&". "&'Balance Empresa'!$C120,VLOOKUP(IF('Balance Empresa'!$I120<>"",'Balance Empresa'!$I120&"",'Balance Empresa'!$J120),BC_PCGEmpresarial!$A:$B,2,0))) -> 4114. Remuneraciones por pagar - Gratificaciones por pagar | N120: 0.00 | O120: 0.00 | P120: 194,756.00 | Q120: 199,098.00 | R120: -4,342.00 | S120: =IF(OR(TODAY()>r.real,'Balance Empresa'!$J120=""),"",IF(VLOOKUP('Balance Empresa'!$K120,t.casillas[],2)=0,"",VLOOKUP('Balance Empresa'!$K120,t.casillas[],2))) -> 403 | T120: =IF(OR('Balance Empresa'!$S120={"",0}),"",VLOOKUP(S120,t.codigos[],2)) -> Remuneraciones y particip por pagar | V120: 333 | W120: 382
B121: 411501 | C121: VACACIONES EMPLEADOS | D121: 0.00 | E121: 127,203.87 | F121: 145,627.53 | G121: 97,912.28 | H121: =IF('Balance Empresa'!$B121<>"",SUM('Balance Empresa'!$D121,-'Balance Empresa'!$E121,'Balance Empresa'!$F121,-'Balance Empresa'!$G121),"") -> -79,488.62 | J121: =IF(AND('Balance Empresa'!$B121<>"",IFERROR(VALUE(LEFT('Balance Empresa'!$B121,2)),FALSE)<>79),LEFT('Balance Empresa'!$B121,VLOOKUP('Balance Empresa'!$B121,t.caracter[],2)),"") -> 4115 | K121: =IF(OR(TODAY()>r.real,'Balance Empresa'!$J121=""),"",IF(LEFT('Balance Empresa'!$J121)="9",'Balance Empresa'!$B121&". "&'Balance Empresa'!$C121,VLOOKUP(IF('Balance Empresa'!$I121<>"",'Balance Empresa'!$I121&"",'Balance Empresa'!$J121),BC_PCGEmpresarial!$A:$B,2,0))) -> 4115. Remuneraciones por pagar - Vacaciones por pagar | N121: 0.00 | O121: 127,204.00 | P121: 145,628.00 | Q121: 97,912.00 | R121: -79,488.00 | S121: =IF(OR(TODAY()>r.real,'Balance Empresa'!$J121=""),"",IF(VLOOKUP('Balance Empresa'!$K121,t.casillas[],2)=0,"",VLOOKUP('Balance Empresa'!$K121,t.casillas[],2))) -> 403 | T121: =IF(OR('Balance Empresa'!$S121={"",0}),"",VLOOKUP(S121,t.codigos[],2)) -> Remuneraciones y particip por pagar | V121: 334 | W121: 382
B122: 413101 | C122: PARTICIPACIONES DE EMPLEADOS | D122: 0.00 | E122: 6,744.73 | F122: 0.00 | G122: 0.00 | H122: =IF('Balance Empresa'!$B122<>"",SUM('Balance Empresa'!$D122,-'Balance Empresa'!$E122,'Balance Empresa'!$F122,-'Balance Empresa'!$G122),"") -> -6,744.73 | J122: =IF(AND('Balance Empresa'!$B122<>"",IFERROR(VALUE(LEFT('Balance Empresa'!$B122,2)),FALSE)<>79),LEFT('Balance Empresa'!$B122,VLOOKUP('Balance Empresa'!$B122,t.caracter[],2)),"") -> 413 | K122: =IF(OR(TODAY()>r.real,'Balance Empresa'!$J122=""),"",IF(LEFT('Balance Empresa'!$J122)="9",'Balance Empresa'!$B122&". "&'Balance Empresa'!$C122,VLOOKUP(IF('Balance Empresa'!$I122<>"",'Balance Empresa'!$I122&"",'Balance Empresa'!$J122),BC_PCGEmpresarial!$A:$B,2,0))) -> 413. Participaciones de los trabajadores por pagar | N122: 0.00 | O122: 6,745.00 | P122: 0.00 | Q122: 0.00 | R122: -6,745.00 | S122: =IF(OR(TODAY()>r.real,'Balance Empresa'!$J122=""),"",IF(VLOOKUP('Balance Empresa'!$K122,t.casillas[],2)=0,"",VLOOKUP('Balance Empresa'!$K122,t.casillas[],2))) -> 403 | T122: =IF(OR('Balance Empresa'!$S122={"",0}),"",VLOOKUP(S122,t.codigos[],2)) -> Remuneraciones y particip por pagar | V122: 335 | W122: 382
B123: 415101 | C123: C.T.S. EMPLEADOS | D123: 0.00 | E123: 15,094.45 | F123: 51,555.70 | G123: 65,028.14 | H123: =IF('Balance Empresa'!$B123<>"",SUM('Balance Empresa'!$D123,-'Balance Empresa'!$E123,'Balance Empresa'!$F123,-'Balance Empresa'!$G123),"") -> -28,566.89 | J123: =IF(AND('Balance Empresa'!$B123<>"",IFERROR(VALUE(LEFT('Balance Empresa'!$B123,2)),FALSE)<>79),LEFT('Balance Empresa'!$B123,VLOOKUP('Balance Empresa'!$B123,t.caracter[],2)),"") -> 4151 | K123: =IF(OR(TODAY()>r.real,'Balance Empresa'!$J123=""),"",IF(LEFT('Balance Empresa'!$J123)="9",'Balance Empresa'!$B123&". "&'Balance Empresa'!$C123,VLOOKUP(IF('Balance Empresa'!$I123<>"",'Balance Empresa'!$I123&"",'Balance Empresa'!$J123),BC_PCGEmpresarial!$A:$B,2,0))) -> 4151. Beneficios sociales de los trabajadores por pagar - Compensación por tiempo de servicios | N123: 0.00 | O123: 15,094.00 | P123: 51,556.00 | Q123: 65,028.00 | R123: -28,566.00 | S123: =IF(OR(TODAY()>r.real,'Balance Empresa'!$J123=""),"",IF(VLOOKUP('Balance Empresa'!$K123,t.casillas[],2)=0,"",VLOOKUP('Balance Empresa'!$K123,t.casillas[],2))) -> 403 | T123: =IF(OR('Balance Empresa'!$S123={"",0}),"",VLOOKUP(S123,t.codigos[],2)) -> Remuneraciones y particip por pagar | V123: 336 | W123: 382
B124: 419102 | C124: LIQUIDACIONES POR PAGAR (CTE) | D124: 0.00 | E124: 63,596.40 | F124: 20,494.58 | G124: 0.00 | H124: =IF('Balance Empresa'!$B124<>"",SUM('Balance Empresa'!$D124,-'Balance Empresa'!$E124,'Balance Empresa'!$F124,-'Balance Empresa'!$G124),"") -> -43,101.82 | J124: =IF(AND('Balance Empresa'!$B124<>"",IFERROR(VALUE(LEFT('Balance Empresa'!$B124,2)),FALSE)<>79),LEFT('Balance Empresa'!$B124,VLOOKUP('Balance Empresa'!$B124,t.caracter[],2)),"") -> 419 | K124: =IF(OR(TODAY()>r.real,'Balance Empresa'!$J124=""),"",IF(LEFT('Balance Empresa'!$J124)="9",'Balance Empresa'!$B124&". "&'Balance Empresa'!$C124,VLOOKUP(IF('Balance Empresa'!$I124<>"",'Balance Empresa'!$I124&"",'Balance Empresa'!$J124),BC_PCGEmpresarial!$A:$B,2,0))) -> 419. Otras remuneraciones y participaciones por pagar | N124: 0.00 | O124: 63,596.00 | P124: 20,495.00 | Q124: 0.00 | R124: -43,101.00 | S124: =IF(OR(TODAY()>r.real,'Balance Empresa'!$J124=""),"",IF(VLOOKUP('Balance Empresa'!$K124,t.casillas[],2)=0,"",VLOOKUP('Balance Empresa'!$K124,t.casillas[],2))) -> 403 | T124: =IF(OR('Balance Empresa'!$S124={"",0}),"",VLOOKUP(S124,t.codigos[],2)) -> Remuneraciones y particip por pagar | V124: 337 | W124: 382
B125: 421101 | C125: FACTURAS NO EMITIDAS POR PAGAR MN | D125: 0.00 | E125: 415,648.31 | F125: 715,081.39 | G125: 453,560.29 | H125: =IF('Balance Empresa'!$B125<>"",SUM('Balance Empresa'!$D125,-'Balance Empresa'!$E125,'Balance Empresa'!$F125,-'Balance Empresa'!$G125),"") -> -154,127.20 | J125: =IF(AND('Balance Empresa'!$B125<>"",IFERROR(VALUE(LEFT('Balance Empresa'!$B125,2)),FALSE)<>79),LEFT('Balance Empresa'!$B125,VLOOKUP('Balance Empresa'!$B125,t.caracter[],2)),"") -> 4211 | K125: =IF(OR(TODAY()>r.real,'Balance Empresa'!$J125=""),"",IF(LEFT('Balance Empresa'!$J125)="9",'Balance Empresa'!$B125&". "&'Balance Empresa'!$C125,VLOOKUP(IF('Balance Empresa'!$I125<>"",'Balance Empresa'!$I125&"",'Balance Empresa'!$J125),BC_PCGEmpresarial!$A:$B,2,0))) -> 4211. Facturas, boletas y otros comprobantes por pagar - No emitidas | N125: 0.00 | O125: 415,648.00 | P125: 715,081.00 | Q125: 453,560.00 | R125: -154,127.00 | S125: =IF(OR(TODAY()>r.real,'Balance Empresa'!$J125=""),"",IF(VLOOKUP('Balance Empresa'!$K125,t.casillas[],2)=0,"",VLOOKUP('Balance Empresa'!$K125,t.casillas[],2))) -> 404 | T125: =IF(OR('Balance Empresa'!$S125={"",0}),"",VLOOKUP(S125,t.codigos[],2)) -> Ctas por pagar comerciales - terceros | V125: 338 | W125: 382
B126: 421102 | C126: FACTURAS NO EMITIDAS POR PAGAR ME | D126: 0.00 | E126: 62,378.79 | F126: 39,114.85 | G126: 148,701.22 | H126: =IF('Balance Empresa'!$B126<>"",SUM('Balance Empresa'!$D126,-'Balance Empresa'!$E126,'Balance Empresa'!$F126,-'Balance Empresa'!$G126),"") -> -171,965.16 | J126: =IF(AND('Balance Empresa'!$B126<>"",IFERROR(VALUE(LEFT('Balance Empresa'!$B126,2)),FALSE)<>79),LEFT('Balance Empresa'!$B126,VLOOKUP('Balance Empresa'!$B126,t.caracter[],2)),"") -> 4211 | K126: =IF(OR(TODAY()>r.real,'Balance Empresa'!$J126=""),"",IF(LEFT('Balance Empresa'!$J126)="9",'Balance Empresa'!$B126&". "&'Balance Empresa'!$C126,VLOOKUP(IF('Balance Empresa'!$I126<>"",'Balance Empresa'!$I126&"",'Balance Empresa'!$J126),BC_PCGEmpresarial!$A:$B,2,0))) -> 4211. Facturas, boletas y otros comprobantes por pagar - No emitidas | N126: 0.00 | O126: 62,379.00 | P126: 39,115.00 | Q126: 148,701.00 | R126: -171,965.00 | S126: =IF(OR(TODAY()>r.real,'Balance Empresa'!$J126=""),"",IF(VLOOKUP('Balance Empresa'!$K126,t.casillas[],2)=0,"",VLOOKUP('Balance Empresa'!$K126,t.casillas[],2))) -> 404 | T126: =IF(OR('Balance Empresa'!$S126={"",0}),"",VLOOKUP(S126,t.codigos[],2)) -> Ctas por pagar comerciales - terceros | V126: 3391 | W126: 382
B127: 421201 | C127: FACTURAS EMITIDAS POR PAGAR M.N. TERCEROS | D127: 0.00 | E127: 146,618.56 | F127: 910,325.18 | G127: 933,962.03 | H127: =IF('Balance Empresa'!$B127<>"",SUM('Balance Empresa'!$D127,-'Balance Empresa'!$E127,'Balance Empresa'!$F127,-'Balance Empresa'!$G127),"") -> -170,255.41 | J127: =IF(AND('Balance Empresa'!$B127<>"",IFERROR(VALUE(LEFT('Balance Empresa'!$B127,2)),FALSE)<>79),LEFT('Balance Empresa'!$B127,VLOOKUP('Balance Empresa'!$B127,t.caracter[],2)),"") -> 4212 | K127: =IF(OR(TODAY()>r.real,'Balance Empresa'!$J127=""),"",IF(LEFT('Balance Empresa'!$J127)="9",'Balance Empresa'!$B127&". "&'Balance Empresa'!$C127,VLOOKUP(IF('Balance Empresa'!$I127<>"",'Balance Empresa'!$I127&"",'Balance Empresa'!$J127),BC_PCGEmpresarial!$A:$B,2,0))) -> 4212. Facturas, boletas y otros comprobantes por pagar - Emitidas | N127: 0.00 | O127: 146,619.00 | P127: 910,325.00 | Q127: 933,962.00 | R127: -170,256.00 | S127: =IF(OR(TODAY()>r.real,'Balance Empresa'!$J127=""),"",IF(VLOOKUP('Balance Empresa'!$K127,t.casillas[],2)=0,"",VLOOKUP('Balance Empresa'!$K127,t.casillas[],2))) -> 404 | T127: =IF(OR('Balance Empresa'!$S127={"",0}),"",VLOOKUP(S127,t.codigos[],2)) -> Ctas por pagar comerciales - terceros | V127: 3392 | W127: 382
B128: 421202 | C128: FACTURAS EMITIDAS POR PAGAR M.E. TERCEROS | D128: 0.00 | E128: 202,467.41 | F128: 150,170.79 | G128: 120,312.20 | H128: =IF('Balance Empresa'!$B128<>"",SUM('Balance Empresa'!$D128,-'Balance Empresa'!$E128,'Balance Empresa'!$F128,-'Balance Empresa'!$G128),"") -> -172,608.82 | J128: =IF(AND('Balance Empresa'!$B128<>"",IFERROR(VALUE(LEFT('Balance Empresa'!$B128,2)),FALSE)<>79),LEFT('Balance Empresa'!$B128,VLOOKUP('Balance Empresa'!$B128,t.caracter[],2)),"") -> 4212 | K128: =IF(OR(TODAY()>r.real,'Balance Empresa'!$J128=""),"",IF(LEFT('Balance Empresa'!$J128)="9",'Balance Empresa'!$B128&". "&'Balance Empresa'!$C128,VLOOKUP(IF('Balance Empresa'!$I128<>"",'Balance Empresa'!$I128&"",'Balance Empresa'!$J128),BC_PCGEmpresarial!$A:$B,2,0))) -> 4212. Facturas, boletas y otros comprobantes por pagar - Emitidas | N128: 0.00 | O128: 202,467.00 | P128: 150,171.00 | Q128: 120,312.00 | R128: -172,608.00 | S128: =IF(OR(TODAY()>r.real,'Balance Empresa'!$J128=""),"",IF(VLOOKUP('Balance Empresa'!$K128,t.casillas[],2)=0,"",VLOOKUP('Balance Empresa'!$K128,t.casillas[],2))) -> 404 | T128: =IF(OR('Balance Empresa'!$S128={"",0}),"",VLOOKUP(S128,t.codigos[],2)) -> Ctas por pagar comerciales - terceros | V128: 3393 | W128: 382
B129: 421203 | C129: DETRACCIONES POR PAGAR MN | D129: 145.17 | E129: 0.00 | F129: 78,873.25 | G129: 79,148.50 | H129: =IF('Balance Empresa'!$B129<>"",SUM('Balance Empresa'!$D129,-'Balance Empresa'!$E129,'Balance Empresa'!$F129,-'Balance Empresa'!$G129),"") -> -130.08 | J129: =IF(AND('Balance Empresa'!$B129<>"",IFERROR(VALUE(LEFT('Balance Empresa'!$B129,2)),FALSE)<>79),LEFT('Balance Empresa'!$B129,VLOOKUP('Balance Empresa'!$B129,t.caracter[],2)),"") -> 4212 | K129: =IF(OR(TODAY()>r.real,'Balance Empresa'!$J129=""),"",IF(LEFT('Balance Empresa'!$J129)="9",'Balance Empresa'!$B129&". "&'Balance Empresa'!$C129,VLOOKUP(IF('Balance Empresa'!$I129<>"",'Balance Empresa'!$I129&"",'Balance Empresa'!$J129),BC_PCGEmpresarial!$A:$B,2,0))) -> 4212. Facturas, boletas y otros comprobantes por pagar - Emitidas | N129: 145.00 | O129: 0.00 | P129: 78,873.00 | Q129: 79,149.00 | R129: -131.00 | S129: =IF(OR(TODAY()>r.real,'Balance Empresa'!$J129=""),"",IF(VLOOKUP('Balance Empresa'!$K129,t.casillas[],2)=0,"",VLOOKUP('Balance Empresa'!$K129,t.casillas[],2))) -> 404 | T129: =IF(OR('Balance Empresa'!$S129={"",0}),"",VLOOKUP(S129,t.codigos[],2)) -> Ctas por pagar comerciales - terceros | V129: 3394 | W129: 382
B130: 421221 | C130: FACTURAS EMITIDAS POR PAGAR MN (NO CTE) | D130: 0.00 | E130: 270.89 | F130: 0.00 | G130: 0.00 | H130: =IF('Balance Empresa'!$B130<>"",SUM('Balance Empresa'!$D130,-'Balance Empresa'!$E130,'Balance Empresa'!$F130,-'Balance Empresa'!$G130),"") -> -270.89 | J130: =IF(AND('Balance Empresa'!$B130<>"",IFERROR(VALUE(LEFT('Balance Empresa'!$B130,2)),FALSE)<>79),LEFT('Balance Empresa'!$B130,VLOOKUP('Balance Empresa'!$B130,t.caracter[],2)),"") -> 4212 | K130: =IF(OR(TODAY()>r.real,'Balance Empresa'!$J130=""),"",IF(LEFT('Balance Empresa'!$J130)="9",'Balance Empresa'!$B130&". "&'Balance Empresa'!$C130,VLOOKUP(IF('Balance Empresa'!$I130<>"",'Balance Empresa'!$I130&"",'Balance Empresa'!$J130),BC_PCGEmpresarial!$A:$B,2,0))) -> 4212. Facturas, boletas y otros comprobantes por pagar - Emitidas | N130: 0.00 | O130: 271.00 | P130: 0.00 | Q130: 0.00 | R130: -271.00 | S130: =IF(OR(TODAY()>r.real,'Balance Empresa'!$J130=""),"",IF(VLOOKUP('Balance Empresa'!$K130,t.casillas[],2)=0,"",VLOOKUP('Balance Empresa'!$K130,t.casillas[],2))) -> 404 | T130: =IF(OR('Balance Empresa'!$S130={"",0}),"",VLOOKUP(S130,t.codigos[],2)) -> Ctas por pagar comerciales - terceros | V130: 3397 | W130: 382
B131: 422101 | C131: ANTICIPOS A PROVEEDORES M.N. | D131: 698.18 | E131: 0.00 | F131: 17,992.99 | G131: 9,164.22 | H131: =IF('Balance Empresa'!$B131<>"",SUM('Balance Empresa'!$D131,-'Balance Empresa'!$E131,'Balance Empresa'!$F131,-'Balance Empresa'!$G131),"") -> 9,526.95 | J131: =IF(AND('Balance Empresa'!$B131<>"",IFERROR(VALUE(LEFT('Balance Empresa'!$B131,2)),FALSE)<>79),LEFT('Balance Empresa'!$B131,VLOOKUP('Balance Empresa'!$B131,t.caracter[],2)),"") -> 422 | K131: =IF(OR(TODAY()>r.real,'Balance Empresa'!$J131=""),"",IF(LEFT('Balance Empresa'!$J131)="9",'Balance Empresa'!$B131&". "&'Balance Empresa'!$C131,VLOOKUP(IF('Balance Empresa'!$I131<>"",'Balance Empresa'!$I131&"",'Balance Empresa'!$J131),BC_PCGEmpresarial!$A:$B,2,0))) -> 422. Anticipos a proveedores | N131: 698.00 | O131: 0.00 | P131: 17,993.00 | Q131: 9,164.00 | R131: 9,527.00 | S131: =IF(OR(TODAY()>r.real,'Balance Empresa'!$J131=""),"",IF(VLOOKUP('Balance Empresa'!$K131,t.casillas[],2)=0,"",VLOOKUP('Balance Empresa'!$K131,t.casillas[],2))) -> 404 | T131: =IF(OR('Balance Empresa'!$S131={"",0}),"",VLOOKUP(S131,t.codigos[],2)) -> Ctas por pagar comerciales - terceros | V131: 3398 | W131: 382
B132: 422102 | C132: ANTICIPOS A PROVEEDORES M.E. | D132: 0.00 | E132: 0.00 | F132: 52,285.33 | G132: 46,817.41 | H132: =IF('Balance Empresa'!$B132<>"",SUM('Balance Empresa'!$D132,-'Balance Empresa'!$E132,'Balance Empresa'!$F132,-'Balance Empresa'!$G132),"") -> 5,467.92 | J132: =IF(AND('Balance Empresa'!$B132<>"",IFERROR(VALUE(LEFT('Balance Empresa'!$B132,2)),FALSE)<>79),LEFT('Balance Empresa'!$B132,VLOOKUP('Balance Empresa'!$B132,t.caracter[],2)),"") -> 422 | K132: =IF(OR(TODAY()>r.real,'Balance Empresa'!$J132=""),"",IF(LEFT('Balance Empresa'!$J132)="9",'Balance Empresa'!$B132&". "&'Balance Empresa'!$C132,VLOOKUP(IF('Balance Empresa'!$I132<>"",'Balance Empresa'!$I132&"",'Balance Empresa'!$J132),BC_PCGEmpresarial!$A:$B,2,0))) -> 422. Anticipos a proveedores | N132: 0.00 | O132: 0.00 | P132: 52,285.00 | Q132: 46,817.00 | R132: 5,468.00 | S132: =IF(OR(TODAY()>r.real,'Balance Empresa'!$J132=""),"",IF(VLOOKUP('Balance Empresa'!$K132,t.casillas[],2)=0,"",VLOOKUP('Balance Empresa'!$K132,t.casillas[],2))) -> 404 | T132: =IF(OR('Balance Empresa'!$S132={"",0}),"",VLOOKUP(S132,t.codigos[],2)) -> Ctas por pagar comerciales - terceros | V132: 3399 | W132: 382
B133: 424101 | C133: HONORARIOS POR PAGAR M.N. | D133: 0.00 | E133: 114,920.63 | F133: 357,493.84 | G133: 338,328.83 | H133: =IF('Balance Empresa'!$B133<>"",SUM('Balance Empresa'!$D133,-'Balance Empresa'!$E133,'Balance Empresa'!$F133,-'Balance Empresa'!$G133),"") -> -95,755.62 | J133: =IF(AND('Balance Empresa'!$B133<>"",IFERROR(VALUE(LEFT('Balance Empresa'!$B133,2)),FALSE)<>79),LEFT('Balance Empresa'!$B133,VLOOKUP('Balance Empresa'!$B133,t.caracter[],2)),"") -> 424 | K133: =IF(OR(TODAY()>r.real,'Balance Empresa'!$J133=""),"",IF(LEFT('Balance Empresa'!$J133)="9",'Balance Empresa'!$B133&". "&'Balance Empresa'!$C133,VLOOKUP(IF('Balance Empresa'!$I133<>"",'Balance Empresa'!$I133&"",'Balance Empresa'!$J133),BC_PCGEmpresarial!$A:$B,2,0))) -> 424. Honorarios por pagar | N133: 0.00 | O133: 114,921.00 | P133: 357,494.00 | Q133: 338,329.00 | R133: -95,756.00 | S133: =IF(OR(TODAY()>r.real,'Balance Empresa'!$J133=""),"",IF(VLOOKUP('Balance Empresa'!$K133,t.casillas[],2)=0,"",VLOOKUP('Balance Empresa'!$K133,t.casillas[],2))) -> 404 | T133: =IF(OR('Balance Empresa'!$S133={"",0}),"",VLOOKUP(S133,t.codigos[],2)) -> Ctas por pagar comerciales - terceros | V133: 341 | W133: 384
B134: 424102 | C134: HONORARIOS POR PAGAR M.E. | D134: 0.00 | E134: 9,291.75 | F134: 23,991.61 | G134: 21,645.78 | H134: =IF('Balance Empresa'!$B134<>"",SUM('Balance Empresa'!$D134,-'Balance Empresa'!$E134,'Balance Empresa'!$F134,-'Balance Empresa'!$G134),"") -> -6,945.92 | J134: =IF(AND('Balance Empresa'!$B134<>"",IFERROR(VALUE(LEFT('Balance Empresa'!$B134,2)),FALSE)<>79),LEFT('Balance Empresa'!$B134,VLOOKUP('Balance Empresa'!$B134,t.caracter[],2)),"") -> 424 | K134: =IF(OR(TODAY()>r.real,'Balance Empresa'!$J134=""),"",IF(LEFT('Balance Empresa'!$J134)="9",'Balance Empresa'!$B134&". "&'Balance Empresa'!$C134,VLOOKUP(IF('Balance Empresa'!$I134<>"",'Balance Empresa'!$I134&"",'Balance Empresa'!$J134),BC_PCGEmpresarial!$A:$B,2,0))) -> 424. Honorarios por pagar | N134: 0.00 | O134: 9,292.00 | P134: 23,992.00 | Q134: 21,646.00 | R134: -6,946.00 | S134: =IF(OR(TODAY()>r.real,'Balance Empresa'!$J134=""),"",IF(VLOOKUP('Balance Empresa'!$K134,t.casillas[],2)=0,"",VLOOKUP('Balance Empresa'!$K134,t.casillas[],2))) -> 404 | T134: =IF(OR('Balance Empresa'!$S134={"",0}),"",VLOOKUP(S134,t.codigos[],2)) -> Ctas por pagar comerciales - terceros | V134: 342 | W134: 384
B135: 441121 | C135: PRESTAMOS ACCIONISTAS LARGO PLAZO M.N. | D135: 0.00 | E135: 42,190.83 | F135: 0.00 | G135: 0.00 | H135: =IF('Balance Empresa'!$B135<>"",SUM('Balance Empresa'!$D135,-'Balance Empresa'!$E135,'Balance Empresa'!$F135,-'Balance Empresa'!$G135),"") -> -42,190.83 | J135: =IF(AND('Balance Empresa'!$B135<>"",IFERROR(VALUE(LEFT('Balance Empresa'!$B135,2)),FALSE)<>79),LEFT('Balance Empresa'!$B135,VLOOKUP('Balance Empresa'!$B135,t.caracter[],2)),"") -> 4411 | K135: =IF(OR(TODAY()>r.real,'Balance Empresa'!$J135=""),"",IF(LEFT('Balance Empresa'!$J135)="9",'Balance Empresa'!$B135&". "&'Balance Empresa'!$C135,VLOOKUP(IF('Balance Empresa'!$I135<>"",'Balance Empresa'!$I135&"",'Balance Empresa'!$J135),BC_PCGEmpresarial!$A:$B,2,0))) -> 4411. Accionistas (o socios) - Préstamos | N135: =IF($J135="","",ROUND(D135,0)+IF($L135=N$6,$M135,0)) -> 0.00 | O135: =IF($J135="","",ROUND(E135,0)+IF($L135=O$6,$M135,0)) -> 42,191.00 | P135: =IF($J135="","",ROUND(F135,0)+IF($L135=P$6,$M135,0)) -> 0.00 | Q135: =IF($J135="","",ROUND(G135,0)+IF($L135=Q$6,$M135,0)) -> 0.00 | R135: -42,191.00 | S135: =IF(OR(TODAY()>r.real,'Balance Empresa'!$J135=""),"",IF(VLOOKUP('Balance Empresa'!$K135,t.casillas[],2)=0,"",VLOOKUP('Balance Empresa'!$K135,t.casillas[],2))) -> 406 | T135: =IF(OR('Balance Empresa'!$S135={"",0}),"",VLOOKUP(S135,t.codigos[],2)) -> Ctas p pagar accion, directores y ger | V135: 343 | W135: 384
B136: 454401 | C136: PAGARES MN | D136: 0.00 | E136: 93,933.51 | F136: 400,054.28 | G136: 476,908.97 | H136: =IF('Balance Empresa'!$B136<>"",SUM('Balance Empresa'!$D136,-'Balance Empresa'!$E136,'Balance Empresa'!$F136,-'Balance Empresa'!$G136),"") -> -170,788.20 | J136: =IF(AND('Balance Empresa'!$B136<>"",IFERROR(VALUE(LEFT('Balance Empresa'!$B136,2)),FALSE)<>79),LEFT('Balance Empresa'!$B136,VLOOKUP('Balance Empresa'!$B136,t.caracter[],2)),"") -> 4544 | K136: =IF(OR(TODAY()>r.real,'Balance Empresa'!$J136=""),"",IF(LEFT('Balance Empresa'!$J136)="9",'Balance Empresa'!$B136&". "&'Balance Empresa'!$C136,VLOOKUP(IF('Balance Empresa'!$I136<>"",'Balance Empresa'!$I136&"",'Balance Empresa'!$J136),BC_PCGEmpresarial!$A:$B,2,0))) -> 4544. Otros Instrumentos financieros por pagar - Pagarés | N136: 0.00 | O136: 93,934.00 | P136: 400,054.00 | Q136: 476,909.00 | R136: =IF($J136="","",SUM(N136,-O136,P136,-Q136)) -> -170,789.00 | S136: =IF(OR(TODAY()>r.real,'Balance Empresa'!$J136=""),"",IF(VLOOKUP('Balance Empresa'!$K136,t.casillas[],2)=0,"",VLOOKUP('Balance Empresa'!$K136,t.casillas[],2))) -> 409 | T136: =IF(OR('Balance Empresa'!$S136={"",0}),"",VLOOKUP(S136,t.codigos[],2)) -> Obligaciones financieras | V136: 344 | W136: 384
B137: 454402 | C137: PAGARES ME | D137: 0.00 | E137: 0.00 | F137: 0.00 | G137: 93,164.96 | H137: =IF('Balance Empresa'!$B137<>"",SUM('Balance Empresa'!$D137,-'Balance Empresa'!$E137,'Balance Empresa'!$F137,-'Balance Empresa'!$G137),"") -> -93,164.96 | J137: =IF(AND('Balance Empresa'!$B137<>"",IFERROR(VALUE(LEFT('Balance Empresa'!$B137,2)),FALSE)<>79),LEFT('Balance Empresa'!$B137,VLOOKUP('Balance Empresa'!$B137,t.caracter[],2)),"") -> 4544 | K137: =IF(OR(TODAY()>r.real,'Balance Empresa'!$J137=""),"",IF(LEFT('Balance Empresa'!$J137)="9",'Balance Empresa'!$B137&". "&'Balance Empresa'!$C137,VLOOKUP(IF('Balance Empresa'!$I137<>"",'Balance Empresa'!$I137&"",'Balance Empresa'!$J137),BC_PCGEmpresarial!$A:$B,2,0))) -> 4544. Otros Instrumentos financieros por pagar - Pagarés | N137: 0.00 | O137: 0.00 | P137: 0.00 | Q137: 93,165.00 | R137: -93,165.00 | S137: =IF(OR(TODAY()>r.real,'Balance Empresa'!$J137=""),"",IF(VLOOKUP('Balance Empresa'!$K137,t.casillas[],2)=0,"",VLOOKUP('Balance Empresa'!$K137,t.casillas[],2))) -> 409 | T137: =IF(OR('Balance Empresa'!$S137={"",0}),"",VLOOKUP(S137,t.codigos[],2)) -> Obligaciones financieras | V137: 345 | W137: 384
B138: 461101 | C138: RECLAMACIONES DE TERCEROS MN (CTE) | D138: 0.00 | E138: 7,689.64 | F138: 2,245.30 | G138: 5,174.54 | H138: =IF('Balance Empresa'!$B138<>"",SUM('Balance Empresa'!$D138,-'Balance Empresa'!$E138,'Balance Empresa'!$F138,-'Balance Empresa'!$G138),"") -> -10,618.88 | J138: =IF(AND('Balance Empresa'!$B138<>"",IFERROR(VALUE(LEFT('Balance Empresa'!$B138,2)),FALSE)<>79),LEFT('Balance Empresa'!$B138,VLOOKUP('Balance Empresa'!$B138,t.caracter[],2)),"") -> 461 | K138: =IF(OR(TODAY()>r.real,'Balance Empresa'!$J138=""),"",IF(LEFT('Balance Empresa'!$J138)="9",'Balance Empresa'!$B138&". "&'Balance Empresa'!$C138,VLOOKUP(IF('Balance Empresa'!$I138<>"",'Balance Empresa'!$I138&"",'Balance Empresa'!$J138),BC_PCGEmpresarial!$A:$B,2,0))) -> 461. Reclamaciones de terceros | N138: 0.00 | O138: 7,690.00 | P138: 2,245.00 | Q138: 5,175.00 | R138: -10,620.00 | S138: =IF(OR(TODAY()>r.real,'Balance Empresa'!$J138=""),"",IF(VLOOKUP('Balance Empresa'!$K138,t.casillas[],2)=0,"",VLOOKUP('Balance Empresa'!$K138,t.casillas[],2))) -> 407 | T138: =IF(OR('Balance Empresa'!$S138={"",0}),"",VLOOKUP(S138,t.codigos[],2)) -> Ctas por pagar diversas - terceros | V138: 346 | W138: 384
B139: 461102 | C139: RECLAMACIONES DE TERCEROS ME (CTE) | D139: 0.00 | E139: 1,729.75 | F139: 102.95 | G139: 36.03 | H139: =IF('Balance Empresa'!$B139<>"",SUM('Balance Empresa'!$D139,-'Balance Empresa'!$E139,'Balance Empresa'!$F139,-'Balance Empresa'!$G139),"") -> -1,662.83 | J139: =IF(AND('Balance Empresa'!$B139<>"",IFERROR(VALUE(LEFT('Balance Empresa'!$B139,2)),FALSE)<>79),LEFT('Balance Empresa'!$B139,VLOOKUP('Balance Empresa'!$B139,t.caracter[],2)),"") -> 461 | K139: =IF(OR(TODAY()>r.real,'Balance Empresa'!$J139=""),"",IF(LEFT('Balance Empresa'!$J139)="9",'Balance Empresa'!$B139&". "&'Balance Empresa'!$C139,VLOOKUP(IF('Balance Empresa'!$I139<>"",'Balance Empresa'!$I139&"",'Balance Empresa'!$J139),BC_PCGEmpresarial!$A:$B,2,0))) -> 461. Reclamaciones de terceros | N139: 0.00 | O139: 1,730.00 | P139: 103.00 | Q139: 36.00 | R139: -1,663.00 | S139: =IF(OR(TODAY()>r.real,'Balance Empresa'!$J139=""),"",IF(VLOOKUP('Balance Empresa'!$K139,t.casillas[],2)=0,"",VLOOKUP('Balance Empresa'!$K139,t.casillas[],2))) -> 407 | T139: =IF(OR('Balance Empresa'!$S139={"",0}),"",VLOOKUP(S139,t.codigos[],2)) -> Ctas por pagar diversas - terceros | V139: 347 | W139: 384
B140: 461121 | C140: RECLAMACIONES DE TERCEROS MN (NO CTE) | D140: 0.00 | E140: 17,590.85 | F140: 0.00 | G140: 0.00 | H140: =IF('Balance Empresa'!$B140<>"",SUM('Balance Empresa'!$D140,-'Balance Empresa'!$E140,'Balance Empresa'!$F140,-'Balance Empresa'!$G140),"") -> -17,590.85 | J140: =IF(AND('Balance Empresa'!$B140<>"",IFERROR(VALUE(LEFT('Balance Empresa'!$B140,2)),FALSE)<>79),LEFT('Balance Empresa'!$B140,VLOOKUP('Balance Empresa'!$B140,t.caracter[],2)),"") -> 461 | K140: =IF(OR(TODAY()>r.real,'Balance Empresa'!$J140=""),"",IF(LEFT('Balance Empresa'!$J140)="9",'Balance Empresa'!$B140&". "&'Balance Empresa'!$C140,VLOOKUP(IF('Balance Empresa'!$I140<>"",'Balance Empresa'!$I140&"",'Balance Empresa'!$J140),BC_PCGEmpresarial!$A:$B,2,0))) -> 461. Reclamaciones de terceros | N140: 0.00 | O140: 17,591.00 | P140: 0.00 | Q140: 0.00 | R140: -17,591.00 | S140: =IF(OR(TODAY()>r.real,'Balance Empresa'!$J140=""),"",IF(VLOOKUP('Balance Empresa'!$K140,t.casillas[],2)=0,"",VLOOKUP('Balance Empresa'!$K140,t.casillas[],2))) -> 407 | T140: =IF(OR('Balance Empresa'!$S140={"",0}),"",VLOOKUP(S140,t.codigos[],2)) -> Ctas por pagar diversas - terceros | V140: 349 | W140: 384
B141: 469902 | C141: CUENTAS POR PAGAR A TRABAJADORES(REEMBOLSOS) | D141: 0.00 | E141: 5,905.95 | F141: 9,345.74 | G141: 8,981.64 | H141: =IF('Balance Empresa'!$B141<>"",SUM('Balance Empresa'!$D141,-'Balance Empresa'!$E141,'Balance Empresa'!$F141,-'Balance Empresa'!$G141),"") -> -5,541.85 | J141: =IF(AND('Balance Empresa'!$B141<>"",IFERROR(VALUE(LEFT('Balance Empresa'!$B141,2)),FALSE)<>79),LEFT('Balance Empresa'!$B141,VLOOKUP('Balance Empresa'!$B141,t.caracter[],2)),"") -> 4699 | K141: =IF(OR(TODAY()>r.real,'Balance Empresa'!$J141=""),"",IF(LEFT('Balance Empresa'!$J141)="9",'Balance Empresa'!$B141&". "&'Balance Empresa'!$C141,VLOOKUP(IF('Balance Empresa'!$I141<>"",'Balance Empresa'!$I141&"",'Balance Empresa'!$J141),BC_PCGEmpresarial!$A:$B,2,0))) -> 4699. Otras cuentas por pagar diversas - Otras cuentas por pagar | N141: 0.00 | O141: 5,906.00 | P141: 9,346.00 | Q141: 8,982.00 | R141: -5,542.00 | S141: =IF(OR(TODAY()>r.real,'Balance Empresa'!$J141=""),"",IF(VLOOKUP('Balance Empresa'!$K141,t.casillas[],2)=0,"",VLOOKUP('Balance Empresa'!$K141,t.casillas[],2))) -> 407 | T141: =IF(OR('Balance Empresa'!$S141={"",0}),"",VLOOKUP(S141,t.codigos[],2)) -> Ctas por pagar diversas - terceros | V141: 351 | W141: 385
B142: 469903 | C142: CUENTAS POR PAGAR A TERCEROS | D142: 0.00 | E142: 223.73 | F142: 223.73 | G142: 13.38 | H142: =IF('Balance Empresa'!$B142<>"",SUM('Balance Empresa'!$D142,-'Balance Empresa'!$E142,'Balance Empresa'!$F142,-'Balance Empresa'!$G142),"") -> -13.38 | J142: =IF(AND('Balance Empresa'!$B142<>"",IFERROR(VALUE(LEFT('Balance Empresa'!$B142,2)),FALSE)<>79),LEFT('Balance Empresa'!$B142,VLOOKUP('Balance Empresa'!$B142,t.caracter[],2)),"") -> 4699 | K142: =IF(OR(TODAY()>r.real,'Balance Empresa'!$J142=""),"",IF(LEFT('Balance Empresa'!$J142)="9",'Balance Empresa'!$B142&". "&'Balance Empresa'!$C142,VLOOKUP(IF('Balance Empresa'!$I142<>"",'Balance Empresa'!$I142&"",'Balance Empresa'!$J142),BC_PCGEmpresarial!$A:$B,2,0))) -> 4699. Otras cuentas por pagar diversas - Otras cuentas por pagar | N142: 0.00 | O142: 224.00 | P142: 224.00 | Q142: 13.00 | R142: -13.00 | S142: =IF(OR(TODAY()>r.real,'Balance Empresa'!$J142=""),"",IF(VLOOKUP('Balance Empresa'!$K142,t.casillas[],2)=0,"",VLOOKUP('Balance Empresa'!$K142,t.casillas[],2))) -> 407 | T142: =IF(OR('Balance Empresa'!$S142={"",0}),"",VLOOKUP(S142,t.codigos[],2)) -> Ctas por pagar diversas - terceros | V142: 352 | W142: 385
B143: 469904 | C143: OTRAS CUENTAS POR PAGAR (NO CTE) | D143: 0.00 | E143: 955.50 | F143: 0.00 | G143: 0.00 | H143: =IF('Balance Empresa'!$B143<>"",SUM('Balance Empresa'!$D143,-'Balance Empresa'!$E143,'Balance Empresa'!$F143,-'Balance Empresa'!$G143),"") -> -955.50 | J143: =IF(AND('Balance Empresa'!$B143<>"",IFERROR(VALUE(LEFT('Balance Empresa'!$B143,2)),FALSE)<>79),LEFT('Balance Empresa'!$B143,VLOOKUP('Balance Empresa'!$B143,t.caracter[],2)),"") -> 4699 | K143: =IF(OR(TODAY()>r.real,'Balance Empresa'!$J143=""),"",IF(LEFT('Balance Empresa'!$J143)="9",'Balance Empresa'!$B143&". "&'Balance Empresa'!$C143,VLOOKUP(IF('Balance Empresa'!$I143<>"",'Balance Empresa'!$I143&"",'Balance Empresa'!$J143),BC_PCGEmpresarial!$A:$B,2,0))) -> 4699. Otras cuentas por pagar diversas - Otras cuentas por pagar | N143: 0.00 | O143: 956.00 | P143: 0.00 | Q143: 0.00 | R143: -956.00 | S143: =IF(OR(TODAY()>r.real,'Balance Empresa'!$J143=""),"",IF(VLOOKUP('Balance Empresa'!$K143,t.casillas[],2)=0,"",VLOOKUP('Balance Empresa'!$K143,t.casillas[],2))) -> 407 | T143: =IF(OR('Balance Empresa'!$S143={"",0}),"",VLOOKUP(S143,t.codigos[],2)) -> Ctas por pagar diversas - terceros | V143: 3611 | W143: 387
B144: 471201 | C144: PRESTAMOS RECIBIDOS M.N. | D144: 0.00 | E144: 15,365.25 | F144: 0.00 | G144: 0.00 | H144: =IF('Balance Empresa'!$B144<>"",SUM('Balance Empresa'!$D144,-'Balance Empresa'!$E144,'Balance Empresa'!$F144,-'Balance Empresa'!$G144),"") -> -15,365.25 | J144: =IF(AND('Balance Empresa'!$B144<>"",IFERROR(VALUE(LEFT('Balance Empresa'!$B144,2)),FALSE)<>79),LEFT('Balance Empresa'!$B144,VLOOKUP('Balance Empresa'!$B144,t.caracter[],2)),"") -> 4712 | K144: =IF(OR(TODAY()>r.real,'Balance Empresa'!$J144=""),"",IF(LEFT('Balance Empresa'!$J144)="9",'Balance Empresa'!$B144&". "&'Balance Empresa'!$C144,VLOOKUP(IF('Balance Empresa'!$I144<>"",'Balance Empresa'!$I144&"",'Balance Empresa'!$J144),BC_PCGEmpresarial!$A:$B,2,0))) -> 4712. Préstamos - Subsidiarias | N144: 0.00 | O144: 15,365.00 | P144: 0.00 | Q144: 0.00 | R144: -15,365.00 | S144: =IF(OR(TODAY()>r.real,'Balance Empresa'!$J144=""),"",IF(VLOOKUP('Balance Empresa'!$K144,t.casillas[],2)=0,"",VLOOKUP('Balance Empresa'!$K144,t.casillas[],2))) -> 408 | T144: =IF(OR('Balance Empresa'!$S144={"",0}),"",VLOOKUP(S144,t.codigos[],2)) -> Ctas por pagar diversas - relacionad | V144: 3612 | W144: 387
B145: 471202 | C145: PRESTAMOS RECIBIDOS M.E. | D145: 0.00 | E145: 217,105.96 | F145: 21,917.82 | G145: 4,323.79 | H145: =IF('Balance Empresa'!$B145<>"",SUM('Balance Empresa'!$D145,-'Balance Empresa'!$E145,'Balance Empresa'!$F145,-'Balance Empresa'!$G145),"") -> -199,511.93 | J145: =IF(AND('Balance Empresa'!$B145<>"",IFERROR(VALUE(LEFT('Balance Empresa'!$B145,2)),FALSE)<>79),LEFT('Balance Empresa'!$B145,VLOOKUP('Balance Empresa'!$B145,t.caracter[],2)),"") -> 4712 | K145: =IF(OR(TODAY()>r.real,'Balance Empresa'!$J145=""),"",IF(LEFT('Balance Empresa'!$J145)="9",'Balance Empresa'!$B145&". "&'Balance Empresa'!$C145,VLOOKUP(IF('Balance Empresa'!$I145<>"",'Balance Empresa'!$I145&"",'Balance Empresa'!$J145),BC_PCGEmpresarial!$A:$B,2,0))) -> 4712. Préstamos - Subsidiarias | N145: 0.00 | O145: 217,106.00 | P145: 21,918.00 | Q145: 4,324.00 | R145: -199,512.00 | S145: =IF(OR(TODAY()>r.real,'Balance Empresa'!$J145=""),"",IF(VLOOKUP('Balance Empresa'!$K145,t.casillas[],2)=0,"",VLOOKUP('Balance Empresa'!$K145,t.casillas[],2))) -> 408 | T145: =IF(OR('Balance Empresa'!$S145={"",0}),"",VLOOKUP(S145,t.codigos[],2)) -> Ctas por pagar diversas - relacionad | V145: 3631 | W145: 387
B146: 471203 | C146: PRESTAMOS RECIBIDOS ARBITRAJE MN | D146: 0.00 | E146: 34,060.93 | F146: 0.00 | G146: 0.00 | H146: =IF('Balance Empresa'!$B146<>"",SUM('Balance Empresa'!$D146,-'Balance Empresa'!$E146,'Balance Empresa'!$F146,-'Balance Empresa'!$G146),"") -> -34,060.93 | J146: =IF(AND('Balance Empresa'!$B146<>"",IFERROR(VALUE(LEFT('Balance Empresa'!$B146,2)),FALSE)<>79),LEFT('Balance Empresa'!$B146,VLOOKUP('Balance Empresa'!$B146,t.caracter[],2)),"") -> 4712 | K146: =IF(OR(TODAY()>r.real,'Balance Empresa'!$J146=""),"",IF(LEFT('Balance Empresa'!$J146)="9",'Balance Empresa'!$B146&". "&'Balance Empresa'!$C146,VLOOKUP(IF('Balance Empresa'!$I146<>"",'Balance Empresa'!$I146&"",'Balance Empresa'!$J146),BC_PCGEmpresarial!$A:$B,2,0))) -> 4712. Préstamos - Subsidiarias | N146: 0.00 | O146: 34,061.00 | P146: 0.00 | Q146: 0.00 | R146: -34,061.00 | S146: =IF(OR(TODAY()>r.real,'Balance Empresa'!$J146=""),"",IF(VLOOKUP('Balance Empresa'!$K146,t.casillas[],2)=0,"",VLOOKUP('Balance Empresa'!$K146,t.casillas[],2))) -> 408 | T146: =IF(OR('Balance Empresa'!$S146={"",0}),"",VLOOKUP(S146,t.codigos[],2)) -> Ctas por pagar diversas - relacionad | V146: 3632 | W146: 387
B147: 491201 | C147: IMPUESTO A LA RENTA DIFERIDO - RESULTADOS | D147: 0.00 | E147: 42,169.14 | F147: 0.00 | G147: 0.00 | H147: =IF('Balance Empresa'!$B147<>"",SUM('Balance Empresa'!$D147,-'Balance Empresa'!$E147,'Balance Empresa'!$F147,-'Balance Empresa'!$G147),"") -> -42,169.14 | J147: =IF(AND('Balance Empresa'!$B147<>"",IFERROR(VALUE(LEFT('Balance Empresa'!$B147,2)),FALSE)<>79),LEFT('Balance Empresa'!$B147,VLOOKUP('Balance Empresa'!$B147,t.caracter[],2)),"") -> 4912 | K147: =IF(OR(TODAY()>r.real,'Balance Empresa'!$J147=""),"",IF(LEFT('Balance Empresa'!$J147)="9",'Balance Empresa'!$B147&". "&'Balance Empresa'!$C147,VLOOKUP(IF('Balance Empresa'!$I147<>"",'Balance Empresa'!$I147&"",'Balance Empresa'!$J147),BC_PCGEmpresarial!$A:$B,2,0))) -> 4912. Impuesto a la renta diferido - Impuesto a la renta diferido – Resultados | N147: 0.00 | O147: 42,169.00 | P147: 0.00 | Q147: 0.00 | R147: -42,169.00 | S147: =IF(OR(TODAY()>r.real,'Balance Empresa'!$J147=""),"",IF(VLOOKUP('Balance Empresa'!$K147,t.casillas[],2)=0,"",VLOOKUP('Balance Empresa'!$K147,t.casillas[],2))) -> 411 | T147: =IF(OR('Balance Empresa'!$S147={"",0}),"",VLOOKUP(S147,t.codigos[],2)) -> Pasivo diferido | V147: 3633 | W147: 387
B148: 501101 | C148: ACCIONES | D148: 0.00 | E148: 2,708,692.88 | F148: 0.00 | G148: 0.00 | H148: =IF('Balance Empresa'!$B148<>"",SUM('Balance Empresa'!$D148,-'Balance Empresa'!$E148,'Balance Empresa'!$F148,-'Balance Empresa'!$G148),"") -> -2,708,692.88 | J148: =IF(AND('Balance Empresa'!$B148<>"",IFERROR(VALUE(LEFT('Balance Empresa'!$B148,2)),FALSE)<>79),LEFT('Balance Empresa'!$B148,VLOOKUP('Balance Empresa'!$B148,t.caracter[],2)),"") -> 5011 | K148: =IF(OR(TODAY()>r.real,'Balance Empresa'!$J148=""),"",IF(LEFT('Balance Empresa'!$J148)="9",'Balance Empresa'!$B148&". "&'Balance Empresa'!$C148,VLOOKUP(IF('Balance Empresa'!$I148<>"",'Balance Empresa'!$I148&"",'Balance Empresa'!$J148),BC_PCGEmpresarial!$A:$B,2,0))) -> 5011. Capital social - Acciones | N148: 0.00 | O148: 2,708,693.00 | P148: 0.00 | Q148: 0.00 | R148: -2,708,693.00 | S148: =IF(OR(TODAY()>r.real,'Balance Empresa'!$J148=""),"",IF(VLOOKUP('Balance Empresa'!$K148,t.casillas[],2)=0,"",VLOOKUP('Balance Empresa'!$K148,t.casillas[],2))) -> 414 | T148: =IF(OR('Balance Empresa'!$S148={"",0}),"",VLOOKUP(S148,t.codigos[],2)) -> Capital | V148: 3634 | W148: 387
B149: 582101 | C149: RESERVA LEGAL | D149: 0.00 | E149: 132,450.23 | F149: 0.00 | G149: 0.00 | H149: =IF('Balance Empresa'!$B149<>"",SUM('Balance Empresa'!$D149,-'Balance Empresa'!$E149,'Balance Empresa'!$F149,-'Balance Empresa'!$G149),"") -> -132,450.23 | J149: =IF(AND('Balance Empresa'!$B149<>"",IFERROR(VALUE(LEFT('Balance Empresa'!$B149,2)),FALSE)<>79),LEFT('Balance Empresa'!$B149,VLOOKUP('Balance Empresa'!$B149,t.caracter[],2)),"") -> 582 | K149: =IF(OR(TODAY()>r.real,'Balance Empresa'!$J149=""),"",IF(LEFT('Balance Empresa'!$J149)="9",'Balance Empresa'!$B149&". "&'Balance Empresa'!$C149,VLOOKUP(IF('Balance Empresa'!$I149<>"",'Balance Empresa'!$I149&"",'Balance Empresa'!$J149),BC_PCGEmpresarial!$A:$B,2,0))) -> 582. Legal | N149: 0.00 | O149: 132,450.00 | P149: 0.00 | Q149: 0.00 | R149: -132,450.00 | S149: =IF(OR(TODAY()>r.real,'Balance Empresa'!$J149=""),"",IF(VLOOKUP('Balance Empresa'!$K149,t.casillas[],2)=0,"",VLOOKUP('Balance Empresa'!$K149,t.casillas[],2))) -> 420 | T149: =IF(OR('Balance Empresa'!$S149={"",0}),"",VLOOKUP(S149,t.codigos[],2)) -> Reservas | V149: 3635 | W149: 387
B150: 591101 | C150: UTILIDADES ACUMULADAS | D150: 0.00 | E150: 868,387.54 | F150: 0.00 | G150: 0.00 | H150: =IF('Balance Empresa'!$B150<>"",SUM('Balance Empresa'!$D150,-'Balance Empresa'!$E150,'Balance Empresa'!$F150,-'Balance Empresa'!$G150),"") -> -868,387.54 | J150: =IF(AND('Balance Empresa'!$B150<>"",IFERROR(VALUE(LEFT('Balance Empresa'!$B150,2)),FALSE)<>79),LEFT('Balance Empresa'!$B150,VLOOKUP('Balance Empresa'!$B150,t.caracter[],2)),"") -> 5911 | K150: =IF(OR(TODAY()>r.real,'Balance Empresa'!$J150=""),"",IF(LEFT('Balance Empresa'!$J150)="9",'Balance Empresa'!$B150&". "&'Balance Empresa'!$C150,VLOOKUP(IF('Balance Empresa'!$I150<>"",'Balance Empresa'!$I150&"",'Balance Empresa'!$J150),BC_PCGEmpresarial!$A:$B,2,0))) -> 5911. Utilidades no distribuidas - Utilidades acumuladas | N150: 0.00 | O150: 868,388.00 | P150: 0.00 | Q150: 0.00 | R150: -868,388.00 | S150: =IF(OR(TODAY()>r.real,'Balance Empresa'!$J150=""),"",IF(VLOOKUP('Balance Empresa'!$K150,t.casillas[],2)=0,"",VLOOKUP('Balance Empresa'!$K150,t.casillas[],2))) -> 421 | T150: =IF(OR('Balance Empresa'!$S150={"",0}),"",VLOOKUP(S150,t.codigos[],2)) -> Resultados acumulados positivo | V150: 3636 | W150: 387
B151: 591201 | C151: INGRESOS DE AÐOS ANTERIORES | D151: 0.00 | E151: 11,105.13 | F151: 0.00 | G151: 824.02 | H151: =IF('Balance Empresa'!$B151<>"",SUM('Balance Empresa'!$D151,-'Balance Empresa'!$E151,'Balance Empresa'!$F151,-'Balance Empresa'!$G151),"") -> -11,929.16 | J151: =IF(AND('Balance Empresa'!$B151<>"",IFERROR(VALUE(LEFT('Balance Empresa'!$B151,2)),FALSE)<>79),LEFT('Balance Empresa'!$B151,VLOOKUP('Balance Empresa'!$B151,t.caracter[],2)),"") -> 5912 | K151: =IF(OR(TODAY()>r.real,'Balance Empresa'!$J151=""),"",IF(LEFT('Balance Empresa'!$J151)="9",'Balance Empresa'!$B151&". "&'Balance Empresa'!$C151,VLOOKUP(IF('Balance Empresa'!$I151<>"",'Balance Empresa'!$I151&"",'Balance Empresa'!$J151),BC_PCGEmpresarial!$A:$B,2,0))) -> 5912. Utilidades no distribuidas - Ingresos de años anteriores | N151: 0.00 | O151: 11,105.00 | P151: 0.00 | Q151: 824.00 | R151: -11,929.00 | S151: =IF(OR(TODAY()>r.real,'Balance Empresa'!$J151=""),"",IF(VLOOKUP('Balance Empresa'!$K151,t.casillas[],2)=0,"",VLOOKUP('Balance Empresa'!$K151,t.casillas[],2))) -> 421 | T151: =IF(OR('Balance Empresa'!$S151={"",0}),"",VLOOKUP(S151,t.codigos[],2)) -> Resultados acumulados positivo | V151: 3637 | W151: 387
B152: 621101 | C152: SUELDOS | D152: 0.00 | E152: 0.00 | F152: 644,688.79 | G152: 0.27 | H152: =IF('Balance Empresa'!$B152<>"",SUM('Balance Empresa'!$D152,-'Balance Empresa'!$E152,'Balance Empresa'!$F152,-'Balance Empresa'!$G152),"") -> 644,688.52 | J152: =IF(AND('Balance Empresa'!$B152<>"",IFERROR(VALUE(LEFT('Balance Empresa'!$B152,2)),FALSE)<>79),LEFT('Balance Empresa'!$B152,VLOOKUP('Balance Empresa'!$B152,t.caracter[],2)),"") -> 6211 | K152: =IF(OR(TODAY()>r.real,'Balance Empresa'!$J152=""),"",IF(LEFT('Balance Empresa'!$J152)="9",'Balance Empresa'!$B152&". "&'Balance Empresa'!$C152,VLOOKUP(IF('Balance Empresa'!$I152<>"",'Balance Empresa'!$I152&"",'Balance Empresa'!$J152),BC_PCGEmpresarial!$A:$B,2,0))) -> 6211. Remuneraciones - Sueldos y salarios | N152: 0.00 | O152: 0.00 | P152: 644,689.00 | Q152: 0.00 | R152: 644,689.00 | S152: =IF(OR(TODAY()>r.real,'Balance Empresa'!$J152=""),"",IF(VLOOKUP('Balance Empresa'!$K152,t.casillas[],2)=0,"",VLOOKUP('Balance Empresa'!$K152,t.casillas[],2))) ->  | T152: =IF(OR('Balance Empresa'!$S152={"",0}),"",VLOOKUP(S152,t.codigos[],2)) ->  | V152: 3641 | W152: 387
B153: 621401 | C153: GRATIFICACIONES | D153: 0.00 | E153: 0.00 | F153: 144,526.80 | G153: 6,174.68 | H153: =IF('Balance Empresa'!$B153<>"",SUM('Balance Empresa'!$D153,-'Balance Empresa'!$E153,'Balance Empresa'!$F153,-'Balance Empresa'!$G153),"") -> 138,352.12 | J153: =IF(AND('Balance Empresa'!$B153<>"",IFERROR(VALUE(LEFT('Balance Empresa'!$B153,2)),FALSE)<>79),LEFT('Balance Empresa'!$B153,VLOOKUP('Balance Empresa'!$B153,t.caracter[],2)),"") -> 6214 | K153: =IF(OR(TODAY()>r.real,'Balance Empresa'!$J153=""),"",IF(LEFT('Balance Empresa'!$J153)="9",'Balance Empresa'!$B153&". "&'Balance Empresa'!$C153,VLOOKUP(IF('Balance Empresa'!$I153<>"",'Balance Empresa'!$I153&"",'Balance Empresa'!$J153),BC_PCGEmpresarial!$A:$B,2,0))) -> 6214. Remuneraciones - Gratificaciones | N153: 0.00 | O153: 0.00 | P153: 144,527.00 | Q153: 6,175.00 | R153: 138,352.00 | S153: =IF(OR(TODAY()>r.real,'Balance Empresa'!$J153=""),"",IF(VLOOKUP('Balance Empresa'!$K153,t.casillas[],2)=0,"",VLOOKUP('Balance Empresa'!$K153,t.casillas[],2))) ->  | T153: =IF(OR('Balance Empresa'!$S153={"",0}),"",VLOOKUP(S153,t.codigos[],2)) ->  | V153: 3642 | W153: 387
B154: 621501 | C154: VACACIONES | D154: 0.00 | E154: 0.00 | F154: 85,046.06 | G154: 823.08 | H154: =IF('Balance Empresa'!$B154<>"",SUM('Balance Empresa'!$D154,-'Balance Empresa'!$E154,'Balance Empresa'!$F154,-'Balance Empresa'!$G154),"") -> 84,222.98 | J154: =IF(AND('Balance Empresa'!$B154<>"",IFERROR(VALUE(LEFT('Balance Empresa'!$B154,2)),FALSE)<>79),LEFT('Balance Empresa'!$B154,VLOOKUP('Balance Empresa'!$B154,t.caracter[],2)),"") -> 6215 | K154: =IF(OR(TODAY()>r.real,'Balance Empresa'!$J154=""),"",IF(LEFT('Balance Empresa'!$J154)="9",'Balance Empresa'!$B154&". "&'Balance Empresa'!$C154,VLOOKUP(IF('Balance Empresa'!$I154<>"",'Balance Empresa'!$I154&"",'Balance Empresa'!$J154),BC_PCGEmpresarial!$A:$B,2,0))) -> 6215. Remuneraciones - Vacaciones | N154: 0.00 | O154: 0.00 | P154: 85,046.00 | Q154: 823.00 | R154: 84,223.00 | S154: =IF(OR(TODAY()>r.real,'Balance Empresa'!$J154=""),"",IF(VLOOKUP('Balance Empresa'!$K154,t.casillas[],2)=0,"",VLOOKUP('Balance Empresa'!$K154,t.casillas[],2))) ->  | T154: =IF(OR('Balance Empresa'!$S154={"",0}),"",VLOOKUP(S154,t.codigos[],2)) ->  | V154: 3643 | W154: 387
B155: 622102 | C155: BONIFICACIONES EXTRAORDINARIAS | D155: 0.00 | E155: 0.00 | F155: 19,485.86 | G155: 0.00 | H155: =IF('Balance Empresa'!$B155<>"",SUM('Balance Empresa'!$D155,-'Balance Empresa'!$E155,'Balance Empresa'!$F155,-'Balance Empresa'!$G155),"") -> 19,485.86 | J155: =IF(AND('Balance Empresa'!$B155<>"",IFERROR(VALUE(LEFT('Balance Empresa'!$B155,2)),FALSE)<>79),LEFT('Balance Empresa'!$B155,VLOOKUP('Balance Empresa'!$B155,t.caracter[],2)),"") -> 622 | K155: =IF(OR(TODAY()>r.real,'Balance Empresa'!$J155=""),"",IF(LEFT('Balance Empresa'!$J155)="9",'Balance Empresa'!$B155&". "&'Balance Empresa'!$C155,VLOOKUP(IF('Balance Empresa'!$I155<>"",'Balance Empresa'!$I155&"",'Balance Empresa'!$J155),BC_PCGEmpresarial!$A:$B,2,0))) -> 622. Otras remuneraciones | N155: 0.00 | O155: 0.00 | P155: 19,486.00 | Q155: 0.00 | R155: 19,486.00 | S155: =IF(OR(TODAY()>r.real,'Balance Empresa'!$J155=""),"",IF(VLOOKUP('Balance Empresa'!$K155,t.casillas[],2)=0,"",VLOOKUP('Balance Empresa'!$K155,t.casillas[],2))) ->  | T155: =IF(OR('Balance Empresa'!$S155={"",0}),"",VLOOKUP(S155,t.codigos[],2)) ->  | V155: 3644 | W155: 387
B156: 622103 | C156: GRATIFICACIONES EXTRAORDINARIAS | D156: 0.00 | E156: 0.00 | F156: 1,620.34 | G156: 0.00 | H156: =IF('Balance Empresa'!$B156<>"",SUM('Balance Empresa'!$D156,-'Balance Empresa'!$E156,'Balance Empresa'!$F156,-'Balance Empresa'!$G156),"") -> 1,620.34 | J156: =IF(AND('Balance Empresa'!$B156<>"",IFERROR(VALUE(LEFT('Balance Empresa'!$B156,2)),FALSE)<>79),LEFT('Balance Empresa'!$B156,VLOOKUP('Balance Empresa'!$B156,t.caracter[],2)),"") -> 622 | K156: =IF(OR(TODAY()>r.real,'Balance Empresa'!$J156=""),"",IF(LEFT('Balance Empresa'!$J156)="9",'Balance Empresa'!$B156&". "&'Balance Empresa'!$C156,VLOOKUP(IF('Balance Empresa'!$I156<>"",'Balance Empresa'!$I156&"",'Balance Empresa'!$J156),BC_PCGEmpresarial!$A:$B,2,0))) -> 622. Otras remuneraciones | N156: 0.00 | O156: 0.00 | P156: 1,620.00 | Q156: 0.00 | R156: 1,620.00 | S156: =IF(OR(TODAY()>r.real,'Balance Empresa'!$J156=""),"",IF(VLOOKUP('Balance Empresa'!$K156,t.casillas[],2)=0,"",VLOOKUP('Balance Empresa'!$K156,t.casillas[],2))) ->  | T156: =IF(OR('Balance Empresa'!$S156={"",0}),"",VLOOKUP(S156,t.codigos[],2)) ->  | V156: 3645 | W156: 387
B157: 622104 | C157: MOVILIDAD | D157: 0.00 | E157: 0.00 | F157: 1,366.31 | G157: 0.00 | H157: =IF('Balance Empresa'!$B157<>"",SUM('Balance Empresa'!$D157,-'Balance Empresa'!$E157,'Balance Empresa'!$F157,-'Balance Empresa'!$G157),"") -> 1,366.31 | J157: =IF(AND('Balance Empresa'!$B157<>"",IFERROR(VALUE(LEFT('Balance Empresa'!$B157,2)),FALSE)<>79),LEFT('Balance Empresa'!$B157,VLOOKUP('Balance Empresa'!$B157,t.caracter[],2)),"") -> 622 | K157: =IF(OR(TODAY()>r.real,'Balance Empresa'!$J157=""),"",IF(LEFT('Balance Empresa'!$J157)="9",'Balance Empresa'!$B157&". "&'Balance Empresa'!$C157,VLOOKUP(IF('Balance Empresa'!$I157<>"",'Balance Empresa'!$I157&"",'Balance Empresa'!$J157),BC_PCGEmpresarial!$A:$B,2,0))) -> 622. Otras remuneraciones | N157: 0.00 | O157: 0.00 | P157: 1,366.00 | Q157: 0.00 | R157: 1,366.00 | S157: =IF(OR(TODAY()>r.real,'Balance Empresa'!$J157=""),"",IF(VLOOKUP('Balance Empresa'!$K157,t.casillas[],2)=0,"",VLOOKUP('Balance Empresa'!$K157,t.casillas[],2))) ->  | T157: =IF(OR('Balance Empresa'!$S157={"",0}),"",VLOOKUP(S157,t.codigos[],2)) ->  | V157: 3647 | W157: 387
B158: 624110 | C158: CAPACITACION | D158: 0.00 | E158: 0.00 | F158: 234.71 | G158: 0.00 | H158: =IF('Balance Empresa'!$B158<>"",SUM('Balance Empresa'!$D158,-'Balance Empresa'!$E158,'Balance Empresa'!$F158,-'Balance Empresa'!$G158),"") -> 234.71 | J158: =IF(AND('Balance Empresa'!$B158<>"",IFERROR(VALUE(LEFT('Balance Empresa'!$B158,2)),FALSE)<>79),LEFT('Balance Empresa'!$B158,VLOOKUP('Balance Empresa'!$B158,t.caracter[],2)),"") -> 624 | K158: =IF(OR(TODAY()>r.real,'Balance Empresa'!$J158=""),"",IF(LEFT('Balance Empresa'!$J158)="9",'Balance Empresa'!$B158&". "&'Balance Empresa'!$C158,VLOOKUP(IF('Balance Empresa'!$I158<>"",'Balance Empresa'!$I158&"",'Balance Empresa'!$J158),BC_PCGEmpresarial!$A:$B,2,0))) -> 624. Capacitación | N158: 0.00 | O158: 0.00 | P158: 235.00 | Q158: 0.00 | R158: 235.00 | S158: =IF(OR(TODAY()>r.real,'Balance Empresa'!$J158=""),"",IF(VLOOKUP('Balance Empresa'!$K158,t.casillas[],2)=0,"",VLOOKUP('Balance Empresa'!$K158,t.casillas[],2))) ->  | T158: =IF(OR('Balance Empresa'!$S158={"",0}),"",VLOOKUP(S158,t.codigos[],2)) ->  | V158: 3649 | W158: 387
B159: 625110 | C159: AGASAJOS | D159: 0.00 | E159: 0.00 | F159: 340.62 | G159: 0.00 | H159: =IF('Balance Empresa'!$B159<>"",SUM('Balance Empresa'!$D159,-'Balance Empresa'!$E159,'Balance Empresa'!$F159,-'Balance Empresa'!$G159),"") -> 340.62 | J159: =IF(AND('Balance Empresa'!$B159<>"",IFERROR(VALUE(LEFT('Balance Empresa'!$B159,2)),FALSE)<>79),LEFT('Balance Empresa'!$B159,VLOOKUP('Balance Empresa'!$B159,t.caracter[],2)),"") -> 625 | K159: =IF(OR(TODAY()>r.real,'Balance Empresa'!$J159=""),"",IF(LEFT('Balance Empresa'!$J159)="9",'Balance Empresa'!$B159&". "&'Balance Empresa'!$C159,VLOOKUP(IF('Balance Empresa'!$I159<>"",'Balance Empresa'!$I159&"",'Balance Empresa'!$J159),BC_PCGEmpresarial!$A:$B,2,0))) -> 625. Atención al personal | N159: 0.00 | O159: 0.00 | P159: 341.00 | Q159: 0.00 | R159: 341.00 | S159: =IF(OR(TODAY()>r.real,'Balance Empresa'!$J159=""),"",IF(VLOOKUP('Balance Empresa'!$K159,t.casillas[],2)=0,"",VLOOKUP('Balance Empresa'!$K159,t.casillas[],2))) ->  | T159: =IF(OR('Balance Empresa'!$S159={"",0}),"",VLOOKUP(S159,t.codigos[],2)) ->  | V159: 365 | W159: 387
B160: 625111 | C160: GASTOS MEDICOS | D160: 0.00 | E160: 0.00 | F160: 1,102.41 | G160: 0.00 | H160: =IF('Balance Empresa'!$B160<>"",SUM('Balance Empresa'!$D160,-'Balance Empresa'!$E160,'Balance Empresa'!$F160,-'Balance Empresa'!$G160),"") -> 1,102.41 | J160: =IF(AND('Balance Empresa'!$B160<>"",IFERROR(VALUE(LEFT('Balance Empresa'!$B160,2)),FALSE)<>79),LEFT('Balance Empresa'!$B160,VLOOKUP('Balance Empresa'!$B160,t.caracter[],2)),"") -> 625 | K160: =IF(OR(TODAY()>r.real,'Balance Empresa'!$J160=""),"",IF(LEFT('Balance Empresa'!$J160)="9",'Balance Empresa'!$B160&". "&'Balance Empresa'!$C160,VLOOKUP(IF('Balance Empresa'!$I160<>"",'Balance Empresa'!$I160&"",'Balance Empresa'!$J160),BC_PCGEmpresarial!$A:$B,2,0))) -> 625. Atención al personal | N160: 0.00 | O160: 0.00 | P160: 1,102.00 | Q160: 0.00 | R160: 1,102.00 | S160: =IF(OR(TODAY()>r.real,'Balance Empresa'!$J160=""),"",IF(VLOOKUP('Balance Empresa'!$K160,t.casillas[],2)=0,"",VLOOKUP('Balance Empresa'!$K160,t.casillas[],2))) ->  | T160: =IF(OR('Balance Empresa'!$S160={"",0}),"",VLOOKUP(S160,t.codigos[],2)) ->  | V160: 366 | W160: 387
B161: 627101 | C161: REGIMEN DE PRESTACIONES DE SALUD | D161: 0.00 | E161: 0.00 | F161: 49,323.97 | G161: 0.00 | H161: =IF('Balance Empresa'!$B161<>"",SUM('Balance Empresa'!$D161,-'Balance Empresa'!$E161,'Balance Empresa'!$F161,-'Balance Empresa'!$G161),"") -> 49,323.97 | J161: =IF(AND('Balance Empresa'!$B161<>"",IFERROR(VALUE(LEFT('Balance Empresa'!$B161,2)),FALSE)<>79),LEFT('Balance Empresa'!$B161,VLOOKUP('Balance Empresa'!$B161,t.caracter[],2)),"") -> 6271 | K161: =IF(OR(TODAY()>r.real,'Balance Empresa'!$J161=""),"",IF(LEFT('Balance Empresa'!$J161)="9",'Balance Empresa'!$B161&". "&'Balance Empresa'!$C161,VLOOKUP(IF('Balance Empresa'!$I161<>"",'Balance Empresa'!$I161&"",'Balance Empresa'!$J161),BC_PCGEmpresarial!$A:$B,2,0))) -> 6271. Seguridad, previsión social y otras contribuciones - Régimen de prestaciones de salud | N161: 0.00 | O161: 0.00 | P161: 49,324.00 | Q161: 0.00 | R161: 49,324.00 | S161: =IF(OR(TODAY()>r.real,'Balance Empresa'!$J161=""),"",IF(VLOOKUP('Balance Empresa'!$K161,t.casillas[],2)=0,"",VLOOKUP('Balance Empresa'!$K161,t.casillas[],2))) ->  | T161: =IF(OR('Balance Empresa'!$S161={"",0}),"",VLOOKUP(S161,t.codigos[],2)) ->  | V161: 371 | W161: 388
B162: 627301 | C162: SCRT | D162: 0.00 | E162: 0.00 | F162: 1,196.47 | G162: 0.00 | H162: =IF('Balance Empresa'!$B162<>"",SUM('Balance Empresa'!$D162,-'Balance Empresa'!$E162,'Balance Empresa'!$F162,-'Balance Empresa'!$G162),"") -> 1,196.47 | J162: =IF(AND('Balance Empresa'!$B162<>"",IFERROR(VALUE(LEFT('Balance Empresa'!$B162,2)),FALSE)<>79),LEFT('Balance Empresa'!$B162,VLOOKUP('Balance Empresa'!$B162,t.caracter[],2)),"") -> 6273 | K162: =IF(OR(TODAY()>r.real,'Balance Empresa'!$J162=""),"",IF(LEFT('Balance Empresa'!$J162)="9",'Balance Empresa'!$B162&". "&'Balance Empresa'!$C162,VLOOKUP(IF('Balance Empresa'!$I162<>"",'Balance Empresa'!$I162&"",'Balance Empresa'!$J162),BC_PCGEmpresarial!$A:$B,2,0))) -> 6273. Seguridad, previsión social y otras contribuciones - Seguro complementario de trabajo de riesgo, accidentes de trabajo y enfermedades profesionales | N162: 0.00 | O162: 0.00 | P162: 1,196.00 | Q162: 0.00 | R162: 1,196.00 | S162: =IF(OR(TODAY()>r.real,'Balance Empresa'!$J162=""),"",IF(VLOOKUP('Balance Empresa'!$K162,t.casillas[],2)=0,"",VLOOKUP('Balance Empresa'!$K162,t.casillas[],2))) ->  | T162: =IF(OR('Balance Empresa'!$S162={"",0}),"",VLOOKUP(S162,t.codigos[],2)) ->  | V162: 372 | W162: 388
B163: 627401 | C163: SEGURO DE VIDA | D163: 0.00 | E163: 0.00 | F163: 7,588.35 | G163: 2,042.85 | H163: =IF('Balance Empresa'!$B163<>"",SUM('Balance Empresa'!$D163,-'Balance Empresa'!$E163,'Balance Empresa'!$F163,-'Balance Empresa'!$G163),"") -> 5,545.49 | J163: =IF(AND('Balance Empresa'!$B163<>"",IFERROR(VALUE(LEFT('Balance Empresa'!$B163,2)),FALSE)<>79),LEFT('Balance Empresa'!$B163,VLOOKUP('Balance Empresa'!$B163,t.caracter[],2)),"") -> 6274 | K163: =IF(OR(TODAY()>r.real,'Balance Empresa'!$J163=""),"",IF(LEFT('Balance Empresa'!$J163)="9",'Balance Empresa'!$B163&". "&'Balance Empresa'!$C163,VLOOKUP(IF('Balance Empresa'!$I163<>"",'Balance Empresa'!$I163&"",'Balance Empresa'!$J163),BC_PCGEmpresarial!$A:$B,2,0))) -> 6274. Seguridad, previsión social y otras contribuciones - Seguro de vida | N163: 0.00 | O163: 0.00 | P163: 7,588.00 | Q163: 2,043.00 | R163: 5,545.00 | S163: =IF(OR(TODAY()>r.real,'Balance Empresa'!$J163=""),"",IF(VLOOKUP('Balance Empresa'!$K163,t.casillas[],2)=0,"",VLOOKUP('Balance Empresa'!$K163,t.casillas[],2))) ->  | T163: =IF(OR('Balance Empresa'!$S163={"",0}),"",VLOOKUP(S163,t.codigos[],2)) ->  | V163: 373 | W163: 388
B164: 627501 | C164: SEGUROS - EPS | D164: 0.00 | E164: 0.00 | F164: 52,951.08 | G164: 268.15 | H164: =IF('Balance Empresa'!$B164<>"",SUM('Balance Empresa'!$D164,-'Balance Empresa'!$E164,'Balance Empresa'!$F164,-'Balance Empresa'!$G164),"") -> 52,682.93 | J164: =IF(AND('Balance Empresa'!$B164<>"",IFERROR(VALUE(LEFT('Balance Empresa'!$B164,2)),FALSE)<>79),LEFT('Balance Empresa'!$B164,VLOOKUP('Balance Empresa'!$B164,t.caracter[],2)),"") -> 6275 | K164: =IF(OR(TODAY()>r.real,'Balance Empresa'!$J164=""),"",IF(LEFT('Balance Empresa'!$J164)="9",'Balance Empresa'!$B164&". "&'Balance Empresa'!$C164,VLOOKUP(IF('Balance Empresa'!$I164<>"",'Balance Empresa'!$I164&"",'Balance Empresa'!$J164),BC_PCGEmpresarial!$A:$B,2,0))) -> 6275. Seguridad, previsión social y otras contribuciones - Seguros particulares de prestaciones de salud – EPS y otros particulares | N164: 0.00 | O164: 0.00 | P164: 52,951.00 | Q164: 268.00 | R164: 52,683.00 | S164: =IF(OR(TODAY()>r.real,'Balance Empresa'!$J164=""),"",IF(VLOOKUP('Balance Empresa'!$K164,t.casillas[],2)=0,"",VLOOKUP('Balance Empresa'!$K164,t.casillas[],2))) ->  | T164: =IF(OR('Balance Empresa'!$S164={"",0}),"",VLOOKUP(S164,t.codigos[],2)) ->  | V164: 381 | W164: 378
B165: 629101 | C165: COMPENSACION POR TIEMPO DE SERVICIO EMPLEADOS | D165: 0.00 | E165: 0.00 | F165: 67,513.76 | G165: 224.32 | H165: =IF('Balance Empresa'!$B165<>"",SUM('Balance Empresa'!$D165,-'Balance Empresa'!$E165,'Balance Empresa'!$F165,-'Balance Empresa'!$G165),"") -> 67,289.44 | J165: =IF(AND('Balance Empresa'!$B165<>"",IFERROR(VALUE(LEFT('Balance Empresa'!$B165,2)),FALSE)<>79),LEFT('Balance Empresa'!$B165,VLOOKUP('Balance Empresa'!$B165,t.caracter[],2)),"") -> 6291 | K165: =IF(OR(TODAY()>r.real,'Balance Empresa'!$J165=""),"",IF(LEFT('Balance Empresa'!$J165)="9",'Balance Empresa'!$B165&". "&'Balance Empresa'!$C165,VLOOKUP(IF('Balance Empresa'!$I165<>"",'Balance Empresa'!$I165&"",'Balance Empresa'!$J165),BC_PCGEmpresarial!$A:$B,2,0))) -> 6291. Beneficios sociales de los trabajadores - Compensación por tiempo de servicio | N165: 0.00 | O165: 0.00 | P165: 67,514.00 | Q165: 224.00 | R165: 67,290.00 | S165: =IF(OR(TODAY()>r.real,'Balance Empresa'!$J165=""),"",IF(VLOOKUP('Balance Empresa'!$K165,t.casillas[],2)=0,"",VLOOKUP('Balance Empresa'!$K165,t.casillas[],2))) ->  | T165: =IF(OR('Balance Empresa'!$S165={"",0}),"",VLOOKUP(S165,t.codigos[],2)) ->  | V165: 382 | W165: 378
B166: 631111 | C166: TRANSPORTE DE CARGA | D166: 0.00 | E166: 0.00 | F166: 2,582.11 | G166: 0.00 | H166: =IF('Balance Empresa'!$B166<>"",SUM('Balance Empresa'!$D166,-'Balance Empresa'!$E166,'Balance Empresa'!$F166,-'Balance Empresa'!$G166),"") -> 2,582.11 | J166: =IF(AND('Balance Empresa'!$B166<>"",IFERROR(VALUE(LEFT('Balance Empresa'!$B166,2)),FALSE)<>79),LEFT('Balance Empresa'!$B166,VLOOKUP('Balance Empresa'!$B166,t.caracter[],2)),"") -> 63111 | K166: =IF(OR(TODAY()>r.real,'Balance Empresa'!$J166=""),"",IF(LEFT('Balance Empresa'!$J166)="9",'Balance Empresa'!$B166&". "&'Balance Empresa'!$C166,VLOOKUP(IF('Balance Empresa'!$I166<>"",'Balance Empresa'!$I166&"",'Balance Empresa'!$J166),BC_PCGEmpresarial!$A:$B,2,0))) -> 63111. Transporte, correos y gastos de viaje - Transporte - De carga | N166: 0.00 | O166: 0.00 | P166: 2,582.00 | Q166: 0.00 | R166: 2,582.00 | S166: =IF(OR(TODAY()>r.real,'Balance Empresa'!$J166=""),"",IF(VLOOKUP('Balance Empresa'!$K166,t.casillas[],2)=0,"",VLOOKUP('Balance Empresa'!$K166,t.casillas[],2))) ->  | T166: =IF(OR('Balance Empresa'!$S166={"",0}),"",VLOOKUP(S166,t.codigos[],2)) ->  | V166: 391 | W166: 383
B167: 631121 | C167: PASAJES TERRESTRES | D167: 0.00 | E167: 0.00 | F167: 395.66 | G167: 0.00 | H167: =IF('Balance Empresa'!$B167<>"",SUM('Balance Empresa'!$D167,-'Balance Empresa'!$E167,'Balance Empresa'!$F167,-'Balance Empresa'!$G167),"") -> 395.66 | J167: =IF(AND('Balance Empresa'!$B167<>"",IFERROR(VALUE(LEFT('Balance Empresa'!$B167,2)),FALSE)<>79),LEFT('Balance Empresa'!$B167,VLOOKUP('Balance Empresa'!$B167,t.caracter[],2)),"") -> 63112 | K167: =IF(OR(TODAY()>r.real,'Balance Empresa'!$J167=""),"",IF(LEFT('Balance Empresa'!$J167)="9",'Balance Empresa'!$B167&". "&'Balance Empresa'!$C167,VLOOKUP(IF('Balance Empresa'!$I167<>"",'Balance Empresa'!$I167&"",'Balance Empresa'!$J167),BC_PCGEmpresarial!$A:$B,2,0))) -> 63112. Transporte, correos y gastos de viaje - Transporte - De pasajeros | N167: 0.00 | O167: 0.00 | P167: 396.00 | Q167: 0.00 | R167: 396.00 | S167: =IF(OR(TODAY()>r.real,'Balance Empresa'!$J167=""),"",IF(VLOOKUP('Balance Empresa'!$K167,t.casillas[],2)=0,"",VLOOKUP('Balance Empresa'!$K167,t.casillas[],2))) ->  | T167: =IF(OR('Balance Empresa'!$S167={"",0}),"",VLOOKUP(S167,t.codigos[],2)) ->  | V167: 392 | W167: 383
B168: 631122 | C168: PASAJES AEREOS | D168: 0.00 | E168: 0.00 | F168: 8,936.05 | G168: 0.00 | H168: =IF('Balance Empresa'!$B168<>"",SUM('Balance Empresa'!$D168,-'Balance Empresa'!$E168,'Balance Empresa'!$F168,-'Balance Empresa'!$G168),"") -> 8,936.05 | J168: =IF(AND('Balance Empresa'!$B168<>"",IFERROR(VALUE(LEFT('Balance Empresa'!$B168,2)),FALSE)<>79),LEFT('Balance Empresa'!$B168,VLOOKUP('Balance Empresa'!$B168,t.caracter[],2)),"") -> 63112 | K168: =IF(OR(TODAY()>r.real,'Balance Empresa'!$J168=""),"",IF(LEFT('Balance Empresa'!$J168)="9",'Balance Empresa'!$B168&". "&'Balance Empresa'!$C168,VLOOKUP(IF('Balance Empresa'!$I168<>"",'Balance Empresa'!$I168&"",'Balance Empresa'!$J168),BC_PCGEmpresarial!$A:$B,2,0))) -> 63112. Transporte, correos y gastos de viaje - Transporte - De pasajeros | N168: 0.00 | O168: 0.00 | P168: 8,936.00 | Q168: 0.00 | R168: 8,936.00 | S168: =IF(OR(TODAY()>r.real,'Balance Empresa'!$J168=""),"",IF(VLOOKUP('Balance Empresa'!$K168,t.casillas[],2)=0,"",VLOOKUP('Balance Empresa'!$K168,t.casillas[],2))) ->  | T168: =IF(OR('Balance Empresa'!$S168={"",0}),"",VLOOKUP(S168,t.codigos[],2)) ->  | V168: 393 | W168: 383
B169: 631123 | C169: MOVILIDAD | D169: 0.00 | E169: 0.00 | F169: 7,800.93 | G169: 0.00 | H169: =IF('Balance Empresa'!$B169<>"",SUM('Balance Empresa'!$D169,-'Balance Empresa'!$E169,'Balance Empresa'!$F169,-'Balance Empresa'!$G169),"") -> 7,800.93 | J169: =IF(AND('Balance Empresa'!$B169<>"",IFERROR(VALUE(LEFT('Balance Empresa'!$B169,2)),FALSE)<>79),LEFT('Balance Empresa'!$B169,VLOOKUP('Balance Empresa'!$B169,t.caracter[],2)),"") -> 63112 | K169: =IF(OR(TODAY()>r.real,'Balance Empresa'!$J169=""),"",IF(LEFT('Balance Empresa'!$J169)="9",'Balance Empresa'!$B169&". "&'Balance Empresa'!$C169,VLOOKUP(IF('Balance Empresa'!$I169<>"",'Balance Empresa'!$I169&"",'Balance Empresa'!$J169),BC_PCGEmpresarial!$A:$B,2,0))) -> 63112. Transporte, correos y gastos de viaje - Transporte - De pasajeros | N169: 0.00 | O169: 0.00 | P169: 7,801.00 | Q169: 0.00 | R169: 7,801.00 | S169: =IF(OR(TODAY()>r.real,'Balance Empresa'!$J169=""),"",IF(VLOOKUP('Balance Empresa'!$K169,t.casillas[],2)=0,"",VLOOKUP('Balance Empresa'!$K169,t.casillas[],2))) ->  | T169: =IF(OR('Balance Empresa'!$S169={"",0}),"",VLOOKUP(S169,t.codigos[],2)) ->  | V169: 4011 | W169: 402
B170: 631124 | C170: PEAJES, COCHERAS ETC | D170: 0.00 | E170: 0.00 | F170: 312.76 | G170: 0.00 | H170: =IF('Balance Empresa'!$B170<>"",SUM('Balance Empresa'!$D170,-'Balance Empresa'!$E170,'Balance Empresa'!$F170,-'Balance Empresa'!$G170),"") -> 312.76 | J170: =IF(AND('Balance Empresa'!$B170<>"",IFERROR(VALUE(LEFT('Balance Empresa'!$B170,2)),FALSE)<>79),LEFT('Balance Empresa'!$B170,VLOOKUP('Balance Empresa'!$B170,t.caracter[],2)),"") -> 63112 | K170: =IF(OR(TODAY()>r.real,'Balance Empresa'!$J170=""),"",IF(LEFT('Balance Empresa'!$J170)="9",'Balance Empresa'!$B170&". "&'Balance Empresa'!$C170,VLOOKUP(IF('Balance Empresa'!$I170<>"",'Balance Empresa'!$I170&"",'Balance Empresa'!$J170),BC_PCGEmpresarial!$A:$B,2,0))) -> 63112. Transporte, correos y gastos de viaje - Transporte - De pasajeros | N170: 0.00 | O170: 0.00 | P170: 313.00 | Q170: 0.00 | R170: 313.00 | S170: =IF(OR(TODAY()>r.real,'Balance Empresa'!$J170=""),"",IF(VLOOKUP('Balance Empresa'!$K170,t.casillas[],2)=0,"",VLOOKUP('Balance Empresa'!$K170,t.casillas[],2))) ->  | T170: =IF(OR('Balance Empresa'!$S170={"",0}),"",VLOOKUP(S170,t.codigos[],2)) ->  | V170: 4012 | W170: 402
B171: 631211 | C171: CORREOS Y TELECOMUNICACIONES | D171: 0.00 | E171: 0.00 | F171: 27,101.09 | G171: 247.08 | H171: =IF('Balance Empresa'!$B171<>"",SUM('Balance Empresa'!$D171,-'Balance Empresa'!$E171,'Balance Empresa'!$F171,-'Balance Empresa'!$G171),"") -> 26,854.01 | J171: =IF(AND('Balance Empresa'!$B171<>"",IFERROR(VALUE(LEFT('Balance Empresa'!$B171,2)),FALSE)<>79),LEFT('Balance Empresa'!$B171,VLOOKUP('Balance Empresa'!$B171,t.caracter[],2)),"") -> 6312 | K171: =IF(OR(TODAY()>r.real,'Balance Empresa'!$J171=""),"",IF(LEFT('Balance Empresa'!$J171)="9",'Balance Empresa'!$B171&". "&'Balance Empresa'!$C171,VLOOKUP(IF('Balance Empresa'!$I171<>"",'Balance Empresa'!$I171&"",'Balance Empresa'!$J171),BC_PCGEmpresarial!$A:$B,2,0))) -> 6312. Transporte, correos y gastos de viaje - Correos | N171: 0.00 | O171: 0.00 | P171: 27,101.00 | Q171: 247.00 | R171: 26,854.00 | S171: =IF(OR(TODAY()>r.real,'Balance Empresa'!$J171=""),"",IF(VLOOKUP('Balance Empresa'!$K171,t.casillas[],2)=0,"",VLOOKUP('Balance Empresa'!$K171,t.casillas[],2))) ->  | T171: =IF(OR('Balance Empresa'!$S171={"",0}),"",VLOOKUP(S171,t.codigos[],2)) ->  | V171: 4015 | W171: 402
B172: 631301 | C172: ALOJAMIENTO | D172: 0.00 | E172: 0.00 | F172: 4,023.91 | G172: 0.00 | H172: =IF('Balance Empresa'!$B172<>"",SUM('Balance Empresa'!$D172,-'Balance Empresa'!$E172,'Balance Empresa'!$F172,-'Balance Empresa'!$G172),"") -> 4,023.91 | J172: =IF(AND('Balance Empresa'!$B172<>"",IFERROR(VALUE(LEFT('Balance Empresa'!$B172,2)),FALSE)<>79),LEFT('Balance Empresa'!$B172,VLOOKUP('Balance Empresa'!$B172,t.caracter[],2)),"") -> 6313 | K172: =IF(OR(TODAY()>r.real,'Balance Empresa'!$J172=""),"",IF(LEFT('Balance Empresa'!$J172)="9",'Balance Empresa'!$B172&". "&'Balance Empresa'!$C172,VLOOKUP(IF('Balance Empresa'!$I172<>"",'Balance Empresa'!$I172&"",'Balance Empresa'!$J172),BC_PCGEmpresarial!$A:$B,2,0))) -> 6313. Transporte, correos y gastos de viaje - Alojamiento | N172: 0.00 | O172: 0.00 | P172: 4,024.00 | Q172: 0.00 | R172: 4,024.00 | S172: =IF(OR(TODAY()>r.real,'Balance Empresa'!$J172=""),"",IF(VLOOKUP('Balance Empresa'!$K172,t.casillas[],2)=0,"",VLOOKUP('Balance Empresa'!$K172,t.casillas[],2))) ->  | T172: =IF(OR('Balance Empresa'!$S172={"",0}),"",VLOOKUP(S172,t.codigos[],2)) ->  | V172: 4017 | W172: 402
B173: 631401 | C173: ALIMENTACION | D173: 0.00 | E173: 0.00 | F173: 7,645.42 | G173: 0.00 | H173: =IF('Balance Empresa'!$B173<>"",SUM('Balance Empresa'!$D173,-'Balance Empresa'!$E173,'Balance Empresa'!$F173,-'Balance Empresa'!$G173),"") -> 7,645.42 | J173: =IF(AND('Balance Empresa'!$B173<>"",IFERROR(VALUE(LEFT('Balance Empresa'!$B173,2)),FALSE)<>79),LEFT('Balance Empresa'!$B173,VLOOKUP('Balance Empresa'!$B173,t.caracter[],2)),"") -> 6314 | K173: =IF(OR(TODAY()>r.real,'Balance Empresa'!$J173=""),"",IF(LEFT('Balance Empresa'!$J173)="9",'Balance Empresa'!$B173&". "&'Balance Empresa'!$C173,VLOOKUP(IF('Balance Empresa'!$I173<>"",'Balance Empresa'!$I173&"",'Balance Empresa'!$J173),BC_PCGEmpresarial!$A:$B,2,0))) -> 6314. Transporte, correos y gastos de viaje - Alimentación | N173: 0.00 | O173: 0.00 | P173: 7,645.00 | Q173: 0.00 | R173: 7,645.00 | S173: =IF(OR(TODAY()>r.real,'Balance Empresa'!$J173=""),"",IF(VLOOKUP('Balance Empresa'!$K173,t.casillas[],2)=0,"",VLOOKUP('Balance Empresa'!$K173,t.casillas[],2))) ->  | T173: =IF(OR('Balance Empresa'!$S173={"",0}),"",VLOOKUP(S173,t.codigos[],2)) ->  | V173: 4018 | W173: 402
